Workbook

Sheet Periodic Model
E1: Cap Charge | F1: =F151 -> 147.5378388 | G1: Levelised Cost | H1: =G204 -> 495.5171198
D3: Period | E3: Units | F3: Constant 1 | G3: Constant 2 | H3: Total | J3: 1 | K3: 2 | L3: 3 | M3: 4 | N3: 5 | O3: 6 | P3: 7 | Q3: 8 | R3: 9 | S3: 10 | T3: 11 | U3: 12 | V3: 13 | W3: 14 | X3: 15 | Y3: 16 | Z3: 17 | AA3: 18 | AB3: 19 | AC3: 20 | AD3: 21 | AE3: 22 | AF3: 23 | AG3: 24 | AH3: 25 | AI3: 26 | AJ3: 27 | AK3: 28 | AL3: 29 | AM3: 30 | AN3: 31 | AO3: 32 | AP3: 33 | AQ3: 34 | AR3: 35 | AS3: 36 | AT3: 37 | AU3: 38 | AV3: 39 | AW3: 40 | AX3: 41 | AY3: 42 | AZ3: 43 | BA3: 44 | BB3: 45 | BC3: 46 | BD3: 47 | BE3: 48 | BF3: 49 | BG3: 50 | BH3: 51 | BI3: 52 | BJ3: 53 | BK3: 54 | BL3: 55 | BM3: 56 | BN3: 57 | BO3: 58 | BP3: 59 | BQ3: 60 | BR3: 61 | BS3: 62 | BT3: 63 | BU3: 64 | BV3: 65 | BW3: 66 | BX3: 67 | BY3: 68 | BZ3: 69 | CA3: 70 | CB3: 71 | CC3: 72 | CD3: 73 | CE3: 74 | CF3: 75 | CG3: 76 | CH3: 77 | CI3: 78 | CJ3: 79 | CK3: 80 | CL3: 81 | CM3: 82 | CN3: 83 | CO3: 84 | CP3: 85 | CQ3: 86 | CR3: 87 | CS3: 88 | CT3: 89 | CU3: 90 | CV3: 91 | CW3: 92 | CX3: 93 | CY3: 94 | CZ3: 95 | DA3: 96 | DB3: 97 | DC3: 98 | DD3: 99 | DE3: 100 | DF3: 101 | DG3: 102 | DH3: 103 | DI3: 104 | DJ3: 105 | DK3: 106 | DL3: 107 | DM3: 108 | DN3: 109 | DO3: 110 | DP3: 111 | DQ3: 112 | DR3: 113 | DS3: 114 | DT3: 115 | DU3: 116 | DV3: 117 | DW3: 118 | DX3: 119 | DY3: 120 | DZ3: 121 | EA3: 122 | EB3: 123 | EC3: 124 | ED3: 125 | EE3: 126 | EF3: 127 | EG3: 128 | EH3: 129 | EI3: 130 | EJ3: 131 | EK3: 132 | EL3: 133 | EM3: 134 | EN3: 135 | EO3: 136 | EP3: 137 | EQ3: 138 | ER3: 139 | ES3: 140 | ET3: 141 | EU3: 142 | EV3: 143 | EW3: 144 | EX3: 145 | EY3: 146 | EZ3: 147 | FA3: 148 | FB3: 149 | FC3: 150 | FD3: 151 | FE3: 152 | FF3: 153 | FG3: 154 | FH3: 155 | FI3: 156 | FJ3: 157 | FK3: 158 | FL3: 159 | FM3: 160 | FN3: 161 | FO3: 162 | FP3: 163 | FQ3: 164 | FR3: 165 | FS3: 166 | FT3: 167 | FU3: 168 | FV3: 169 | FW3: 170 | FX3: 171 | FY3: 172 | FZ3: 173 | GA3: 174 | GB3: 175 | GC3: 176 | GD3: 177 | GE3: 178 | GF3: 179 | GG3: 180 | GH3: 181 | GI3: 182 | GJ3: 183 | GK3: 184 | GL3: 185 | GM3: 186 | GN3: 187 | GO3: 188 | GP3: 189 | GQ3: 190 | GR3: 191 | GS3: 192 | GT3: 193 | GU3: 194 | GV3: 195 | GW3: 196 | GX3: 197 | GY3: 198 | GZ3: 199 | HA3: 200 | HB3: 201 | HC3: 202 | HD3: 203 | HE3: 204 | HF3: 205 | HG3: 206 | HH3: 207 | HI3: 208 | HJ3: 209 | HK3: 210 | HL3: 211 | HM3: 212 | HN3: 213 | HO3: 214 | HP3: 215 | HQ3: 216 | HR3: 217 | HS3: 218 | HT3: 219 | HU3: 220 | HV3: 221 | HW3: 222 | HX3: 223 | HY3: 224 | HZ3: 225 | IA3: 226 | IB3: 227 | IC3: 228 | ID3: 229 | IE3: 230 | IF3: 231 | IG3: 232 | IH3: 233 | II3: 234 | IJ3: 235 | IK3: 236 | IL3: 237 | IM3: 238 | IN3: 239 | IO3: 240 | IP3: 241 | IQ3: 242 | IR3: 243 | IS3: 244 | IT3: 245 | IU3: 246 | IV3: 247 | IW3: 248 | IX3: 249 | IY3: 250 | IZ3: 251 | JA3: 252 | JB3: 253 | JC3: 254 | JD3: 255 | JE3: 256 | JF3: 257 | JG3: 258 | JH3: 259 | JI3: 260 | JJ3: 261 | JK3: 262 | JL3: 263 | JM3: 264 | JN3: 265 | JO3: 266 | JP3: 267 | JQ3: 268 | JR3: 269 | JS3: 270 | JT3: 271 | JU3: 272 | JV3: 273 | JW3: 274 | JX3: 275 | JY3: 276 | JZ3: 277 | KA3: 278 | KB3: 279 | KC3: 280 | KD3: 281 | KE3: 282 | KF3: 283 | KG3: 284 | KH3: 285 | KI3: 286 | KJ3: 287 | KK3: 288 | KL3: 289 | KM3: 290 | KN3: 291 | KO3: 292 | KP3: 293 | KQ3: 294 | KR3: 295 | KS3: 296 | KT3: 297 | KU3: 298 | KV3: 299 | KW3: 300
D4: Monthly Period | E4: Flag | F4: 66 | J4: =J3<=$F$4 -> TRUE | K4: =K3<=$F$4 -> TRUE | L4: TRUE | M4: TRUE | N4: TRUE | O4: TRUE | P4: TRUE | Q4: TRUE | R4: TRUE | S4: TRUE | T4: TRUE | U4: TRUE | V4: TRUE | W4: TRUE | X4: TRUE | Y4: TRUE | Z4: TRUE | AA4: TRUE | AB4: TRUE | AC4: TRUE | AD4: TRUE | AE4: TRUE | AF4: TRUE | AG4: TRUE | AH4: TRUE | AI4: TRUE | AJ4: TRUE | AK4: TRUE | AL4: TRUE | AM4: TRUE | AN4: TRUE | AO4: TRUE | AP4: TRUE | AQ4: TRUE | AR4: TRUE | AS4: TRUE | AT4: TRUE | AU4: TRUE | AV4: TRUE | AW4: TRUE | AX4: TRUE | AY4: TRUE | AZ4: TRUE | BA4: TRUE | BB4: TRUE | BC4: TRUE | BD4: TRUE | BE4: TRUE | BF4: TRUE | BG4: TRUE | BH4: TRUE | BI4: TRUE | BJ4: TRUE | BK4: TRUE | BL4: TRUE | BM4: TRUE | BN4: TRUE | BO4: TRUE | BP4: TRUE | BQ4: TRUE | BR4: TRUE | BS4: TRUE | BT4: TRUE | BU4: TRUE | BV4: TRUE | BW4: =BW3<=$F$4 -> TRUE | BX4: FALSE | BY4: FALSE | BZ4: FALSE | CA4: FALSE | CB4: FALSE | CC4: FALSE | CD4: FALSE | CE4: FALSE | CF4: FALSE | CG4: FALSE | CH4: FALSE | CI4: FALSE | CJ4: FALSE | CK4: FALSE | CL4: FALSE | CM4: FALSE | CN4: FALSE | CO4: FALSE | CP4: FALSE | CQ4: FALSE | CR4: FALSE | CS4: FALSE | CT4: FALSE | CU4: FALSE | CV4: FALSE | CW4: FALSE | CX4: FALSE | CY4: FALSE | CZ4: FALSE | DA4: FALSE | DB4: FALSE | DC4: FALSE | DD4: FALSE | DE4: FALSE | DF4: FALSE | DG4: FALSE | DH4: FALSE | DI4: FALSE | DJ4: FALSE | DK4: FALSE | DL4: FALSE | DM4: FALSE | DN4: FALSE | DO4: FALSE | DP4: FALSE | DQ4: FALSE | DR4: FALSE | DS4: FALSE | DT4: FALSE | DU4: FALSE | DV4: FALSE | DW4: FALSE | DX4: FALSE | DY4: FALSE | DZ4: FALSE | EA4: FALSE | EB4: FALSE | EC4: FALSE | ED4: FALSE | EE4: FALSE | EF4: FALSE | EG4: FALSE | EH4: FALSE | EI4: =EI3<=$F$4 -> FALSE | EJ4: FALSE | EK4: FALSE | EL4: FALSE | EM4: FALSE | EN4: FALSE | EO4: FALSE | EP4: FALSE | EQ4: FALSE | ER4: FALSE | ES4: FALSE | ET4: FALSE | EU4: FALSE | EV4: FALSE | EW4: FALSE | EX4: FALSE | EY4: FALSE | EZ4: FALSE | FA4: FALSE | FB4: FALSE | FC4: FALSE | FD4: FALSE | FE4: FALSE | FF4: FALSE | FG4: FALSE | FH4: FALSE | FI4: FALSE | FJ4: FALSE | FK4: FALSE | FL4: FALSE | FM4: FALSE | FN4: FALSE | FO4: FALSE | FP4: FALSE | FQ4: FALSE | FR4: FALSE | FS4: FALSE | FT4: FALSE | FU4: FALSE | FV4: FALSE | FW4: FALSE | FX4: FALSE | FY4: FALSE | FZ4: FALSE | GA4: FALSE | GB4: FALSE | GC4: FALSE | GD4: FALSE | GE4: FALSE | GF4: FALSE | GG4: FALSE | GH4: FALSE | GI4: FALSE | GJ4: FALSE | GK4: FALSE | GL4: FALSE | GM4: FALSE | GN4: FALSE | GO4: FALSE | GP4: FALSE | GQ4: FALSE | GR4: FALSE | GS4: FALSE | GT4: FALSE | GU4: =GU3<=$F$4 -> FALSE | GV4: FALSE | GW4: FALSE | GX4: FALSE | GY4: FALSE | GZ4: FALSE | HA4: FALSE | HB4: FALSE | HC4: FALSE | HD4: FALSE | HE4: FALSE | HF4: FALSE | HG4: FALSE | HH4: FALSE | HI4: FALSE | HJ4: FALSE | HK4: FALSE | HL4: FALSE | HM4: FALSE | HN4: FALSE | HO4: FALSE | HP4: FALSE | HQ4: FALSE | HR4: FALSE | HS4: FALSE | HT4: FALSE | HU4: FALSE | HV4: FALSE | HW4: FALSE | HX4: FALSE | HY4: FALSE | HZ4: FALSE | IA4: FALSE | IB4: FALSE | IC4: FALSE | ID4: FALSE | IE4: FALSE | IF4: FALSE | IG4: FALSE | IH4: FALSE | II4: FALSE | IJ4: FALSE | IK4: FALSE | IL4: FALSE | IM4: FALSE | IN4: FALSE | IO4: FALSE | IP4: FALSE | IQ4: FALSE | IR4: FALSE | IS4: FALSE | IT4: FALSE | IU4: FALSE | IV4: FALSE | IW4: FALSE | IX4: FALSE | IY4: FALSE | IZ4: FALSE | JA4: FALSE | JB4: FALSE | JC4: FALSE | JD4: FALSE | JE4: FALSE | JF4: FALSE | JG4: =JG3<=$F$4 -> FALSE | JH4: FALSE | JI4: FALSE | JJ4: FALSE | JK4: FALSE | JL4: FALSE | JM4: FALSE | JN4: FALSE | JO4: FALSE | JP4: FALSE | JQ4: FALSE | JR4: FALSE | JS4: FALSE | JT4: FALSE | JU4: FALSE | JV4: FALSE | JW4: FALSE | JX4: FALSE | JY4: FALSE | JZ4: FALSE | KA4: FALSE | KB4: FALSE | KC4: FALSE | KD4: FALSE | KE4: FALSE | KF4: FALSE | KG4: FALSE | KH4: FALSE | KI4: FALSE | KJ4: FALSE | KK4: FALSE | KL4: FALSE | KM4: FALSE | KN4: FALSE | KO4: FALSE | KP4: FALSE | KQ4: FALSE | KR4: FALSE | KS4: FALSE | KT4: FALSE | KU4: FALSE | KV4: FALSE | KW4: FALSE
D5: Months in Period | E5: Months | F5: 1 | G5: 6 | J5: =IF(J4,$F$5,$G$5) -> 1 | K5: =IF(K4,$F$5,$G$5) -> 1 | L5: 1 | M5: 1 | N5: 1 | O5: 1 | P5: 1 | Q5: 1 | R5: 1 | S5: 1 | T5: 1 | U5: 1 | V5: 1 | W5: 1 | X5: 1 | Y5: 1 | Z5: 1 | AA5: 1 | AB5: 1 | AC5: 1 | AD5: 1 | AE5: 1 | AF5: 1 | AG5: 1 | AH5: 1 | AI5: 1 | AJ5: 1 | AK5: 1 | AL5: 1 | AM5: 1 | AN5: 1 | AO5: 1 | AP5: 1 | AQ5: 1 | AR5: 1 | AS5: 1 | AT5: 1 | AU5: 1 | AV5: 1 | AW5: 1 | AX5: 1 | AY5: 1 | AZ5: 1 | BA5: 1 | BB5: 1 | BC5: 1 | BD5: 1 | BE5: 1 | BF5: 1 | BG5: 1 | BH5: 1 | BI5: 1 | BJ5: 1 | BK5: 1 | BL5: 1 | BM5: 1 | BN5: 1 | BO5: 1 | BP5: 1 | BQ5: 1 | BR5: 1 | BS5: 1 | BT5: 1 | BU5: 1 | BV5: 1 | BW5: =IF(BW4,$F$5,$G$5) -> 1 | BX5: 6 | BY5: 6 | BZ5: 6 | CA5: 6 | CB5: 6 | CC5: 6 | CD5: 6 | CE5: 6 | CF5: 6 | CG5: 6 | CH5: 6 | CI5: 6 | CJ5: 6 | CK5: 6 | CL5: 6 | CM5: 6 | CN5: 6 | CO5: 6 | CP5: 6 | CQ5: 6 | CR5: 6 | CS5: 6 | CT5: 6 | CU5: 6 | CV5: 6 | CW5: 6 | CX5: 6 | CY5: 6 | CZ5: 6 | DA5: 6 | DB5: 6 | DC5: 6 | DD5: 6 | DE5: 6 | DF5: 6 | DG5: 6 | DH5: 6 | DI5: 6 | DJ5: 6 | DK5: 6 | DL5: 6 | DM5: 6 | DN5: 6 | DO5: 6 | DP5: 6 | DQ5: 6 | DR5: 6 | DS5: 6 | DT5: 6 | DU5: 6 | DV5: 6 | DW5: 6 | DX5: 6 | DY5: 6 | DZ5: 6 | EA5: 6 | EB5: 6 | EC5: 6 | ED5: 6 | EE5: 6 | EF5: 6 | EG5: 6 | EH5: 6 | EI5: =IF(EI4,$F$5,$G$5) -> 6 | EJ5: 6 | EK5: 6 | EL5: 6 | EM5: 6 | EN5: 6 | EO5: 6 | EP5: 6 | EQ5: 6 | ER5: 6 | ES5: 6 | ET5: 6 | EU5: 6 | EV5: 6 | EW5: 6 | EX5: 6 | EY5: 6 | EZ5: 6 | FA5: 6 | FB5: 6 | FC5: 6 | FD5: 6 | FE5: 6 | FF5: 6 | FG5: 6 | FH5: 6 | FI5: 6 | FJ5: 6 | FK5: 6 | FL5: 6 | FM5: 6 | FN5: 6 | FO5: 6 | FP5: 6 | FQ5: 6 | FR5: 6 | FS5: 6 | FT5: 6 | FU5: 6 | FV5: 6 | FW5: 6 | FX5: 6 | FY5: 6 | FZ5: 6 | GA5: 6 | GB5: 6 | GC5: 6 | GD5: 6 | GE5: 6 | GF5: 6 | GG5: 6 | GH5: 6 | GI5: 6 | GJ5: 6 | GK5: 6 | GL5: 6 | GM5: 6 | GN5: 6 | GO5: 6 | GP5: 6 | GQ5: 6 | GR5: 6 | GS5: 6 | GT5: 6 | GU5: =IF(GU4,$F$5,$G$5) -> 6 | GV5: 6 | GW5: 6 | GX5: 6 | GY5: 6 | GZ5: 6 | HA5: 6 | HB5: 6 | HC5: 6 | HD5: 6 | HE5: 6 | HF5: 6 | HG5: 6 | HH5: 6 | HI5: 6 | HJ5: 6 | HK5: 6 | HL5: 6 | HM5: 6 | HN5: 6 | HO5: 6 | HP5: 6 | HQ5: 6 | HR5: 6 | HS5: 6 | HT5: 6 | HU5: 6 | HV5: 6 | HW5: 6 | HX5: 6 | HY5: 6 | HZ5: 6 | IA5: 6 | IB5: 6 | IC5: 6 | ID5: 6 | IE5: 6 | IF5: 6 | IG5: 6 | IH5: 6 | II5: 6 | IJ5: 6 | IK5: 6 | IL5: 6 | IM5: 6 | IN5: 6 | IO5: 6 | IP5: 6 | IQ5: 6 | IR5: 6 | IS5: 6 | IT5: 6 | IU5: 6 | IV5: 6 | IW5: 6 | IX5: 6 | IY5: 6 | IZ5: 6 | JA5: 6 | JB5: 6 | JC5: 6 | JD5: 6 | JE5: 6 | JF5: 6 | JG5: =IF(JG4,$F$5,$G$5) -> 6 | JH5: 6 | JI5: 6 | JJ5: 6 | JK5: 6 | JL5: 6 | JM5: 6 | JN5: 6 | JO5: 6 | JP5: 6 | JQ5: 6 | JR5: 6 | JS5: 6 | JT5: 6 | JU5: 6 | JV5: 6 | JW5: 6 | JX5: 6 | JY5: 6 | JZ5: 6 | KA5: 6 | KB5: 6 | KC5: 6 | KD5: 6 | KE5: 6 | KF5: 6 | KG5: 6 | KH5: 6 | KI5: 6 | KJ5: 6 | KK5: 6 | KL5: 6 | KM5: 6 | KN5: 6 | KO5: 6 | KP5: 6 | KQ5: 6 | KR5: 6 | KS5: 6 | KT5: 6 | KU5: 6 | KV5: 6 | KW5: 6
D6: Start of Period | H6: Check | J6: =I7+1 -> 2023-01-01 | K6: =J7+1 -> 2023-02-01 | L6: 2023-03-01 | M6: 2023-04-01 | N6: 2023-05-01 | O6: 2023-06-01 | P6: 2023-07-01 | Q6: 2023-08-01 | R6: 2023-09-01 | S6: 2023-10-01 | T6: 2023-11-01 | U6: 2023-12-01 | V6: 2024-01-01 | W6: 2024-02-01 | X6: 2024-03-01 | Y6: 2024-04-01 | Z6: 2024-05-01 | AA6: 2024-06-01 | AB6: 2024-07-01 | AC6: 2024-08-01 | AD6: 2024-09-01 | AE6: 2024-10-01 | AF6: 2024-11-01 | AG6: 2024-12-01 | AH6: 2025-01-01 | AI6: 2025-02-01 | AJ6: 2025-03-01 | AK6: 2025-04-01 | AL6: 2025-05-01 | AM6: 2025-06-01 | AN6: 2025-07-01 | AO6: 2025-08-01 | AP6: 2025-09-01 | AQ6: 2025-10-01 | AR6: 2025-11-01 | AS6: 2025-12-01 | AT6: 2026-01-01 | AU6: 2026-02-01 | AV6: 2026-03-01 | AW6: 2026-04-01 | AX6: 2026-05-01 | AY6: 2026-06-01 | AZ6: 2026-07-01 | BA6: 2026-08-01 | BB6: 2026-09-01 | BC6: 2026-10-01 | BD6: 2026-11-01 | BE6: 2026-12-01 | BF6: 2027-01-01 | BG6: 2027-02-01 | BH6: 2027-03-01 | BI6: 2027-04-01 | BJ6: 2027-05-01 | BK6: 2027-06-01 | BL6: 2027-07-01 | BM6: 2027-08-01 | BN6: 2027-09-01 | BO6: 2027-10-01 | BP6: 2027-11-01 | BQ6: 2027-12-01 | BR6: 2028-01-01 | BS6: 2028-02-01 | BT6: 2028-03-01 | BU6: 2028-04-01 | BV6: 2028-05-01 | BW6: =BV7+1 -> 2028-06-01 | BX6: 2028-07-01 | BY6: 2029-01-01 | BZ6: 2029-07-01 | CA6: 2030-01-01 | CB6: 2030-07-01 | CC6: 2031-01-01 | CD6: 2031-07-01 | CE6: 2032-01-01 | CF6: 2032-07-01 | CG6: 2033-01-01 | CH6: 2033-07-01 | CI6: 2034-01-01 | CJ6: 2034-07-01 | CK6: 2035-01-01 | CL6: 2035-07-01 | CM6: 2036-01-01 | CN6: 2036-07-01 | CO6: 2037-01-01 | CP6: 2037-07-01 | CQ6: 2038-01-01 | CR6: 2038-07-01 | CS6: 2039-01-01 | CT6: 2039-07-01 | CU6: 2040-01-01 | CV6: 2040-07-01 | CW6: 2041-01-01 | CX6: 2041-07-01 | CY6: 2042-01-01 | CZ6: 2042-07-01 | DA6: 2043-01-01 | DB6: 2043-07-01 | DC6: 2044-01-01 | DD6: 2044-07-01 | DE6: 2045-01-01 | DF6: 2045-07-01 | DG6: 2046-01-01 | DH6: 2046-07-01 | DI6: 2047-01-01 | DJ6: 2047-07-01 | DK6: 2048-01-01 | DL6: 2048-07-01 | DM6: 2049-01-01 | DN6: 2049-07-01 | DO6: 2050-01-01 | DP6: 2050-07-01 | DQ6: 2051-01-01 | DR6: 2051-07-01 | DS6: 2052-01-01 | DT6: 2052-07-01 | DU6: 2053-01-01 | DV6: 2053-07-01 | DW6: 2054-01-01 | DX6: 2054-07-01 | DY6: 2055-01-01 | DZ6: 2055-07-01 | EA6: 2056-01-01 | EB6: 2056-07-01 | EC6: 2057-01-01 | ED6: 2057-07-01 | EE6: 2058-01-01 | EF6: 2058-07-01 | EG6: 2059-01-01 | EH6: 2059-07-01 | EI6: =EH7+1 -> 2060-01-01 | EJ6: 2060-07-01 | EK6: 2061-01-01 | EL6: 2061-07-01 | EM6: 2062-01-01 | EN6: 2062-07-01 | EO6: 2063-01-01 | EP6: 2063-07-01 | EQ6: 2064-01-01 | ER6: 2064-07-01 | ES6: 2065-01-01 | ET6: 2065-07-01 | EU6: 2066-01-01 | EV6: 2066-07-01 | EW6: 2067-01-01 | EX6: 2067-07-01 | EY6: 2068-01-01 | EZ6: 2068-07-01 | FA6: 2069-01-01 | FB6: 2069-07-01 | FC6: 2070-01-01 | FD6: 2070-07-01 | FE6: 2071-01-01 | FF6: 2071-07-01 | FG6: 2072-01-01 | FH6: 2072-07-01 | FI6: 2073-01-01 | FJ6: 2073-07-01 | FK6: 2074-01-01 | FL6: 2074-07-01 | FM6: 2075-01-01 | FN6: 2075-07-01 | FO6: 2076-01-01 | FP6: 2076-07-01 | FQ6: 2077-01-01 | FR6: 2077-07-01 | FS6: 2078-01-01 | FT6: 2078-07-01 | FU6: 2079-01-01 | FV6: 2079-07-01 | FW6: 2080-01-01 | FX6: 2080-07-01 | FY6: 2081-01-01 | FZ6: 2081-07-01 | GA6: 2082-01-01 | GB6: 2082-07-01 | GC6: 2083-01-01 | GD6: 2083-07-01 | GE6: 2084-01-01 | GF6: 2084-07-01 | GG6: 2085-01-01 | GH6: 2085-07-01 | GI6: 2086-01-01 | GJ6: 2086-07-01 | GK6: 2087-01-01 | GL6: 2087-07-01 | GM6: 2088-01-01 | GN6: 2088-07-01 | GO6: 2089-01-01 | GP6: 2089-07-01 | GQ6: 2090-01-01 | GR6: 2090-07-01 | GS6: 2091-01-01 | GT6: 2091-07-01 | GU6: =GT7+1 -> 2092-01-01 | GV6: 2092-07-01 | GW6: 2093-01-01 | GX6: 2093-07-01 | GY6: 2094-01-01 | GZ6: 2094-07-01 | HA6: 2095-01-01 | HB6: 2095-07-01 | HC6: 2096-01-01 | HD6: 2096-07-01 | HE6: 2097-01-01 | HF6: 2097-07-01 | HG6: 2098-01-01 | HH6: 2098-07-01 | HI6: 2099-01-01 | HJ6: 2099-07-01 | HK6: 2100-01-01 | HL6: 2100-07-01 | HM6: 2101-01-01 | HN6: 2101-07-01 | HO6: 2102-01-01 | HP6: 2102-07-01 | HQ6: 2103-01-01 | HR6: 2103-07-01 | HS6: 2104-01-01 | HT6: 2104-07-01 | HU6: 2105-01-01 | HV6: 2105-07-01 | HW6: 2106-01-01 | HX6: 2106-07-01 | HY6: 2107-01-01 | HZ6: 2107-07-01 | IA6: 2108-01-01 | IB6: 2108-07-01 | IC6: 2109-01-01 | ID6: 2109-07-01 | IE6: 2110-01-01 | IF6: 2110-07-01 | IG6: 2111-01-01 | IH6: 2111-07-01 | II6: 2112-01-01 | IJ6: 2112-07-01 | IK6: 2113-01-01 | IL6: 2113-07-01 | IM6: 2114-01-01 | IN6: 2114-07-01 | IO6: 2115-01-01 | IP6: 2115-07-01 | IQ6: 2116-01-01 | IR6: 2116-07-01 | IS6: 2117-01-01 | IT6: 2117-07-01 | IU6: 2118-01-01 | IV6: 2118-07-01 | IW6: 2119-01-01 | IX6: 2119-07-01 | IY6: 2120-01-01 | IZ6: 2120-07-01 | JA6: 2121-01-01 | JB6: 2121-07-01 | JC6: 2122-01-01 | JD6: 2122-07-01 | JE6: 2123-01-01 | JF6: 2123-07-01 | JG6: =JF7+1 -> 2124-01-01 | JH6: 2124-07-01 | JI6: 2125-01-01 | JJ6: 2125-07-01 | JK6: 2126-01-01 | JL6: 2126-07-01 | JM6: 2127-01-01 | JN6: 2127-07-01 | JO6: 2128-01-01 | JP6: 2128-07-01 | JQ6: 2129-01-01 | JR6: 2129-07-01 | JS6: 2130-01-01 | JT6: 2130-07-01 | JU6: 2131-01-01 | JV6: 2131-07-01 | JW6: 2132-01-01 | JX6: 2132-07-01 | JY6: 2133-01-01 | JZ6: 2133-07-01 | KA6: 2134-01-01 | KB6: 2134-07-01 | KC6: 2135-01-01 | KD6: 2135-07-01 | KE6: 2136-01-01 | KF6: 2136-07-01 | KG6: 2137-01-01 | KH6: 2137-07-01 | KI6: 2138-01-01 | KJ6: 2138-07-01 | KK6: 2139-01-01 | KL6: 2139-07-01 | KM6: 2140-01-01 | KN6: 2140-07-01 | KO6: 2141-01-01 | KP6: 2141-07-01 | KQ6: 2142-01-01 | KR6: 2142-07-01 | KS6: 2143-01-01 | KT6: 2143-07-01 | KU6: 2144-01-01 | KV6: 2144-07-01 | KW6: 2145-01-01
D7: Escalation factor | H7: =AND(H174,J106) -> TRUE | I7: 2022-12-31 | J7: =EOMONTH(J6,J5-1) -> 2023-01-31 | K7: =EOMONTH(K6,K5-1) -> 2023-02-28 | L7: 2023-03-31 | M7: 2023-04-30 | N7: 2023-05-31 | O7: 2023-06-30 | P7: 2023-07-31 | Q7: 2023-08-31 | R7: 2023-09-30 | S7: 2023-10-31 | T7: 2023-11-30 | U7: 2023-12-31 | V7: 2024-01-31 | W7: 2024-02-29 | X7: 2024-03-31 | Y7: 2024-04-30 | Z7: 2024-05-31 | AA7: 2024-06-30 | AB7: 2024-07-31 | AC7: 2024-08-31 | AD7: 2024-09-30 | AE7: 2024-10-31 | AF7: 2024-11-30 | AG7: 2024-12-31 | AH7: 2025-01-31 | AI7: 2025-02-28 | AJ7: 2025-03-31 | AK7: 2025-04-30 | AL7: 2025-05-31 | AM7: 2025-06-30 | AN7: 2025-07-31 | AO7: 2025-08-31 | AP7: 2025-09-30 | AQ7: 2025-10-31 | AR7: 2025-11-30 | AS7: 2025-12-31 | AT7: 2026-01-31 | AU7: 2026-02-28 | AV7: 2026-03-31 | AW7: 2026-04-30 | AX7: 2026-05-31 | AY7: 2026-06-30 | AZ7: 2026-07-31 | BA7: 2026-08-31 | BB7: 2026-09-30 | BC7: 2026-10-31 | BD7: 2026-11-30 | BE7: 2026-12-31 | BF7: 2027-01-31 | BG7: 2027-02-28 | BH7: 2027-03-31 | BI7: 2027-04-30 | BJ7: 2027-05-31 | BK7: 2027-06-30 | BL7: 2027-07-31 | BM7: 2027-08-31 | BN7: 2027-09-30 | BO7: 2027-10-31 | BP7: 2027-11-30 | BQ7: 2027-12-31 | BR7: 2028-01-31 | BS7: 2028-02-29 | BT7: 2028-03-31 | BU7: 2028-04-30 | BV7: 2028-05-31 | BW7: =EOMONTH(BW6,BW5-1) -> 2028-06-30 | BX7: 2028-12-31 | BY7: 2029-06-30 | BZ7: 2029-12-31 | CA7: 2030-06-30 | CB7: 2030-12-31 | CC7: 2031-06-30 | CD7: 2031-12-31 | CE7: 2032-06-30 | CF7: 2032-12-31 | CG7: 2033-06-30 | CH7: 2033-12-31 | CI7: 2034-06-30 | CJ7: 2034-12-31 | CK7: 2035-06-30 | CL7: 2035-12-31 | CM7: 2036-06-30 | CN7: 2036-12-31 | CO7: 2037-06-30 | CP7: 2037-12-31 | CQ7: 2038-06-30 | CR7: 2038-12-31 | CS7: 2039-06-30 | CT7: 2039-12-31 | CU7: 2040-06-30 | CV7: 2040-12-31 | CW7: 2041-06-30 | CX7: 2041-12-31 | CY7: 2042-06-30 | CZ7: 2042-12-31 | DA7: 2043-06-30 | DB7: 2043-12-31 | DC7: 2044-06-30 | DD7: 2044-12-31 | DE7: 2045-06-30 | DF7: 2045-12-31 | DG7: 2046-06-30 | DH7: 2046-12-31 | DI7: 2047-06-30 | DJ7: 2047-12-31 | DK7: 2048-06-30 | DL7: 2048-12-31 | DM7: 2049-06-30 | DN7: 2049-12-31 | DO7: 2050-06-30 | DP7: 2050-12-31 | DQ7: 2051-06-30 | DR7: 2051-12-31 | DS7: 2052-06-30 | DT7: 2052-12-31 | DU7: 2053-06-30 | DV7: 2053-12-31 | DW7: 2054-06-30 | DX7: 2054-12-31 | DY7: 2055-06-30 | DZ7: 2055-12-31 | EA7: 2056-06-30 | EB7: 2056-12-31 | EC7: 2057-06-30 | ED7: 2057-12-31 | EE7: 2058-06-30 | EF7: 2058-12-31 | EG7: 2059-06-30 | EH7: 2059-12-31 | EI7: =EOMONTH(EI6,EI5-1) -> 2060-06-30 | EJ7: 2060-12-31 | EK7: 2061-06-30 | EL7: 2061-12-31 | EM7: 2062-06-30 | EN7: 2062-12-31 | EO7: 2063-06-30 | EP7: 2063-12-31 | EQ7: 2064-06-30 | ER7: 2064-12-31 | ES7: 2065-06-30 | ET7: 2065-12-31 | EU7: 2066-06-30 | EV7: 2066-12-31 | EW7: 2067-06-30 | EX7: 2067-12-31 | EY7: 2068-06-30 | EZ7: 2068-12-31 | FA7: 2069-06-30 | FB7: 2069-12-31 | FC7: 2070-06-30 | FD7: 2070-12-31 | FE7: 2071-06-30 | FF7: 2071-12-31 | FG7: 2072-06-30 | FH7: 2072-12-31 | FI7: 2073-06-30 | FJ7: 2073-12-31 | FK7: 2074-06-30 | FL7: 2074-12-31 | FM7: 2075-06-30 | FN7: 2075-12-31 | FO7: 2076-06-30 | FP7: 2076-12-31 | FQ7: 2077-06-30 | FR7: 2077-12-31 | FS7: 2078-06-30 | FT7: 2078-12-31 | FU7: 2079-06-30 | FV7: 2079-12-31 | FW7: 2080-06-30 | FX7: 2080-12-31 | FY7: 2081-06-30 | FZ7: 2081-12-31 | GA7: 2082-06-30 | GB7: 2082-12-31 | GC7: 2083-06-30 | GD7: 2083-12-31 | GE7: 2084-06-30 | GF7: 2084-12-31 | GG7: 2085-06-30 | GH7: 2085-12-31 | GI7: 2086-06-30 | GJ7: 2086-12-31 | GK7: 2087-06-30 | GL7: 2087-12-31 | GM7: 2088-06-30 | GN7: 2088-12-31 | GO7: 2089-06-30 | GP7: 2089-12-31 | GQ7: 2090-06-30 | GR7: 2090-12-31 | GS7: 2091-06-30 | GT7: 2091-12-31 | GU7: =EOMONTH(GU6,GU5-1) -> 2092-06-30 | GV7: 2092-12-31 | GW7: 2093-06-30 | GX7: 2093-12-31 | GY7: 2094-06-30 | GZ7: 2094-12-31 | HA7: 2095-06-30 | HB7: 2095-12-31 | HC7: 2096-06-30 | HD7: 2096-12-31 | HE7: 2097-06-30 | HF7: 2097-12-31 | HG7: 2098-06-30 | HH7: 2098-12-31 | HI7: 2099-06-30 | HJ7: 2099-12-31 | HK7: 2100-06-30 | HL7: 2100-12-31 | HM7: 2101-06-30 | HN7: 2101-12-31 | HO7: 2102-06-30 | HP7: 2102-12-31 | HQ7: 2103-06-30 | HR7: 2103-12-31 | HS7: 2104-06-30 | HT7: 2104-12-31 | HU7: 2105-06-30 | HV7: 2105-12-31 | HW7: 2106-06-30 | HX7: 2106-12-31 | HY7: 2107-06-30 | HZ7: 2107-12-31 | IA7: 2108-06-30 | IB7: 2108-12-31 | IC7: 2109-06-30 | ID7: 2109-12-31 | IE7: 2110-06-30 | IF7: 2110-12-31 | IG7: 2111-06-30 | IH7: 2111-12-31 | II7: 2112-06-30 | IJ7: 2112-12-31 | IK7: 2113-06-30 | IL7: 2113-12-31 | IM7: 2114-06-30 | IN7: 2114-12-31 | IO7: 2115-06-30 | IP7: 2115-12-31 | IQ7: 2116-06-30 | IR7: 2116-12-31 | IS7: 2117-06-30 | IT7: 2117-12-31 | IU7: 2118-06-30 | IV7: 2118-12-31 | IW7: 2119-06-30 | IX7: 2119-12-31 | IY7: 2120-06-30 | IZ7: 2120-12-31 | JA7: 2121-06-30 | JB7: 2121-12-31 | JC7: 2122-06-30 | JD7: 2122-12-31 | JE7: 2123-06-30 | JF7: 2123-12-31 | JG7: =EOMONTH(JG6,JG5-1) -> 2124-06-30 | JH7: 2124-12-31 | JI7: 2125-06-30 | JJ7: 2125-12-31 | JK7: 2126-06-30 | JL7: 2126-12-31 | JM7: 2127-06-30 | JN7: 2127-12-31 | JO7: 2128-06-30 | JP7: 2128-12-31 | JQ7: 2129-06-30 | JR7: 2129-12-31 | JS7: 2130-06-30 | JT7: 2130-12-31 | JU7: 2131-06-30 | JV7: 2131-12-31 | JW7: 2132-06-30 | JX7: 2132-12-31 | JY7: 2133-06-30 | JZ7: 2133-12-31 | KA7: 2134-06-30 | KB7: 2134-12-31 | KC7: 2135-06-30 | KD7: 2135-12-31 | KE7: 2136-06-30 | KF7: 2136-12-31 | KG7: 2137-06-30 | KH7: 2137-12-31 | KI7: 2138-06-30 | KJ7: 2138-12-31 | KK7: 2139-06-30 | KL7: 2139-12-31 | KM7: 2140-06-30 | KN7: 2140-12-31 | KO7: 2141-06-30 | KP7: 2141-12-31 | KQ7: 2142-06-30 | KR7: 2142-12-31 | KS7: 2143-06-30 | KT7: 2143-12-31 | KU7: 2144-06-30 | KV7: 2144-12-31 | KW7: 2145-06-30
D8: Commercial operation Date flag | F8: 2028-07-01 | G8: 2084-06-01 | J8: =AND(J6>=$F8,J6<=$G8) -> FALSE | K8: =AND(K6>=$F8,K6<=$G8) -> FALSE | L8: FALSE | M8: FALSE | N8: FALSE | O8: FALSE | P8: FALSE | Q8: FALSE | R8: FALSE | S8: FALSE | T8: FALSE | U8: FALSE | V8: FALSE | W8: FALSE | X8: FALSE | Y8: FALSE | Z8: FALSE | AA8: FALSE | AB8: FALSE | AC8: FALSE | AD8: FALSE | AE8: FALSE | AF8: FALSE | AG8: FALSE | AH8: FALSE | AI8: FALSE | AJ8: FALSE | AK8: FALSE | AL8: FALSE | AM8: FALSE | AN8: FALSE | AO8: FALSE | AP8: FALSE | AQ8: FALSE | AR8: FALSE | AS8: FALSE | AT8: FALSE | AU8: FALSE | AV8: FALSE | AW8: FALSE | AX8: FALSE | AY8: FALSE | AZ8: FALSE | BA8: FALSE | BB8: FALSE | BC8: FALSE | BD8: FALSE | BE8: FALSE | BF8: FALSE | BG8: FALSE | BH8: FALSE | BI8: FALSE | BJ8: FALSE | BK8: FALSE | BL8: FALSE | BM8: FALSE | BN8: FALSE | BO8: FALSE | BP8: FALSE | BQ8: FALSE | BR8: FALSE | BS8: FALSE | BT8: FALSE | BU8: FALSE | BV8: FALSE | BW8: =AND(BW6>=$F8,BW6<=$G8) -> FALSE | BX8: TRUE | BY8: TRUE | BZ8: TRUE | CA8: TRUE | CB8: TRUE | CC8: TRUE | CD8: TRUE | CE8: TRUE | CF8: TRUE | CG8: TRUE | CH8: TRUE | CI8: TRUE | CJ8: TRUE | CK8: TRUE | CL8: TRUE | CM8: TRUE | CN8: TRUE | CO8: TRUE | CP8: TRUE | CQ8: TRUE | CR8: TRUE | CS8: TRUE | CT8: TRUE | CU8: TRUE | CV8: TRUE | CW8: TRUE | CX8: TRUE | CY8: TRUE | CZ8: TRUE | DA8: TRUE | DB8: TRUE | DC8: TRUE | DD8: TRUE | DE8: TRUE | DF8: TRUE | DG8: TRUE | DH8: TRUE | DI8: TRUE | DJ8: TRUE | DK8: TRUE | DL8: TRUE | DM8: TRUE | DN8: TRUE | DO8: TRUE | DP8: TRUE | DQ8: TRUE | DR8: TRUE | DS8: TRUE | DT8: TRUE | DU8: TRUE | DV8: TRUE | DW8: TRUE | DX8: TRUE | DY8: TRUE | DZ8: TRUE | EA8: TRUE | EB8: TRUE | EC8: TRUE | ED8: TRUE | EE8: TRUE | EF8: TRUE | EG8: TRUE | EH8: TRUE | EI8: =AND(EI6>=$F8,EI6<=$G8) -> TRUE | EJ8: TRUE | EK8: TRUE | EL8: TRUE | EM8: TRUE | EN8: TRUE | EO8: TRUE | EP8: TRUE | EQ8: TRUE | ER8: TRUE | ES8: TRUE | ET8: TRUE | EU8: TRUE | EV8: TRUE | EW8: TRUE | EX8: TRUE | EY8: TRUE | EZ8: TRUE | FA8: TRUE | FB8: TRUE | FC8: TRUE | FD8: TRUE | FE8: TRUE | FF8: TRUE | FG8: TRUE | FH8: TRUE | FI8: TRUE | FJ8: TRUE | FK8: TRUE | FL8: TRUE | FM8: TRUE | FN8: TRUE | FO8: TRUE | FP8: TRUE | FQ8: TRUE | FR8: TRUE | FS8: TRUE | FT8: TRUE | FU8: TRUE | FV8: TRUE | FW8: TRUE | FX8: TRUE | FY8: TRUE | FZ8: TRUE | GA8: TRUE | GB8: TRUE | GC8: TRUE | GD8: TRUE | GE8: TRUE | GF8: FALSE | GG8: FALSE | GH8: FALSE | GI8: FALSE | GJ8: FALSE | GK8: FALSE | GL8: FALSE | GM8: FALSE | GN8: FALSE | GO8: FALSE | GP8: FALSE | GQ8: FALSE | GR8: FALSE | GS8: FALSE | GT8: FALSE | GU8: =AND(GU6>=$F8,GU6<=$G8) -> FALSE | GV8: FALSE | GW8: FALSE | GX8: FALSE | GY8: FALSE | GZ8: FALSE | HA8: FALSE | HB8: FALSE | HC8: FALSE | HD8: FALSE | HE8: FALSE | HF8: FALSE | HG8: FALSE | HH8: FALSE | HI8: FALSE | HJ8: FALSE | HK8: FALSE | HL8: FALSE | HM8: FALSE | HN8: FALSE | HO8: FALSE | HP8: FALSE | HQ8: FALSE | HR8: FALSE | HS8: FALSE | HT8: FALSE | HU8: FALSE | HV8: FALSE | HW8: FALSE | HX8: FALSE | HY8: FALSE | HZ8: FALSE | IA8: FALSE | IB8: FALSE | IC8: FALSE | ID8: FALSE | IE8: FALSE | IF8: FALSE | IG8: FALSE | IH8: FALSE | II8: FALSE | IJ8: FALSE | IK8: FALSE | IL8: FALSE | IM8: FALSE | IN8: FALSE | IO8: FALSE | IP8: FALSE | IQ8: FALSE | IR8: FALSE | IS8: FALSE | IT8: FALSE | IU8: FALSE | IV8: FALSE | IW8: FALSE | IX8: FALSE | IY8: FALSE | IZ8: FALSE | JA8: FALSE | JB8: FALSE | JC8: FALSE | JD8: FALSE | JE8: FALSE | JF8: FALSE | JG8: =AND(JG6>=$F8,JG6<=$G8) -> FALSE | JH8: FALSE | JI8: FALSE | JJ8: FALSE | JK8: FALSE | JL8: FALSE | JM8: FALSE | JN8: FALSE | JO8: FALSE | JP8: FALSE | JQ8: FALSE | JR8: FALSE | JS8: FALSE | JT8: FALSE | JU8: FALSE | JV8: FALSE | JW8: FALSE | JX8: FALSE | JY8: FALSE | JZ8: FALSE | KA8: FALSE | KB8: FALSE | KC8: FALSE | KD8: FALSE | KE8: FALSE | KF8: FALSE | KG8: FALSE | KH8: FALSE | KI8: FALSE | KJ8: FALSE | KK8: FALSE | KL8: FALSE | KM8: FALSE | KN8: FALSE | KO8: FALSE | KP8: FALSE | KQ8: FALSE | KR8: FALSE | KS8: FALSE | KT8: FALSE | KU8: FALSE | KV8: FALSE | KW8: FALSE
B10: Production volume
C11: Capacity of Supply Machine Facility
D12: Capacity of Machine per Year | E12: Tons per year | F12: 200000 | J12: =$F$12*J8 -> 0 | K12: 0 | L12: 0 | M12: 0 | N12: 0 | O12: 0 | P12: 0 | Q12: 0 | R12: 0 | S12: 0 | T12: 0 | U12: 0 | V12: 0 | W12: 0 | X12: 0 | Y12: 0 | Z12: 0 | AA12: 0 | AB12: 0 | AC12: 0 | AD12: 0 | AE12: 0 | AF12: 0 | AG12: 0 | AH12: 0 | AI12: 0 | AJ12: 0 | AK12: 0 | AL12: 0 | AM12: 0 | AN12: 0 | AO12: 0 | AP12: 0 | AQ12: 0 | AR12: 0 | AS12: 0 | AT12: 0 | AU12: 0 | AV12: 0 | AW12: 0 | AX12: 0 | AY12: 0 | AZ12: 0 | BA12: 0 | BB12: 0 | BC12: 0 | BD12: 0 | BE12: 0 | BF12: 0 | BG12: 0 | BH12: 0 | BI12: 0 | BJ12: 0 | BK12: 0 | BL12: 0 | BM12: 0 | BN12: 0 | BO12: 0 | BP12: 0 | BQ12: 0 | BR12: 0 | BS12: 0 | BT12: 0 | BU12: 0 | BV12: =$F$12*BV8 -> 0 | BW12: 0 | BX12: 200000 | BY12: 200000 | BZ12: 200000 | CA12: 200000 | CB12: 200000 | CC12: 200000 | CD12: 200000 | CE12: 200000 | CF12: 200000 | CG12: 200000 | CH12: 200000 | CI12: 200000 | CJ12: 200000 | CK12: 200000 | CL12: 200000 | CM12: 200000 | CN12: 200000 | CO12: 200000 | CP12: 200000 | CQ12: 200000 | CR12: 200000 | CS12: 200000 | CT12: 200000 | CU12: 200000 | CV12: 200000 | CW12: 200000 | CX12: 200000 | CY12: 200000 | CZ12: 200000 | DA12: 200000 | DB12: 200000 | DC12: 200000 | DD12: 200000 | DE12: 200000 | DF12: 200000 | DG12: 200000 | DH12: 200000 | DI12: 200000 | DJ12: 200000 | DK12: 200000 | DL12: 200000 | DM12: 200000 | DN12: 200000 | DO12: 200000 | DP12: 200000 | DQ12: 200000 | DR12: 200000 | DS12: 200000 | DT12: 200000 | DU12: 200000 | DV12: 200000 | DW12: 200000 | DX12: 200000 | DY12: 200000 | DZ12: 200000 | EA12: 200000 | EB12: 200000 | EC12: 200000 | ED12: 200000 | EE12: 200000 | EF12: 200000 | EG12: 200000 | EH12: =$F$12*EH8 -> 200000 | EI12: 200000 | EJ12: 200000 | EK12: 200000 | EL12: 200000 | EM12: 200000 | EN12: 200000 | EO12: 200000 | EP12: 200000 | EQ12: 200000 | ER12: 200000 | ES12: 200000 | ET12: 200000 | EU12: 200000 | EV12: 200000 | EW12: 200000 | EX12: 200000 | EY12: 200000 | EZ12: 200000 | FA12: 200000 | FB12: 200000 | FC12: 200000 | FD12: 200000 | FE12: 200000 | FF12: 200000 | FG12: 200000 | FH12: 200000 | FI12: 200000 | FJ12: 200000 | FK12: 200000 | FL12: 200000 | FM12: 200000 | FN12: 200000 | FO12: 200000 | FP12: 200000 | FQ12: 200000 | FR12: 200000 | FS12: 200000 | FT12: 200000 | FU12: 200000 | FV12: 200000 | FW12: 200000 | FX12: 200000 | FY12: 200000 | FZ12: 200000 | GA12: 200000 | GB12: 200000 | GC12: 200000 | GD12: 200000 | GE12: 200000 | GF12: 0 | GG12: 0 | GH12: 0 | GI12: 0 | GJ12: 0 | GK12: 0 | GL12: 0 | GM12: 0 | GN12: 0 | GO12: 0 | GP12: 0 | GQ12: 0 | GR12: 0 | GS12: 0 | GT12: =$F$12*GT8 -> 0 | GU12: 0 | GV12: 0 | GW12: 0 | GX12: 0 | GY12: 0 | GZ12: 0 | HA12: 0 | HB12: 0 | HC12: 0 | HD12: 0 | HE12: 0 | HF12: 0 | HG12: 0 | HH12: 0 | HI12: 0 | HJ12: 0 | HK12: 0 | HL12: 0 | HM12: 0 | HN12: 0 | HO12: 0 | HP12: 0 | HQ12: 0 | HR12: 0 | HS12: 0 | HT12: 0 | HU12: 0 | HV12: 0 | HW12: 0 | HX12: 0 | HY12: 0 | HZ12: 0 | IA12: 0 | IB12: 0 | IC12: 0 | ID12: 0 | IE12: 0 | IF12: 0 | IG12: 0 | IH12: 0 | II12: 0 | IJ12: 0 | IK12: 0 | IL12: 0 | IM12: 0 | IN12: 0 | IO12: 0 | IP12: 0 | IQ12: 0 | IR12: 0 | IS12: 0 | IT12: 0 | IU12: 0 | IV12: 0 | IW12: 0 | IX12: 0 | IY12: 0 | IZ12: 0 | JA12: 0 | JB12: 0 | JC12: 0 | JD12: 0 | JE12: 0 | JF12: =$F$12*JF8 -> 0 | JG12: 0 | JH12: 0 | JI12: 0 | JJ12: 0 | JK12: 0 | JL12: 0 | JM12: 0 | JN12: 0 | JO12: 0 | JP12: 0 | JQ12: 0 | JR12: 0 | JS12: 0 | JT12: 0 | JU12: 0 | JV12: 0 | JW12: 0 | JX12: 0 | JY12: 0 | JZ12: 0 | KA12: 0 | KB12: 0 | KC12: 0 | KD12: 0 | KE12: 0 | KF12: 0 | KG12: 0 | KH12: 0 | KI12: 0 | KJ12: 0 | KK12: 0 | KL12: 0 | KM12: 0 | KN12: 0 | KO12: 0 | KP12: 0 | KQ12: 0 | KR12: 0 | KS12: 0 | KT12: 0 | KU12: 0 | KV12: 0 | KW12: 0
D13: Days in Period | E13: Days | J13: =J7-J6+1 -> 31 | K13: 28 | L13: 31 | M13: 30 | N13: 31 | O13: 30 | P13: 31 | Q13: 31 | R13: 30 | S13: 31 | T13: 30 | U13: 31 | V13: 31 | W13: 29 | X13: 31 | Y13: 30 | Z13: 31 | AA13: 30 | AB13: 31 | AC13: 31 | AD13: 30 | AE13: 31 | AF13: 30 | AG13: 31 | AH13: 31 | AI13: 28 | AJ13: 31 | AK13: 30 | AL13: 31 | AM13: 30 | AN13: 31 | AO13: 31 | AP13: 30 | AQ13: 31 | AR13: 30 | AS13: 31 | AT13: 31 | AU13: 28 | AV13: 31 | AW13: 30 | AX13: 31 | AY13: 30 | AZ13: 31 | BA13: 31 | BB13: 30 | BC13: 31 | BD13: 30 | BE13: 31 | BF13: 31 | BG13: 28 | BH13: 31 | BI13: 30 | BJ13: 31 | BK13: 30 | BL13: 31 | BM13: 31 | BN13: 30 | BO13: 31 | BP13: 30 | BQ13: 31 | BR13: 31 | BS13: 29 | BT13: 31 | BU13: 30 | BV13: =BV7-BV6+1 -> 31 | BW13: 30 | BX13: 184 | BY13: 181 | BZ13: 184 | CA13: 181 | CB13: 184 | CC13: 181 | CD13: 184 | CE13: 182 | CF13: 184 | CG13: 181 | CH13: 184 | CI13: 181 | CJ13: 184 | CK13: 181 | CL13: 184 | CM13: 182 | CN13: 184 | CO13: 181 | CP13: 184 | CQ13: 181 | CR13: 184 | CS13: 181 | CT13: 184 | CU13: 182 | CV13: 184 | CW13: 181 | CX13: 184 | CY13: 181 | CZ13: 184 | DA13: 181 | DB13: 184 | DC13: 182 | DD13: 184 | DE13: 181 | DF13: 184 | DG13: 181 | DH13: 184 | DI13: 181 | DJ13: 184 | DK13: 182 | DL13: 184 | DM13: 181 | DN13: 184 | DO13: 181 | DP13: 184 | DQ13: 181 | DR13: 184 | DS13: 182 | DT13: 184 | DU13: 181 | DV13: 184 | DW13: 181 | DX13: 184 | DY13: 181 | DZ13: 184 | EA13: 182 | EB13: 184 | EC13: 181 | ED13: 184 | EE13: 181 | EF13: 184 | EG13: 181 | EH13: =EH7-EH6+1 -> 184 | EI13: 182 | EJ13: 184 | EK13: 181 | EL13: 184 | EM13: 181 | EN13: 184 | EO13: 181 | EP13: 184 | EQ13: 182 | ER13: 184 | ES13: 181 | ET13: 184 | EU13: 181 | EV13: 184 | EW13: 181 | EX13: 184 | EY13: 182 | EZ13: 184 | FA13: 181 | FB13: 184 | FC13: 181 | FD13: 184 | FE13: 181 | FF13: 184 | FG13: 182 | FH13: 184 | FI13: 181 | FJ13: 184 | FK13: 181 | FL13: 184 | FM13: 181 | FN13: 184 | FO13: 182 | FP13: 184 | FQ13: 181 | FR13: 184 | FS13: 181 | FT13: 184 | FU13: 181 | FV13: 184 | FW13: 182 | FX13: 184 | FY13: 181 | FZ13: 184 | GA13: 181 | GB13: 184 | GC13: 181 | GD13: 184 | GE13: 182 | GF13: 184 | GG13: 181 | GH13: 184 | GI13: 181 | GJ13: 184 | GK13: 181 | GL13: 184 | GM13: 182 | GN13: 184 | GO13: 181 | GP13: 184 | GQ13: 181 | GR13: 184 | GS13: 181 | GT13: =GT7-GT6+1 -> 184 | GU13: 182 | GV13: 184 | GW13: 181 | GX13: 184 | GY13: 181 | GZ13: 184 | HA13: 181 | HB13: 184 | HC13: 182 | HD13: 184 | HE13: 181 | HF13: 184 | HG13: 181 | HH13: 184 | HI13: 181 | HJ13: 184 | HK13: 181 | HL13: 184 | HM13: 181 | HN13: 184 | HO13: 181 | HP13: 184 | HQ13: 181 | HR13: 184 | HS13: 182 | HT13: 184 | HU13: 181 | HV13: 184 | HW13: 181 | HX13: 184 | HY13: 181 | HZ13: 184 | IA13: 182 | IB13: 184 | IC13: 181 | ID13: 184 | IE13: 181 | IF13: 184 | IG13: 181 | IH13: 184 | II13: 182 | IJ13: 184 | IK13: 181 | IL13: 184 | IM13: 181 | IN13: 184 | IO13: 181 | IP13: 184 | IQ13: 182 | IR13: 184 | IS13: 181 | IT13: 184 | IU13: 181 | IV13: 184 | IW13: 181 | IX13: 184 | IY13: 182 | IZ13: 184 | JA13: 181 | JB13: 184 | JC13: 181 | JD13: 184 | JE13: 181 | JF13: =JF7-JF6+1 -> 184 | JG13: 182 | JH13: 184 | JI13: 181 | JJ13: 184 | JK13: 181 | JL13: 184 | JM13: 181 | JN13: 184 | JO13: 182 | JP13: 184 | JQ13: 181 | JR13: 184 | JS13: 181 | JT13: 184 | JU13: 181 | JV13: 184 | JW13: 182 | JX13: 184 | JY13: 181 | JZ13: 184 | KA13: 181 | KB13: 184 | KC13: 181 | KD13: 184 | KE13: 182 | KF13: 184 | KG13: 181 | KH13: 184 | KI13: 181 | KJ13: 184 | KK13: 181 | KL13: 184 | KM13: 182 | KN13: 184 | KO13: 181 | KP13: 184 | KQ13: 181 | KR13: 184 | KS13: 181 | KT13: 184 | KU13: 182 | KV13: 184 | KW13: 181
D14: Percent of Year | E14: Percent | J14: =YEARFRAC(J6,J7+1,3) -> 0.08493150685 | K14: 0.07671232877 | L14: 0.08493150685 | M14: 0.08219178082 | N14: 0.08493150685 | O14: 0.08219178082 | P14: 0.08493150685 | Q14: 0.08493150685 | R14: 0.08219178082 | S14: 0.08493150685 | T14: 0.08219178082 | U14: 0.08493150685 | V14: 0.08493150685 | W14: 0.07945205479 | X14: 0.08493150685 | Y14: 0.08219178082 | Z14: 0.08493150685 | AA14: 0.08219178082 | AB14: 0.08493150685 | AC14: 0.08493150685 | AD14: 0.08219178082 | AE14: 0.08493150685 | AF14: 0.08219178082 | AG14: 0.08493150685 | AH14: 0.08493150685 | AI14: 0.07671232877 | AJ14: 0.08493150685 | AK14: 0.08219178082 | AL14: 0.08493150685 | AM14: 0.08219178082 | AN14: 0.08493150685 | AO14: 0.08493150685 | AP14: 0.08219178082 | AQ14: 0.08493150685 | AR14: 0.08219178082 | AS14: 0.08493150685 | AT14: 0.08493150685 | AU14: 0.07671232877 | AV14: 0.08493150685 | AW14: 0.08219178082 | AX14: 0.08493150685 | AY14: 0.08219178082 | AZ14: 0.08493150685 | BA14: 0.08493150685 | BB14: 0.08219178082 | BC14: 0.08493150685 | BD14: 0.08219178082 | BE14: 0.08493150685 | BF14: 0.08493150685 | BG14: 0.07671232877 | BH14: 0.08493150685 | BI14: 0.08219178082 | BJ14: 0.08493150685 | BK14: 0.08219178082 | BL14: 0.08493150685 | BM14: 0.08493150685 | BN14: 0.08219178082 | BO14: 0.08493150685 | BP14: 0.08219178082 | BQ14: 0.08493150685 | BR14: 0.08493150685 | BS14: 0.07945205479 | BT14: 0.08493150685 | BU14: 0.08219178082 | BV14: =YEARFRAC(BV6,BV7+1,3) -> 0.08493150685 | BW14: 0.08219178082 | BX14: 0.504109589 | BY14: 0.495890411 | BZ14: 0.504109589 | CA14: 0.495890411 | CB14: 0.504109589 | CC14: 0.495890411 | CD14: 0.504109589 | CE14: 0.498630137 | CF14: 0.504109589 | CG14: 0.495890411 | CH14: 0.504109589 | CI14: 0.495890411 | CJ14: 0.504109589 | CK14: 0.495890411 | CL14: 0.504109589 | CM14: 0.498630137 | CN14: 0.504109589 | CO14: 0.495890411 | CP14: 0.504109589 | CQ14: 0.495890411 | CR14: 0.504109589 | CS14: 0.495890411 | CT14: 0.504109589 | CU14: 0.498630137 | CV14: 0.504109589 | CW14: 0.495890411 | CX14: 0.504109589 | CY14: 0.495890411 | CZ14: 0.504109589 | DA14: 0.495890411 | DB14: 0.504109589 | DC14: 0.498630137 | DD14: 0.504109589 | DE14: 0.495890411 | DF14: 0.504109589 | DG14: 0.495890411 | DH14: 0.504109589 | DI14: 0.495890411 | DJ14: 0.504109589 | DK14: 0.498630137 | DL14: 0.504109589 | DM14: 0.495890411 | DN14: 0.504109589 | DO14: 0.495890411 | DP14: 0.504109589 | DQ14: 0.495890411 | DR14: 0.504109589 | DS14: 0.498630137 | DT14: 0.504109589 | DU14: 0.495890411 | DV14: 0.504109589 | DW14: 0.495890411 | DX14: 0.504109589 | DY14: 0.495890411 | DZ14: 0.504109589 | EA14: 0.498630137 | EB14: 0.504109589 | EC14: 0.495890411 | ED14: 0.504109589 | EE14: 0.495890411 | EF14: 0.504109589 | EG14: 0.495890411 | EH14: =YEARFRAC(EH6,EH7+1,3) -> 0.504109589 | EI14: 0.498630137 | EJ14: 0.504109589 | EK14: 0.495890411 | EL14: 0.504109589 | EM14: 0.495890411 | EN14: 0.504109589 | EO14: 0.495890411 | EP14: 0.504109589 | EQ14: 0.498630137 | ER14: 0.504109589 | ES14: 0.495890411 | ET14: 0.504109589 | EU14: 0.495890411 | EV14: 0.504109589 | EW14: 0.495890411 | EX14: 0.504109589 | EY14: 0.498630137 | EZ14: 0.504109589 | FA14: 0.495890411 | FB14: 0.504109589 | FC14: 0.495890411 | FD14: 0.504109589 | FE14: 0.495890411 | FF14: 0.504109589 | FG14: 0.498630137 | FH14: 0.504109589 | FI14: 0.495890411 | FJ14: 0.504109589 | FK14: 0.495890411 | FL14: 0.504109589 | FM14: 0.495890411 | FN14: 0.504109589 | FO14: 0.498630137 | FP14: 0.504109589 | FQ14: 0.495890411 | FR14: 0.504109589 | FS14: 0.495890411 | FT14: 0.504109589 | FU14: 0.495890411 | FV14: 0.504109589 | FW14: 0.498630137 | FX14: 0.504109589 | FY14: 0.495890411 | FZ14: 0.504109589 | GA14: 0.495890411 | GB14: 0.504109589 | GC14: 0.495890411 | GD14: 0.504109589 | GE14: 0.498630137 | GF14: 0.504109589 | GG14: 0.495890411 | GH14: 0.504109589 | GI14: 0.495890411 | GJ14: 0.504109589 | GK14: 0.495890411 | GL14: 0.504109589 | GM14: 0.498630137 | GN14: 0.504109589 | GO14: 0.495890411 | GP14: 0.504109589 | GQ14: 0.495890411 | GR14: 0.504109589 | GS14: 0.495890411 | GT14: =YEARFRAC(GT6,GT7+1,3) -> 0.504109589 | GU14: 0.498630137 | GV14: 0.504109589 | GW14: 0.495890411 | GX14: 0.504109589 | GY14: 0.495890411 | GZ14: 0.504109589 | HA14: 0.495890411 | HB14: 0.504109589 | HC14: 0.498630137 | HD14: 0.504109589 | HE14: 0.495890411 | HF14: 0.504109589 | HG14: 0.495890411 | HH14: 0.504109589 | HI14: 0.495890411 | HJ14: 0.504109589 | HK14: 0.495890411 | HL14: 0.504109589 | HM14: 0.495890411 | HN14: 0.504109589 | HO14: 0.495890411 | HP14: 0.504109589 | HQ14: 0.495890411 | HR14: 0.504109589 | HS14: 0.498630137 | HT14: 0.504109589 | HU14: 0.495890411 | HV14: 0.504109589 | HW14: 0.495890411 | HX14: 0.504109589 | HY14: 0.495890411 | HZ14: 0.504109589 | IA14: 0.498630137 | IB14: 0.504109589 | IC14: 0.495890411 | ID14: 0.504109589 | IE14: 0.495890411 | IF14: 0.504109589 | IG14: 0.495890411 | IH14: 0.504109589 | II14: 0.498630137 | IJ14: 0.504109589 | IK14: 0.495890411 | IL14: 0.504109589 | IM14: 0.495890411 | IN14: 0.504109589 | IO14: 0.495890411 | IP14: 0.504109589 | IQ14: 0.498630137 | IR14: 0.504109589 | IS14: 0.495890411 | IT14: 0.504109589 | IU14: 0.495890411 | IV14: 0.504109589 | IW14: 0.495890411 | IX14: 0.504109589 | IY14: 0.498630137 | IZ14: 0.504109589 | JA14: 0.495890411 | JB14: 0.504109589 | JC14: 0.495890411 | JD14: 0.504109589 | JE14: 0.495890411 | JF14: =YEARFRAC(JF6,JF7+1,3) -> 0.504109589 | JG14: 0.498630137 | JH14: 0.504109589 | JI14: 0.495890411 | JJ14: 0.504109589 | JK14: 0.495890411 | JL14: 0.504109589 | JM14: 0.495890411 | JN14: 0.504109589 | JO14: 0.498630137 | JP14: 0.504109589 | JQ14: 0.495890411 | JR14: 0.504109589 | JS14: 0.495890411 | JT14: 0.504109589 | JU14: 0.495890411 | JV14: 0.504109589 | JW14: 0.498630137 | JX14: 0.504109589 | JY14: 0.495890411 | JZ14: 0.504109589 | KA14: 0.495890411 | KB14: 0.504109589 | KC14: 0.495890411 | KD14: 0.504109589 | KE14: 0.498630137 | KF14: 0.504109589 | KG14: 0.495890411 | KH14: 0.504109589 | KI14: 0.495890411 | KJ14: 0.504109589 | KK14: 0.495890411 | KL14: 0.504109589 | KM14: 0.498630137 | KN14: 0.504109589 | KO14: 0.495890411 | KP14: 0.504109589 | KQ14: 0.495890411 | KR14: 0.504109589 | KS14: 0.495890411 | KT14: 0.504109589 | KU14: 0.498630137 | KV14: 0.504109589 | KW14: 0.495890411
D15: Capacity in Period | J15: =J12*J14 -> 0 | K15: =K12*K14 -> 0 | L15: 0 | M15: 0 | N15: 0 | O15: 0 | P15: 0 | Q15: 0 | R15: 0 | S15: 0 | T15: 0 | U15: 0 | V15: 0 | W15: 0 | X15: 0 | Y15: 0 | Z15: 0 | AA15: 0 | AB15: 0 | AC15: 0 | AD15: 0 | AE15: 0 | AF15: 0 | AG15: 0 | AH15: 0 | AI15: 0 | AJ15: 0 | AK15: 0 | AL15: 0 | AM15: 0 | AN15: 0 | AO15: 0 | AP15: 0 | AQ15: 0 | AR15: 0 | AS15: 0 | AT15: 0 | AU15: 0 | AV15: 0 | AW15: 0 | AX15: 0 | AY15: 0 | AZ15: 0 | BA15: 0 | BB15: 0 | BC15: 0 | BD15: 0 | BE15: 0 | BF15: 0 | BG15: 0 | BH15: 0 | BI15: 0 | BJ15: 0 | BK15: 0 | BL15: 0 | BM15: 0 | BN15: 0 | BO15: 0 | BP15: 0 | BQ15: 0 | BR15: 0 | BS15: 0 | BT15: 0 | BU15: 0 | BV15: 0 | BW15: =BW12*BW14 -> 0 | BX15: 100821.9178 | BY15: 99178.08219 | BZ15: 100821.9178 | CA15: 99178.08219 | CB15: 100821.9178 | CC15: 99178.08219 | CD15: 100821.9178 | CE15: 99726.0274 | CF15: 100821.9178 | CG15: 99178.08219 | CH15: 100821.9178 | CI15: 99178.08219 | CJ15: 100821.9178 | CK15: 99178.08219 | CL15: 100821.9178 | CM15: 99726.0274 | CN15: 100821.9178 | CO15: 99178.08219 | CP15: 100821.9178 | CQ15: 99178.08219 | CR15: 100821.9178 | CS15: 99178.08219 | CT15: 100821.9178 | CU15: 99726.0274 | CV15: 100821.9178 | CW15: 99178.08219 | CX15: 100821.9178 | CY15: 99178.08219 | CZ15: 100821.9178 | DA15: 99178.08219 | DB15: 100821.9178 | DC15: 99726.0274 | DD15: 100821.9178 | DE15: 99178.08219 | DF15: 100821.9178 | DG15: 99178.08219 | DH15: 100821.9178 | DI15: 99178.08219 | DJ15: 100821.9178 | DK15: 99726.0274 | DL15: 100821.9178 | DM15: 99178.08219 | DN15: 100821.9178 | DO15: 99178.08219 | DP15: 100821.9178 | DQ15: 99178.08219 | DR15: 100821.9178 | DS15: 99726.0274 | DT15: 100821.9178 | DU15: 99178.08219 | DV15: 100821.9178 | DW15: 99178.08219 | DX15: 100821.9178 | DY15: 99178.08219 | DZ15: 100821.9178 | EA15: 99726.0274 | EB15: 100821.9178 | EC15: 99178.08219 | ED15: 100821.9178 | EE15: 99178.08219 | EF15: 100821.9178 | EG15: 99178.08219 | EH15: 100821.9178 | EI15: =EI12*EI14 -> 99726.0274 | EJ15: 100821.9178 | EK15: 99178.08219 | EL15: 100821.9178 | EM15: 99178.08219 | EN15: 100821.9178 | EO15: 99178.08219 | EP15: 100821.9178 | EQ15: 99726.0274 | ER15: 100821.9178 | ES15: 99178.08219 | ET15: 100821.9178 | EU15: 99178.08219 | EV15: 100821.9178 | EW15: 99178.08219 | EX15: 100821.9178 | EY15: 99726.0274 | EZ15: 100821.9178 | FA15: 99178.08219 | FB15: 100821.9178 | FC15: 99178.08219 | FD15: 100821.9178 | FE15: 99178.08219 | FF15: 100821.9178 | FG15: 99726.0274 | FH15: 100821.9178 | FI15: 99178.08219 | FJ15: 100821.9178 | FK15: 99178.08219 | FL15: 100821.9178 | FM15: 99178.08219 | FN15: 100821.9178 | FO15: 99726.0274 | FP15: 100821.9178 | FQ15: 99178.08219 | FR15: 100821.9178 | FS15: 99178.08219 | FT15: 100821.9178 | FU15: 99178.08219 | FV15: 100821.9178 | FW15: 99726.0274 | FX15: 100821.9178 | FY15: 99178.08219 | FZ15: 100821.9178 | GA15: 99178.08219 | GB15: 100821.9178 | GC15: 99178.08219 | GD15: 100821.9178 | GE15: 99726.0274 | GF15: 0 | GG15: 0 | GH15: 0 | GI15: 0 | GJ15: 0 | GK15: 0 | GL15: 0 | GM15: 0 | GN15: 0 | GO15: 0 | GP15: 0 | GQ15: 0 | GR15: 0 | GS15: 0 | GT15: 0 | GU15: =GU12*GU14 -> 0 | GV15: 0 | GW15: 0 | GX15: 0 | GY15: 0 | GZ15: 0 | HA15: 0 | HB15: 0 | HC15: 0 | HD15: 0 | HE15: 0 | HF15: 0 | HG15: 0 | HH15: 0 | HI15: 0 | HJ15: 0 | HK15: 0 | HL15: 0 | HM15: 0 | HN15: 0 | HO15: 0 | HP15: 0 | HQ15: 0 | HR15: 0 | HS15: 0 | HT15: 0 | HU15: 0 | HV15: 0 | HW15: 0 | HX15: 0 | HY15: 0 | HZ15: 0 | IA15: 0 | IB15: 0 | IC15: 0 | ID15: 0 | IE15: 0 | IF15: 0 | IG15: 0 | IH15: 0 | II15: 0 | IJ15: 0 | IK15: 0 | IL15: 0 | IM15: 0 | IN15: 0 | IO15: 0 | IP15: 0 | IQ15: 0 | IR15: 0 | IS15: 0 | IT15: 0 | IU15: 0 | IV15: 0 | IW15: 0 | IX15: 0 | IY15: 0 | IZ15: 0 | JA15: 0 | JB15: 0 | JC15: 0 | JD15: 0 | JE15: 0 | JF15: 0 | JG15: =JG12*JG14 -> 0 | JH15: 0 | JI15: 0 | JJ15: 0 | JK15: 0 | JL15: 0 | JM15: 0 | JN15: 0 | JO15: 0 | JP15: 0 | JQ15: 0 | JR15: 0 | JS15: 0 | JT15: 0 | JU15: 0 | JV15: 0 | JW15: 0 | JX15: 0 | JY15: 0 | JZ15: 0 | KA15: 0 | KB15: 0 | KC15: 0 | KD15: 0 | KE15: 0 | KF15: 0 | KG15: 0 | KH15: 0 | KI15: 0 | KJ15: 0 | KK15: 0 | KL15: 0 | KM15: 0 | KN15: 0 | KO15: 0 | KP15: 0 | KQ15: 0 | KR15: 0 | KS15: 0 | KT15: 0 | KU15: 0 | KV15: 0 | KW15: 0
D16: Percent of Total Capacity Available | E16: Percent | F16: 0.94 | J16: =$F$16*J8 -> 0 | K16: 0 | L16: 0 | M16: 0 | N16: 0 | O16: 0 | P16: 0 | Q16: 0 | R16: 0 | S16: 0 | T16: 0 | U16: 0 | V16: 0 | W16: 0 | X16: 0 | Y16: 0 | Z16: 0 | AA16: 0 | AB16: 0 | AC16: 0 | AD16: 0 | AE16: 0 | AF16: 0 | AG16: 0 | AH16: 0 | AI16: 0 | AJ16: 0 | AK16: 0 | AL16: 0 | AM16: 0 | AN16: 0 | AO16: 0 | AP16: 0 | AQ16: 0 | AR16: 0 | AS16: 0 | AT16: 0 | AU16: 0 | AV16: 0 | AW16: 0 | AX16: 0 | AY16: 0 | AZ16: 0 | BA16: 0 | BB16: 0 | BC16: 0 | BD16: 0 | BE16: 0 | BF16: 0 | BG16: 0 | BH16: 0 | BI16: 0 | BJ16: 0 | BK16: 0 | BL16: 0 | BM16: 0 | BN16: 0 | BO16: 0 | BP16: 0 | BQ16: 0 | BR16: 0 | BS16: 0 | BT16: 0 | BU16: 0 | BV16: =$F$16*BV8 -> 0 | BW16: 0 | BX16: 0.94 | BY16: 0.94 | BZ16: 0.94 | CA16: 0.94 | CB16: 0.94 | CC16: 0.94 | CD16: 0.94 | CE16: 0.94 | CF16: 0.94 | CG16: 0.94 | CH16: 0.94 | CI16: 0.94 | CJ16: 0.94 | CK16: 0.94 | CL16: 0.94 | CM16: 0.94 | CN16: 0.94 | CO16: 0.94 | CP16: 0.94 | CQ16: 0.94 | CR16: 0.94 | CS16: 0.94 | CT16: 0.94 | CU16: 0.94 | CV16: 0.94 | CW16: 0.94 | CX16: 0.94 | CY16: 0.94 | CZ16: 0.94 | DA16: 0.94 | DB16: 0.94 | DC16: 0.94 | DD16: 0.94 | DE16: 0.94 | DF16: 0.94 | DG16: 0.94 | DH16: 0.94 | DI16: 0.94 | DJ16: 0.94 | DK16: 0.94 | DL16: 0.94 | DM16: 0.94 | DN16: 0.94 | DO16: 0.94 | DP16: 0.94 | DQ16: 0.94 | DR16: 0.94 | DS16: 0.94 | DT16: 0.94 | DU16: 0.94 | DV16: 0.94 | DW16: 0.94 | DX16: 0.94 | DY16: 0.94 | DZ16: 0.94 | EA16: 0.94 | EB16: 0.94 | EC16: 0.94 | ED16: 0.94 | EE16: 0.94 | EF16: 0.94 | EG16: 0.94 | EH16: =$F$16*EH8 -> 0.94 | EI16: 0.94 | EJ16: 0.94 | EK16: 0.94 | EL16: 0.94 | EM16: 0.94 | EN16: 0.94 | EO16: 0.94 | EP16: 0.94 | EQ16: 0.94 | ER16: 0.94 | ES16: 0.94 | ET16: 0.94 | EU16: 0.94 | EV16: 0.94 | EW16: 0.94 | EX16: 0.94 | EY16: 0.94 | EZ16: 0.94 | FA16: 0.94 | FB16: 0.94 | FC16: 0.94 | FD16: 0.94 | FE16: 0.94 | FF16: 0.94 | FG16: 0.94 | FH16: 0.94 | FI16: 0.94 | FJ16: 0.94 | FK16: 0.94 | FL16: 0.94 | FM16: 0.94 | FN16: 0.94 | FO16: 0.94 | FP16: 0.94 | FQ16: 0.94 | FR16: 0.94 | FS16: 0.94 | FT16: 0.94 | FU16: 0.94 | FV16: 0.94 | FW16: 0.94 | FX16: 0.94 | FY16: 0.94 | FZ16: 0.94 | GA16: 0.94 | GB16: 0.94 | GC16: 0.94 | GD16: 0.94 | GE16: 0.94 | GF16: 0 | GG16: 0 | GH16: 0 | GI16: 0 | GJ16: 0 | GK16: 0 | GL16: 0 | GM16: 0 | GN16: 0 | GO16: 0 | GP16: 0 | GQ16: 0 | GR16: 0 | GS16: 0 | GT16: =$F$16*GT8 -> 0 | GU16: 0 | GV16: 0 | GW16: 0 | GX16: 0 | GY16: 0 | GZ16: 0 | HA16: 0 | HB16: 0 | HC16: 0 | HD16: 0 | HE16: 0 | HF16: 0 | HG16: 0 | HH16: 0 | HI16: 0 | HJ16: 0 | HK16: 0 | HL16: 0 | HM16: 0 | HN16: 0 | HO16: 0 | HP16: 0 | HQ16: 0 | HR16: 0 | HS16: 0 | HT16: 0 | HU16: 0 | HV16: 0 | HW16: 0 | HX16: 0 | HY16: 0 | HZ16: 0 | IA16: 0 | IB16: 0 | IC16: 0 | ID16: 0 | IE16: 0 | IF16: 0 | IG16: 0 | IH16: 0 | II16: 0 | IJ16: 0 | IK16: 0 | IL16: 0 | IM16: 0 | IN16: 0 | IO16: 0 | IP16: 0 | IQ16: 0 | IR16: 0 | IS16: 0 | IT16: 0 | IU16: 0 | IV16: 0 | IW16: 0 | IX16: 0 | IY16: 0 | IZ16: 0 | JA16: 0 | JB16: 0 | JC16: 0 | JD16: 0 | JE16: 0 | JF16: =$F$16*JF8 -> 0 | JG16: 0 | JH16: 0 | JI16: 0 | JJ16: 0 | JK16: 0 | JL16: 0 | JM16: 0 | JN16: 0 | JO16: 0 | JP16: 0 | JQ16: 0 | JR16: 0 | JS16: 0 | JT16: 0 | JU16: 0 | JV16: 0 | JW16: 0 | JX16: 0 | JY16: 0 | JZ16: 0 | KA16: 0 | KB16: 0 | KC16: 0 | KD16: 0 | KE16: 0 | KF16: 0 | KG16: 0 | KH16: 0 | KI16: 0 | KJ16: 0 | KK16: 0 | KL16: 0 | KM16: 0 | KN16: 0 | KO16: 0 | KP16: 0 | KQ16: 0 | KR16: 0 | KS16: 0 | KT16: 0 | KU16: 0 | KV16: 0 | KW16: 0
D17: Total Capacity Available in Period | E17: Tons | H17: =SUM(J17:XFD17) -> 10535210.96 | J17: =J15*J16 -> 0 | K17: =K15*K16 -> 0 | L17: 0 | M17: 0 | N17: 0 | O17: 0 | P17: 0 | Q17: 0 | R17: 0 | S17: 0 | T17: 0 | U17: 0 | V17: 0 | W17: 0 | X17: 0 | Y17: 0 | Z17: 0 | AA17: 0 | AB17: 0 | AC17: 0 | AD17: 0 | AE17: 0 | AF17: 0 | AG17: 0 | AH17: 0 | AI17: 0 | AJ17: 0 | AK17: 0 | AL17: 0 | AM17: 0 | AN17: 0 | AO17: 0 | AP17: 0 | AQ17: 0 | AR17: 0 | AS17: 0 | AT17: 0 | AU17: 0 | AV17: 0 | AW17: 0 | AX17: 0 | AY17: 0 | AZ17: 0 | BA17: 0 | BB17: 0 | BC17: 0 | BD17: 0 | BE17: 0 | BF17: 0 | BG17: 0 | BH17: 0 | BI17: 0 | BJ17: 0 | BK17: 0 | BL17: 0 | BM17: 0 | BN17: 0 | BO17: 0 | BP17: 0 | BQ17: 0 | BR17: 0 | BS17: 0 | BT17: 0 | BU17: 0 | BV17: 0 | BW17: =BW15*BW16 -> 0 | BX17: 94772.60274 | BY17: 93227.39726 | BZ17: 94772.60274 | CA17: 93227.39726 | CB17: 94772.60274 | CC17: 93227.39726 | CD17: 94772.60274 | CE17: 93742.46575 | CF17: 94772.60274 | CG17: 93227.39726 | CH17: 94772.60274 | CI17: 93227.39726 | CJ17: 94772.60274 | CK17: 93227.39726 | CL17: 94772.60274 | CM17: 93742.46575 | CN17: 94772.60274 | CO17: 93227.39726 | CP17: 94772.60274 | CQ17: 93227.39726 | CR17: 94772.60274 | CS17: 93227.39726 | CT17: 94772.60274 | CU17: 93742.46575 | CV17: 94772.60274 | CW17: 93227.39726 | CX17: 94772.60274 | CY17: 93227.39726 | CZ17: 94772.60274 | DA17: 93227.39726 | DB17: 94772.60274 | DC17: 93742.46575 | DD17: 94772.60274 | DE17: 93227.39726 | DF17: 94772.60274 | DG17: 93227.39726 | DH17: 94772.60274 | DI17: 93227.39726 | DJ17: 94772.60274 | DK17: 93742.46575 | DL17: 94772.60274 | DM17: 93227.39726 | DN17: 94772.60274 | DO17: 93227.39726 | DP17: 94772.60274 | DQ17: 93227.39726 | DR17: 94772.60274 | DS17: 93742.46575 | DT17: 94772.60274 | DU17: 93227.39726 | DV17: 94772.60274 | DW17: 93227.39726 | DX17: 94772.60274 | DY17: 93227.39726 | DZ17: 94772.60274 | EA17: 93742.46575 | EB17: 94772.60274 | EC17: 93227.39726 | ED17: 94772.60274 | EE17: 93227.39726 | EF17: 94772.60274 | EG17: 93227.39726 | EH17: 94772.60274 | EI17: =EI15*EI16 -> 93742.46575 | EJ17: 94772.60274 | EK17: 93227.39726 | EL17: 94772.60274 | EM17: 93227.39726 | EN17: 94772.60274 | EO17: 93227.39726 | EP17: 94772.60274 | EQ17: 93742.46575 | ER17: 94772.60274 | ES17: 93227.39726 | ET17: 94772.60274 | EU17: 93227.39726 | EV17: 94772.60274 | EW17: 93227.39726 | EX17: 94772.60274 | EY17: 93742.46575 | EZ17: 94772.60274 | FA17: 93227.39726 | FB17: 94772.60274 | FC17: 93227.39726 | FD17: 94772.60274 | FE17: 93227.39726 | FF17: 94772.60274 | FG17: 93742.46575 | FH17: 94772.60274 | FI17: 93227.39726 | FJ17: 94772.60274 | FK17: 93227.39726 | FL17: 94772.60274 | FM17: 93227.39726 | FN17: 94772.60274 | FO17: 93742.46575 | FP17: 94772.60274 | FQ17: 93227.39726 | FR17: 94772.60274 | FS17: 93227.39726 | FT17: 94772.60274 | FU17: 93227.39726 | FV17: 94772.60274 | FW17: 93742.46575 | FX17: 94772.60274 | FY17: 93227.39726 | FZ17: 94772.60274 | GA17: 93227.39726 | GB17: 94772.60274 | GC17: 93227.39726 | GD17: 94772.60274 | GE17: 93742.46575 | GF17: 0 | GG17: 0 | GH17: 0 | GI17: 0 | GJ17: 0 | GK17: 0 | GL17: 0 | GM17: 0 | GN17: 0 | GO17: 0 | GP17: 0 | GQ17: 0 | GR17: 0 | GS17: 0 | GT17: 0 | GU17: =GU15*GU16 -> 0 | GV17: 0 | GW17: 0 | GX17: 0 | GY17: 0 | GZ17: 0 | HA17: 0 | HB17: 0 | HC17: 0 | HD17: 0 | HE17: 0 | HF17: 0 | HG17: 0 | HH17: 0 | HI17: 0 | HJ17: 0 | HK17: 0 | HL17: 0 | HM17: 0 | HN17: 0 | HO17: 0 | HP17: 0 | HQ17: 0 | HR17: 0 | HS17: 0 | HT17: 0 | HU17: 0 | HV17: 0 | HW17: 0 | HX17: 0 | HY17: 0 | HZ17: 0 | IA17: 0 | IB17: 0 | IC17: 0 | ID17: 0 | IE17: 0 | IF17: 0 | IG17: 0 | IH17: 0 | II17: 0 | IJ17: 0 | IK17: 0 | IL17: 0 | IM17: 0 | IN17: 0 | IO17: 0 | IP17: 0 | IQ17: 0 | IR17: 0 | IS17: 0 | IT17: 0 | IU17: 0 | IV17: 0 | IW17: 0 | IX17: 0 | IY17: 0 | IZ17: 0 | JA17: 0 | JB17: 0 | JC17: 0 | JD17: 0 | JE17: 0 | JF17: 0 | JG17: =JG15*JG16 -> 0 | JH17: 0 | JI17: 0 | JJ17: 0 | JK17: 0 | JL17: 0 | JM17: 0 | JN17: 0 | JO17: 0 | JP17: 0 | JQ17: 0 | JR17: 0 | JS17: 0 | JT17: 0 | JU17: 0 | JV17: 0 | JW17: 0 | JX17: 0 | JY17: 0 | JZ17: 0 | KA17: 0 | KB17: 0 | KC17: 0 | KD17: 0 | KE17: 0 | KF17: 0 | KG17: 0 | KH17: 0 | KI17: 0 | KJ17: 0 | KK17: 0 | KL17: 0 | KM17: 0 | KN17: 0 | KO17: 0 | KP17: 0 | KQ17: 0 | KR17: 0 | KS17: 0 | KT17: 0 | KU17: 0 | KV17: 0 | KW17: 0
D19: Age in Periods | E19: Period | J19: =I19+J8 -> 0 | K19: =J19+K8 -> 0 | L19: 0 | M19: 0 | N19: 0 | O19: 0 | P19: 0 | Q19: 0 | R19: 0 | S19: 0 | T19: 0 | U19: 0 | V19: 0 | W19: 0 | X19: 0 | Y19: 0 | Z19: 0 | AA19: 0 | AB19: 0 | AC19: 0 | AD19: 0 | AE19: 0 | AF19: 0 | AG19: 0 | AH19: 0 | AI19: 0 | AJ19: 0 | AK19: 0 | AL19: 0 | AM19: 0 | AN19: 0 | AO19: 0 | AP19: 0 | AQ19: 0 | AR19: 0 | AS19: 0 | AT19: 0 | AU19: 0 | AV19: 0 | AW19: 0 | AX19: 0 | AY19: 0 | AZ19: 0 | BA19: 0 | BB19: 0 | BC19: 0 | BD19: 0 | BE19: 0 | BF19: 0 | BG19: 0 | BH19: 0 | BI19: 0 | BJ19: 0 | BK19: 0 | BL19: 0 | BM19: 0 | BN19: 0 | BO19: 0 | BP19: 0 | BQ19: 0 | BR19: 0 | BS19: 0 | BT19: 0 | BU19: 0 | BV19: 0 | BW19: =BV19+BW8 -> 0 | BX19: 1 | BY19: 2 | BZ19: 3 | CA19: 4 | CB19: 5 | CC19: 6 | CD19: 7 | CE19: 8 | CF19: 9 | CG19: 10 | CH19: 11 | CI19: 12 | CJ19: 13 | CK19: 14 | CL19: 15 | CM19: 16 | CN19: 17 | CO19: 18 | CP19: 19 | CQ19: 20 | CR19: 21 | CS19: 22 | CT19: 23 | CU19: 24 | CV19: 25 | CW19: 26 | CX19: 27 | CY19: 28 | CZ19: 29 | DA19: 30 | DB19: 31 | DC19: 32 | DD19: 33 | DE19: 34 | DF19: 35 | DG19: 36 | DH19: 37 | DI19: 38 | DJ19: 39 | DK19: 40 | DL19: 41 | DM19: 42 | DN19: 43 | DO19: 44 | DP19: 45 | DQ19: 46 | DR19: 47 | DS19: 48 | DT19: 49 | DU19: 50 | DV19: 51 | DW19: 52 | DX19: 53 | DY19: 54 | DZ19: 55 | EA19: 56 | EB19: 57 | EC19: 58 | ED19: 59 | EE19: 60 | EF19: 61 | EG19: 62 | EH19: 63 | EI19: =EH19+EI8 -> 64 | EJ19: 65 | EK19: 66 | EL19: 67 | EM19: 68 | EN19: 69 | EO19: 70 | EP19: 71 | EQ19: 72 | ER19: 73 | ES19: 74 | ET19: 75 | EU19: 76 | EV19: 77 | EW19: 78 | EX19: 79 | EY19: 80 | EZ19: 81 | FA19: 82 | FB19: 83 | FC19: 84 | FD19: 85 | FE19: 86 | FF19: 87 | FG19: 88 | FH19: 89 | FI19: 90 | FJ19: 91 | FK19: 92 | FL19: 93 | FM19: 94 | FN19: 95 | FO19: 96 | FP19: 97 | FQ19: 98 | FR19: 99 | FS19: 100 | FT19: 101 | FU19: 102 | FV19: 103 | FW19: 104 | FX19: 105 | FY19: 106 | FZ19: 107 | GA19: 108 | GB19: 109 | GC19: 110 | GD19: 111 | GE19: 112 | GF19: 112 | GG19: 112 | GH19: 112 | GI19: 112 | GJ19: 112 | GK19: 112 | GL19: 112 | GM19: 112 | GN19: 112 | GO19: 112 | GP19: 112 | GQ19: 112 | GR19: 112 | GS19: 112 | GT19: 112 | GU19: =GT19+GU8 -> 112 | GV19: 112 | GW19: 112 | GX19: 112 | GY19: 112 | GZ19: 112 | HA19: 112 | HB19: 112 | HC19: 112 | HD19: 112 | HE19: 112 | HF19: 112 | HG19: 112 | HH19: 112 | HI19: 112 | HJ19: 112 | HK19: 112 | HL19: 112 | HM19: 112 | HN19: 112 | HO19: 112 | HP19: 112 | HQ19: 112 | HR19: 112 | HS19: 112 | HT19: 112 | HU19: 112 | HV19: 112 | HW19: 112 | HX19: 112 | HY19: 112 | HZ19: 112 | IA19: 112 | IB19: 112 | IC19: 112 | ID19: 112 | IE19: 112 | IF19: 112 | IG19: 112 | IH19: 112 | II19: 112 | IJ19: 112 | IK19: 112 | IL19: 112 | IM19: 112 | IN19: 112 | IO19: 112 | IP19: 112 | IQ19: 112 | IR19: 112 | IS19: 112 | IT19: 112 | IU19: 112 | IV19: 112 | IW19: 112 | IX19: 112 | IY19: 112 | IZ19: 112 | JA19: 112 | JB19: 112 | JC19: 112 | JD19: 112 | JE19: 112 | JF19: 112 | JG19: =JF19+JG8 -> 112 | JH19: 112 | JI19: 112 | JJ19: 112 | JK19: 112 | JL19: 112 | JM19: 112 | JN19: 112 | JO19: 112 | JP19: 112 | JQ19: 112 | JR19: 112 | JS19: 112 | JT19: 112 | JU19: 112 | JV19: 112 | JW19: 112 | JX19: 112 | JY19: 112 | JZ19: 112 | KA19: 112 | KB19: 112 | KC19: 112 | KD19: 112 | KE19: 112 | KF19: 112 | KG19: 112 | KH19: 112 | KI19: 112 | KJ19: 112 | KK19: 112 | KL19: 112 | KM19: 112 | KN19: 112 | KO19: 112 | KP19: 112 | KQ19: 112 | KR19: 112 | KS19: 112 | KT19: 112 | KU19: 112 | KV19: 112 | KW19: 112
D20: Age in Years | E20: Years | J20: =ROUNDUP(J19/2,0) -> 0 | K20: =ROUNDUP(K19/2,0) -> 0 | L20: 0 | M20: 0 | N20: 0 | O20: 0 | P20: 0 | Q20: 0 | R20: 0 | S20: 0 | T20: 0 | U20: 0 | V20: 0 | W20: 0 | X20: 0 | Y20: 0 | Z20: 0 | AA20: 0 | AB20: 0 | AC20: 0 | AD20: 0 | AE20: 0 | AF20: 0 | AG20: 0 | AH20: 0 | AI20: 0 | AJ20: 0 | AK20: 0 | AL20: 0 | AM20: 0 | AN20: 0 | AO20: 0 | AP20: 0 | AQ20: 0 | AR20: 0 | AS20: 0 | AT20: 0 | AU20: 0 | AV20: 0 | AW20: 0 | AX20: 0 | AY20: 0 | AZ20: 0 | BA20: 0 | BB20: 0 | BC20: 0 | BD20: 0 | BE20: 0 | BF20: 0 | BG20: 0 | BH20: 0 | BI20: 0 | BJ20: 0 | BK20: 0 | BL20: 0 | BM20: 0 | BN20: 0 | BO20: 0 | BP20: 0 | BQ20: 0 | BR20: 0 | BS20: 0 | BT20: 0 | BU20: 0 | BV20: 0 | BW20: =ROUNDUP(BW19/2,0) -> 0 | BX20: 1 | BY20: 1 | BZ20: 2 | CA20: 2 | CB20: 3 | CC20: 3 | CD20: 4 | CE20: 4 | CF20: 5 | CG20: 5 | CH20: 6 | CI20: 6 | CJ20: 7 | CK20: 7 | CL20: 8 | CM20: 8 | CN20: 9 | CO20: 9 | CP20: 10 | CQ20: 10 | CR20: 11 | CS20: 11 | CT20: 12 | CU20: 12 | CV20: 13 | CW20: 13 | CX20: 14 | CY20: 14 | CZ20: 15 | DA20: 15 | DB20: 16 | DC20: 16 | DD20: 17 | DE20: 17 | DF20: 18 | DG20: 18 | DH20: 19 | DI20: 19 | DJ20: 20 | DK20: 20 | DL20: 21 | DM20: 21 | DN20: 22 | DO20: 22 | DP20: 23 | DQ20: 23 | DR20: 24 | DS20: 24 | DT20: 25 | DU20: 25 | DV20: 26 | DW20: 26 | DX20: 27 | DY20: 27 | DZ20: 28 | EA20: 28 | EB20: 29 | EC20: 29 | ED20: 30 | EE20: 30 | EF20: 31 | EG20: 31 | EH20: 32 | EI20: =ROUNDUP(EI19/2,0) -> 32 | EJ20: 33 | EK20: 33 | EL20: 34 | EM20: 34 | EN20: 35 | EO20: 35 | EP20: 36 | EQ20: 36 | ER20: 37 | ES20: 37 | ET20: 38 | EU20: 38 | EV20: 39 | EW20: 39 | EX20: 40 | EY20: 40 | EZ20: 41 | FA20: 41 | FB20: 42 | FC20: 42 | FD20: 43 | FE20: 43 | FF20: 44 | FG20: 44 | FH20: 45 | FI20: 45 | FJ20: 46 | FK20: 46 | FL20: 47 | FM20: 47 | FN20: 48 | FO20: 48 | FP20: 49 | FQ20: 49 | FR20: 50 | FS20: 50 | FT20: 51 | FU20: 51 | FV20: 52 | FW20: 52 | FX20: 53 | FY20: 53 | FZ20: 54 | GA20: 54 | GB20: 55 | GC20: 55 | GD20: 56 | GE20: 56 | GF20: 56 | GG20: 56 | GH20: 56 | GI20: 56 | GJ20: 56 | GK20: 56 | GL20: 56 | GM20: 56 | GN20: 56 | GO20: 56 | GP20: 56 | GQ20: 56 | GR20: 56 | GS20: 56 | GT20: 56 | GU20: =ROUNDUP(GU19/2,0) -> 56 | GV20: 56 | GW20: 56 | GX20: 56 | GY20: 56 | GZ20: 56 | HA20: 56 | HB20: 56 | HC20: 56 | HD20: 56 | HE20: 56 | HF20: 56 | HG20: 56 | HH20: 56 | HI20: 56 | HJ20: 56 | HK20: 56 | HL20: 56 | HM20: 56 | HN20: 56 | HO20: 56 | HP20: 56 | HQ20: 56 | HR20: 56 | HS20: 56 | HT20: 56 | HU20: 56 | HV20: 56 | HW20: 56 | HX20: 56 | HY20: 56 | HZ20: 56 | IA20: 56 | IB20: 56 | IC20: 56 | ID20: 56 | IE20: 56 | IF20: 56 | IG20: 56 | IH20: 56 | II20: 56 | IJ20: 56 | IK20: 56 | IL20: 56 | IM20: 56 | IN20: 56 | IO20: 56 | IP20: 56 | IQ20: 56 | IR20: 56 | IS20: 56 | IT20: 56 | IU20: 56 | IV20: 56 | IW20: 56 | IX20: 56 | IY20: 56 | IZ20: 56 | JA20: 56 | JB20: 56 | JC20: 56 | JD20: 56 | JE20: 56 | JF20: 56 | JG20: =ROUNDUP(JG19/2,0) -> 56 | JH20: 56 | JI20: 56 | JJ20: 56 | JK20: 56 | JL20: 56 | JM20: 56 | JN20: 56 | JO20: 56 | JP20: 56 | JQ20: 56 | JR20: 56 | JS20: 56 | JT20: 56 | JU20: 56 | JV20: 56 | JW20: 56 | JX20: 56 | JY20: 56 | JZ20: 56 | KA20: 56 | KB20: 56 | KC20: 56 | KD20: 56 | KE20: 56 | KF20: 56 | KG20: 56 | KH20: 56 | KI20: 56 | KJ20: 56 | KK20: 56 | KL20: 56 | KM20: 56 | KN20: 56 | KO20: 56 | KP20: 56 | KQ20: 56 | KR20: 56 | KS20: 56 | KT20: 56 | KU20: 56 | KV20: 56 | KW20: 56
D21: Capacity for Year | E21: Tons | J21: =SUMIF(20:20,J20,17:17) -> 0 | K21: =SUMIF(20:20,K20,17:17) -> 0 | L21: 0 | M21: 0 | N21: 0 | O21: 0 | P21: 0 | Q21: 0 | R21: 0 | S21: 0 | T21: 0 | U21: 0 | V21: 0 | W21: 0 | X21: 0 | Y21: 0 | Z21: 0 | AA21: 0 | AB21: 0 | AC21: 0 | AD21: 0 | AE21: 0 | AF21: 0 | AG21: 0 | AH21: 0 | AI21: 0 | AJ21: 0 | AK21: 0 | AL21: 0 | AM21: 0 | AN21: 0 | AO21: 0 | AP21: 0 | AQ21: 0 | AR21: 0 | AS21: 0 | AT21: 0 | AU21: 0 | AV21: 0 | AW21: 0 | AX21: 0 | AY21: 0 | AZ21: 0 | BA21: 0 | BB21: 0 | BC21: 0 | BD21: 0 | BE21: 0 | BF21: 0 | BG21: 0 | BH21: 0 | BI21: 0 | BJ21: 0 | BK21: 0 | BL21: 0 | BM21: 0 | BN21: 0 | BO21: 0 | BP21: 0 | BQ21: 0 | BR21: 0 | BS21: 0 | BT21: 0 | BU21: 0 | BV21: 0 | BW21: =SUMIF(20:20,BW20,17:17) -> 0 | BX21: 188000 | BY21: 188000 | BZ21: 188000 | CA21: 188000 | CB21: 188000 | CC21: 188000 | CD21: 188515.0685 | CE21: 188515.0685 | CF21: 188000 | CG21: 188000 | CH21: 188000 | CI21: 188000 | CJ21: 188000 | CK21: 188000 | CL21: 188515.0685 | CM21: 188515.0685 | CN21: 188000 | CO21: 188000 | CP21: 188000 | CQ21: 188000 | CR21: 188000 | CS21: 188000 | CT21: 188515.0685 | CU21: 188515.0685 | CV21: 188000 | CW21: 188000 | CX21: 188000 | CY21: 188000 | CZ21: 188000 | DA21: 188000 | DB21: 188515.0685 | DC21: 188515.0685 | DD21: 188000 | DE21: 188000 | DF21: 188000 | DG21: 188000 | DH21: 188000 | DI21: 188000 | DJ21: 188515.0685 | DK21: 188515.0685 | DL21: 188000 | DM21: 188000 | DN21: 188000 | DO21: 188000 | DP21: 188000 | DQ21: 188000 | DR21: 188515.0685 | DS21: 188515.0685 | DT21: 188000 | DU21: 188000 | DV21: 188000 | DW21: 188000 | DX21: 188000 | DY21: 188000 | DZ21: 188515.0685 | EA21: 188515.0685 | EB21: 188000 | EC21: 188000 | ED21: 188000 | EE21: 188000 | EF21: 188000 | EG21: 188000 | EH21: 188515.0685 | EI21: =SUMIF(20:20,EI20,17:17) -> 188515.0685 | EJ21: 188000 | EK21: 188000 | EL21: 188000 | EM21: 188000 | EN21: 188000 | EO21: 188000 | EP21: 188515.0685 | EQ21: 188515.0685 | ER21: 188000 | ES21: 188000 | ET21: 188000 | EU21: 188000 | EV21: 188000 | EW21: 188000 | EX21: 188515.0685 | EY21: 188515.0685 | EZ21: 188000 | FA21: 188000 | FB21: 188000 | FC21: 188000 | FD21: 188000 | FE21: 188000 | FF21: 188515.0685 | FG21: 188515.0685 | FH21: 188000 | FI21: 188000 | FJ21: 188000 | FK21: 188000 | FL21: 188000 | FM21: 188000 | FN21: 188515.0685 | FO21: 188515.0685 | FP21: 188000 | FQ21: 188000 | FR21: 188000 | FS21: 188000 | FT21: 188000 | FU21: 188000 | FV21: 188515.0685 | FW21: 188515.0685 | FX21: 188000 | FY21: 188000 | FZ21: 188000 | GA21: 188000 | GB21: 188000 | GC21: 188000 | GD21: 188515.0685 | GE21: 188515.0685 | GF21: 188515.0685 | GG21: 188515.0685 | GH21: 188515.0685 | GI21: 188515.0685 | GJ21: 188515.0685 | GK21: 188515.0685 | GL21: 188515.0685 | GM21: 188515.0685 | GN21: 188515.0685 | GO21: 188515.0685 | GP21: 188515.0685 | GQ21: 188515.0685 | GR21: 188515.0685 | GS21: 188515.0685 | GT21: 188515.0685 | GU21: =SUMIF(20:20,GU20,17:17) -> 188515.0685 | GV21: 188515.0685 | GW21: 188515.0685 | GX21: 188515.0685 | GY21: 188515.0685 | GZ21: 188515.0685 | HA21: 188515.0685 | HB21: 188515.0685 | HC21: 188515.0685 | HD21: 188515.0685 | HE21: 188515.0685 | HF21: 188515.0685 | HG21: 188515.0685 | HH21: 188515.0685 | HI21: 188515.0685 | HJ21: 188515.0685 | HK21: 188515.0685 | HL21: 188515.0685 | HM21: 188515.0685 | HN21: 188515.0685 | HO21: 188515.0685 | HP21: 188515.0685 | HQ21: 188515.0685 | HR21: 188515.0685 | HS21: 188515.0685 | HT21: 188515.0685 | HU21: 188515.0685 | HV21: 188515.0685 | HW21: 188515.0685 | HX21: 188515.0685 | HY21: 188515.0685 | HZ21: 188515.0685 | IA21: 188515.0685 | IB21: 188515.0685 | IC21: 188515.0685 | ID21: 188515.0685 | IE21: 188515.0685 | IF21: 188515.0685 | IG21: 188515.0685 | IH21: 188515.0685 | II21: 188515.0685 | IJ21: 188515.0685 | IK21: 188515.0685 | IL21: 188515.0685 | IM21: 188515.0685 | IN21: 188515.0685 | IO21: 188515.0685 | IP21: 188515.0685 | IQ21: 188515.0685 | IR21: 188515.0685 | IS21: 188515.0685 | IT21: 188515.0685 | IU21: 188515.0685 | IV21: 188515.0685 | IW21: 188515.0685 | IX21: 188515.0685 | IY21: 188515.0685 | IZ21: 188515.0685 | JA21: 188515.0685 | JB21: 188515.0685 | JC21: 188515.0685 | JD21: 188515.0685 | JE21: 188515.0685 | JF21: 188515.0685 | JG21: =SUMIF(20:20,JG20,17:17) -> 188515.0685 | JH21: 188515.0685 | JI21: 188515.0685 | JJ21: 188515.0685 | JK21: 188515.0685 | JL21: 188515.0685 | JM21: 188515.0685 | JN21: 188515.0685 | JO21: 188515.0685 | JP21: 188515.0685 | JQ21: 188515.0685 | JR21: 188515.0685 | JS21: 188515.0685 | JT21: 188515.0685 | JU21: 188515.0685 | JV21: 188515.0685 | JW21: 188515.0685 | JX21: 188515.0685 | JY21: 188515.0685 | JZ21: 188515.0685 | KA21: 188515.0685 | KB21: 188515.0685 | KC21: 188515.0685 | KD21: 188515.0685 | KE21: 188515.0685 | KF21: 188515.0685 | KG21: 188515.0685 | KH21: 188515.0685 | KI21: 188515.0685 | KJ21: 188515.0685 | KK21: 188515.0685 | KL21: 188515.0685 | KM21: 188515.0685 | KN21: 188515.0685 | KO21: 188515.0685 | KP21: 188515.0685 | KQ21: 188515.0685 | KR21: 188515.0685 | KS21: 188515.0685 | KT21: 188515.0685 | KU21: 188515.0685 | KV21: 188515.0685 | KW21: 188515.0685
C23: Demand
D24: Units Required per Period | E24: Units 000's | H24: =SUM(J24:XFD24) -> 4909974.11 | J24: 3703.632 | K24: 3345.216 | L24: 3703.632 | M24: 2449.176 | N24: 1851.816 | O24: 3484.269494 | P24: 5597.962823 | Q24: 5597.962823 | R24: 5417.383377 | S24: 5060.338823 | T24: 3625.303377 | U24: 5268.827308 | V24: 5634.270624 | W24: 5270.769293 | X24: 5634.270624 | Y24: 5452.519959 | Z24: 5634.270624 | AA24: 5940.468759 | AB24: 7223.122464 | AC24: 5652.983712 | AD24: 5655.230517 | AE24: 5669.727001 | AF24: 6645.710982 | AG24: 7560.528601 | AH24: 7560.528601 | AI24: 6828.864543 | AJ24: 7560.528601 | AK24: 6342.125072 | AL24: 5794.392 | AM24: 7319.232 | AN24: 7319.232 | AO24: 5672.4048 | AP24: 5794.478046 | AQ24: 7563.739887 | AR24: 7319.748278 | AS24: 7563.739887 | AT24: 6404.861487 | AU24: 5246.406553 | AV24: 6961.167834 | AW24: 5497.066678 | AX24: 7274.806137 | AY24: 7336.878874 | AZ24: 7581.441503 | BA24: 7581.441503 | BB24: 7336.878874 | BC24: 7032.499103 | BD24: 5507.070874 | BE24: 7230.153954 | BF24: 6501.442759 | BG24: 5217.508293 | BH24: 7618.596639 | BI24: 7372.835457 | BJ24: 7618.596639 | BK24: 7372.835457 | BL24: 6087.817972 | BM24: 6398.277492 | BN24: 7261.91891 | BO24: 5729.586223 | BP24: 6653.964061 | BQ24: 7639.880623 | BR24: 7639.880623 | BS24: 7146.985099 | BT24: 7639.880623 | BU24: 7393.432861 | BV24: 5730.8832 | BW24: 6531.9744 | BX24: 42581.0784 | BY24: 39068.6016 | BZ24: 42581.0784 | CA24: 41841.6096 | CB24: 39808.0704 | CC24: 41841.6096 | CD24: 42581.0784 | CE24: 39315.0912 | CF24: 42581.0784 | CG24: 41841.6096 | CH24: 39808.0704 | CI24: 41841.6096 | CJ24: 42581.0784 | CK24: 39068.6016 | CL24: 42765.9456 | CM24: 41903.232 | CN24: 39808.0704 | CO24: 42334.5888 | CP24: 42088.0992 | CQ24: 39068.6016 | CR24: 43258.9248 | CS24: 41163.7632 | CT24: 39808.0704 | CU24: 43074.0576 | CV24: 41595.12 | CW24: 39068.6016 | CX24: 43751.904 | CY24: 40670.784 | CZ24: 39808.0704 | DA24: 43382.1696 | DB24: 41040.5184 | DC24: 39315.0912 | DD24: 44244.8832 | DE24: 40177.8048 | DF24: 39992.9376 | DG24: 43690.2816 | DH24: 40547.5392 | DI24: 39623.2032 | DJ24: 44244.8832 | DK24: 39869.6928 | DL24: 40485.9168 | DM24: 43690.2816 | DN24: 40054.56 | DO24: 40116.1824 | DP24: 44244.8832 | DQ24: 39130.224 | DR24: 41040.5184 | DS24: 43628.6592 | DT24: 39808.0704 | DU24: 40609.1616 | DV24: 43813.5264 | DW24: 39068.6016 | DX24: 41533.4976 | DY24: 42889.1904 | DZ24: 39808.0704 | EA24: 41348.6304 | EB24: 43320.5472 | EC24: 39068.6016 | ED24: 42026.4768 | EE24: 42396.2112 | EF24: 39808.0704 | EG24: 41656.7424 | EH24: 42765.9456 | EI24: 39315.0912 | EJ24: 42519.456 | EK24: 41903.232 | EL24: 39808.0704 | EM24: 41841.6096 | EN24: 42581.0784 | EO24: 39068.6016 | EP24: 42581.0784 | EQ24: 42088.0992 | ER24: 39808.0704 | ES24: 41841.6096 | ET24: 42581.0784 | EU24: 39068.6016 | EV24: 42581.0784 | EW24: 41841.6096 | EX24: 39808.0704 | EY24: 42088.0992 | EZ24: 42581.0784 | FA24: 39068.6016 | FB24: 42581.0784 | FC24: 41841.6096 | FD24: 39808.0704 | FE24: 41841.6096 | FF24: 42581.0784 | FG24: 39315.0912 | FH24: 42581.0784 | FI24: 41841.6096 | FJ24: 39808.0704 | FK24: 42026.4768 | FL24: 42396.2112 | FM24: 39315.0912 | FN24: 42704.3232 | FO24: 41718.3648 | FP24: 40177.8048 | FQ24: 42149.7216 | FR24: 41903.232 | FS24: 39808.0704 | FT24: 42704.3232 | FU24: 40978.896 | FV24: 40807.8624 | FW24: 42563.472 | FX24: 41748.5472 | FY24: 37807.2288 | FZ24: 31597.2 | GA24: 25301.6544 | GB24: 21552.7488 | GC24: 20813.28 | GD24: 11569.92 | GE24: 10941.12 | GF24: 0 | GG24: 0 | GH24: 0 | GI24: 0 | GJ24: 0 | GK24: 0 | GL24: 0 | GM24: 0 | GN24: 0 | GO24: 0 | GP24: 0 | GQ24: 0 | GR24: 0 | GS24: 0 | GT24: 0 | GU24: 0 | GV24: 0 | GW24: 0 | GX24: 0 | GY24: 0 | GZ24: 0 | HA24: 0 | HB24: 0 | HC24: 0 | HD24: 0 | HE24: 0 | HF24: 0 | HG24: 0 | HH24: 0 | HI24: 0 | HJ24: 0 | HK24: 0 | HL24: 0 | HM24: 0 | HN24: 0 | HO24: 0 | HP24: 0 | HQ24: 0 | HR24: 0 | HS24: 0 | HT24: 0 | HU24: 0 | HV24: 0 | HW24: 0 | HX24: 0 | HY24: 0 | HZ24: 0 | IA24: 0 | IB24: 0 | IC24: 0 | ID24: 0 | IE24: 0 | IF24: 0 | IG24: 0 | IH24: 0 | II24: 0 | IJ24: 0 | IK24: 0 | IL24: 0 | IM24: 0 | IN24: 0 | IO24: 0 | IP24: 0 | IQ24: 0 | IR24: 0 | IS24: 0 | IT24: 0 | IU24: 0 | IV24: 0 | IW24: 0 | IX24: 0 | IY24: 0 | IZ24: 0 | JA24: 0 | JB24: 0 | JC24: 0 | JD24: 0 | JE24: 0 | JF24: 0 | JG24: 0 | JH24: 0 | JI24: 0 | JJ24: 0 | JK24: 0 | JL24: 0 | JM24: 0 | JN24: 0 | JO24: 0 | JP24: 0 | JQ24: 0 | JR24: 0 | JS24: 0 | JT24: 0 | JU24: 0 | JV24: 0 | JW24: 0 | JX24: 0 | JY24: 0 | JZ24: 0 | KA24: 0 | KB24: 0 | KC24: 0 | KD24: 0 | KE24: 0 | KF24: 0 | KG24: 0 | KH24: 0 | KI24: 0 | KJ24: 0 | KK24: 0 | KL24: 0 | KM24: 0 | KN24: 0 | KO24: 0 | KP24: 0 | KQ24: 0 | KR24: 0 | KS24: 0 | KT24: 0 | KU24: 0 | KV24: 0 | KW24: 0
D25: Unit Sensitivity | E25: % | F25: =Sensitivity!H23 -> 0.8 | J25: =$F$25 -> 0.8 | K25: =$F$25 -> 0.8 | L25: 0.8 | M25: 0.8 | N25: 0.8 | O25: 0.8 | P25: 0.8 | Q25: 0.8 | R25: 0.8 | S25: 0.8 | T25: 0.8 | U25: 0.8 | V25: 0.8 | W25: 0.8 | X25: 0.8 | Y25: 0.8 | Z25: 0.8 | AA25: 0.8 | AB25: 0.8 | AC25: 0.8 | AD25: 0.8 | AE25: 0.8 | AF25: 0.8 | AG25: 0.8 | AH25: 0.8 | AI25: 0.8 | AJ25: 0.8 | AK25: 0.8 | AL25: 0.8 | AM25: 0.8 | AN25: 0.8 | AO25: 0.8 | AP25: 0.8 | AQ25: 0.8 | AR25: 0.8 | AS25: 0.8 | AT25: 0.8 | AU25: 0.8 | AV25: 0.8 | AW25: 0.8 | AX25: 0.8 | AY25: 0.8 | AZ25: 0.8 | BA25: 0.8 | BB25: 0.8 | BC25: 0.8 | BD25: 0.8 | BE25: 0.8 | BF25: 0.8 | BG25: 0.8 | BH25: 0.8 | BI25: 0.8 | BJ25: 0.8 | BK25: 0.8 | BL25: 0.8 | BM25: 0.8 | BN25: 0.8 | BO25: 0.8 | BP25: 0.8 | BQ25: 0.8 | BR25: 0.8 | BS25: 0.8 | BT25: 0.8 | BU25: 0.8 | BV25: 0.8 | BW25: =$F$25 -> 0.8 | BX25: 0.8 | BY25: 0.8 | BZ25: 0.8 | CA25: 0.8 | CB25: 0.8 | CC25: 0.8 | CD25: 0.8 | CE25: 0.8 | CF25: 0.8 | CG25: 0.8 | CH25: 0.8 | CI25: 0.8 | CJ25: 0.8 | CK25: 0.8 | CL25: 0.8 | CM25: 0.8 | CN25: 0.8 | CO25: 0.8 | CP25: 0.8 | CQ25: 0.8 | CR25: 0.8 | CS25: 0.8 | CT25: 0.8 | CU25: 0.8 | CV25: 0.8 | CW25: 0.8 | CX25: 0.8 | CY25: 0.8 | CZ25: 0.8 | DA25: 0.8 | DB25: 0.8 | DC25: 0.8 | DD25: 0.8 | DE25: 0.8 | DF25: 0.8 | DG25: 0.8 | DH25: 0.8 | DI25: 0.8 | DJ25: 0.8 | DK25: 0.8 | DL25: 0.8 | DM25: 0.8 | DN25: 0.8 | DO25: 0.8 | DP25: 0.8 | DQ25: 0.8 | DR25: 0.8 | DS25: 0.8 | DT25: 0.8 | DU25: 0.8 | DV25: 0.8 | DW25: 0.8 | DX25: 0.8 | DY25: 0.8 | DZ25: 0.8 | EA25: 0.8 | EB25: 0.8 | EC25: 0.8 | ED25: 0.8 | EE25: 0.8 | EF25: 0.8 | EG25: 0.8 | EH25: 0.8 | EI25: =$F$25 -> 0.8 | EJ25: 0.8 | EK25: 0.8 | EL25: 0.8 | EM25: 0.8 | EN25: 0.8 | EO25: 0.8 | EP25: 0.8 | EQ25: 0.8 | ER25: 0.8 | ES25: 0.8 | ET25: 0.8 | EU25: 0.8 | EV25: 0.8 | EW25: 0.8 | EX25: 0.8 | EY25: 0.8 | EZ25: 0.8 | FA25: 0.8 | FB25: 0.8 | FC25: 0.8 | FD25: 0.8 | FE25: 0.8 | FF25: 0.8 | FG25: 0.8 | FH25: 0.8 | FI25: 0.8 | FJ25: 0.8 | FK25: 0.8 | FL25: 0.8 | FM25: 0.8 | FN25: 0.8 | FO25: 0.8 | FP25: 0.8 | FQ25: 0.8 | FR25: 0.8 | FS25: 0.8 | FT25: 0.8 | FU25: 0.8 | FV25: 0.8 | FW25: 0.8 | FX25: 0.8 | FY25: 0.8 | FZ25: 0.8 | GA25: 0.8 | GB25: 0.8 | GC25: 0.8 | GD25: 0.8 | GE25: 0.8 | GF25: 0.8 | GG25: 0.8 | GH25: 0.8 | GI25: 0.8 | GJ25: 0.8 | GK25: 0.8 | GL25: 0.8 | GM25: 0.8 | GN25: 0.8 | GO25: 0.8 | GP25: 0.8 | GQ25: 0.8 | GR25: 0.8 | GS25: 0.8 | GT25: 0.8 | GU25: =$F$25 -> 0.8 | GV25: 0.8 | GW25: 0.8 | GX25: 0.8 | GY25: 0.8 | GZ25: 0.8 | HA25: 0.8 | HB25: 0.8 | HC25: 0.8 | HD25: 0.8 | HE25: 0.8 | HF25: 0.8 | HG25: 0.8 | HH25: 0.8 | HI25: 0.8 | HJ25: 0.8 | HK25: 0.8 | HL25: 0.8 | HM25: 0.8 | HN25: 0.8 | HO25: 0.8 | HP25: 0.8 | HQ25: 0.8 | HR25: 0.8 | HS25: 0.8 | HT25: 0.8 | HU25: 0.8 | HV25: 0.8 | HW25: 0.8 | HX25: 0.8 | HY25: 0.8 | HZ25: 0.8 | IA25: 0.8 | IB25: 0.8 | IC25: 0.8 | ID25: 0.8 | IE25: 0.8 | IF25: 0.8 | IG25: 0.8 | IH25: 0.8 | II25: 0.8 | IJ25: 0.8 | IK25: 0.8 | IL25: 0.8 | IM25: 0.8 | IN25: 0.8 | IO25: 0.8 | IP25: 0.8 | IQ25: 0.8 | IR25: 0.8 | IS25: 0.8 | IT25: 0.8 | IU25: 0.8 | IV25: 0.8 | IW25: 0.8 | IX25: 0.8 | IY25: 0.8 | IZ25: 0.8 | JA25: 0.8 | JB25: 0.8 | JC25: 0.8 | JD25: 0.8 | JE25: 0.8 | JF25: 0.8 | JG25: =$F$25 -> 0.8 | JH25: 0.8 | JI25: 0.8 | JJ25: 0.8 | JK25: 0.8 | JL25: 0.8 | JM25: 0.8 | JN25: 0.8 | JO25: 0.8 | JP25: 0.8 | JQ25: 0.8 | JR25: 0.8 | JS25: 0.8 | JT25: 0.8 | JU25: 0.8 | JV25: 0.8 | JW25: 0.8 | JX25: 0.8 | JY25: 0.8 | JZ25: 0.8 | KA25: 0.8 | KB25: 0.8 | KC25: 0.8 | KD25: 0.8 | KE25: 0.8 | KF25: 0.8 | KG25: 0.8 | KH25: 0.8 | KI25: 0.8 | KJ25: 0.8 | KK25: 0.8 | KL25: 0.8 | KM25: 0.8 | KN25: 0.8 | KO25: 0.8 | KP25: 0.8 | KQ25: 0.8 | KR25: 0.8 | KS25: 0.8 | KT25: 0.8 | KU25: 0.8 | KV25: 0.8 | KW25: 0.8
D26: Production per Period | E26: Units 000's | H26: =SUM(J26:XFD26) -> 3927979.288 | J26: =J24*J25 -> 2962.9056 | K26: =K24*K25 -> 2676.1728 | L26: 2962.9056 | M26: 1959.3408 | N26: 1481.4528 | O26: 2787.415595 | P26: 4478.370258 | Q26: 4478.370258 | R26: 4333.906701 | S26: 4048.271058 | T26: 2900.242701 | U26: 4215.061846 | V26: 4507.416499 | W26: 4216.615435 | X26: 4507.416499 | Y26: 4362.015967 | Z26: 4507.416499 | AA26: 4752.375007 | AB26: 5778.497971 | AC26: 4522.38697 | AD26: 4524.184414 | AE26: 4535.781601 | AF26: 5316.568785 | AG26: 6048.422881 | AH26: 6048.422881 | AI26: 5463.091634 | AJ26: 6048.422881 | AK26: 5073.700057 | AL26: 4635.5136 | AM26: 5855.3856 | AN26: 5855.3856 | AO26: 4537.92384 | AP26: 4635.582437 | AQ26: 6050.99191 | AR26: 5855.798622 | AS26: 6050.99191 | AT26: 5123.88919 | AU26: 4197.125242 | AV26: 5568.934267 | AW26: 4397.653342 | AX26: 5819.844909 | AY26: 5869.503099 | AZ26: 6065.153202 | BA26: 6065.153202 | BB26: 5869.503099 | BC26: 5625.999282 | BD26: 4405.656699 | BE26: 5784.123163 | BF26: 5201.154207 | BG26: 4174.006634 | BH26: 6094.877311 | BI26: 5898.268365 | BJ26: 6094.877311 | BK26: 5898.268365 | BL26: 4870.254378 | BM26: 5118.621994 | BN26: 5809.535128 | BO26: 4583.668978 | BP26: 5323.171249 | BQ26: 6111.904498 | BR26: 6111.904498 | BS26: 5717.588079 | BT26: 6111.904498 | BU26: 5914.746289 | BV26: 4584.70656 | BW26: =BW24*BW25 -> 5225.57952 | BX26: 34064.86272 | BY26: 31254.88128 | BZ26: 34064.86272 | CA26: 33473.28768 | CB26: 31846.45632 | CC26: 33473.28768 | CD26: 34064.86272 | CE26: 31452.07296 | CF26: 34064.86272 | CG26: 33473.28768 | CH26: 31846.45632 | CI26: 33473.28768 | CJ26: 34064.86272 | CK26: 31254.88128 | CL26: 34212.75648 | CM26: 33522.5856 | CN26: 31846.45632 | CO26: 33867.67104 | CP26: 33670.47936 | CQ26: 31254.88128 | CR26: 34607.13984 | CS26: 32931.01056 | CT26: 31846.45632 | CU26: 34459.24608 | CV26: 33276.096 | CW26: 31254.88128 | CX26: 35001.5232 | CY26: 32536.6272 | CZ26: 31846.45632 | DA26: 34705.73568 | DB26: 32832.41472 | DC26: 31452.07296 | DD26: 35395.90656 | DE26: 32142.24384 | DF26: 31994.35008 | DG26: 34952.22528 | DH26: 32438.03136 | DI26: 31698.56256 | DJ26: 35395.90656 | DK26: 31895.75424 | DL26: 32388.73344 | DM26: 34952.22528 | DN26: 32043.648 | DO26: 32092.94592 | DP26: 35395.90656 | DQ26: 31304.1792 | DR26: 32832.41472 | DS26: 34902.92736 | DT26: 31846.45632 | DU26: 32487.32928 | DV26: 35050.82112 | DW26: 31254.88128 | DX26: 33226.79808 | DY26: 34311.35232 | DZ26: 31846.45632 | EA26: 33078.90432 | EB26: 34656.43776 | EC26: 31254.88128 | ED26: 33621.18144 | EE26: 33916.96896 | EF26: 31846.45632 | EG26: 33325.39392 | EH26: 34212.75648 | EI26: =EI24*EI25 -> 31452.07296 | EJ26: 34015.5648 | EK26: 33522.5856 | EL26: 31846.45632 | EM26: 33473.28768 | EN26: 34064.86272 | EO26: 31254.88128 | EP26: 34064.86272 | EQ26: 33670.47936 | ER26: 31846.45632 | ES26: 33473.28768 | ET26: 34064.86272 | EU26: 31254.88128 | EV26: 34064.86272 | EW26: 33473.28768 | EX26: 31846.45632 | EY26: 33670.47936 | EZ26: 34064.86272 | FA26: 31254.88128 | FB26: 34064.86272 | FC26: 33473.28768 | FD26: 31846.45632 | FE26: 33473.28768 | FF26: 34064.86272 | FG26: 31452.07296 | FH26: 34064.86272 | FI26: 33473.28768 | FJ26: 31846.45632 | FK26: 33621.18144 | FL26: 33916.96896 | FM26: 31452.07296 | FN26: 34163.45856 | FO26: 33374.69184 | FP26: 32142.24384 | FQ26: 33719.77728 | FR26: 33522.5856 | FS26: 31846.45632 | FT26: 34163.45856 | FU26: 32783.1168 | FV26: 32646.28992 | FW26: 34050.7776 | FX26: 33398.83776 | FY26: 30245.78304 | FZ26: 25277.76 | GA26: 20241.32352 | GB26: 17242.19904 | GC26: 16650.624 | GD26: 9255.936 | GE26: 8752.896 | GF26: 0 | GG26: 0 | GH26: 0 | GI26: 0 | GJ26: 0 | GK26: 0 | GL26: 0 | GM26: 0 | GN26: 0 | GO26: 0 | GP26: 0 | GQ26: 0 | GR26: 0 | GS26: 0 | GT26: 0 | GU26: =GU24*GU25 -> 0 | GV26: 0 | GW26: 0 | GX26: 0 | GY26: 0 | GZ26: 0 | HA26: 0 | HB26: 0 | HC26: 0 | HD26: 0 | HE26: 0 | HF26: 0 | HG26: 0 | HH26: 0 | HI26: 0 | HJ26: 0 | HK26: 0 | HL26: 0 | HM26: 0 | HN26: 0 | HO26: 0 | HP26: 0 | HQ26: 0 | HR26: 0 | HS26: 0 | HT26: 0 | HU26: 0 | HV26: 0 | HW26: 0 | HX26: 0 | HY26: 0 | HZ26: 0 | IA26: 0 | IB26: 0 | IC26: 0 | ID26: 0 | IE26: 0 | IF26: 0 | IG26: 0 | IH26: 0 | II26: 0 | IJ26: 0 | IK26: 0 | IL26: 0 | IM26: 0 | IN26: 0 | IO26: 0 | IP26: 0 | IQ26: 0 | IR26: 0 | IS26: 0 | IT26: 0 | IU26: 0 | IV26: 0 | IW26: 0 | IX26: 0 | IY26: 0 | IZ26: 0 | JA26: 0 | JB26: 0 | JC26: 0 | JD26: 0 | JE26: 0 | JF26: 0 | JG26: =JG24*JG25 -> 0 | JH26: 0 | JI26: 0 | JJ26: 0 | JK26: 0 | JL26: 0 | JM26: 0 | JN26: 0 | JO26: 0 | JP26: 0 | JQ26: 0 | JR26: 0 | JS26: 0 | JT26: 0 | JU26: 0 | JV26: 0 | JW26: 0 | JX26: 0 | JY26: 0 | JZ26: 0 | KA26: 0 | KB26: 0 | KC26: 0 | KD26: 0 | KE26: 0 | KF26: 0 | KG26: 0 | KH26: 0 | KI26: 0 | KJ26: 0 | KK26: 0 | KL26: 0 | KM26: 0 | KN26: 0 | KO26: 0 | KP26: 0 | KQ26: 0 | KR26: 0 | KS26: 0 | KT26: 0 | KU26: 0 | KV26: 0 | KW26: 0
D28: Production per Year | E28: Units 000's | J28: =SUMIF(20:20,J20,26:26) -> 326612.3021 | K28: =SUMIF(20:20,K20,26:26) -> 326612.3021 | L28: 326612.3021 | M28: 326612.3021 | N28: 326612.3021 | O28: 326612.3021 | P28: 326612.3021 | Q28: 326612.3021 | R28: 326612.3021 | S28: 326612.3021 | T28: 326612.3021 | U28: 326612.3021 | V28: 326612.3021 | W28: 326612.3021 | X28: 326612.3021 | Y28: 326612.3021 | Z28: 326612.3021 | AA28: 326612.3021 | AB28: 326612.3021 | AC28: 326612.3021 | AD28: 326612.3021 | AE28: 326612.3021 | AF28: 326612.3021 | AG28: 326612.3021 | AH28: 326612.3021 | AI28: 326612.3021 | AJ28: 326612.3021 | AK28: 326612.3021 | AL28: 326612.3021 | AM28: 326612.3021 | AN28: 326612.3021 | AO28: 326612.3021 | AP28: 326612.3021 | AQ28: 326612.3021 | AR28: 326612.3021 | AS28: 326612.3021 | AT28: 326612.3021 | AU28: 326612.3021 | AV28: 326612.3021 | AW28: 326612.3021 | AX28: 326612.3021 | AY28: 326612.3021 | AZ28: 326612.3021 | BA28: 326612.3021 | BB28: 326612.3021 | BC28: 326612.3021 | BD28: 326612.3021 | BE28: 326612.3021 | BF28: 326612.3021 | BG28: 326612.3021 | BH28: 326612.3021 | BI28: 326612.3021 | BJ28: 326612.3021 | BK28: 326612.3021 | BL28: 326612.3021 | BM28: 326612.3021 | BN28: 326612.3021 | BO28: 326612.3021 | BP28: 326612.3021 | BQ28: 326612.3021 | BR28: 326612.3021 | BS28: 326612.3021 | BT28: 326612.3021 | BU28: 326612.3021 | BV28: 326612.3021 | BW28: =SUMIF(20:20,BW20,26:26) -> 326612.3021 | BX28: 65319.744 | BY28: 65319.744 | BZ28: 67538.1504 | CA28: 67538.1504 | CB28: 65319.744 | CC28: 65319.744 | CD28: 65516.93568 | CE28: 65516.93568 | CF28: 67538.1504 | CG28: 67538.1504 | CH28: 65319.744 | CI28: 65319.744 | CJ28: 65319.744 | CK28: 65319.744 | CL28: 67735.34208 | CM28: 67735.34208 | CN28: 65714.12736 | CO28: 65714.12736 | CP28: 64925.36064 | CQ28: 64925.36064 | CR28: 67538.1504 | CS28: 67538.1504 | CT28: 66305.7024 | CU28: 66305.7024 | CV28: 64530.97728 | CW28: 64530.97728 | CX28: 67538.1504 | CY28: 67538.1504 | CZ28: 66552.192 | DA28: 66552.192 | DB28: 64284.48768 | DC28: 64284.48768 | DD28: 67538.1504 | DE28: 67538.1504 | DF28: 66946.57536 | DG28: 66946.57536 | DH28: 64136.59392 | DI28: 64136.59392 | DJ28: 67291.6608 | DK28: 67291.6608 | DL28: 67340.95872 | DM28: 67340.95872 | DN28: 64136.59392 | DO28: 64136.59392 | DP28: 66700.08576 | DQ28: 66700.08576 | DR28: 67735.34208 | DS28: 67735.34208 | DT28: 64333.7856 | DU28: 64333.7856 | DV28: 66305.7024 | DW28: 66305.7024 | DX28: 67538.1504 | DY28: 67538.1504 | DZ28: 64925.36064 | EA28: 64925.36064 | EB28: 65911.31904 | EC28: 65911.31904 | ED28: 67538.1504 | EE28: 67538.1504 | EF28: 65171.85024 | EG28: 65171.85024 | EH28: 65664.82944 | EI28: =SUMIF(20:20,EI20,26:26) -> 65664.82944 | EJ28: 67538.1504 | EK28: 67538.1504 | EL28: 65319.744 | EM28: 65319.744 | EN28: 65319.744 | EO28: 65319.744 | EP28: 67735.34208 | EQ28: 67735.34208 | ER28: 65319.744 | ES28: 65319.744 | ET28: 65319.744 | EU28: 65319.744 | EV28: 67538.1504 | EW28: 67538.1504 | EX28: 65516.93568 | EY28: 65516.93568 | EZ28: 65319.744 | FA28: 65319.744 | FB28: 67538.1504 | FC28: 67538.1504 | FD28: 65319.744 | FE28: 65319.744 | FF28: 65516.93568 | FG28: 65516.93568 | FH28: 67538.1504 | FI28: 67538.1504 | FJ28: 65467.63776 | FK28: 65467.63776 | FL28: 65369.04192 | FM28: 65369.04192 | FN28: 67538.1504 | FO28: 67538.1504 | FP28: 65862.02112 | FQ28: 65862.02112 | FR28: 65369.04192 | FS28: 65369.04192 | FT28: 66946.57536 | FU28: 66946.57536 | FV28: 66697.06752 | FW28: 66697.06752 | FX28: 63644.6208 | FY28: 63644.6208 | FZ28: 45519.08352 | GA28: 45519.08352 | GB28: 33892.82304 | GC28: 33892.82304 | GD28: 18008.832 | GE28: 18008.832 | GF28: 18008.832 | GG28: 18008.832 | GH28: 18008.832 | GI28: 18008.832 | GJ28: 18008.832 | GK28: 18008.832 | GL28: 18008.832 | GM28: 18008.832 | GN28: 18008.832 | GO28: 18008.832 | GP28: 18008.832 | GQ28: 18008.832 | GR28: 18008.832 | GS28: 18008.832 | GT28: 18008.832 | GU28: =SUMIF(20:20,GU20,26:26) -> 18008.832 | GV28: 18008.832 | GW28: 18008.832 | GX28: 18008.832 | GY28: 18008.832 | GZ28: 18008.832 | HA28: 18008.832 | HB28: 18008.832 | HC28: 18008.832 | HD28: 18008.832 | HE28: 18008.832 | HF28: 18008.832 | HG28: 18008.832 | HH28: 18008.832 | HI28: 18008.832 | HJ28: 18008.832 | HK28: 18008.832 | HL28: 18008.832 | HM28: 18008.832 | HN28: 18008.832 | HO28: 18008.832 | HP28: 18008.832 | HQ28: 18008.832 | HR28: 18008.832 | HS28: 18008.832 | HT28: 18008.832 | HU28: 18008.832 | HV28: 18008.832 | HW28: 18008.832 | HX28: 18008.832 | HY28: 18008.832 | HZ28: 18008.832 | IA28: 18008.832 | IB28: 18008.832 | IC28: 18008.832 | ID28: 18008.832 | IE28: 18008.832 | IF28: 18008.832 | IG28: 18008.832 | IH28: 18008.832 | II28: 18008.832 | IJ28: 18008.832 | IK28: 18008.832 | IL28: 18008.832 | IM28: 18008.832 | IN28: 18008.832 | IO28: 18008.832 | IP28: 18008.832 | IQ28: 18008.832 | IR28: 18008.832 | IS28: 18008.832 | IT28: 18008.832 | IU28: 18008.832 | IV28: 18008.832 | IW28: 18008.832 | IX28: 18008.832 | IY28: 18008.832 | IZ28: 18008.832 | JA28: 18008.832 | JB28: 18008.832 | JC28: 18008.832 | JD28: 18008.832 | JE28: 18008.832 | JF28: 18008.832 | JG28: =SUMIF(20:20,JG20,26:26) -> 18008.832 | JH28: 18008.832 | JI28: 18008.832 | JJ28: 18008.832 | JK28: 18008.832 | JL28: 18008.832 | JM28: 18008.832 | JN28: 18008.832 | JO28: 18008.832 | JP28: 18008.832 | JQ28: 18008.832 | JR28: 18008.832 | JS28: 18008.832 | JT28: 18008.832 | JU28: 18008.832 | JV28: 18008.832 | JW28: 18008.832 | JX28: 18008.832 | JY28: 18008.832 | JZ28: 18008.832 | KA28: 18008.832 | KB28: 18008.832 | KC28: 18008.832 | KD28: 18008.832 | KE28: 18008.832 | KF28: 18008.832 | KG28: 18008.832 | KH28: 18008.832 | KI28: 18008.832 | KJ28: 18008.832 | KK28: 18008.832 | KL28: 18008.832 | KM28: 18008.832 | KN28: 18008.832 | KO28: 18008.832 | KP28: 18008.832 | KQ28: 18008.832 | KR28: 18008.832 | KS28: 18008.832 | KT28: 18008.832 | KU28: 18008.832 | KV28: 18008.832 | KW28: 18008.832
D29: Capacity | E29: Cap Unit | F29: 5240 | J29: =$F$29 -> 5240 | K29: =$F$29 -> 5240 | L29: 5240 | M29: 5240 | N29: 5240 | O29: 5240 | P29: 5240 | Q29: 5240 | R29: 5240 | S29: 5240 | T29: 5240 | U29: 5240 | V29: 5240 | W29: 5240 | X29: 5240 | Y29: 5240 | Z29: 5240 | AA29: 5240 | AB29: 5240 | AC29: 5240 | AD29: 5240 | AE29: 5240 | AF29: 5240 | AG29: 5240 | AH29: 5240 | AI29: 5240 | AJ29: 5240 | AK29: 5240 | AL29: 5240 | AM29: 5240 | AN29: 5240 | AO29: 5240 | AP29: 5240 | AQ29: 5240 | AR29: 5240 | AS29: 5240 | AT29: 5240 | AU29: 5240 | AV29: 5240 | AW29: 5240 | AX29: 5240 | AY29: 5240 | AZ29: 5240 | BA29: 5240 | BB29: 5240 | BC29: 5240 | BD29: 5240 | BE29: 5240 | BF29: 5240 | BG29: 5240 | BH29: 5240 | BI29: 5240 | BJ29: 5240 | BK29: 5240 | BL29: 5240 | BM29: 5240 | BN29: 5240 | BO29: 5240 | BP29: 5240 | BQ29: 5240 | BR29: 5240 | BS29: 5240 | BT29: 5240 | BU29: 5240 | BV29: 5240 | BW29: =$F$29 -> 5240 | BX29: 5240 | BY29: 5240 | BZ29: 5240 | CA29: 5240 | CB29: 5240 | CC29: 5240 | CD29: 5240 | CE29: 5240 | CF29: 5240 | CG29: 5240 | CH29: 5240 | CI29: 5240 | CJ29: 5240 | CK29: 5240 | CL29: 5240 | CM29: 5240 | CN29: 5240 | CO29: 5240 | CP29: 5240 | CQ29: 5240 | CR29: 5240 | CS29: 5240 | CT29: 5240 | CU29: 5240 | CV29: 5240 | CW29: 5240 | CX29: 5240 | CY29: 5240 | CZ29: 5240 | DA29: 5240 | DB29: 5240 | DC29: 5240 | DD29: 5240 | DE29: 5240 | DF29: 5240 | DG29: 5240 | DH29: 5240 | DI29: 5240 | DJ29: 5240 | DK29: 5240 | DL29: 5240 | DM29: 5240 | DN29: 5240 | DO29: 5240 | DP29: 5240 | DQ29: 5240 | DR29: 5240 | DS29: 5240 | DT29: 5240 | DU29: 5240 | DV29: 5240 | DW29: 5240 | DX29: 5240 | DY29: 5240 | DZ29: 5240 | EA29: 5240 | EB29: 5240 | EC29: 5240 | ED29: 5240 | EE29: 5240 | EF29: 5240 | EG29: 5240 | EH29: 5240 | EI29: =$F$29 -> 5240 | EJ29: 5240 | EK29: 5240 | EL29: 5240 | EM29: 5240 | EN29: 5240 | EO29: 5240 | EP29: 5240 | EQ29: 5240 | ER29: 5240 | ES29: 5240 | ET29: 5240 | EU29: 5240 | EV29: 5240 | EW29: 5240 | EX29: 5240 | EY29: 5240 | EZ29: 5240 | FA29: 5240 | FB29: 5240 | FC29: 5240 | FD29: 5240 | FE29: 5240 | FF29: 5240 | FG29: 5240 | FH29: 5240 | FI29: 5240 | FJ29: 5240 | FK29: 5240 | FL29: 5240 | FM29: 5240 | FN29: 5240 | FO29: 5240 | FP29: 5240 | FQ29: 5240 | FR29: 5240 | FS29: 5240 | FT29: 5240 | FU29: 5240 | FV29: 5240 | FW29: 5240 | FX29: 5240 | FY29: 5240 | FZ29: 5240 | GA29: 5240 | GB29: 5240 | GC29: 5240 | GD29: 5240 | GE29: 5240 | GF29: 5240 | GG29: 5240 | GH29: 5240 | GI29: 5240 | GJ29: 5240 | GK29: 5240 | GL29: 5240 | GM29: 5240 | GN29: 5240 | GO29: 5240 | GP29: 5240 | GQ29: 5240 | GR29: 5240 | GS29: 5240 | GT29: 5240 | GU29: =$F$29 -> 5240 | GV29: 5240 | GW29: 5240 | GX29: 5240 | GY29: 5240 | GZ29: 5240 | HA29: 5240 | HB29: 5240 | HC29: 5240 | HD29: 5240 | HE29: 5240 | HF29: 5240 | HG29: 5240 | HH29: 5240 | HI29: 5240 | HJ29: 5240 | HK29: 5240 | HL29: 5240 | HM29: 5240 | HN29: 5240 | HO29: 5240 | HP29: 5240 | HQ29: 5240 | HR29: 5240 | HS29: 5240 | HT29: 5240 | HU29: 5240 | HV29: 5240 | HW29: 5240 | HX29: 5240 | HY29: 5240 | HZ29: 5240 | IA29: 5240 | IB29: 5240 | IC29: 5240 | ID29: 5240 | IE29: 5240 | IF29: 5240 | IG29: 5240 | IH29: 5240 | II29: 5240 | IJ29: 5240 | IK29: 5240 | IL29: 5240 | IM29: 5240 | IN29: 5240 | IO29: 5240 | IP29: 5240 | IQ29: 5240 | IR29: 5240 | IS29: 5240 | IT29: 5240 | IU29: 5240 | IV29: 5240 | IW29: 5240 | IX29: 5240 | IY29: 5240 | IZ29: 5240 | JA29: 5240 | JB29: 5240 | JC29: 5240 | JD29: 5240 | JE29: 5240 | JF29: 5240 | JG29: =$F$29 -> 5240 | JH29: 5240 | JI29: 5240 | JJ29: 5240 | JK29: 5240 | JL29: 5240 | JM29: 5240 | JN29: 5240 | JO29: 5240 | JP29: 5240 | JQ29: 5240 | JR29: 5240 | JS29: 5240 | JT29: 5240 | JU29: 5240 | JV29: 5240 | JW29: 5240 | JX29: 5240 | JY29: 5240 | JZ29: 5240 | KA29: 5240 | KB29: 5240 | KC29: 5240 | KD29: 5240 | KE29: 5240 | KF29: 5240 | KG29: 5240 | KH29: 5240 | KI29: 5240 | KJ29: 5240 | KK29: 5240 | KL29: 5240 | KM29: 5240 | KN29: 5240 | KO29: 5240 | KP29: 5240 | KQ29: 5240 | KR29: 5240 | KS29: 5240 | KT29: 5240 | KU29: 5240 | KV29: 5240 | KW29: 5240
D30: Hours | E30: Hrs | J30: =J13*24 -> 744 | K30: =K13*24 -> 672 | L30: 744 | M30: 720 | N30: 744 | O30: 720 | P30: 744 | Q30: 744 | R30: 720 | S30: 744 | T30: 720 | U30: 744 | V30: 744 | W30: 696 | X30: 744 | Y30: 720 | Z30: 744 | AA30: 720 | AB30: 744 | AC30: 744 | AD30: 720 | AE30: 744 | AF30: 720 | AG30: 744 | AH30: 744 | AI30: 672 | AJ30: 744 | AK30: 720 | AL30: 744 | AM30: 720 | AN30: 744 | AO30: 744 | AP30: 720 | AQ30: 744 | AR30: 720 | AS30: 744 | AT30: 744 | AU30: 672 | AV30: 744 | AW30: 720 | AX30: 744 | AY30: 720 | AZ30: 744 | BA30: 744 | BB30: 720 | BC30: 744 | BD30: 720 | BE30: 744 | BF30: 744 | BG30: 672 | BH30: 744 | BI30: 720 | BJ30: 744 | BK30: 720 | BL30: 744 | BM30: 744 | BN30: 720 | BO30: 744 | BP30: 720 | BQ30: 744 | BR30: 744 | BS30: 696 | BT30: 744 | BU30: 720 | BV30: 744 | BW30: =BW13*24 -> 720 | BX30: 4416 | BY30: 4344 | BZ30: 4416 | CA30: 4344 | CB30: 4416 | CC30: 4344 | CD30: 4416 | CE30: 4368 | CF30: 4416 | CG30: 4344 | CH30: 4416 | CI30: 4344 | CJ30: 4416 | CK30: 4344 | CL30: 4416 | CM30: 4368 | CN30: 4416 | CO30: 4344 | CP30: 4416 | CQ30: 4344 | CR30: 4416 | CS30: 4344 | CT30: 4416 | CU30: 4368 | CV30: 4416 | CW30: 4344 | CX30: 4416 | CY30: 4344 | CZ30: 4416 | DA30: 4344 | DB30: 4416 | DC30: 4368 | DD30: 4416 | DE30: 4344 | DF30: 4416 | DG30: 4344 | DH30: 4416 | DI30: 4344 | DJ30: 4416 | DK30: 4368 | DL30: 4416 | DM30: 4344 | DN30: 4416 | DO30: 4344 | DP30: 4416 | DQ30: 4344 | DR30: 4416 | DS30: 4368 | DT30: 4416 | DU30: 4344 | DV30: 4416 | DW30: 4344 | DX30: 4416 | DY30: 4344 | DZ30: 4416 | EA30: 4368 | EB30: 4416 | EC30: 4344 | ED30: 4416 | EE30: 4344 | EF30: 4416 | EG30: 4344 | EH30: 4416 | EI30: =EI13*24 -> 4368 | EJ30: 4416 | EK30: 4344 | EL30: 4416 | EM30: 4344 | EN30: 4416 | EO30: 4344 | EP30: 4416 | EQ30: 4368 | ER30: 4416 | ES30: 4344 | ET30: 4416 | EU30: 4344 | EV30: 4416 | EW30: 4344 | EX30: 4416 | EY30: 4368 | EZ30: 4416 | FA30: 4344 | FB30: 4416 | FC30: 4344 | FD30: 4416 | FE30: 4344 | FF30: 4416 | FG30: 4368 | FH30: 4416 | FI30: 4344 | FJ30: 4416 | FK30: 4344 | FL30: 4416 | FM30: 4344 | FN30: 4416 | FO30: 4368 | FP30: 4416 | FQ30: 4344 | FR30: 4416 | FS30: 4344 | FT30: 4416 | FU30: 4344 | FV30: 4416 | FW30: 4368 | FX30: 4416 | FY30: 4344 | FZ30: 4416 | GA30: 4344 | GB30: 4416 | GC30: 4344 | GD30: 4416 | GE30: 4368 | GF30: 4416 | GG30: 4344 | GH30: 4416 | GI30: 4344 | GJ30: 4416 | GK30: 4344 | GL30: 4416 | GM30: 4368 | GN30: 4416 | GO30: 4344 | GP30: 4416 | GQ30: 4344 | GR30: 4416 | GS30: 4344 | GT30: 4416 | GU30: =GU13*24 -> 4368 | GV30: 4416 | GW30: 4344 | GX30: 4416 | GY30: 4344 | GZ30: 4416 | HA30: 4344 | HB30: 4416 | HC30: 4368 | HD30: 4416 | HE30: 4344 | HF30: 4416 | HG30: 4344 | HH30: 4416 | HI30: 4344 | HJ30: 4416 | HK30: 4344 | HL30: 4416 | HM30: 4344 | HN30: 4416 | HO30: 4344 | HP30: 4416 | HQ30: 4344 | HR30: 4416 | HS30: 4368 | HT30: 4416 | HU30: 4344 | HV30: 4416 | HW30: 4344 | HX30: 4416 | HY30: 4344 | HZ30: 4416 | IA30: 4368 | IB30: 4416 | IC30: 4344 | ID30: 4416 | IE30: 4344 | IF30: 4416 | IG30: 4344 | IH30: 4416 | II30: 4368 | IJ30: 4416 | IK30: 4344 | IL30: 4416 | IM30: 4344 | IN30: 4416 | IO30: 4344 | IP30: 4416 | IQ30: 4368 | IR30: 4416 | IS30: 4344 | IT30: 4416 | IU30: 4344 | IV30: 4416 | IW30: 4344 | IX30: 4416 | IY30: 4368 | IZ30: 4416 | JA30: 4344 | JB30: 4416 | JC30: 4344 | JD30: 4416 | JE30: 4344 | JF30: 4416 | JG30: =JG13*24 -> 4368 | JH30: 4416 | JI30: 4344 | JJ30: 4416 | JK30: 4344 | JL30: 4416 | JM30: 4344 | JN30: 4416 | JO30: 4368 | JP30: 4416 | JQ30: 4344 | JR30: 4416 | JS30: 4344 | JT30: 4416 | JU30: 4344 | JV30: 4416 | JW30: 4368 | JX30: 4416 | JY30: 4344 | JZ30: 4416 | KA30: 4344 | KB30: 4416 | KC30: 4344 | KD30: 4416 | KE30: 4368 | KF30: 4416 | KG30: 4344 | KH30: 4416 | KI30: 4344 | KJ30: 4416 | KK30: 4344 | KL30: 4416 | KM30: 4368 | KN30: 4416 | KO30: 4344 | KP30: 4416 | KQ30: 4344 | KR30: 4416 | KS30: 4344 | KT30: 4416 | KU30: 4368 | KV30: 4416 | KW30: 4344
D31: Capacity Factor | E31: % | J31: =J26*1000/(J29*J30) -> 0.76 | K31: =K26*1000/(K29*K30) -> 0.76 | L31: 0.76 | M31: 0.5193333333 | N31: 0.38 | O31: 0.738818807 | P31: 1.148724211 | Q31: 1.148724211 | R31: 1.148724211 | S31: 1.03840163 | T31: 0.7687242105 | U31: 1.081184295 | V31: 1.156174716 | W31: 1.156174716 | X31: 1.156174716 | Y31: 1.156174716 | Z31: 1.156174716 | AA31: 1.259641382 | AB31: 1.482213425 | AC31: 1.160014716 | AD31: 1.199158295 | AE31: 1.163450505 | AF31: 1.409183838 | AG31: 1.551450505 | AH31: 1.551450505 | AI31: 1.551450505 | AJ31: 1.551450505 | AK31: 1.344810236 | AL31: 1.189032258 | AM31: 1.552 | AN31: 1.501935484 | AO31: 1.164 | AP31: 1.228684912 | AQ31: 1.552109474 | AR31: 1.552109474 | AS31: 1.552109474 | AT31: 1.314303022 | AU31: 1.191931696 | AV31: 1.428459294 | AW31: 1.165620585 | AX31: 1.49281912 | AY31: 1.555741916 | AZ31: 1.555741916 | BA31: 1.555741916 | BB31: 1.555741916 | BC31: 1.443096754 | BD31: 1.167741916 | BE31: 1.483656315 | BF31: 1.334121883 | BG31: 1.185366297 | BH31: 1.563366297 | BI31: 1.563366297 | BJ31: 1.563366297 | BK31: 1.563366297 | BL31: 1.249244433 | BM31: 1.31295196 | BN31: 1.539847097 | BO31: 1.175733855 | BP31: 1.410933855 | BQ31: 1.567733855 | BR31: 1.567733855 | BS31: 1.567733855 | BT31: 1.567733855 | BU31: 1.567733855 | BV31: 1.176 | BW31: =BW26*1000/(BW29*BW30) -> 1.385066667 | BX31: 1.472130435 | BY31: 1.373082873 | BZ31: 1.472130435 | CA31: 1.470541436 | CB31: 1.37626087 | CC31: 1.470541436 | CD31: 1.472130435 | CE31: 1.374153846 | CF31: 1.472130435 | CG31: 1.470541436 | CH31: 1.37626087 | CI31: 1.470541436 | CJ31: 1.472130435 | CK31: 1.373082873 | CL31: 1.478521739 | CM31: 1.464615385 | CN31: 1.37626087 | CO31: 1.487867403 | CP31: 1.455086957 | CQ31: 1.373082873 | CR31: 1.495565217 | CS31: 1.446718232 | CT31: 1.37626087 | CU31: 1.505538462 | CV31: 1.438043478 | CW31: 1.373082873 | CX31: 1.512608696 | CY31: 1.429392265 | CZ31: 1.37626087 | DA31: 1.524685083 | DB31: 1.418869565 | DC31: 1.374153846 | DD31: 1.529652174 | DE31: 1.412066298 | DF31: 1.382652174 | DG31: 1.535513812 | DH31: 1.401826087 | DI31: 1.392574586 | DJ31: 1.529652174 | DK31: 1.393538462 | DL31: 1.399695652 | DM31: 1.535513812 | DN31: 1.384782609 | DO31: 1.409900552 | DP31: 1.529652174 | DQ31: 1.375248619 | DR31: 1.418869565 | DS31: 1.524923077 | DT31: 1.37626087 | DU31: 1.427226519 | DV31: 1.51473913 | DW31: 1.373082873 | DX31: 1.435913043 | DY31: 1.507359116 | DZ31: 1.37626087 | EA31: 1.445230769 | EB31: 1.497695652 | EC31: 1.373082873 | ED31: 1.452956522 | EE31: 1.490033149 | EF31: 1.37626087 | EG31: 1.464044199 | EH31: 1.478521739 | EI31: =EI26*1000/(EI29*EI30) -> 1.374153846 | EJ31: 1.47 | EK31: 1.472707182 | EL31: 1.37626087 | EM31: 1.470541436 | EN31: 1.472130435 | EO31: 1.373082873 | EP31: 1.472130435 | EQ31: 1.471076923 | ER31: 1.37626087 | ES31: 1.470541436 | ET31: 1.472130435 | EU31: 1.373082873 | EV31: 1.472130435 | EW31: 1.470541436 | EX31: 1.37626087 | EY31: 1.471076923 | EZ31: 1.472130435 | FA31: 1.373082873 | FB31: 1.472130435 | FC31: 1.470541436 | FD31: 1.37626087 | FE31: 1.470541436 | FF31: 1.472130435 | FG31: 1.374153846 | FH31: 1.472130435 | FI31: 1.470541436 | FJ31: 1.37626087 | FK31: 1.477038674 | FL31: 1.46573913 | FM31: 1.381745856 | FN31: 1.476391304 | FO31: 1.458153846 | FP31: 1.389043478 | FQ31: 1.481370166 | FR31: 1.448695652 | FS31: 1.399071823 | FT31: 1.476391304 | FU31: 1.440220994 | FV31: 1.410826087 | FW31: 1.487692308 | FX31: 1.443347826 | FY31: 1.328751381 | FZ31: 1.092391304 | GA31: 0.8892375691 | GB31: 0.7451304348 | GC31: 0.7314917127 | GD31: 0.4 | GE31: 0.3824175824 | GF31: 0 | GG31: 0 | GH31: 0 | GI31: 0 | GJ31: 0 | GK31: 0 | GL31: 0 | GM31: 0 | GN31: 0 | GO31: 0 | GP31: 0 | GQ31: 0 | GR31: 0 | GS31: 0 | GT31: 0 | GU31: =GU26*1000/(GU29*GU30) -> 0 | GV31: 0 | GW31: 0 | GX31: 0 | GY31: 0 | GZ31: 0 | HA31: 0 | HB31: 0 | HC31: 0 | HD31: 0 | HE31: 0 | HF31: 0 | HG31: 0 | HH31: 0 | HI31: 0 | HJ31: 0 | HK31: 0 | HL31: 0 | HM31: 0 | HN31: 0 | HO31: 0 | HP31: 0 | HQ31: 0 | HR31: 0 | HS31: 0 | HT31: 0 | HU31: 0 | HV31: 0 | HW31: 0 | HX31: 0 | HY31: 0 | HZ31: 0 | IA31: 0 | IB31: 0 | IC31: 0 | ID31: 0 | IE31: 0 | IF31: 0 | IG31: 0 | IH31: 0 | II31: 0 | IJ31: 0 | IK31: 0 | IL31: 0 | IM31: 0 | IN31: 0 | IO31: 0 | IP31: 0 | IQ31: 0 | IR31: 0 | IS31: 0 | IT31: 0 | IU31: 0 | IV31: 0 | IW31: 0 | IX31: 0 | IY31: 0 | IZ31: 0 | JA31: 0 | JB31: 0 | JC31: 0 | JD31: 0 | JE31: 0 | JF31: 0 | JG31: =JG26*1000/(JG29*JG30) -> 0 | JH31: 0 | JI31: 0 | JJ31: 0 | JK31: 0 | JL31: 0 | JM31: 0 | JN31: 0 | JO31: 0 | JP31: 0 | JQ31: 0 | JR31: 0 | JS31: 0 | JT31: 0 | JU31: 0 | JV31: 0 | JW31: 0 | JX31: 0 | JY31: 0 | JZ31: 0 | KA31: 0 | KB31: 0 | KC31: 0 | KD31: 0 | KE31: 0 | KF31: 0 | KG31: 0 | KH31: 0 | KI31: 0 | KJ31: 0 | KK31: 0 | KL31: 0 | KM31: 0 | KN31: 0 | KO31: 0 | KP31: 0 | KQ31: 0 | KR31: 0 | KS31: 0 | KT31: 0 | KU31: 0 | KV31: 0 | KW31: 0
D33: Efficiency in Tons | E33: Tons/Units 000's | F33: 2.2 | J33: =$F$33 -> 2.2 | K33: =$F$33 -> 2.2 | L33: 2.2 | M33: 2.2 | N33: 2.2 | O33: 2.2 | P33: 2.2 | Q33: 2.2 | R33: 2.2 | S33: 2.2 | T33: 2.2 | U33: 2.2 | V33: 2.2 | W33: 2.2 | X33: 2.2 | Y33: 2.2 | Z33: 2.2 | AA33: 2.2 | AB33: 2.2 | AC33: 2.2 | AD33: 2.2 | AE33: 2.2 | AF33: 2.2 | AG33: 2.2 | AH33: 2.2 | AI33: 2.2 | AJ33: 2.2 | AK33: 2.2 | AL33: 2.2 | AM33: 2.2 | AN33: 2.2 | AO33: 2.2 | AP33: 2.2 | AQ33: 2.2 | AR33: 2.2 | AS33: 2.2 | AT33: 2.2 | AU33: 2.2 | AV33: 2.2 | AW33: 2.2 | AX33: 2.2 | AY33: 2.2 | AZ33: 2.2 | BA33: 2.2 | BB33: 2.2 | BC33: 2.2 | BD33: 2.2 | BE33: 2.2 | BF33: 2.2 | BG33: 2.2 | BH33: 2.2 | BI33: 2.2 | BJ33: 2.2 | BK33: 2.2 | BL33: 2.2 | BM33: 2.2 | BN33: 2.2 | BO33: 2.2 | BP33: 2.2 | BQ33: 2.2 | BR33: 2.2 | BS33: 2.2 | BT33: 2.2 | BU33: 2.2 | BV33: 2.2 | BW33: =$F$33 -> 2.2 | BX33: 2.2 | BY33: 2.2 | BZ33: 2.2 | CA33: 2.2 | CB33: 2.2 | CC33: 2.2 | CD33: 2.2 | CE33: 2.2 | CF33: 2.2 | CG33: 2.2 | CH33: 2.2 | CI33: 2.2 | CJ33: 2.2 | CK33: 2.2 | CL33: 2.2 | CM33: 2.2 | CN33: 2.2 | CO33: 2.2 | CP33: 2.2 | CQ33: 2.2 | CR33: 2.2 | CS33: 2.2 | CT33: 2.2 | CU33: 2.2 | CV33: 2.2 | CW33: 2.2 | CX33: 2.2 | CY33: 2.2 | CZ33: 2.2 | DA33: 2.2 | DB33: 2.2 | DC33: 2.2 | DD33: 2.2 | DE33: 2.2 | DF33: 2.2 | DG33: 2.2 | DH33: 2.2 | DI33: 2.2 | DJ33: 2.2 | DK33: 2.2 | DL33: 2.2 | DM33: 2.2 | DN33: 2.2 | DO33: 2.2 | DP33: 2.2 | DQ33: 2.2 | DR33: 2.2 | DS33: 2.2 | DT33: 2.2 | DU33: 2.2 | DV33: 2.2 | DW33: 2.2 | DX33: 2.2 | DY33: 2.2 | DZ33: 2.2 | EA33: 2.2 | EB33: 2.2 | EC33: 2.2 | ED33: 2.2 | EE33: 2.2 | EF33: 2.2 | EG33: 2.2 | EH33: 2.2 | EI33: =$F$33 -> 2.2 | EJ33: 2.2 | EK33: 2.2 | EL33: 2.2 | EM33: 2.2 | EN33: 2.2 | EO33: 2.2 | EP33: 2.2 | EQ33: 2.2 | ER33: 2.2 | ES33: 2.2 | ET33: 2.2 | EU33: 2.2 | EV33: 2.2 | EW33: 2.2 | EX33: 2.2 | EY33: 2.2 | EZ33: 2.2 | FA33: 2.2 | FB33: 2.2 | FC33: 2.2 | FD33: 2.2 | FE33: 2.2 | FF33: 2.2 | FG33: 2.2 | FH33: 2.2 | FI33: 2.2 | FJ33: 2.2 | FK33: 2.2 | FL33: 2.2 | FM33: 2.2 | FN33: 2.2 | FO33: 2.2 | FP33: 2.2 | FQ33: 2.2 | FR33: 2.2 | FS33: 2.2 | FT33: 2.2 | FU33: 2.2 | FV33: 2.2 | FW33: 2.2 | FX33: 2.2 | FY33: 2.2 | FZ33: 2.2 | GA33: 2.2 | GB33: 2.2 | GC33: 2.2 | GD33: 2.2 | GE33: 2.2 | GF33: 2.2 | GG33: 2.2 | GH33: 2.2 | GI33: 2.2 | GJ33: 2.2 | GK33: 2.2 | GL33: 2.2 | GM33: 2.2 | GN33: 2.2 | GO33: 2.2 | GP33: 2.2 | GQ33: 2.2 | GR33: 2.2 | GS33: 2.2 | GT33: 2.2 | GU33: =$F$33 -> 2.2 | GV33: 2.2 | GW33: 2.2 | GX33: 2.2 | GY33: 2.2 | GZ33: 2.2 | HA33: 2.2 | HB33: 2.2 | HC33: 2.2 | HD33: 2.2 | HE33: 2.2 | HF33: 2.2 | HG33: 2.2 | HH33: 2.2 | HI33: 2.2 | HJ33: 2.2 | HK33: 2.2 | HL33: 2.2 | HM33: 2.2 | HN33: 2.2 | HO33: 2.2 | HP33: 2.2 | HQ33: 2.2 | HR33: 2.2 | HS33: 2.2 | HT33: 2.2 | HU33: 2.2 | HV33: 2.2 | HW33: 2.2 | HX33: 2.2 | HY33: 2.2 | HZ33: 2.2 | IA33: 2.2 | IB33: 2.2 | IC33: 2.2 | ID33: 2.2 | IE33: 2.2 | IF33: 2.2 | IG33: 2.2 | IH33: 2.2 | II33: 2.2 | IJ33: 2.2 | IK33: 2.2 | IL33: 2.2 | IM33: 2.2 | IN33: 2.2 | IO33: 2.2 | IP33: 2.2 | IQ33: 2.2 | IR33: 2.2 | IS33: 2.2 | IT33: 2.2 | IU33: 2.2 | IV33: 2.2 | IW33: 2.2 | IX33: 2.2 | IY33: 2.2 | IZ33: 2.2 | JA33: 2.2 | JB33: 2.2 | JC33: 2.2 | JD33: 2.2 | JE33: 2.2 | JF33: 2.2 | JG33: =$F$33 -> 2.2 | JH33: 2.2 | JI33: 2.2 | JJ33: 2.2 | JK33: 2.2 | JL33: 2.2 | JM33: 2.2 | JN33: 2.2 | JO33: 2.2 | JP33: 2.2 | JQ33: 2.2 | JR33: 2.2 | JS33: 2.2 | JT33: 2.2 | JU33: 2.2 | JV33: 2.2 | JW33: 2.2 | JX33: 2.2 | JY33: 2.2 | JZ33: 2.2 | KA33: 2.2 | KB33: 2.2 | KC33: 2.2 | KD33: 2.2 | KE33: 2.2 | KF33: 2.2 | KG33: 2.2 | KH33: 2.2 | KI33: 2.2 | KJ33: 2.2 | KK33: 2.2 | KL33: 2.2 | KM33: 2.2 | KN33: 2.2 | KO33: 2.2 | KP33: 2.2 | KQ33: 2.2 | KR33: 2.2 | KS33: 2.2 | KT33: 2.2 | KU33: 2.2 | KV33: 2.2 | KW33: 2.2
D34: Required Tons of Stuff | E34: Tons | H34: =SUM(J34:XFD34) -> 8641554.434 | J34: =J26*J33 -> 6518.39232 | K34: 5887.58016 | L34: 6518.39232 | M34: 4310.54976 | N34: 3259.19616 | O34: 6132.314309 | P34: 9852.414568 | Q34: 9852.414568 | R34: 9534.594743 | S34: 8906.196328 | T34: 6380.533943 | U34: 9273.136061 | V34: 9916.316298 | W34: 9276.553956 | X34: 9916.316298 | Y34: 9596.435127 | Z34: 9916.316298 | AA34: 10455.22502 | AB34: 12712.69554 | AC34: 9949.251333 | AD34: 9953.20571 | AE34: 9978.719522 | AF34: 11696.45133 | AG34: 13306.53034 | AH34: 13306.53034 | AI34: 12018.8016 | AJ34: 13306.53034 | AK34: 11162.14013 | AL34: 10198.12992 | AM34: 12881.84832 | AN34: 12881.84832 | AO34: 9983.432448 | AP34: 10198.28136 | AQ34: 13312.1822 | AR34: 12882.75697 | AS34: 13312.1822 | AT34: 11272.55622 | AU34: 9233.675533 | AV34: 12251.65539 | AW34: 9674.837353 | AX34: 12803.6588 | AY34: 12912.90682 | AZ34: 13343.33704 | BA34: 13343.33704 | BB34: 12912.90682 | BC34: 12377.19842 | BD34: 9692.444738 | BE34: 12725.07096 | BF34: 11442.53926 | BG34: 9182.814596 | BH34: 13408.73008 | BI34: 12976.1904 | BJ34: 13408.73008 | BK34: 12976.1904 | BL34: 10714.55963 | BM34: 11260.96839 | BN34: 12780.97728 | BO34: 10084.07175 | BP34: 11710.97675 | BQ34: 13446.1899 | BR34: 13446.1899 | BS34: 12578.69377 | BT34: 13446.1899 | BU34: 13012.44184 | BV34: =BV26*BV33 -> 10086.35443 | BW34: 11496.27494 | BX34: 74942.69798 | BY34: 68760.73882 | BZ34: 74942.69798 | CA34: 73641.2329 | CB34: 70062.2039 | CC34: 73641.2329 | CD34: 74942.69798 | CE34: 69194.56051 | CF34: 74942.69798 | CG34: 73641.2329 | CH34: 70062.2039 | CI34: 73641.2329 | CJ34: 74942.69798 | CK34: 68760.73882 | CL34: 75268.06426 | CM34: 73749.68832 | CN34: 70062.2039 | CO34: 74508.87629 | CP34: 74075.05459 | CQ34: 68760.73882 | CR34: 76135.70765 | CS34: 72448.22323 | CT34: 70062.2039 | CU34: 75810.34138 | CV34: 73207.4112 | CW34: 68760.73882 | CX34: 77003.35104 | CY34: 71580.57984 | CZ34: 70062.2039 | DA34: 76352.6185 | DB34: 72231.31238 | DC34: 69194.56051 | DD34: 77870.99443 | DE34: 70712.93645 | DF34: 70387.57018 | DG34: 76894.89562 | DH34: 71363.66899 | DI34: 69736.83763 | DJ34: 77870.99443 | DK34: 70170.65933 | DL34: 71255.21357 | DM34: 76894.89562 | DN34: 70496.0256 | DO34: 70604.48102 | DP34: 77870.99443 | DQ34: 68869.19424 | DR34: 72231.31238 | DS34: 76786.44019 | DT34: 70062.2039 | DU34: 71472.12442 | DV34: 77111.80646 | DW34: 68760.73882 | DX34: 73098.95578 | DY34: 75484.9751 | DZ34: 70062.2039 | EA34: 72773.5895 | EB34: 76244.16307 | EC34: 68760.73882 | ED34: 73966.59917 | EE34: 74617.33171 | EF34: 70062.2039 | EG34: 73315.86662 | EH34: =EH26*EH33 -> 75268.06426 | EI34: 69194.56051 | EJ34: 74834.24256 | EK34: 73749.68832 | EL34: 70062.2039 | EM34: 73641.2329 | EN34: 74942.69798 | EO34: 68760.73882 | EP34: 74942.69798 | EQ34: 74075.05459 | ER34: 70062.2039 | ES34: 73641.2329 | ET34: 74942.69798 | EU34: 68760.73882 | EV34: 74942.69798 | EW34: 73641.2329 | EX34: 70062.2039 | EY34: 74075.05459 | EZ34: 74942.69798 | FA34: 68760.73882 | FB34: 74942.69798 | FC34: 73641.2329 | FD34: 70062.2039 | FE34: 73641.2329 | FF34: 74942.69798 | FG34: 69194.56051 | FH34: 74942.69798 | FI34: 73641.2329 | FJ34: 70062.2039 | FK34: 73966.59917 | FL34: 74617.33171 | FM34: 69194.56051 | FN34: 75159.60883 | FO34: 73424.32205 | FP34: 70712.93645 | FQ34: 74183.51002 | FR34: 73749.68832 | FS34: 70062.2039 | FT34: 75159.60883 | FU34: 72122.85696 | FV34: 71821.83782 | FW34: 74911.71072 | FX34: 73477.44307 | FY34: 66540.72269 | FZ34: 55611.072 | GA34: 44530.91174 | GB34: 37932.83789 | GC34: 36631.3728 | GD34: 20363.0592 | GE34: 19256.3712 | GF34: 0 | GG34: 0 | GH34: 0 | GI34: 0 | GJ34: 0 | GK34: 0 | GL34: 0 | GM34: 0 | GN34: 0 | GO34: 0 | GP34: 0 | GQ34: 0 | GR34: 0 | GS34: 0 | GT34: =GT26*GT33 -> 0 | GU34: 0 | GV34: 0 | GW34: 0 | GX34: 0 | GY34: 0 | GZ34: 0 | HA34: 0 | HB34: 0 | HC34: 0 | HD34: 0 | HE34: 0 | HF34: 0 | HG34: 0 | HH34: 0 | HI34: 0 | HJ34: 0 | HK34: 0 | HL34: 0 | HM34: 0 | HN34: 0 | HO34: 0 | HP34: 0 | HQ34: 0 | HR34: 0 | HS34: 0 | HT34: 0 | HU34: 0 | HV34: 0 | HW34: 0 | HX34: 0 | HY34: 0 | HZ34: 0 | IA34: 0 | IB34: 0 | IC34: 0 | ID34: 0 | IE34: 0 | IF34: 0 | IG34: 0 | IH34: 0 | II34: 0 | IJ34: 0 | IK34: 0 | IL34: 0 | IM34: 0 | IN34: 0 | IO34: 0 | IP34: 0 | IQ34: 0 | IR34: 0 | IS34: 0 | IT34: 0 | IU34: 0 | IV34: 0 | IW34: 0 | IX34: 0 | IY34: 0 | IZ34: 0 | JA34: 0 | JB34: 0 | JC34: 0 | JD34: 0 | JE34: 0 | JF34: =JF26*JF33 -> 0 | JG34: 0 | JH34: 0 | JI34: 0 | JJ34: 0 | JK34: 0 | JL34: 0 | JM34: 0 | JN34: 0 | JO34: 0 | JP34: 0 | JQ34: 0 | JR34: 0 | JS34: 0 | JT34: 0 | JU34: 0 | JV34: 0 | JW34: 0 | JX34: 0 | JY34: 0 | JZ34: 0 | KA34: 0 | KB34: 0 | KC34: 0 | KD34: 0 | KE34: 0 | KF34: 0 | KG34: 0 | KH34: 0 | KI34: 0 | KJ34: 0 | KK34: 0 | KL34: 0 | KM34: 0 | KN34: 0 | KO34: 0 | KP34: 0 | KQ34: 0 | KR34: 0 | KS34: 0 | KT34: 0 | KU34: 0 | KV34: 0 | KW34: 0
D36: Remaining Life | E36: Periods | F36: =MAX(19:19) -> 112 | J36: =$F$36-J19 -> 112 | K36: =$F$36-K19 -> 112 | L36: =$F$36-L19 -> 112 | M36: =$F$36-M19 -> 112 | N36: =$F$36-N19 -> 112 | O36: =$F$36-O19 -> 112 | P36: =$F$36-P19 -> 112 | Q36: =$F$36-Q19 -> 112 | R36: =$F$36-R19 -> 112 | S36: =$F$36-S19 -> 112 | T36: =$F$36-T19 -> 112 | U36: =$F$36-U19 -> 112 | V36: =$F$36-V19 -> 112 | W36: =$F$36-W19 -> 112 | X36: =$F$36-X19 -> 112 | Y36: =$F$36-Y19 -> 112 | Z36: =$F$36-Z19 -> 112 | AA36: =$F$36-AA19 -> 112 | AB36: =$F$36-AB19 -> 112 | AC36: =$F$36-AC19 -> 112 | AD36: =$F$36-AD19 -> 112 | AE36: =$F$36-AE19 -> 112 | AF36: =$F$36-AF19 -> 112 | AG36: =$F$36-AG19 -> 112 | AH36: =$F$36-AH19 -> 112 | AI36: =$F$36-AI19 -> 112 | AJ36: =$F$36-AJ19 -> 112 | AK36: =$F$36-AK19 -> 112 | AL36: =$F$36-AL19 -> 112 | AM36: =$F$36-AM19 -> 112 | AN36: =$F$36-AN19 -> 112 | AO36: =$F$36-AO19 -> 112 | AP36: =$F$36-AP19 -> 112 | AQ36: =$F$36-AQ19 -> 112 | AR36: =$F$36-AR19 -> 112 | AS36: =$F$36-AS19 -> 112 | AT36: =$F$36-AT19 -> 112 | AU36: =$F$36-AU19 -> 112 | AV36: =$F$36-AV19 -> 112 | AW36: =$F$36-AW19 -> 112 | AX36: =$F$36-AX19 -> 112 | AY36: =$F$36-AY19 -> 112 | AZ36: =$F$36-AZ19 -> 112 | BA36: =$F$36-BA19 -> 112 | BB36: =$F$36-BB19 -> 112 | BC36: =$F$36-BC19 -> 112 | BD36: =$F$36-BD19 -> 112 | BE36: =$F$36-BE19 -> 112 | BF36: =$F$36-BF19 -> 112 | BG36: =$F$36-BG19 -> 112 | BH36: =$F$36-BH19 -> 112 | BI36: =$F$36-BI19 -> 112 | BJ36: =$F$36-BJ19 -> 112 | BK36: =$F$36-BK19 -> 112 | BL36: =$F$36-BL19 -> 112 | BM36: =$F$36-BM19 -> 112 | BN36: =$F$36-BN19 -> 112 | BO36: =$F$36-BO19 -> 112 | BP36: =$F$36-BP19 -> 112 | BQ36: =$F$36-BQ19 -> 112 | BR36: =$F$36-BR19 -> 112 | BS36: =$F$36-BS19 -> 112 | BT36: =$F$36-BT19 -> 112 | BU36: =$F$36-BU19 -> 112 | BV36: =$F$36-BV19 -> 112 | BW36: =$F$36-BW19 -> 112 | BX36: =$F$36-BX19 -> 111 | BY36: =$F$36-BY19 -> 110 | BZ36: =$F$36-BZ19 -> 109 | CA36: =$F$36-CA19 -> 108 | CB36: =$F$36-CB19 -> 107 | CC36: =$F$36-CC19 -> 106 | CD36: =$F$36-CD19 -> 105 | CE36: =$F$36-CE19 -> 104 | CF36: =$F$36-CF19 -> 103 | CG36: =$F$36-CG19 -> 102 | CH36: =$F$36-CH19 -> 101 | CI36: =$F$36-CI19 -> 100 | CJ36: =$F$36-CJ19 -> 99 | CK36: =$F$36-CK19 -> 98 | CL36: =$F$36-CL19 -> 97 | CM36: =$F$36-CM19 -> 96 | CN36: =$F$36-CN19 -> 95 | CO36: =$F$36-CO19 -> 94 | CP36: =$F$36-CP19 -> 93 | CQ36: =$F$36-CQ19 -> 92 | CR36: =$F$36-CR19 -> 91 | CS36: =$F$36-CS19 -> 90 | CT36: =$F$36-CT19 -> 89 | CU36: =$F$36-CU19 -> 88 | CV36: =$F$36-CV19 -> 87 | CW36: =$F$36-CW19 -> 86 | CX36: =$F$36-CX19 -> 85 | CY36: =$F$36-CY19 -> 84 | CZ36: =$F$36-CZ19 -> 83 | DA36: =$F$36-DA19 -> 82 | DB36: =$F$36-DB19 -> 81 | DC36: =$F$36-DC19 -> 80 | DD36: =$F$36-DD19 -> 79 | DE36: =$F$36-DE19 -> 78 | DF36: =$F$36-DF19 -> 77 | DG36: =$F$36-DG19 -> 76 | DH36: =$F$36-DH19 -> 75 | DI36: =$F$36-DI19 -> 74 | DJ36: =$F$36-DJ19 -> 73 | DK36: =$F$36-DK19 -> 72 | DL36: =$F$36-DL19 -> 71 | DM36: =$F$36-DM19 -> 70 | DN36: =$F$36-DN19 -> 69 | DO36: =$F$36-DO19 -> 68 | DP36: =$F$36-DP19 -> 67 | DQ36: =$F$36-DQ19 -> 66 | DR36: =$F$36-DR19 -> 65 | DS36: =$F$36-DS19 -> 64 | DT36: =$F$36-DT19 -> 63 | DU36: =$F$36-DU19 -> 62 | DV36: =$F$36-DV19 -> 61 | DW36: =$F$36-DW19 -> 60 | DX36: =$F$36-DX19 -> 59 | DY36: =$F$36-DY19 -> 58 | DZ36: =$F$36-DZ19 -> 57 | EA36: =$F$36-EA19 -> 56 | EB36: =$F$36-EB19 -> 55 | EC36: =$F$36-EC19 -> 54 | ED36: =$F$36-ED19 -> 53 | EE36: =$F$36-EE19 -> 52 | EF36: =$F$36-EF19 -> 51 | EG36: =$F$36-EG19 -> 50 | EH36: =$F$36-EH19 -> 49 | EI36: =$F$36-EI19 -> 48 | EJ36: =$F$36-EJ19 -> 47 | EK36: =$F$36-EK19 -> 46 | EL36: =$F$36-EL19 -> 45 | EM36: =$F$36-EM19 -> 44 | EN36: =$F$36-EN19 -> 43 | EO36: =$F$36-EO19 -> 42 | EP36: =$F$36-EP19 -> 41 | EQ36: =$F$36-EQ19 -> 40 | ER36: =$F$36-ER19 -> 39 | ES36: =$F$36-ES19 -> 38 | ET36: =$F$36-ET19 -> 37 | EU36: =$F$36-EU19 -> 36 | EV36: =$F$36-EV19 -> 35 | EW36: =$F$36-EW19 -> 34 | EX36: =$F$36-EX19 -> 33 | EY36: =$F$36-EY19 -> 32 | EZ36: =$F$36-EZ19 -> 31 | FA36: =$F$36-FA19 -> 30 | FB36: =$F$36-FB19 -> 29 | FC36: =$F$36-FC19 -> 28 | FD36: =$F$36-FD19 -> 27 | FE36: =$F$36-FE19 -> 26 | FF36: =$F$36-FF19 -> 25 | FG36: =$F$36-FG19 -> 24 | FH36: =$F$36-FH19 -> 23 | FI36: =$F$36-FI19 -> 22 | FJ36: =$F$36-FJ19 -> 21 | FK36: =$F$36-FK19 -> 20 | FL36: =$F$36-FL19 -> 19 | FM36: =$F$36-FM19 -> 18 | FN36: =$F$36-FN19 -> 17 | FO36: =$F$36-FO19 -> 16 | FP36: =$F$36-FP19 -> 15 | FQ36: =$F$36-FQ19 -> 14 | FR36: =$F$36-FR19 -> 13 | FS36: =$F$36-FS19 -> 12 | FT36: =$F$36-FT19 -> 11 | FU36: =$F$36-FU19 -> 10 | FV36: =$F$36-FV19 -> 9 | FW36: =$F$36-FW19 -> 8 | FX36: =$F$36-FX19 -> 7 | FY36: =$F$36-FY19 -> 6 | FZ36: =$F$36-FZ19 -> 5 | GA36: =$F$36-GA19 -> 4 | GB36: =$F$36-GB19 -> 3 | GC36: =$F$36-GC19 -> 2 | GD36: =$F$36-GD19 -> 1 | GE36: =$F$36-GE19 -> 0 | GF36: =$F$36-GF19 -> 0 | GG36: =$F$36-GG19 -> 0 | GH36: =$F$36-GH19 -> 0 | GI36: =$F$36-GI19 -> 0 | GJ36: =$F$36-GJ19 -> 0 | GK36: =$F$36-GK19 -> 0 | GL36: =$F$36-GL19 -> 0 | GM36: =$F$36-GM19 -> 0 | GN36: =$F$36-GN19 -> 0 | GO36: =$F$36-GO19 -> 0 | GP36: =$F$36-GP19 -> 0 | GQ36: =$F$36-GQ19 -> 0 | GR36: =$F$36-GR19 -> 0 | GS36: =$F$36-GS19 -> 0 | GT36: =$F$36-GT19 -> 0 | GU36: =$F$36-GU19 -> 0 | GV36: =$F$36-GV19 -> 0 | GW36: =$F$36-GW19 -> 0 | GX36: =$F$36-GX19 -> 0 | GY36: =$F$36-GY19 -> 0 | GZ36: =$F$36-GZ19 -> 0 | HA36: =$F$36-HA19 -> 0 | HB36: =$F$36-HB19 -> 0 | HC36: =$F$36-HC19 -> 0 | HD36: =$F$36-HD19 -> 0 | HE36: =$F$36-HE19 -> 0 | HF36: =$F$36-HF19 -> 0 | HG36: =$F$36-HG19 -> 0 | HH36: =$F$36-HH19 -> 0 | HI36: =$F$36-HI19 -> 0 | HJ36: =$F$36-HJ19 -> 0 | HK36: =$F$36-HK19 -> 0 | HL36: =$F$36-HL19 -> 0 | HM36: =$F$36-HM19 -> 0 | HN36: =$F$36-HN19 -> 0 | HO36: =$F$36-HO19 -> 0 | HP36: =$F$36-HP19 -> 0 | HQ36: =$F$36-HQ19 -> 0 | HR36: =$F$36-HR19 -> 0 | HS36: =$F$36-HS19 -> 0 | HT36: =$F$36-HT19 -> 0 | HU36: =$F$36-HU19 -> 0 | HV36: =$F$36-HV19 -> 0 | HW36: =$F$36-HW19 -> 0 | HX36: =$F$36-HX19 -> 0 | HY36: =$F$36-HY19 -> 0 | HZ36: =$F$36-HZ19 -> 0 | IA36: =$F$36-IA19 -> 0 | IB36: =$F$36-IB19 -> 0 | IC36: =$F$36-IC19 -> 0 | ID36: =$F$36-ID19 -> 0 | IE36: =$F$36-IE19 -> 0 | IF36: =$F$36-IF19 -> 0 | IG36: =$F$36-IG19 -> 0 | IH36: =$F$36-IH19 -> 0 | II36: =$F$36-II19 -> 0 | IJ36: =$F$36-IJ19 -> 0 | IK36: =$F$36-IK19 -> 0 | IL36: =$F$36-IL19 -> 0 | IM36: =$F$36-IM19 -> 0 | IN36: =$F$36-IN19 -> 0 | IO36: =$F$36-IO19 -> 0 | IP36: =$F$36-IP19 -> 0 | IQ36: =$F$36-IQ19 -> 0 | IR36: =$F$36-IR19 -> 0 | IS36: =$F$36-IS19 -> 0 | IT36: =$F$36-IT19 -> 0 | IU36: =$F$36-IU19 -> 0 | IV36: =$F$36-IV19 -> 0 | IW36: =$F$36-IW19 -> 0 | IX36: =$F$36-IX19 -> 0 | IY36: =$F$36-IY19 -> 0 | IZ36: =$F$36-IZ19 -> 0 | JA36: =$F$36-JA19 -> 0 | JB36: =$F$36-JB19 -> 0 | JC36: =$F$36-JC19 -> 0 | JD36: =$F$36-JD19 -> 0 | JE36: =$F$36-JE19 -> 0 | JF36: =$F$36-JF19 -> 0 | JG36: =$F$36-JG19 -> 0 | JH36: =$F$36-JH19 -> 0 | JI36: =$F$36-JI19 -> 0 | JJ36: =$F$36-JJ19 -> 0 | JK36: =$F$36-JK19 -> 0 | JL36: =$F$36-JL19 -> 0 | JM36: =$F$36-JM19 -> 0 | JN36: =$F$36-JN19 -> 0 | JO36: =$F$36-JO19 -> 0 | JP36: =$F$36-JP19 -> 0 | JQ36: =$F$36-JQ19 -> 0 | JR36: =$F$36-JR19 -> 0 | JS36: =$F$36-JS19 -> 0 | JT36: =$F$36-JT19 -> 0 | JU36: =$F$36-JU19 -> 0 | JV36: =$F$36-JV19 -> 0 | JW36: =$F$36-JW19 -> 0 | JX36: =$F$36-JX19 -> 0 | JY36: =$F$36-JY19 -> 0 | JZ36: =$F$36-JZ19 -> 0 | KA36: =$F$36-KA19 -> 0 | KB36: =$F$36-KB19 -> 0 | KC36: =$F$36-KC19 -> 0 | KD36: =$F$36-KD19 -> 0 | KE36: =$F$36-KE19 -> 0 | KF36: =$F$36-KF19 -> 0 | KG36: =$F$36-KG19 -> 0 | KH36: =$F$36-KH19 -> 0 | KI36: =$F$36-KI19 -> 0 | KJ36: =$F$36-KJ19 -> 0 | KK36: =$F$36-KK19 -> 0 | KL36: =$F$36-KL19 -> 0 | KM36: =$F$36-KM19 -> 0 | KN36: =$F$36-KN19 -> 0 | KO36: =$F$36-KO19 -> 0 | KP36: =$F$36-KP19 -> 0 | KQ36: =$F$36-KQ19 -> 0 | KR36: =$F$36-KR19 -> 0 | KS36: =$F$36-KS19 -> 0 | KT36: =$F$36-KT19 -> 0 | KU36: =$F$36-KU19 -> 0 | KV36: =$F$36-KV19 -> 0 | KW36: =$F$36-KW19 -> 0
D37: Total Remaining Required Stuff | E37: Tons | J37: =SUMIF(36:36,"<="&J36,34:34)*J8 -> 0 | K37: =SUMIF(36:36,"<="&K36,34:34)*K8 -> 0 | L37: =SUMIF(36:36,"<="&L36,34:34)*L8 -> 0 | M37: =SUMIF(36:36,"<="&M36,34:34)*M8 -> 0 | N37: =SUMIF(36:36,"<="&N36,34:34)*N8 -> 0 | O37: =SUMIF(36:36,"<="&O36,34:34)*O8 -> 0 | P37: =SUMIF(36:36,"<="&P36,34:34)*P8 -> 0 | Q37: =SUMIF(36:36,"<="&Q36,34:34)*Q8 -> 0 | R37: =SUMIF(36:36,"<="&R36,34:34)*R8 -> 0 | S37: =SUMIF(36:36,"<="&S36,34:34)*S8 -> 0 | T37: =SUMIF(36:36,"<="&T36,34:34)*T8 -> 0 | U37: =SUMIF(36:36,"<="&U36,34:34)*U8 -> 0 | V37: =SUMIF(36:36,"<="&V36,34:34)*V8 -> 0 | W37: =SUMIF(36:36,"<="&W36,34:34)*W8 -> 0 | X37: =SUMIF(36:36,"<="&X36,34:34)*X8 -> 0 | Y37: =SUMIF(36:36,"<="&Y36,34:34)*Y8 -> 0 | Z37: =SUMIF(36:36,"<="&Z36,34:34)*Z8 -> 0 | AA37: =SUMIF(36:36,"<="&AA36,34:34)*AA8 -> 0 | AB37: =SUMIF(36:36,"<="&AB36,34:34)*AB8 -> 0 | AC37: =SUMIF(36:36,"<="&AC36,34:34)*AC8 -> 0 | AD37: =SUMIF(36:36,"<="&AD36,34:34)*AD8 -> 0 | AE37: =SUMIF(36:36,"<="&AE36,34:34)*AE8 -> 0 | AF37: =SUMIF(36:36,"<="&AF36,34:34)*AF8 -> 0 | AG37: =SUMIF(36:36,"<="&AG36,34:34)*AG8 -> 0 | AH37: =SUMIF(36:36,"<="&AH36,34:34)*AH8 -> 0 | AI37: =SUMIF(36:36,"<="&AI36,34:34)*AI8 -> 0 | AJ37: =SUMIF(36:36,"<="&AJ36,34:34)*AJ8 -> 0 | AK37: =SUMIF(36:36,"<="&AK36,34:34)*AK8 -> 0 | AL37: =SUMIF(36:36,"<="&AL36,34:34)*AL8 -> 0 | AM37: =SUMIF(36:36,"<="&AM36,34:34)*AM8 -> 0 | AN37: =SUMIF(36:36,"<="&AN36,34:34)*AN8 -> 0 | AO37: =SUMIF(36:36,"<="&AO36,34:34)*AO8 -> 0 | AP37: =SUMIF(36:36,"<="&AP36,34:34)*AP8 -> 0 | AQ37: =SUMIF(36:36,"<="&AQ36,34:34)*AQ8 -> 0 | AR37: =SUMIF(36:36,"<="&AR36,34:34)*AR8 -> 0 | AS37: =SUMIF(36:36,"<="&AS36,34:34)*AS8 -> 0 | AT37: =SUMIF(36:36,"<="&AT36,34:34)*AT8 -> 0 | AU37: =SUMIF(36:36,"<="&AU36,34:34)*AU8 -> 0 | AV37: =SUMIF(36:36,"<="&AV36,34:34)*AV8 -> 0 | AW37: =SUMIF(36:36,"<="&AW36,34:34)*AW8 -> 0 | AX37: =SUMIF(36:36,"<="&AX36,34:34)*AX8 -> 0 | AY37: =SUMIF(36:36,"<="&AY36,34:34)*AY8 -> 0 | AZ37: =SUMIF(36:36,"<="&AZ36,34:34)*AZ8 -> 0 | BA37: =SUMIF(36:36,"<="&BA36,34:34)*BA8 -> 0 | BB37: =SUMIF(36:36,"<="&BB36,34:34)*BB8 -> 0 | BC37: =SUMIF(36:36,"<="&BC36,34:34)*BC8 -> 0 | BD37: =SUMIF(36:36,"<="&BD36,34:34)*BD8 -> 0 | BE37: =SUMIF(36:36,"<="&BE36,34:34)*BE8 -> 0 | BF37: =SUMIF(36:36,"<="&BF36,34:34)*BF8 -> 0 | BG37: =SUMIF(36:36,"<="&BG36,34:34)*BG8 -> 0 | BH37: =SUMIF(36:36,"<="&BH36,34:34)*BH8 -> 0 | BI37: =SUMIF(36:36,"<="&BI36,34:34)*BI8 -> 0 | BJ37: =SUMIF(36:36,"<="&BJ36,34:34)*BJ8 -> 0 | BK37: =SUMIF(36:36,"<="&BK36,34:34)*BK8 -> 0 | BL37: =SUMIF(36:36,"<="&BL36,34:34)*BL8 -> 0 | BM37: =SUMIF(36:36,"<="&BM36,34:34)*BM8 -> 0 | BN37: =SUMIF(36:36,"<="&BN36,34:34)*BN8 -> 0 | BO37: =SUMIF(36:36,"<="&BO36,34:34)*BO8 -> 0 | BP37: =SUMIF(36:36,"<="&BP36,34:34)*BP8 -> 0 | BQ37: =SUMIF(36:36,"<="&BQ36,34:34)*BQ8 -> 0 | BR37: =SUMIF(36:36,"<="&BR36,34:34)*BR8 -> 0 | BS37: =SUMIF(36:36,"<="&BS36,34:34)*BS8 -> 0 | BT37: =SUMIF(36:36,"<="&BT36,34:34)*BT8 -> 0 | BU37: =SUMIF(36:36,"<="&BU36,34:34)*BU8 -> 0 | BV37: =SUMIF(36:36,"<="&BV36,34:34)*BV8 -> 0 | BW37: =SUMIF(36:36,"<="&BW36,34:34)*BW8 -> 0 | BX37: =SUMIF(36:36,"<="&BX36,34:34)*BX8 -> 7923007.37 | BY37: =SUMIF(36:36,"<="&BY36,34:34)*BY8 -> 7848064.672 | BZ37: =SUMIF(36:36,"<="&BZ36,34:34)*BZ8 -> 7779303.933 | CA37: =SUMIF(36:36,"<="&CA36,34:34)*CA8 -> 7704361.235 | CB37: =SUMIF(36:36,"<="&CB36,34:34)*CB8 -> 7630720.002 | CC37: =SUMIF(36:36,"<="&CC36,34:34)*CC8 -> 7560657.798 | CD37: =SUMIF(36:36,"<="&CD36,34:34)*CD8 -> 7487016.565 | CE37: =SUMIF(36:36,"<="&CE36,34:34)*CE8 -> 7412073.867 | CF37: =SUMIF(36:36,"<="&CF36,34:34)*CF8 -> 7342879.307 | CG37: =SUMIF(36:36,"<="&CG36,34:34)*CG8 -> 7267936.609 | CH37: =SUMIF(36:36,"<="&CH36,34:34)*CH8 -> 7194295.376 | CI37: =SUMIF(36:36,"<="&CI36,34:34)*CI8 -> 7124233.172 | CJ37: =SUMIF(36:36,"<="&CJ36,34:34)*CJ8 -> 7050591.939 | CK37: =SUMIF(36:36,"<="&CK36,34:34)*CK8 -> 6975649.241 | CL37: =SUMIF(36:36,"<="&CL36,34:34)*CL8 -> 6906888.502 | CM37: =SUMIF(36:36,"<="&CM36,34:34)*CM8 -> 6831620.438 | CN37: =SUMIF(36:36,"<="&CN36,34:34)*CN8 -> 6757870.75 | CO37: =SUMIF(36:36,"<="&CO36,34:34)*CO8 -> 6687808.546 | CP37: =SUMIF(36:36,"<="&CP36,34:34)*CP8 -> 6613299.67 | CQ37: =SUMIF(36:36,"<="&CQ36,34:34)*CQ8 -> 6539224.615 | CR37: =SUMIF(36:36,"<="&CR36,34:34)*CR8 -> 6470463.876 | CS37: =SUMIF(36:36,"<="&CS36,34:34)*CS8 -> 6394328.168 | CT37: =SUMIF(36:36,"<="&CT36,34:34)*CT8 -> 6321879.945 | CU37: =SUMIF(36:36,"<="&CU36,34:34)*CU8 -> 6251817.741 | CV37: =SUMIF(36:36,"<="&CV36,34:34)*CV8 -> 6176007.4 | CW37: =SUMIF(36:36,"<="&CW36,34:34)*CW8 -> 6102799.989 | CX37: =SUMIF(36:36,"<="&CX36,34:34)*CX8 -> 6034039.25 | CY37: =SUMIF(36:36,"<="&CY36,34:34)*CY8 -> 5957035.899 | CZ37: =SUMIF(36:36,"<="&CZ36,34:34)*CZ8 -> 5885455.319 | DA37: =SUMIF(36:36,"<="&DA36,34:34)*DA8 -> 5815393.115 | DB37: =SUMIF(36:36,"<="&DB36,34:34)*DB8 -> 5739040.497 | DC37: =SUMIF(36:36,"<="&DC36,34:34)*DC8 -> 5666809.184 | DD37: =SUMIF(36:36,"<="&DD36,34:34)*DD8 -> 5597614.624 | DE37: =SUMIF(36:36,"<="&DE36,34:34)*DE8 -> 5519743.629 | DF37: =SUMIF(36:36,"<="&DF36,34:34)*DF8 -> 5449030.693 | DG37: =SUMIF(36:36,"<="&DG36,34:34)*DG8 -> 5378643.123 | DH37: =SUMIF(36:36,"<="&DH36,34:34)*DH8 -> 5301748.227 | DI37: =SUMIF(36:36,"<="&DI36,34:34)*DI8 -> 5230384.558 | DJ37: =SUMIF(36:36,"<="&DJ36,34:34)*DJ8 -> 5160647.72 | DK37: =SUMIF(36:36,"<="&DK36,34:34)*DK8 -> 5082776.726 | DL37: =SUMIF(36:36,"<="&DL36,34:34)*DL8 -> 5012606.067 | DM37: =SUMIF(36:36,"<="&DM36,34:34)*DM8 -> 4941350.853 | DN37: =SUMIF(36:36,"<="&DN36,34:34)*DN8 -> 4864455.958 | DO37: =SUMIF(36:36,"<="&DO36,34:34)*DO8 -> 4793959.932 | DP37: =SUMIF(36:36,"<="&DP36,34:34)*DP8 -> 4723355.451 | DQ37: =SUMIF(36:36,"<="&DQ36,34:34)*DQ8 -> 4645484.456 | DR37: =SUMIF(36:36,"<="&DR36,34:34)*DR8 -> 4576615.262 | DS37: =SUMIF(36:36,"<="&DS36,34:34)*DS8 -> 4504383.95 | DT37: =SUMIF(36:36,"<="&DT36,34:34)*DT8 -> 4427597.51 | DU37: =SUMIF(36:36,"<="&DU36,34:34)*DU8 -> 4357535.306 | DV37: =SUMIF(36:36,"<="&DV36,34:34)*DV8 -> 4286063.181 | DW37: =SUMIF(36:36,"<="&DW36,34:34)*DW8 -> 4208951.375 | DX37: =SUMIF(36:36,"<="&DX36,34:34)*DX8 -> 4140190.636 | DY37: =SUMIF(36:36,"<="&DY36,34:34)*DY8 -> 4067091.68 | DZ37: =SUMIF(36:36,"<="&DZ36,34:34)*DZ8 -> 3991606.705 | EA37: =SUMIF(36:36,"<="&EA36,34:34)*EA8 -> 3921544.501 | EB37: =SUMIF(36:36,"<="&EB36,34:34)*EB8 -> 3848770.912 | EC37: =SUMIF(36:36,"<="&EC36,34:34)*EC8 -> 3772526.749 | ED37: =SUMIF(36:36,"<="&ED36,34:34)*ED8 -> 3703766.01 | EE37: =SUMIF(36:36,"<="&EE36,34:34)*EE8 -> 3629799.411 | EF37: =SUMIF(36:36,"<="&EF36,34:34)*EF8 -> 3555182.079 | EG37: =SUMIF(36:36,"<="&EG36,34:34)*EG8 -> 3485119.875 | EH37: =SUMIF(36:36,"<="&EH36,34:34)*EH8 -> 3411804.008 | EI37: =SUMIF(36:36,"<="&EI36,34:34)*EI8 -> 3336535.944 | EJ37: =SUMIF(36:36,"<="&EJ36,34:34)*EJ8 -> 3267341.384 | EK37: =SUMIF(36:36,"<="&EK36,34:34)*EK8 -> 3192507.141 | EL37: =SUMIF(36:36,"<="&EL36,34:34)*EL8 -> 3118757.453 | EM37: =SUMIF(36:36,"<="&EM36,34:34)*EM8 -> 3048695.249 | EN37: =SUMIF(36:36,"<="&EN36,34:34)*EN8 -> 2975054.016 | EO37: =SUMIF(36:36,"<="&EO36,34:34)*EO8 -> 2900111.318 | EP37: =SUMIF(36:36,"<="&EP36,34:34)*EP8 -> 2831350.579 | EQ37: =SUMIF(36:36,"<="&EQ36,34:34)*EQ8 -> 2756407.881 | ER37: =SUMIF(36:36,"<="&ER36,34:34)*ER8 -> 2682332.827 | ES37: =SUMIF(36:36,"<="&ES36,34:34)*ES8 -> 2612270.623 | ET37: =SUMIF(36:36,"<="&ET36,34:34)*ET8 -> 2538629.39 | EU37: =SUMIF(36:36,"<="&EU36,34:34)*EU8 -> 2463686.692 | EV37: =SUMIF(36:36,"<="&EV36,34:34)*EV8 -> 2394925.953 | EW37: =SUMIF(36:36,"<="&EW36,34:34)*EW8 -> 2319983.255 | EX37: =SUMIF(36:36,"<="&EX36,34:34)*EX8 -> 2246342.022 | EY37: =SUMIF(36:36,"<="&EY36,34:34)*EY8 -> 2176279.818 | EZ37: =SUMIF(36:36,"<="&EZ36,34:34)*EZ8 -> 2102204.764 | FA37: =SUMIF(36:36,"<="&FA36,34:34)*FA8 -> 2027262.066 | FB37: =SUMIF(36:36,"<="&FB36,34:34)*FB8 -> 1958501.327 | FC37: =SUMIF(36:36,"<="&FC36,34:34)*FC8 -> 1883558.629 | FD37: =SUMIF(36:36,"<="&FD36,34:34)*FD8 -> 1809917.396 | FE37: =SUMIF(36:36,"<="&FE36,34:34)*FE8 -> 1739855.192 | FF37: =SUMIF(36:36,"<="&FF36,34:34)*FF8 -> 1666213.959 | FG37: =SUMIF(36:36,"<="&FG36,34:34)*FG8 -> 1591271.261 | FH37: =SUMIF(36:36,"<="&FH36,34:34)*FH8 -> 1522076.701 | FI37: =SUMIF(36:36,"<="&FI36,34:34)*FI8 -> 1447134.003 | FJ37: =SUMIF(36:36,"<="&FJ36,34:34)*FJ8 -> 1373492.77 | FK37: =SUMIF(36:36,"<="&FK36,34:34)*FK8 -> 1303430.566 | FL37: =SUMIF(36:36,"<="&FL36,34:34)*FL8 -> 1229463.967 | FM37: =SUMIF(36:36,"<="&FM36,34:34)*FM8 -> 1154846.635 | FN37: =SUMIF(36:36,"<="&FN36,34:34)*FN8 -> 1085652.074 | FO37: =SUMIF(36:36,"<="&FO36,34:34)*FO8 -> 1010492.466 | FP37: =SUMIF(36:36,"<="&FP36,34:34)*FP8 -> 937068.1436 | FQ37: =SUMIF(36:36,"<="&FQ36,34:34)*FQ8 -> 866355.2072 | FR37: =SUMIF(36:36,"<="&FR36,34:34)*FR8 -> 792171.6972 | FS37: =SUMIF(36:36,"<="&FS36,34:34)*FS8 -> 718422.0088 | FT37: =SUMIF(36:36,"<="&FT36,34:34)*FT8 -> 648359.8049 | FU37: =SUMIF(36:36,"<="&FU36,34:34)*FU8 -> 573200.1961 | FV37: =SUMIF(36:36,"<="&FV36,34:34)*FV8 -> 501077.3391 | FW37: =SUMIF(36:36,"<="&FW36,34:34)*FW8 -> 429255.5013 | FX37: =SUMIF(36:36,"<="&FX36,34:34)*FX8 -> 354343.7906 | FY37: =SUMIF(36:36,"<="&FY36,34:34)*FY8 -> 280866.3475 | FZ37: =SUMIF(36:36,"<="&FZ36,34:34)*FZ8 -> 214325.6248 | GA37: =SUMIF(36:36,"<="&GA36,34:34)*GA8 -> 158714.5528 | GB37: =SUMIF(36:36,"<="&GB36,34:34)*GB8 -> 114183.6411 | GC37: =SUMIF(36:36,"<="&GC36,34:34)*GC8 -> 76250.8032 | GD37: =SUMIF(36:36,"<="&GD36,34:34)*GD8 -> 39619.4304 | GE37: =SUMIF(36:36,"<="&GE36,34:34)*GE8 -> 19256.3712 | GF37: =SUMIF(36:36,"<="&GF36,34:34)*GF8 -> 0 | GG37: =SUMIF(36:36,"<="&GG36,34:34)*GG8 -> 0 | GH37: =SUMIF(36:36,"<="&GH36,34:34)*GH8 -> 0 | GI37: =SUMIF(36:36,"<="&GI36,34:34)*GI8 -> 0 | GJ37: =SUMIF(36:36,"<="&GJ36,34:34)*GJ8 -> 0 | GK37: =SUMIF(36:36,"<="&GK36,34:34)*GK8 -> 0 | GL37: =SUMIF(36:36,"<="&GL36,34:34)*GL8 -> 0 | GM37: =SUMIF(36:36,"<="&GM36,34:34)*GM8 -> 0 | GN37: =SUMIF(36:36,"<="&GN36,34:34)*GN8 -> 0 | GO37: =SUMIF(36:36,"<="&GO36,34:34)*GO8 -> 0 | GP37: =SUMIF(36:36,"<="&GP36,34:34)*GP8 -> 0 | GQ37: =SUMIF(36:36,"<="&GQ36,34:34)*GQ8 -> 0 | GR37: =SUMIF(36:36,"<="&GR36,34:34)*GR8 -> 0 | GS37: =SUMIF(36:36,"<="&GS36,34:34)*GS8 -> 0 | GT37: =SUMIF(36:36,"<="&GT36,34:34)*GT8 -> 0 | GU37: =SUMIF(36:36,"<="&GU36,34:34)*GU8 -> 0 | GV37: =SUMIF(36:36,"<="&GV36,34:34)*GV8 -> 0 | GW37: =SUMIF(36:36,"<="&GW36,34:34)*GW8 -> 0 | GX37: =SUMIF(36:36,"<="&GX36,34:34)*GX8 -> 0 | GY37: =SUMIF(36:36,"<="&GY36,34:34)*GY8 -> 0 | GZ37: =SUMIF(36:36,"<="&GZ36,34:34)*GZ8 -> 0 | HA37: =SUMIF(36:36,"<="&HA36,34:34)*HA8 -> 0 | HB37: =SUMIF(36:36,"<="&HB36,34:34)*HB8 -> 0 | HC37: =SUMIF(36:36,"<="&HC36,34:34)*HC8 -> 0 | HD37: =SUMIF(36:36,"<="&HD36,34:34)*HD8 -> 0 | HE37: =SUMIF(36:36,"<="&HE36,34:34)*HE8 -> 0 | HF37: =SUMIF(36:36,"<="&HF36,34:34)*HF8 -> 0 | HG37: =SUMIF(36:36,"<="&HG36,34:34)*HG8 -> 0 | HH37: =SUMIF(36:36,"<="&HH36,34:34)*HH8 -> 0 | HI37: =SUMIF(36:36,"<="&HI36,34:34)*HI8 -> 0 | HJ37: =SUMIF(36:36,"<="&HJ36,34:34)*HJ8 -> 0 | HK37: =SUMIF(36:36,"<="&HK36,34:34)*HK8 -> 0 | HL37: =SUMIF(36:36,"<="&HL36,34:34)*HL8 -> 0 | HM37: =SUMIF(36:36,"<="&HM36,34:34)*HM8 -> 0 | HN37: =SUMIF(36:36,"<="&HN36,34:34)*HN8 -> 0 | HO37: =SUMIF(36:36,"<="&HO36,34:34)*HO8 -> 0 | HP37: =SUMIF(36:36,"<="&HP36,34:34)*HP8 -> 0 | HQ37: =SUMIF(36:36,"<="&HQ36,34:34)*HQ8 -> 0 | HR37: =SUMIF(36:36,"<="&HR36,34:34)*HR8 -> 0 | HS37: =SUMIF(36:36,"<="&HS36,34:34)*HS8 -> 0 | HT37: =SUMIF(36:36,"<="&HT36,34:34)*HT8 -> 0 | HU37: =SUMIF(36:36,"<="&HU36,34:34)*HU8 -> 0 | HV37: =SUMIF(36:36,"<="&HV36,34:34)*HV8 -> 0 | HW37: =SUMIF(36:36,"<="&HW36,34:34)*HW8 -> 0 | HX37: =SUMIF(36:36,"<="&HX36,34:34)*HX8 -> 0 | HY37: =SUMIF(36:36,"<="&HY36,34:34)*HY8 -> 0 | HZ37: =SUMIF(36:36,"<="&HZ36,34:34)*HZ8 -> 0 | IA37: =SUMIF(36:36,"<="&IA36,34:34)*IA8 -> 0 | IB37: =SUMIF(36:36,"<="&IB36,34:34)*IB8 -> 0 | IC37: =SUMIF(36:36,"<="&IC36,34:34)*IC8 -> 0 | ID37: =SUMIF(36:36,"<="&ID36,34:34)*ID8 -> 0 | IE37: =SUMIF(36:36,"<="&IE36,34:34)*IE8 -> 0 | IF37: =SUMIF(36:36,"<="&IF36,34:34)*IF8 -> 0 | IG37: =SUMIF(36:36,"<="&IG36,34:34)*IG8 -> 0 | IH37: =SUMIF(36:36,"<="&IH36,34:34)*IH8 -> 0 | II37: =SUMIF(36:36,"<="&II36,34:34)*II8 -> 0 | IJ37: =SUMIF(36:36,"<="&IJ36,34:34)*IJ8 -> 0 | IK37: =SUMIF(36:36,"<="&IK36,34:34)*IK8 -> 0 | IL37: =SUMIF(36:36,"<="&IL36,34:34)*IL8 -> 0 | IM37: =SUMIF(36:36,"<="&IM36,34:34)*IM8 -> 0 | IN37: =SUMIF(36:36,"<="&IN36,34:34)*IN8 -> 0 | IO37: =SUMIF(36:36,"<="&IO36,34:34)*IO8 -> 0 | IP37: =SUMIF(36:36,"<="&IP36,34:34)*IP8 -> 0 | IQ37: =SUMIF(36:36,"<="&IQ36,34:34)*IQ8 -> 0 | IR37: =SUMIF(36:36,"<="&IR36,34:34)*IR8 -> 0 | IS37: =SUMIF(36:36,"<="&IS36,34:34)*IS8 -> 0 | IT37: =SUMIF(36:36,"<="&IT36,34:34)*IT8 -> 0 | IU37: =SUMIF(36:36,"<="&IU36,34:34)*IU8 -> 0 | IV37: =SUMIF(36:36,"<="&IV36,34:34)*IV8 -> 0 | IW37: =SUMIF(36:36,"<="&IW36,34:34)*IW8 -> 0 | IX37: =SUMIF(36:36,"<="&IX36,34:34)*IX8 -> 0 | IY37: =SUMIF(36:36,"<="&IY36,34:34)*IY8 -> 0 | IZ37: =SUMIF(36:36,"<="&IZ36,34:34)*IZ8 -> 0 | JA37: =SUMIF(36:36,"<="&JA36,34:34)*JA8 -> 0 | JB37: =SUMIF(36:36,"<="&JB36,34:34)*JB8 -> 0 | JC37: =SUMIF(36:36,"<="&JC36,34:34)*JC8 -> 0 | JD37: =SUMIF(36:36,"<="&JD36,34:34)*JD8 -> 0 | JE37: =SUMIF(36:36,"<="&JE36,34:34)*JE8 -> 0 | JF37: =SUMIF(36:36,"<="&JF36,34:34)*JF8 -> 0 | JG37: =SUMIF(36:36,"<="&JG36,34:34)*JG8 -> 0 | JH37: =SUMIF(36:36,"<="&JH36,34:34)*JH8 -> 0 | JI37: =SUMIF(36:36,"<="&JI36,34:34)*JI8 -> 0 | JJ37: =SUMIF(36:36,"<="&JJ36,34:34)*JJ8 -> 0 | JK37: =SUMIF(36:36,"<="&JK36,34:34)*JK8 -> 0 | JL37: =SUMIF(36:36,"<="&JL36,34:34)*JL8 -> 0 | JM37: =SUMIF(36:36,"<="&JM36,34:34)*JM8 -> 0 | JN37: =SUMIF(36:36,"<="&JN36,34:34)*JN8 -> 0 | JO37: =SUMIF(36:36,"<="&JO36,34:34)*JO8 -> 0 | JP37: =SUMIF(36:36,"<="&JP36,34:34)*JP8 -> 0 | JQ37: =SUMIF(36:36,"<="&JQ36,34:34)*JQ8 -> 0 | JR37: =SUMIF(36:36,"<="&JR36,34:34)*JR8 -> 0 | JS37: =SUMIF(36:36,"<="&JS36,34:34)*JS8 -> 0 | JT37: =SUMIF(36:36,"<="&JT36,34:34)*JT8 -> 0 | JU37: =SUMIF(36:36,"<="&JU36,34:34)*JU8 -> 0 | JV37: =SUMIF(36:36,"<="&JV36,34:34)*JV8 -> 0 | JW37: =SUMIF(36:36,"<="&JW36,34:34)*JW8 -> 0 | JX37: =SUMIF(36:36,"<="&JX36,34:34)*JX8 -> 0 | JY37: =SUMIF(36:36,"<="&JY36,34:34)*JY8 -> 0 | JZ37: =SUMIF(36:36,"<="&JZ36,34:34)*JZ8 -> 0 | KA37: =SUMIF(36:36,"<="&KA36,34:34)*KA8 -> 0 | KB37: =SUMIF(36:36,"<="&KB36,34:34)*KB8 -> 0 | KC37: =SUMIF(36:36,"<="&KC36,34:34)*KC8 -> 0 | KD37: =SUMIF(36:36,"<="&KD36,34:34)*KD8 -> 0 | KE37: =SUMIF(36:36,"<="&KE36,34:34)*KE8 -> 0 | KF37: =SUMIF(36:36,"<="&KF36,34:34)*KF8 -> 0 | KG37: =SUMIF(36:36,"<="&KG36,34:34)*KG8 -> 0 | KH37: =SUMIF(36:36,"<="&KH36,34:34)*KH8 -> 0 | KI37: =SUMIF(36:36,"<="&KI36,34:34)*KI8 -> 0 | KJ37: =SUMIF(36:36,"<="&KJ36,34:34)*KJ8 -> 0 | KK37: =SUMIF(36:36,"<="&KK36,34:34)*KK8 -> 0 | KL37: =SUMIF(36:36,"<="&KL36,34:34)*KL8 -> 0 | KM37: =SUMIF(36:36,"<="&KM36,34:34)*KM8 -> 0 | KN37: =SUMIF(36:36,"<="&KN36,34:34)*KN8 -> 0 | KO37: =SUMIF(36:36,"<="&KO36,34:34)*KO8 -> 0 | KP37: =SUMIF(36:36,"<="&KP36,34:34)*KP8 -> 0 | KQ37: =SUMIF(36:36,"<="&KQ36,34:34)*KQ8 -> 0 | KR37: =SUMIF(36:36,"<="&KR36,34:34)*KR8 -> 0 | KS37: =SUMIF(36:36,"<="&KS36,34:34)*KS8 -> 0 | KT37: =SUMIF(36:36,"<="&KT36,34:34)*KT8 -> 0 | KU37: =SUMIF(36:36,"<="&KU36,34:34)*KU8 -> 0 | KV37: =SUMIF(36:36,"<="&KV36,34:34)*KV8 -> 0 | KW37: =SUMIF(36:36,"<="&KW36,34:34)*KW8 -> 0
D39: Total Potential Production | E39: Tons | H39: =SUM(J39:KW39) -> 10535210.96 | J39: =J17 -> 0 | K39: =K17 -> 0 | L39: =L17 -> 0 | M39: =M17 -> 0 | N39: =N17 -> 0 | O39: =O17 -> 0 | P39: =P17 -> 0 | Q39: =Q17 -> 0 | R39: =R17 -> 0 | S39: =S17 -> 0 | T39: =T17 -> 0 | U39: =U17 -> 0 | V39: =V17 -> 0 | W39: =W17 -> 0 | X39: =X17 -> 0 | Y39: =Y17 -> 0 | Z39: =Z17 -> 0 | AA39: =AA17 -> 0 | AB39: =AB17 -> 0 | AC39: =AC17 -> 0 | AD39: =AD17 -> 0 | AE39: =AE17 -> 0 | AF39: =AF17 -> 0 | AG39: =AG17 -> 0 | AH39: =AH17 -> 0 | AI39: =AI17 -> 0 | AJ39: =AJ17 -> 0 | AK39: =AK17 -> 0 | AL39: =AL17 -> 0 | AM39: =AM17 -> 0 | AN39: =AN17 -> 0 | AO39: =AO17 -> 0 | AP39: =AP17 -> 0 | AQ39: =AQ17 -> 0 | AR39: =AR17 -> 0 | AS39: =AS17 -> 0 | AT39: =AT17 -> 0 | AU39: =AU17 -> 0 | AV39: =AV17 -> 0 | AW39: =AW17 -> 0 | AX39: =AX17 -> 0 | AY39: =AY17 -> 0 | AZ39: =AZ17 -> 0 | BA39: =BA17 -> 0 | BB39: =BB17 -> 0 | BC39: =BC17 -> 0 | BD39: =BD17 -> 0 | BE39: =BE17 -> 0 | BF39: =BF17 -> 0 | BG39: =BG17 -> 0 | BH39: =BH17 -> 0 | BI39: =BI17 -> 0 | BJ39: =BJ17 -> 0 | BK39: =BK17 -> 0 | BL39: =BL17 -> 0 | BM39: =BM17 -> 0 | BN39: =BN17 -> 0 | BO39: =BO17 -> 0 | BP39: =BP17 -> 0 | BQ39: =BQ17 -> 0 | BR39: =BR17 -> 0 | BS39: =BS17 -> 0 | BT39: =BT17 -> 0 | BU39: =BU17 -> 0 | BV39: =BV17 -> 0 | BW39: =BW17 -> 0 | BX39: =BX17 -> 94772.60274 | BY39: =BY17 -> 93227.39726 | BZ39: =BZ17 -> 94772.60274 | CA39: =CA17 -> 93227.39726 | CB39: =CB17 -> 94772.60274 | CC39: =CC17 -> 93227.39726 | CD39: =CD17 -> 94772.60274 | CE39: =CE17 -> 93742.46575 | CF39: =CF17 -> 94772.60274 | CG39: =CG17 -> 93227.39726 | CH39: =CH17 -> 94772.60274 | CI39: =CI17 -> 93227.39726 | CJ39: =CJ17 -> 94772.60274 | CK39: =CK17 -> 93227.39726 | CL39: =CL17 -> 94772.60274 | CM39: =CM17 -> 93742.46575 | CN39: =CN17 -> 94772.60274 | CO39: =CO17 -> 93227.39726 | CP39: =CP17 -> 94772.60274 | CQ39: =CQ17 -> 93227.39726 | CR39: =CR17 -> 94772.60274 | CS39: =CS17 -> 93227.39726 | CT39: =CT17 -> 94772.60274 | CU39: =CU17 -> 93742.46575 | CV39: =CV17 -> 94772.60274 | CW39: =CW17 -> 93227.39726 | CX39: =CX17 -> 94772.60274 | CY39: =CY17 -> 93227.39726 | CZ39: =CZ17 -> 94772.60274 | DA39: =DA17 -> 93227.39726 | DB39: =DB17 -> 94772.60274 | DC39: =DC17 -> 93742.46575 | DD39: =DD17 -> 94772.60274 | DE39: =DE17 -> 93227.39726 | DF39: =DF17 -> 94772.60274 | DG39: =DG17 -> 93227.39726 | DH39: =DH17 -> 94772.60274 | DI39: =DI17 -> 93227.39726 | DJ39: =DJ17 -> 94772.60274 | DK39: =DK17 -> 93742.46575 | DL39: =DL17 -> 94772.60274 | DM39: =DM17 -> 93227.39726 | DN39: =DN17 -> 94772.60274 | DO39: =DO17 -> 93227.39726 | DP39: =DP17 -> 94772.60274 | DQ39: =DQ17 -> 93227.39726 | DR39: =DR17 -> 94772.60274 | DS39: =DS17 -> 93742.46575 | DT39: =DT17 -> 94772.60274 | DU39: =DU17 -> 93227.39726 | DV39: =DV17 -> 94772.60274 | DW39: =DW17 -> 93227.39726 | DX39: =DX17 -> 94772.60274 | DY39: =DY17 -> 93227.39726 | DZ39: =DZ17 -> 94772.60274 | EA39: =EA17 -> 93742.46575 | EB39: =EB17 -> 94772.60274 | EC39: =EC17 -> 93227.39726 | ED39: =ED17 -> 94772.60274 | EE39: =EE17 -> 93227.39726 | EF39: =EF17 -> 94772.60274 | EG39: =EG17 -> 93227.39726 | EH39: =EH17 -> 94772.60274 | EI39: =EI17 -> 93742.46575 | EJ39: =EJ17 -> 94772.60274 | EK39: =EK17 -> 93227.39726 | EL39: =EL17 -> 94772.60274 | EM39: =EM17 -> 93227.39726 | EN39: =EN17 -> 94772.60274 | EO39: =EO17 -> 93227.39726 | EP39: =EP17 -> 94772.60274 | EQ39: =EQ17 -> 93742.46575 | ER39: =ER17 -> 94772.60274 | ES39: =ES17 -> 93227.39726 | ET39: =ET17 -> 94772.60274 | EU39: =EU17 -> 93227.39726 | EV39: =EV17 -> 94772.60274 | EW39: =EW17 -> 93227.39726 | EX39: =EX17 -> 94772.60274 | EY39: =EY17 -> 93742.46575 | EZ39: =EZ17 -> 94772.60274 | FA39: =FA17 -> 93227.39726 | FB39: =FB17 -> 94772.60274 | FC39: =FC17 -> 93227.39726 | FD39: =FD17 -> 94772.60274 | FE39: =FE17 -> 93227.39726 | FF39: =FF17 -> 94772.60274 | FG39: =FG17 -> 93742.46575 | FH39: =FH17 -> 94772.60274 | FI39: =FI17 -> 93227.39726 | FJ39: =FJ17 -> 94772.60274 | FK39: =FK17 -> 93227.39726 | FL39: =FL17 -> 94772.60274 | FM39: =FM17 -> 93227.39726 | FN39: =FN17 -> 94772.60274 | FO39: =FO17 -> 93742.46575 | FP39: =FP17 -> 94772.60274 | FQ39: =FQ17 -> 93227.39726 | FR39: =FR17 -> 94772.60274 | FS39: =FS17 -> 93227.39726 | FT39: =FT17 -> 94772.60274 | FU39: =FU17 -> 93227.39726 | FV39: =FV17 -> 94772.60274 | FW39: =FW17 -> 93742.46575 | FX39: =FX17 -> 94772.60274 | FY39: =FY17 -> 93227.39726 | FZ39: =FZ17 -> 94772.60274 | GA39: =GA17 -> 93227.39726 | GB39: =GB17 -> 94772.60274 | GC39: =GC17 -> 93227.39726 | GD39: =GD17 -> 94772.60274 | GE39: =GE17 -> 93742.46575 | GF39: =GF17 -> 0 | GG39: =GG17 -> 0 | GH39: =GH17 -> 0 | GI39: =GI17 -> 0 | GJ39: =GJ17 -> 0 | GK39: =GK17 -> 0 | GL39: =GL17 -> 0 | GM39: =GM17 -> 0 | GN39: =GN17 -> 0 | GO39: =GO17 -> 0 | GP39: =GP17 -> 0 | GQ39: =GQ17 -> 0 | GR39: =GR17 -> 0 | GS39: =GS17 -> 0 | GT39: =GT17 -> 0 | GU39: =GU17 -> 0 | GV39: =GV17 -> 0 | GW39: =GW17 -> 0 | GX39: =GX17 -> 0 | GY39: =GY17 -> 0 | GZ39: =GZ17 -> 0 | HA39: =HA17 -> 0 | HB39: =HB17 -> 0 | HC39: =HC17 -> 0 | HD39: =HD17 -> 0 | HE39: =HE17 -> 0 | HF39: =HF17 -> 0 | HG39: =HG17 -> 0 | HH39: =HH17 -> 0 | HI39: =HI17 -> 0 | HJ39: =HJ17 -> 0 | HK39: =HK17 -> 0 | HL39: =HL17 -> 0 | HM39: =HM17 -> 0 | HN39: =HN17 -> 0 | HO39: =HO17 -> 0 | HP39: =HP17 -> 0 | HQ39: =HQ17 -> 0 | HR39: =HR17 -> 0 | HS39: =HS17 -> 0 | HT39: =HT17 -> 0 | HU39: =HU17 -> 0 | HV39: =HV17 -> 0 | HW39: =HW17 -> 0 | HX39: =HX17 -> 0 | HY39: =HY17 -> 0 | HZ39: =HZ17 -> 0 | IA39: =IA17 -> 0 | IB39: =IB17 -> 0 | IC39: =IC17 -> 0 | ID39: =ID17 -> 0 | IE39: =IE17 -> 0 | IF39: =IF17 -> 0 | IG39: =IG17 -> 0 | IH39: =IH17 -> 0 | II39: =II17 -> 0 | IJ39: =IJ17 -> 0 | IK39: =IK17 -> 0 | IL39: =IL17 -> 0 | IM39: =IM17 -> 0 | IN39: =IN17 -> 0 | IO39: =IO17 -> 0 | IP39: =IP17 -> 0 | IQ39: =IQ17 -> 0 | IR39: =IR17 -> 0 | IS39: =IS17 -> 0 | IT39: =IT17 -> 0 | IU39: =IU17 -> 0 | IV39: =IV17 -> 0 | IW39: =IW17 -> 0 | IX39: =IX17 -> 0 | IY39: =IY17 -> 0 | IZ39: =IZ17 -> 0 | JA39: =JA17 -> 0 | JB39: =JB17 -> 0 | JC39: =JC17 -> 0 | JD39: =JD17 -> 0 | JE39: =JE17 -> 0 | JF39: =JF17 -> 0 | JG39: =JG17 -> 0 | JH39: =JH17 -> 0 | JI39: =JI17 -> 0 | JJ39: =JJ17 -> 0 | JK39: =JK17 -> 0 | JL39: =JL17 -> 0 | JM39: =JM17 -> 0 | JN39: =JN17 -> 0 | JO39: =JO17 -> 0 | JP39: =JP17 -> 0 | JQ39: =JQ17 -> 0 | JR39: =JR17 -> 0 | JS39: =JS17 -> 0 | JT39: =JT17 -> 0 | JU39: =JU17 -> 0 | JV39: =JV17 -> 0 | JW39: =JW17 -> 0 | JX39: =JX17 -> 0 | JY39: =JY17 -> 0 | JZ39: =JZ17 -> 0 | KA39: =KA17 -> 0 | KB39: =KB17 -> 0 | KC39: =KC17 -> 0 | KD39: =KD17 -> 0 | KE39: =KE17 -> 0 | KF39: =KF17 -> 0 | KG39: =KG17 -> 0 | KH39: =KH17 -> 0 | KI39: =KI17 -> 0 | KJ39: =KJ17 -> 0 | KK39: =KK17 -> 0 | KL39: =KL17 -> 0 | KM39: =KM17 -> 0 | KN39: =KN17 -> 0 | KO39: =KO17 -> 0 | KP39: =KP17 -> 0 | KQ39: =KQ17 -> 0 | KR39: =KR17 -> 0 | KS39: =KS17 -> 0 | KT39: =KT17 -> 0 | KU39: =KU17 -> 0 | KV39: =KV17 -> 0 | KW39: =KW17 -> 0
D40: Add: Storage | E40: Tons | J40: =J60 -> 0 | K40: =K60 -> 0 | L40: 0 | M40: 0 | N40: 0 | O40: 0 | P40: 0 | Q40: 0 | R40: 0 | S40: 0 | T40: 0 | U40: 0 | V40: 0 | W40: 0 | X40: 0 | Y40: 0 | Z40: 0 | AA40: 0 | AB40: 0 | AC40: 0 | AD40: 0 | AE40: 0 | AF40: 0 | AG40: 0 | AH40: 0 | AI40: 0 | AJ40: 0 | AK40: 0 | AL40: 0 | AM40: 0 | AN40: 0 | AO40: 0 | AP40: 0 | AQ40: 0 | AR40: 0 | AS40: 0 | AT40: 0 | AU40: 0 | AV40: 0 | AW40: 0 | AX40: 0 | AY40: 0 | AZ40: 0 | BA40: 0 | BB40: 0 | BC40: 0 | BD40: 0 | BE40: 0 | BF40: 0 | BG40: 0 | BH40: 0 | BI40: 0 | BJ40: 0 | BK40: 0 | BL40: 0 | BM40: 0 | BN40: 0 | BO40: 0 | BP40: 0 | BQ40: 0 | BR40: 0 | BS40: 0 | BT40: 0 | BU40: 0 | BV40: 0 | BW40: =BW60 -> 0 | BX40: 0 | BY40: 19829.90476 | BZ40: 44296.5632 | CA40: 64126.46796 | CB40: 83712.63232 | CC40: 108423.0312 | CD40: 128009.1955 | CE40: 147839.1003 | CF40: 172387.0055 | CG40: 192216.9103 | CH40: 211803.0746 | CI40: 236513.4735 | CJ40: 256099.6378 | CK40: 275929.5426 | CL40: 300396.201 | CM40: 319900.7395 | CN40: 339893.517 | CO40: 364603.9158 | CP40: 383322.4368 | CQ40: 404019.9849 | CR40: 428486.6434 | CS40: 447123.5384 | CT40: 467902.7125 | CU40: 492613.1113 | CV40: 510545.2357 | CW40: 532110.4272 | CX40: 556577.0857 | CY40: 574346.3374 | CZ40: 595993.1548 | DA40: 620703.5536 | DB40: 637578.3324 | DC40: 660119.6227 | DD40: 684667.528 | DE40: 701569.1363 | DF40: 724083.5971 | DG40: 748468.6297 | DH40: 764801.1313 | DI40: 788210.0651 | DJ40: 811700.6247 | DK40: 828602.233 | DL40: 852174.0394 | DM40: 875691.4286 | DN40: 892023.9302 | DO40: 916300.5074 | DP40: 938923.4236 | DQ40: 955825.0319 | DR40: 980183.2349 | DS40: 1002724.525 | DT40: 1019680.551 | DU40: 1044390.95 | DV40: 1066146.223 | DW40: 1083807.019 | DX40: 1108273.677 | DY40: 1129947.324 | DZ40: 1147689.746 | EA40: 1172400.145 | EB40: 1193369.021 | EC40: 1211897.461 | ED40: 1236364.12 | EE40: 1257170.123 | EF40: 1275780.189 | EG40: 1300490.588 | EH40: 1320402.118 | EI40: =EI60 -> 1339906.657 | EJ40: 1364454.562 | EK40: 1384392.922 | EL40: 1403870.631 | EM40: 1428581.03 | EN40: 1448167.194 | EO40: 1467997.099 | EP40: 1492463.757 | EQ40: 1512293.662 | ER40: 1531961.073 | ES40: 1556671.472 | ET40: 1576257.637 | EU40: 1596087.541 | EV40: 1620554.2 | EW40: 1640384.104 | EX40: 1659970.269 | EY40: 1684680.668 | EZ40: 1704348.079 | FA40: 1724177.984 | FB40: 1748644.642 | FC40: 1768474.547 | FD40: 1788060.711 | FE40: 1739855.192 | FF40: 1666213.959 | FG40: 1591271.261 | FH40: 1522076.701 | FI40: 1447134.003 | FJ40: 1373492.77 | FK40: 1303430.566 | FL40: 1229463.967 | FM40: 1154846.635 | FN40: 1085652.074 | FO40: 1010492.466 | FP40: 937068.1436 | FQ40: 866355.2072 | FR40: 792171.6972 | FS40: 718422.0088 | FT40: 648359.8049 | FU40: 573200.1961 | FV40: 501077.3391 | FW40: 429255.5013 | FX40: 354343.7906 | FY40: 280866.3475 | FZ40: 214325.6248 | GA40: 158714.5528 | GB40: 114183.6411 | GC40: 76250.8032 | GD40: 39619.4304 | GE40: 19256.3712 | GF40: 0 | GG40: 0 | GH40: 0 | GI40: 0 | GJ40: 0 | GK40: 0 | GL40: 0 | GM40: 0 | GN40: 0 | GO40: 0 | GP40: 0 | GQ40: 0 | GR40: 0 | GS40: 0 | GT40: 0 | GU40: =GU60 -> 0 | GV40: 0 | GW40: 0 | GX40: 0 | GY40: 0 | GZ40: 0 | HA40: 0 | HB40: 0 | HC40: 0 | HD40: 0 | HE40: 0 | HF40: 0 | HG40: 0 | HH40: 0 | HI40: 0 | HJ40: 0 | HK40: 0 | HL40: 0 | HM40: 0 | HN40: 0 | HO40: 0 | HP40: 0 | HQ40: 0 | HR40: 0 | HS40: 0 | HT40: 0 | HU40: 0 | HV40: 0 | HW40: 0 | HX40: 0 | HY40: 0 | HZ40: 0 | IA40: 0 | IB40: 0 | IC40: 0 | ID40: 0 | IE40: 0 | IF40: 0 | IG40: 0 | IH40: 0 | II40: 0 | IJ40: 0 | IK40: 0 | IL40: 0 | IM40: 0 | IN40: 0 | IO40: 0 | IP40: 0 | IQ40: 0 | IR40: 0 | IS40: 0 | IT40: 0 | IU40: 0 | IV40: 0 | IW40: 0 | IX40: 0 | IY40: 0 | IZ40: 0 | JA40: 0 | JB40: 0 | JC40: 0 | JD40: 0 | JE40: 0 | JF40: 0 | JG40: =JG60 -> 0 | JH40: 0 | JI40: 0 | JJ40: 0 | JK40: 0 | JL40: 0 | JM40: 0 | JN40: 0 | JO40: 0 | JP40: 0 | JQ40: 0 | JR40: 0 | JS40: 0 | JT40: 0 | JU40: 0 | JV40: 0 | JW40: 0 | JX40: 0 | JY40: 0 | JZ40: 0 | KA40: 0 | KB40: 0 | KC40: 0 | KD40: 0 | KE40: 0 | KF40: 0 | KG40: 0 | KH40: 0 | KI40: 0 | KJ40: 0 | KK40: 0 | KL40: 0 | KM40: 0 | KN40: 0 | KO40: 0 | KP40: 0 | KQ40: 0 | KR40: 0 | KS40: 0 | KT40: 0 | KU40: 0 | KV40: 0 | KW40: 0
D41: Total Available | E41: Tons | J41: =J39+J40 -> 0 | K41: =K39+K40 -> 0 | L41: 0 | M41: 0 | N41: 0 | O41: 0 | P41: 0 | Q41: 0 | R41: 0 | S41: 0 | T41: 0 | U41: 0 | V41: 0 | W41: 0 | X41: 0 | Y41: 0 | Z41: 0 | AA41: 0 | AB41: 0 | AC41: 0 | AD41: 0 | AE41: 0 | AF41: 0 | AG41: 0 | AH41: 0 | AI41: 0 | AJ41: 0 | AK41: 0 | AL41: 0 | AM41: 0 | AN41: 0 | AO41: 0 | AP41: 0 | AQ41: 0 | AR41: 0 | AS41: 0 | AT41: 0 | AU41: 0 | AV41: 0 | AW41: 0 | AX41: 0 | AY41: 0 | AZ41: 0 | BA41: 0 | BB41: 0 | BC41: 0 | BD41: 0 | BE41: 0 | BF41: 0 | BG41: 0 | BH41: 0 | BI41: 0 | BJ41: 0 | BK41: 0 | BL41: 0 | BM41: 0 | BN41: 0 | BO41: 0 | BP41: 0 | BQ41: 0 | BR41: 0 | BS41: 0 | BT41: 0 | BU41: 0 | BV41: 0 | BW41: =BW39+BW40 -> 0 | BX41: 94772.60274 | BY41: 113057.302 | BZ41: 139069.1659 | CA41: 157353.8652 | CB41: 178485.2351 | CC41: 201650.4284 | CD41: 222781.7983 | CE41: 241581.566 | CF41: 267159.6083 | CG41: 285444.3075 | CH41: 306575.6774 | CI41: 329740.8707 | CJ41: 350872.2406 | CK41: 369156.9399 | CL41: 395168.8038 | CM41: 413643.2053 | CN41: 434666.1197 | CO41: 457831.3131 | CP41: 478095.0395 | CQ41: 497247.3822 | CR41: 523259.2461 | CS41: 540350.9357 | CT41: 562675.3152 | CU41: 586355.5771 | CV41: 605317.8384 | CW41: 625337.8245 | CX41: 651349.6884 | CY41: 667573.7346 | CZ41: 690765.7575 | DA41: 713930.9509 | DB41: 732350.9351 | DC41: 753862.0885 | DD41: 779440.1307 | DE41: 794796.5336 | DF41: 818856.1998 | DG41: 841696.0269 | DH41: 859573.7341 | DI41: 881437.4623 | DJ41: 906473.2274 | DK41: 922344.6988 | DL41: 946946.6422 | DM41: 968918.8259 | DN41: 986796.533 | DO41: 1009527.905 | DP41: 1033696.026 | DQ41: 1049052.429 | DR41: 1074955.838 | DS41: 1096466.991 | DT41: 1114453.154 | DU41: 1137618.347 | DV41: 1160918.825 | DW41: 1177034.416 | DX41: 1203046.28 | DY41: 1223174.721 | DZ41: 1242462.349 | EA41: 1266142.611 | EB41: 1288141.624 | EC41: 1305124.858 | ED41: 1331136.722 | EE41: 1350397.52 | EF41: 1370552.791 | EG41: 1393717.985 | EH41: 1415174.721 | EI41: =EI39+EI40 -> 1433649.122 | EJ41: 1459227.165 | EK41: 1477620.319 | EL41: 1498643.234 | EM41: 1521808.427 | EN41: 1542939.797 | EO41: 1561224.496 | EP41: 1587236.36 | EQ41: 1606036.128 | ER41: 1626733.676 | ES41: 1649898.869 | ET41: 1671030.239 | EU41: 1689314.939 | EV41: 1715326.802 | EW41: 1733611.502 | EX41: 1754742.872 | EY41: 1778423.133 | EZ41: 1799120.682 | FA41: 1817405.381 | FB41: 1843417.245 | FC41: 1861701.944 | FD41: 1882833.314 | FE41: 1833082.589 | FF41: 1760986.562 | FG41: 1685013.727 | FH41: 1616849.303 | FI41: 1540361.4 | FJ41: 1468265.373 | FK41: 1396657.963 | FL41: 1324236.569 | FM41: 1248074.032 | FN41: 1180424.677 | FO41: 1104234.931 | FP41: 1031840.746 | FQ41: 959582.6044 | FR41: 886944.2999 | FS41: 811649.4061 | FT41: 743132.4077 | FU41: 666427.5934 | FV41: 595849.9419 | FW41: 522997.9671 | FX41: 449116.3933 | FY41: 374093.7448 | FZ41: 309098.2276 | GA41: 251941.9501 | GB41: 208956.2438 | GC41: 169478.2005 | GD41: 134392.0331 | GE41: 112998.837 | GF41: 0 | GG41: 0 | GH41: 0 | GI41: 0 | GJ41: 0 | GK41: 0 | GL41: 0 | GM41: 0 | GN41: 0 | GO41: 0 | GP41: 0 | GQ41: 0 | GR41: 0 | GS41: 0 | GT41: 0 | GU41: =GU39+GU40 -> 0 | GV41: 0 | GW41: 0 | GX41: 0 | GY41: 0 | GZ41: 0 | HA41: 0 | HB41: 0 | HC41: 0 | HD41: 0 | HE41: 0 | HF41: 0 | HG41: 0 | HH41: 0 | HI41: 0 | HJ41: 0 | HK41: 0 | HL41: 0 | HM41: 0 | HN41: 0 | HO41: 0 | HP41: 0 | HQ41: 0 | HR41: 0 | HS41: 0 | HT41: 0 | HU41: 0 | HV41: 0 | HW41: 0 | HX41: 0 | HY41: 0 | HZ41: 0 | IA41: 0 | IB41: 0 | IC41: 0 | ID41: 0 | IE41: 0 | IF41: 0 | IG41: 0 | IH41: 0 | II41: 0 | IJ41: 0 | IK41: 0 | IL41: 0 | IM41: 0 | IN41: 0 | IO41: 0 | IP41: 0 | IQ41: 0 | IR41: 0 | IS41: 0 | IT41: 0 | IU41: 0 | IV41: 0 | IW41: 0 | IX41: 0 | IY41: 0 | IZ41: 0 | JA41: 0 | JB41: 0 | JC41: 0 | JD41: 0 | JE41: 0 | JF41: 0 | JG41: =JG39+JG40 -> 0 | JH41: 0 | JI41: 0 | JJ41: 0 | JK41: 0 | JL41: 0 | JM41: 0 | JN41: 0 | JO41: 0 | JP41: 0 | JQ41: 0 | JR41: 0 | JS41: 0 | JT41: 0 | JU41: 0 | JV41: 0 | JW41: 0 | JX41: 0 | JY41: 0 | JZ41: 0 | KA41: 0 | KB41: 0 | KC41: 0 | KD41: 0 | KE41: 0 | KF41: 0 | KG41: 0 | KH41: 0 | KI41: 0 | KJ41: 0 | KK41: 0 | KL41: 0 | KM41: 0 | KN41: 0 | KO41: 0 | KP41: 0 | KQ41: 0 | KR41: 0 | KS41: 0 | KT41: 0 | KU41: 0 | KV41: 0 | KW41: 0
D42: Less: Required for Production | E42: Tons | J42: =-J34 -> -6518.39232 | K42: =-K34 -> -5887.58016 | L42: =-L34 -> -6518.39232 | M42: =-M34 -> -4310.54976 | N42: =-N34 -> -3259.19616 | O42: =-O34 -> -6132.314309 | P42: =-P34 -> -9852.414568 | Q42: =-Q34 -> -9852.414568 | R42: =-R34 -> -9534.594743 | S42: =-S34 -> -8906.196328 | T42: =-T34 -> -6380.533943 | U42: =-U34 -> -9273.136061 | V42: =-V34 -> -9916.316298 | W42: =-W34 -> -9276.553956 | X42: =-X34 -> -9916.316298 | Y42: =-Y34 -> -9596.435127 | Z42: =-Z34 -> -9916.316298 | AA42: =-AA34 -> -10455.22502 | AB42: =-AB34 -> -12712.69554 | AC42: =-AC34 -> -9949.251333 | AD42: =-AD34 -> -9953.20571 | AE42: =-AE34 -> -9978.719522 | AF42: =-AF34 -> -11696.45133 | AG42: =-AG34 -> -13306.53034 | AH42: =-AH34 -> -13306.53034 | AI42: =-AI34 -> -12018.8016 | AJ42: =-AJ34 -> -13306.53034 | AK42: =-AK34 -> -11162.14013 | AL42: =-AL34 -> -10198.12992 | AM42: =-AM34 -> -12881.84832 | AN42: =-AN34 -> -12881.84832 | AO42: =-AO34 -> -9983.432448 | AP42: =-AP34 -> -10198.28136 | AQ42: =-AQ34 -> -13312.1822 | AR42: =-AR34 -> -12882.75697 | AS42: =-AS34 -> -13312.1822 | AT42: =-AT34 -> -11272.55622 | AU42: =-AU34 -> -9233.675533 | AV42: =-AV34 -> -12251.65539 | AW42: =-AW34 -> -9674.837353 | AX42: =-AX34 -> -12803.6588 | AY42: =-AY34 -> -12912.90682 | AZ42: =-AZ34 -> -13343.33704 | BA42: =-BA34 -> -13343.33704 | BB42: =-BB34 -> -12912.90682 | BC42: =-BC34 -> -12377.19842 | BD42: =-BD34 -> -9692.444738 | BE42: =-BE34 -> -12725.07096 | BF42: =-BF34 -> -11442.53926 | BG42: =-BG34 -> -9182.814596 | BH42: =-BH34 -> -13408.73008 | BI42: =-BI34 -> -12976.1904 | BJ42: =-BJ34 -> -13408.73008 | BK42: =-BK34 -> -12976.1904 | BL42: =-BL34 -> -10714.55963 | BM42: =-BM34 -> -11260.96839 | BN42: =-BN34 -> -12780.97728 | BO42: =-BO34 -> -10084.07175 | BP42: =-BP34 -> -11710.97675 | BQ42: =-BQ34 -> -13446.1899 | BR42: =-BR34 -> -13446.1899 | BS42: =-BS34 -> -12578.69377 | BT42: =-BT34 -> -13446.1899 | BU42: =-BU34 -> -13012.44184 | BV42: =-BV34 -> -10086.35443 | BW42: =-BW34 -> -11496.27494 | BX42: =-BX34 -> -74942.69798 | BY42: =-BY34 -> -68760.73882 | BZ42: =-BZ34 -> -74942.69798 | CA42: =-CA34 -> -73641.2329 | CB42: =-CB34 -> -70062.2039 | CC42: =-CC34 -> -73641.2329 | CD42: =-CD34 -> -74942.69798 | CE42: =-CE34 -> -69194.56051 | CF42: =-CF34 -> -74942.69798 | CG42: =-CG34 -> -73641.2329 | CH42: =-CH34 -> -70062.2039 | CI42: =-CI34 -> -73641.2329 | CJ42: =-CJ34 -> -74942.69798 | CK42: =-CK34 -> -68760.73882 | CL42: =-CL34 -> -75268.06426 | CM42: =-CM34 -> -73749.68832 | CN42: =-CN34 -> -70062.2039 | CO42: =-CO34 -> -74508.87629 | CP42: =-CP34 -> -74075.05459 | CQ42: =-CQ34 -> -68760.73882 | CR42: =-CR34 -> -76135.70765 | CS42: =-CS34 -> -72448.22323 | CT42: =-CT34 -> -70062.2039 | CU42: =-CU34 -> -75810.34138 | CV42: =-CV34 -> -73207.4112 | CW42: =-CW34 -> -68760.73882 | CX42: =-CX34 -> -77003.35104 | CY42: =-CY34 -> -71580.57984 | CZ42: =-CZ34 -> -70062.2039 | DA42: =-DA34 -> -76352.6185 | DB42: =-DB34 -> -72231.31238 | DC42: =-DC34 -> -69194.56051 | DD42: =-DD34 -> -77870.99443 | DE42: =-DE34 -> -70712.93645 | DF42: =-DF34 -> -70387.57018 | DG42: =-DG34 -> -76894.89562 | DH42: =-DH34 -> -71363.66899 | DI42: =-DI34 -> -69736.83763 | DJ42: =-DJ34 -> -77870.99443 | DK42: =-DK34 -> -70170.65933 | DL42: =-DL34 -> -71255.21357 | DM42: =-DM34 -> -76894.89562 | DN42: =-DN34 -> -70496.0256 | DO42: =-DO34 -> -70604.48102 | DP42: =-DP34 -> -77870.99443 | DQ42: =-DQ34 -> -68869.19424 | DR42: =-DR34 -> -72231.31238 | DS42: =-DS34 -> -76786.44019 | DT42: =-DT34 -> -70062.2039 | DU42: =-DU34 -> -71472.12442 | DV42: =-DV34 -> -77111.80646 | DW42: =-DW34 -> -68760.73882 | DX42: =-DX34 -> -73098.95578 | DY42: =-DY34 -> -75484.9751 | DZ42: =-DZ34 -> -70062.2039 | EA42: =-EA34 -> -72773.5895 | EB42: =-EB34 -> -76244.16307 | EC42: =-EC34 -> -68760.73882 | ED42: =-ED34 -> -73966.59917 | EE42: =-EE34 -> -74617.33171 | EF42: =-EF34 -> -70062.2039 | EG42: =-EG34 -> -73315.86662 | EH42: =-EH34 -> -75268.06426 | EI42: =-EI34 -> -69194.56051 | EJ42: =-EJ34 -> -74834.24256 | EK42: =-EK34 -> -73749.68832 | EL42: =-EL34 -> -70062.2039 | EM42: =-EM34 -> -73641.2329 | EN42: =-EN34 -> -74942.69798 | EO42: =-EO34 -> -68760.73882 | EP42: =-EP34 -> -74942.69798 | EQ42: =-EQ34 -> -74075.05459 | ER42: =-ER34 -> -70062.2039 | ES42: =-ES34 -> -73641.2329 | ET42: =-ET34 -> -74942.69798 | EU42: =-EU34 -> -68760.73882 | EV42: =-EV34 -> -74942.69798 | EW42: =-EW34 -> -73641.2329 | EX42: =-EX34 -> -70062.2039 | EY42: =-EY34 -> -74075.05459 | EZ42: =-EZ34 -> -74942.69798 | FA42: =-FA34 -> -68760.73882 | FB42: =-FB34 -> -74942.69798 | FC42: =-FC34 -> -73641.2329 | FD42: =-FD34 -> -70062.2039 | FE42: =-FE34 -> -73641.2329 | FF42: =-FF34 -> -74942.69798 | FG42: =-FG34 -> -69194.56051 | FH42: =-FH34 -> -74942.69798 | FI42: =-FI34 -> -73641.2329 | FJ42: =-FJ34 -> -70062.2039 | FK42: =-FK34 -> -73966.59917 | FL42: =-FL34 -> -74617.33171 | FM42: =-FM34 -> -69194.56051 | FN42: =-FN34 -> -75159.60883 | FO42: =-FO34 -> -73424.32205 | FP42: =-FP34 -> -70712.93645 | FQ42: =-FQ34 -> -74183.51002 | FR42: =-FR34 -> -73749.68832 | FS42: =-FS34 -> -70062.2039 | FT42: =-FT34 -> -75159.60883 | FU42: =-FU34 -> -72122.85696 | FV42: =-FV34 -> -71821.83782 | FW42: =-FW34 -> -74911.71072 | FX42: =-FX34 -> -73477.44307 | FY42: =-FY34 -> -66540.72269 | FZ42: =-FZ34 -> -55611.072 | GA42: =-GA34 -> -44530.91174 | GB42: =-GB34 -> -37932.83789 | GC42: =-GC34 -> -36631.3728 | GD42: =-GD34 -> -20363.0592 | GE42: =-GE34 -> -19256.3712 | GF42: =-GF34 -> 0 | GG42: =-GG34 -> 0 | GH42: =-GH34 -> 0 | GI42: =-GI34 -> 0 | GJ42: =-GJ34 -> 0 | GK42: =-GK34 -> 0 | GL42: =-GL34 -> 0 | GM42: =-GM34 -> 0 | GN42: =-GN34 -> 0 | GO42: =-GO34 -> 0 | GP42: =-GP34 -> 0 | GQ42: =-GQ34 -> 0 | GR42: =-GR34 -> 0 | GS42: =-GS34 -> 0 | GT42: =-GT34 -> 0 | GU42: =-GU34 -> 0 | GV42: =-GV34 -> 0 | GW42: =-GW34 -> 0 | GX42: =-GX34 -> 0 | GY42: =-GY34 -> 0 | GZ42: =-GZ34 -> 0 | HA42: =-HA34 -> 0 | HB42: =-HB34 -> 0 | HC42: =-HC34 -> 0 | HD42: =-HD34 -> 0 | HE42: =-HE34 -> 0 | HF42: =-HF34 -> 0 | HG42: =-HG34 -> 0 | HH42: =-HH34 -> 0 | HI42: =-HI34 -> 0 | HJ42: =-HJ34 -> 0 | HK42: =-HK34 -> 0 | HL42: =-HL34 -> 0 | HM42: =-HM34 -> 0 | HN42: =-HN34 -> 0 | HO42: =-HO34 -> 0 | HP42: =-HP34 -> 0 | HQ42: =-HQ34 -> 0 | HR42: =-HR34 -> 0 | HS42: =-HS34 -> 0 | HT42: =-HT34 -> 0 | HU42: =-HU34 -> 0 | HV42: =-HV34 -> 0 | HW42: =-HW34 -> 0 | HX42: =-HX34 -> 0 | HY42: =-HY34 -> 0 | HZ42: =-HZ34 -> 0 | IA42: =-IA34 -> 0 | IB42: =-IB34 -> 0 | IC42: =-IC34 -> 0 | ID42: =-ID34 -> 0 | IE42: =-IE34 -> 0 | IF42: =-IF34 -> 0 | IG42: =-IG34 -> 0 | IH42: =-IH34 -> 0 | II42: =-II34 -> 0 | IJ42: =-IJ34 -> 0 | IK42: =-IK34 -> 0 | IL42: =-IL34 -> 0 | IM42: =-IM34 -> 0 | IN42: =-IN34 -> 0 | IO42: =-IO34 -> 0 | IP42: =-IP34 -> 0 | IQ42: =-IQ34 -> 0 | IR42: =-IR34 -> 0 | IS42: =-IS34 -> 0 | IT42: =-IT34 -> 0 | IU42: =-IU34 -> 0 | IV42: =-IV34 -> 0 | IW42: =-IW34 -> 0 | IX42: =-IX34 -> 0 | IY42: =-IY34 -> 0 | IZ42: =-IZ34 -> 0 | JA42: =-JA34 -> 0 | JB42: =-JB34 -> 0 | JC42: =-JC34 -> 0 | JD42: =-JD34 -> 0 | JE42: =-JE34 -> 0 | JF42: =-JF34 -> 0 | JG42: =-JG34 -> 0 | JH42: =-JH34 -> 0 | JI42: =-JI34 -> 0 | JJ42: =-JJ34 -> 0 | JK42: =-JK34 -> 0 | JL42: =-JL34 -> 0 | JM42: =-JM34 -> 0 | JN42: =-JN34 -> 0 | JO42: =-JO34 -> 0 | JP42: =-JP34 -> 0 | JQ42: =-JQ34 -> 0 | JR42: =-JR34 -> 0 | JS42: =-JS34 -> 0 | JT42: =-JT34 -> 0 | JU42: =-JU34 -> 0 | JV42: =-JV34 -> 0 | JW42: =-JW34 -> 0 | JX42: =-JX34 -> 0 | JY42: =-JY34 -> 0 | JZ42: =-JZ34 -> 0 | KA42: =-KA34 -> 0 | KB42: =-KB34 -> 0 | KC42: =-KC34 -> 0 | KD42: =-KD34 -> 0 | KE42: =-KE34 -> 0 | KF42: =-KF34 -> 0 | KG42: =-KG34 -> 0 | KH42: =-KH34 -> 0 | KI42: =-KI34 -> 0 | KJ42: =-KJ34 -> 0 | KK42: =-KK34 -> 0 | KL42: =-KL34 -> 0 | KM42: =-KM34 -> 0 | KN42: =-KN34 -> 0 | KO42: =-KO34 -> 0 | KP42: =-KP34 -> 0 | KQ42: =-KQ34 -> 0 | KR42: =-KR34 -> 0 | KS42: =-KS34 -> 0 | KT42: =-KT34 -> 0 | KU42: =-KU34 -> 0 | KV42: =-KV34 -> 0 | KW42: =-KW34 -> 0
D43: Net Amount | E43: Tons | J43: =J41+J42 -> -6518.39232 | K43: =K41+K42 -> -5887.58016 | L43: -6518.39232 | M43: -4310.54976 | N43: -3259.19616 | O43: -6132.314309 | P43: -9852.414568 | Q43: -9852.414568 | R43: -9534.594743 | S43: -8906.196328 | T43: -6380.533943 | U43: -9273.136061 | V43: -9916.316298 | W43: -9276.553956 | X43: -9916.316298 | Y43: -9596.435127 | Z43: -9916.316298 | AA43: -10455.22502 | AB43: -12712.69554 | AC43: -9949.251333 | AD43: -9953.20571 | AE43: -9978.719522 | AF43: -11696.45133 | AG43: -13306.53034 | AH43: -13306.53034 | AI43: -12018.8016 | AJ43: -13306.53034 | AK43: -11162.14013 | AL43: -10198.12992 | AM43: -12881.84832 | AN43: -12881.84832 | AO43: -9983.432448 | AP43: -10198.28136 | AQ43: -13312.1822 | AR43: -12882.75697 | AS43: -13312.1822 | AT43: -11272.55622 | AU43: -9233.675533 | AV43: -12251.65539 | AW43: -9674.837353 | AX43: -12803.6588 | AY43: -12912.90682 | AZ43: -13343.33704 | BA43: -13343.33704 | BB43: -12912.90682 | BC43: -12377.19842 | BD43: -9692.444738 | BE43: -12725.07096 | BF43: -11442.53926 | BG43: -9182.814596 | BH43: -13408.73008 | BI43: -12976.1904 | BJ43: -13408.73008 | BK43: -12976.1904 | BL43: -10714.55963 | BM43: -11260.96839 | BN43: -12780.97728 | BO43: -10084.07175 | BP43: -11710.97675 | BQ43: -13446.1899 | BR43: -13446.1899 | BS43: -12578.69377 | BT43: -13446.1899 | BU43: -13012.44184 | BV43: -10086.35443 | BW43: =BW41+BW42 -> -11496.27494 | BX43: 19829.90476 | BY43: 44296.5632 | BZ43: 64126.46796 | CA43: 83712.63232 | CB43: 108423.0312 | CC43: 128009.1955 | CD43: 147839.1003 | CE43: 172387.0055 | CF43: 192216.9103 | CG43: 211803.0746 | CH43: 236513.4735 | CI43: 256099.6378 | CJ43: 275929.5426 | CK43: 300396.201 | CL43: 319900.7395 | CM43: 339893.517 | CN43: 364603.9158 | CO43: 383322.4368 | CP43: 404019.9849 | CQ43: 428486.6434 | CR43: 447123.5384 | CS43: 467902.7125 | CT43: 492613.1113 | CU43: 510545.2357 | CV43: 532110.4272 | CW43: 556577.0857 | CX43: 574346.3374 | CY43: 595993.1548 | CZ43: 620703.5536 | DA43: 637578.3324 | DB43: 660119.6227 | DC43: 684667.528 | DD43: 701569.1363 | DE43: 724083.5971 | DF43: 748468.6297 | DG43: 764801.1313 | DH43: 788210.0651 | DI43: 811700.6247 | DJ43: 828602.233 | DK43: 852174.0394 | DL43: 875691.4286 | DM43: 892023.9302 | DN43: 916300.5074 | DO43: 938923.4236 | DP43: 955825.0319 | DQ43: 980183.2349 | DR43: 1002724.525 | DS43: 1019680.551 | DT43: 1044390.95 | DU43: 1066146.223 | DV43: 1083807.019 | DW43: 1108273.677 | DX43: 1129947.324 | DY43: 1147689.746 | DZ43: 1172400.145 | EA43: 1193369.021 | EB43: 1211897.461 | EC43: 1236364.12 | ED43: 1257170.123 | EE43: 1275780.189 | EF43: 1300490.588 | EG43: 1320402.118 | EH43: 1339906.657 | EI43: =EI41+EI42 -> 1364454.562 | EJ43: 1384392.922 | EK43: 1403870.631 | EL43: 1428581.03 | EM43: 1448167.194 | EN43: 1467997.099 | EO43: 1492463.757 | EP43: 1512293.662 | EQ43: 1531961.073 | ER43: 1556671.472 | ES43: 1576257.637 | ET43: 1596087.541 | EU43: 1620554.2 | EV43: 1640384.104 | EW43: 1659970.269 | EX43: 1684680.668 | EY43: 1704348.079 | EZ43: 1724177.984 | FA43: 1748644.642 | FB43: 1768474.547 | FC43: 1788060.711 | FD43: 1812771.11 | FE43: 1759441.356 | FF43: 1686043.864 | FG43: 1615819.166 | FH43: 1541906.605 | FI43: 1466720.167 | FJ43: 1398203.169 | FK43: 1322691.364 | FL43: 1249619.238 | FM43: 1178879.472 | FN43: 1105265.068 | FO43: 1030810.609 | FP43: 961127.8099 | FQ43: 885399.0944 | FR43: 813194.6116 | FS43: 741587.2022 | FT43: 667972.7988 | FU43: 594304.7364 | FV43: 524028.1041 | FW43: 448086.2563 | FX43: 375638.9503 | FY43: 307553.0221 | FZ43: 253487.1556 | GA43: 207411.0383 | GB43: 171023.4059 | GC43: 132846.8277 | GD43: 114028.9739 | GE43: 93742.46575 | GF43: 0 | GG43: 0 | GH43: 0 | GI43: 0 | GJ43: 0 | GK43: 0 | GL43: 0 | GM43: 0 | GN43: 0 | GO43: 0 | GP43: 0 | GQ43: 0 | GR43: 0 | GS43: 0 | GT43: 0 | GU43: =GU41+GU42 -> 0 | GV43: 0 | GW43: 0 | GX43: 0 | GY43: 0 | GZ43: 0 | HA43: 0 | HB43: 0 | HC43: 0 | HD43: 0 | HE43: 0 | HF43: 0 | HG43: 0 | HH43: 0 | HI43: 0 | HJ43: 0 | HK43: 0 | HL43: 0 | HM43: 0 | HN43: 0 | HO43: 0 | HP43: 0 | HQ43: 0 | HR43: 0 | HS43: 0 | HT43: 0 | HU43: 0 | HV43: 0 | HW43: 0 | HX43: 0 | HY43: 0 | HZ43: 0 | IA43: 0 | IB43: 0 | IC43: 0 | ID43: 0 | IE43: 0 | IF43: 0 | IG43: 0 | IH43: 0 | II43: 0 | IJ43: 0 | IK43: 0 | IL43: 0 | IM43: 0 | IN43: 0 | IO43: 0 | IP43: 0 | IQ43: 0 | IR43: 0 | IS43: 0 | IT43: 0 | IU43: 0 | IV43: 0 | IW43: 0 | IX43: 0 | IY43: 0 | IZ43: 0 | JA43: 0 | JB43: 0 | JC43: 0 | JD43: 0 | JE43: 0 | JF43: 0 | JG43: =JG41+JG42 -> 0 | JH43: 0 | JI43: 0 | JJ43: 0 | JK43: 0 | JL43: 0 | JM43: 0 | JN43: 0 | JO43: 0 | JP43: 0 | JQ43: 0 | JR43: 0 | JS43: 0 | JT43: 0 | JU43: 0 | JV43: 0 | JW43: 0 | JX43: 0 | JY43: 0 | JZ43: 0 | KA43: 0 | KB43: 0 | KC43: 0 | KD43: 0 | KE43: 0 | KF43: 0 | KG43: 0 | KH43: 0 | KI43: 0 | KJ43: 0 | KK43: 0 | KL43: 0 | KM43: 0 | KN43: 0 | KO43: 0 | KP43: 0 | KQ43: 0 | KR43: 0 | KS43: 0 | KT43: 0 | KU43: 0 | KV43: 0 | KW43: 0
D45: Required Purchase if Negative | E45: Tons | J45: =MAX(-J43,0) -> 6518.39232 | K45: =MAX(-K43,0) -> 5887.58016 | L45: 6518.39232 | M45: 4310.54976 | N45: 3259.19616 | O45: 6132.314309 | P45: 9852.414568 | Q45: 9852.414568 | R45: 9534.594743 | S45: 8906.196328 | T45: 6380.533943 | U45: 9273.136061 | V45: 9916.316298 | W45: 9276.553956 | X45: 9916.316298 | Y45: 9596.435127 | Z45: 9916.316298 | AA45: 10455.22502 | AB45: 12712.69554 | AC45: 9949.251333 | AD45: 9953.20571 | AE45: 9978.719522 | AF45: 11696.45133 | AG45: 13306.53034 | AH45: 13306.53034 | AI45: 12018.8016 | AJ45: 13306.53034 | AK45: 11162.14013 | AL45: 10198.12992 | AM45: 12881.84832 | AN45: 12881.84832 | AO45: 9983.432448 | AP45: 10198.28136 | AQ45: 13312.1822 | AR45: 12882.75697 | AS45: 13312.1822 | AT45: 11272.55622 | AU45: 9233.675533 | AV45: 12251.65539 | AW45: 9674.837353 | AX45: 12803.6588 | AY45: 12912.90682 | AZ45: 13343.33704 | BA45: 13343.33704 | BB45: 12912.90682 | BC45: 12377.19842 | BD45: 9692.444738 | BE45: 12725.07096 | BF45: 11442.53926 | BG45: 9182.814596 | BH45: 13408.73008 | BI45: 12976.1904 | BJ45: 13408.73008 | BK45: 12976.1904 | BL45: 10714.55963 | BM45: 11260.96839 | BN45: 12780.97728 | BO45: 10084.07175 | BP45: 11710.97675 | BQ45: 13446.1899 | BR45: 13446.1899 | BS45: 12578.69377 | BT45: 13446.1899 | BU45: 13012.44184 | BV45: 10086.35443 | BW45: =MAX(-BW43,0) -> 11496.27494 | BX45: 0 | BY45: 0 | BZ45: 0 | CA45: 0 | CB45: 0 | CC45: 0 | CD45: 0 | CE45: 0 | CF45: 0 | CG45: 0 | CH45: 0 | CI45: 0 | CJ45: 0 | CK45: 0 | CL45: 0 | CM45: 0 | CN45: 0 | CO45: 0 | CP45: 0 | CQ45: 0 | CR45: 0 | CS45: 0 | CT45: 0 | CU45: 0 | CV45: 0 | CW45: 0 | CX45: 0 | CY45: 0 | CZ45: 0 | DA45: 0 | DB45: 0 | DC45: 0 | DD45: 0 | DE45: 0 | DF45: 0 | DG45: 0 | DH45: 0 | DI45: 0 | DJ45: 0 | DK45: 0 | DL45: 0 | DM45: 0 | DN45: 0 | DO45: 0 | DP45: 0 | DQ45: 0 | DR45: 0 | DS45: 0 | DT45: 0 | DU45: 0 | DV45: 0 | DW45: 0 | DX45: 0 | DY45: 0 | DZ45: 0 | EA45: 0 | EB45: 0 | EC45: 0 | ED45: 0 | EE45: 0 | EF45: 0 | EG45: 0 | EH45: 0 | EI45: =MAX(-EI43,0) -> 0 | EJ45: 0 | EK45: 0 | EL45: 0 | EM45: 0 | EN45: 0 | EO45: 0 | EP45: 0 | EQ45: 0 | ER45: 0 | ES45: 0 | ET45: 0 | EU45: 0 | EV45: 0 | EW45: 0 | EX45: 0 | EY45: 0 | EZ45: 0 | FA45: 0 | FB45: 0 | FC45: 0 | FD45: 0 | FE45: 0 | FF45: 0 | FG45: 0 | FH45: 0 | FI45: 0 | FJ45: 0 | FK45: 0 | FL45: 0 | FM45: 0 | FN45: 0 | FO45: 0 | FP45: 0 | FQ45: 0 | FR45: 0 | FS45: 0 | FT45: 0 | FU45: 0 | FV45: 0 | FW45: 0 | FX45: 0 | FY45: 0 | FZ45: 0 | GA45: 0 | GB45: 0 | GC45: 0 | GD45: 0 | GE45: 0 | GF45: 0 | GG45: 0 | GH45: 0 | GI45: 0 | GJ45: 0 | GK45: 0 | GL45: 0 | GM45: 0 | GN45: 0 | GO45: 0 | GP45: 0 | GQ45: 0 | GR45: 0 | GS45: 0 | GT45: 0 | GU45: =MAX(-GU43,0) -> 0 | GV45: 0 | GW45: 0 | GX45: 0 | GY45: 0 | GZ45: 0 | HA45: 0 | HB45: 0 | HC45: 0 | HD45: 0 | HE45: 0 | HF45: 0 | HG45: 0 | HH45: 0 | HI45: 0 | HJ45: 0 | HK45: 0 | HL45: 0 | HM45: 0 | HN45: 0 | HO45: 0 | HP45: 0 | HQ45: 0 | HR45: 0 | HS45: 0 | HT45: 0 | HU45: 0 | HV45: 0 | HW45: 0 | HX45: 0 | HY45: 0 | HZ45: 0 | IA45: 0 | IB45: 0 | IC45: 0 | ID45: 0 | IE45: 0 | IF45: 0 | IG45: 0 | IH45: 0 | II45: 0 | IJ45: 0 | IK45: 0 | IL45: 0 | IM45: 0 | IN45: 0 | IO45: 0 | IP45: 0 | IQ45: 0 | IR45: 0 | IS45: 0 | IT45: 0 | IU45: 0 | IV45: 0 | IW45: 0 | IX45: 0 | IY45: 0 | IZ45: 0 | JA45: 0 | JB45: 0 | JC45: 0 | JD45: 0 | JE45: 0 | JF45: 0 | JG45: =MAX(-JG43,0) -> 0 | JH45: 0 | JI45: 0 | JJ45: 0 | JK45: 0 | JL45: 0 | JM45: 0 | JN45: 0 | JO45: 0 | JP45: 0 | JQ45: 0 | JR45: 0 | JS45: 0 | JT45: 0 | JU45: 0 | JV45: 0 | JW45: 0 | JX45: 0 | JY45: 0 | JZ45: 0 | KA45: 0 | KB45: 0 | KC45: 0 | KD45: 0 | KE45: 0 | KF45: 0 | KG45: 0 | KH45: 0 | KI45: 0 | KJ45: 0 | KK45: 0 | KL45: 0 | KM45: 0 | KN45: 0 | KO45: 0 | KP45: 0 | KQ45: 0 | KR45: 0 | KS45: 0 | KT45: 0 | KU45: 0 | KV45: 0 | KW45: 0
D46: Tons to Store if Positive | E46: Tons | H46: =SUM(J46:KW46) -> 100513185.5 | J46: =MAX(J43,0) -> 0 | K46: =MAX(K43,0) -> 0 | L46: 0 | M46: 0 | N46: 0 | O46: 0 | P46: 0 | Q46: 0 | R46: 0 | S46: 0 | T46: 0 | U46: 0 | V46: 0 | W46: 0 | X46: 0 | Y46: 0 | Z46: 0 | AA46: 0 | AB46: 0 | AC46: 0 | AD46: 0 | AE46: 0 | AF46: 0 | AG46: 0 | AH46: 0 | AI46: 0 | AJ46: 0 | AK46: 0 | AL46: 0 | AM46: 0 | AN46: 0 | AO46: 0 | AP46: 0 | AQ46: 0 | AR46: 0 | AS46: 0 | AT46: 0 | AU46: 0 | AV46: 0 | AW46: 0 | AX46: 0 | AY46: 0 | AZ46: 0 | BA46: 0 | BB46: 0 | BC46: 0 | BD46: 0 | BE46: 0 | BF46: 0 | BG46: 0 | BH46: 0 | BI46: 0 | BJ46: 0 | BK46: 0 | BL46: 0 | BM46: 0 | BN46: 0 | BO46: 0 | BP46: 0 | BQ46: 0 | BR46: 0 | BS46: 0 | BT46: 0 | BU46: 0 | BV46: 0 | BW46: =MAX(BW43,0) -> 0 | BX46: 19829.90476 | BY46: 44296.5632 | BZ46: 64126.46796 | CA46: 83712.63232 | CB46: 108423.0312 | CC46: 128009.1955 | CD46: 147839.1003 | CE46: 172387.0055 | CF46: 192216.9103 | CG46: 211803.0746 | CH46: 236513.4735 | CI46: 256099.6378 | CJ46: 275929.5426 | CK46: 300396.201 | CL46: 319900.7395 | CM46: 339893.517 | CN46: 364603.9158 | CO46: 383322.4368 | CP46: 404019.9849 | CQ46: 428486.6434 | CR46: 447123.5384 | CS46: 467902.7125 | CT46: 492613.1113 | CU46: 510545.2357 | CV46: 532110.4272 | CW46: 556577.0857 | CX46: 574346.3374 | CY46: 595993.1548 | CZ46: 620703.5536 | DA46: 637578.3324 | DB46: 660119.6227 | DC46: 684667.528 | DD46: 701569.1363 | DE46: 724083.5971 | DF46: 748468.6297 | DG46: 764801.1313 | DH46: 788210.0651 | DI46: 811700.6247 | DJ46: 828602.233 | DK46: 852174.0394 | DL46: 875691.4286 | DM46: 892023.9302 | DN46: 916300.5074 | DO46: 938923.4236 | DP46: 955825.0319 | DQ46: 980183.2349 | DR46: 1002724.525 | DS46: 1019680.551 | DT46: 1044390.95 | DU46: 1066146.223 | DV46: 1083807.019 | DW46: 1108273.677 | DX46: 1129947.324 | DY46: 1147689.746 | DZ46: 1172400.145 | EA46: 1193369.021 | EB46: 1211897.461 | EC46: 1236364.12 | ED46: 1257170.123 | EE46: 1275780.189 | EF46: 1300490.588 | EG46: 1320402.118 | EH46: 1339906.657 | EI46: =MAX(EI43,0) -> 1364454.562 | EJ46: 1384392.922 | EK46: 1403870.631 | EL46: 1428581.03 | EM46: 1448167.194 | EN46: 1467997.099 | EO46: 1492463.757 | EP46: 1512293.662 | EQ46: 1531961.073 | ER46: 1556671.472 | ES46: 1576257.637 | ET46: 1596087.541 | EU46: 1620554.2 | EV46: 1640384.104 | EW46: 1659970.269 | EX46: 1684680.668 | EY46: 1704348.079 | EZ46: 1724177.984 | FA46: 1748644.642 | FB46: 1768474.547 | FC46: 1788060.711 | FD46: 1812771.11 | FE46: 1759441.356 | FF46: 1686043.864 | FG46: 1615819.166 | FH46: 1541906.605 | FI46: 1466720.167 | FJ46: 1398203.169 | FK46: 1322691.364 | FL46: 1249619.238 | FM46: 1178879.472 | FN46: 1105265.068 | FO46: 1030810.609 | FP46: 961127.8099 | FQ46: 885399.0944 | FR46: 813194.6116 | FS46: 741587.2022 | FT46: 667972.7988 | FU46: 594304.7364 | FV46: 524028.1041 | FW46: 448086.2563 | FX46: 375638.9503 | FY46: 307553.0221 | FZ46: 253487.1556 | GA46: 207411.0383 | GB46: 171023.4059 | GC46: 132846.8277 | GD46: 114028.9739 | GE46: 93742.46575 | GF46: 0 | GG46: 0 | GH46: 0 | GI46: 0 | GJ46: 0 | GK46: 0 | GL46: 0 | GM46: 0 | GN46: 0 | GO46: 0 | GP46: 0 | GQ46: 0 | GR46: 0 | GS46: 0 | GT46: 0 | GU46: =MAX(GU43,0) -> 0 | GV46: 0 | GW46: 0 | GX46: 0 | GY46: 0 | GZ46: 0 | HA46: 0 | HB46: 0 | HC46: 0 | HD46: 0 | HE46: 0 | HF46: 0 | HG46: 0 | HH46: 0 | HI46: 0 | HJ46: 0 | HK46: 0 | HL46: 0 | HM46: 0 | HN46: 0 | HO46: 0 | HP46: 0 | HQ46: 0 | HR46: 0 | HS46: 0 | HT46: 0 | HU46: 0 | HV46: 0 | HW46: 0 | HX46: 0 | HY46: 0 | HZ46: 0 | IA46: 0 | IB46: 0 | IC46: 0 | ID46: 0 | IE46: 0 | IF46: 0 | IG46: 0 | IH46: 0 | II46: 0 | IJ46: 0 | IK46: 0 | IL46: 0 | IM46: 0 | IN46: 0 | IO46: 0 | IP46: 0 | IQ46: 0 | IR46: 0 | IS46: 0 | IT46: 0 | IU46: 0 | IV46: 0 | IW46: 0 | IX46: 0 | IY46: 0 | IZ46: 0 | JA46: 0 | JB46: 0 | JC46: 0 | JD46: 0 | JE46: 0 | JF46: 0 | JG46: =MAX(JG43,0) -> 0 | JH46: 0 | JI46: 0 | JJ46: 0 | JK46: 0 | JL46: 0 | JM46: 0 | JN46: 0 | JO46: 0 | JP46: 0 | JQ46: 0 | JR46: 0 | JS46: 0 | JT46: 0 | JU46: 0 | JV46: 0 | JW46: 0 | JX46: 0 | JY46: 0 | JZ46: 0 | KA46: 0 | KB46: 0 | KC46: 0 | KD46: 0 | KE46: 0 | KF46: 0 | KG46: 0 | KH46: 0 | KI46: 0 | KJ46: 0 | KK46: 0 | KL46: 0 | KM46: 0 | KN46: 0 | KO46: 0 | KP46: 0 | KQ46: 0 | KR46: 0 | KS46: 0 | KT46: 0 | KU46: 0 | KV46: 0 | KW46: 0
D48: Curtailed Production | E48: Tons | H48: =SUM(J48:KW48) -> 2612203.589 | J48: =MAX(J41-J37,0) -> 0 | K48: =MAX(K41-K37,0) -> 0 | L48: 0 | M48: 0 | N48: 0 | O48: 0 | P48: 0 | Q48: 0 | R48: 0 | S48: 0 | T48: 0 | U48: 0 | V48: 0 | W48: 0 | X48: 0 | Y48: 0 | Z48: 0 | AA48: 0 | AB48: 0 | AC48: 0 | AD48: 0 | AE48: 0 | AF48: 0 | AG48: 0 | AH48: 0 | AI48: 0 | AJ48: 0 | AK48: 0 | AL48: 0 | AM48: 0 | AN48: 0 | AO48: 0 | AP48: 0 | AQ48: 0 | AR48: 0 | AS48: 0 | AT48: 0 | AU48: 0 | AV48: 0 | AW48: 0 | AX48: 0 | AY48: 0 | AZ48: 0 | BA48: 0 | BB48: 0 | BC48: 0 | BD48: 0 | BE48: 0 | BF48: 0 | BG48: 0 | BH48: 0 | BI48: 0 | BJ48: 0 | BK48: 0 | BL48: 0 | BM48: 0 | BN48: 0 | BO48: 0 | BP48: 0 | BQ48: 0 | BR48: 0 | BS48: 0 | BT48: 0 | BU48: 0 | BV48: 0 | BW48: =MAX(BW41-BW37,0) -> 0 | BX48: 0 | BY48: 0 | BZ48: 0 | CA48: 0 | CB48: 0 | CC48: 0 | CD48: 0 | CE48: 0 | CF48: 0 | CG48: 0 | CH48: 0 | CI48: 0 | CJ48: 0 | CK48: 0 | CL48: 0 | CM48: 0 | CN48: 0 | CO48: 0 | CP48: 0 | CQ48: 0 | CR48: 0 | CS48: 0 | CT48: 0 | CU48: 0 | CV48: 0 | CW48: 0 | CX48: 0 | CY48: 0 | CZ48: 0 | DA48: 0 | DB48: 0 | DC48: 0 | DD48: 0 | DE48: 0 | DF48: 0 | DG48: 0 | DH48: 0 | DI48: 0 | DJ48: 0 | DK48: 0 | DL48: 0 | DM48: 0 | DN48: 0 | DO48: 0 | DP48: 0 | DQ48: 0 | DR48: 0 | DS48: 0 | DT48: 0 | DU48: 0 | DV48: 0 | DW48: 0 | DX48: 0 | DY48: 0 | DZ48: 0 | EA48: 0 | EB48: 0 | EC48: 0 | ED48: 0 | EE48: 0 | EF48: 0 | EG48: 0 | EH48: 0 | EI48: =MAX(EI41-EI37,0) -> 0 | EJ48: 0 | EK48: 0 | EL48: 0 | EM48: 0 | EN48: 0 | EO48: 0 | EP48: 0 | EQ48: 0 | ER48: 0 | ES48: 0 | ET48: 0 | EU48: 0 | EV48: 0 | EW48: 0 | EX48: 0 | EY48: 0 | EZ48: 0 | FA48: 0 | FB48: 0 | FC48: 0 | FD48: 72915.91794 | FE48: 93227.39726 | FF48: 94772.60274 | FG48: 93742.46575 | FH48: 94772.60274 | FI48: 93227.39726 | FJ48: 94772.60274 | FK48: 93227.39726 | FL48: 94772.60274 | FM48: 93227.39726 | FN48: 94772.60274 | FO48: 93742.46575 | FP48: 94772.60274 | FQ48: 93227.39726 | FR48: 94772.60274 | FS48: 93227.39726 | FT48: 94772.60274 | FU48: 93227.39726 | FV48: 94772.60274 | FW48: 93742.46575 | FX48: 94772.60274 | FY48: 93227.39726 | FZ48: 94772.60274 | GA48: 93227.39726 | GB48: 94772.60274 | GC48: 93227.39726 | GD48: 94772.60274 | GE48: 93742.46575 | GF48: 0 | GG48: 0 | GH48: 0 | GI48: 0 | GJ48: 0 | GK48: 0 | GL48: 0 | GM48: 0 | GN48: 0 | GO48: 0 | GP48: 0 | GQ48: 0 | GR48: 0 | GS48: 0 | GT48: 0 | GU48: =MAX(GU41-GU37,0) -> 0 | GV48: 0 | GW48: 0 | GX48: 0 | GY48: 0 | GZ48: 0 | HA48: 0 | HB48: 0 | HC48: 0 | HD48: 0 | HE48: 0 | HF48: 0 | HG48: 0 | HH48: 0 | HI48: 0 | HJ48: 0 | HK48: 0 | HL48: 0 | HM48: 0 | HN48: 0 | HO48: 0 | HP48: 0 | HQ48: 0 | HR48: 0 | HS48: 0 | HT48: 0 | HU48: 0 | HV48: 0 | HW48: 0 | HX48: 0 | HY48: 0 | HZ48: 0 | IA48: 0 | IB48: 0 | IC48: 0 | ID48: 0 | IE48: 0 | IF48: 0 | IG48: 0 | IH48: 0 | II48: 0 | IJ48: 0 | IK48: 0 | IL48: 0 | IM48: 0 | IN48: 0 | IO48: 0 | IP48: 0 | IQ48: 0 | IR48: 0 | IS48: 0 | IT48: 0 | IU48: 0 | IV48: 0 | IW48: 0 | IX48: 0 | IY48: 0 | IZ48: 0 | JA48: 0 | JB48: 0 | JC48: 0 | JD48: 0 | JE48: 0 | JF48: 0 | JG48: =MAX(JG41-JG37,0) -> 0 | JH48: 0 | JI48: 0 | JJ48: 0 | JK48: 0 | JL48: 0 | JM48: 0 | JN48: 0 | JO48: 0 | JP48: 0 | JQ48: 0 | JR48: 0 | JS48: 0 | JT48: 0 | JU48: 0 | JV48: 0 | JW48: 0 | JX48: 0 | JY48: 0 | JZ48: 0 | KA48: 0 | KB48: 0 | KC48: 0 | KD48: 0 | KE48: 0 | KF48: 0 | KG48: 0 | KH48: 0 | KI48: 0 | KJ48: 0 | KK48: 0 | KL48: 0 | KM48: 0 | KN48: 0 | KO48: 0 | KP48: 0 | KQ48: 0 | KR48: 0 | KS48: 0 | KT48: 0 | KU48: 0 | KV48: 0 | KW48: 0
D49: Final Net Production | E49: Tons | H49: =SUM(J49:KW49) -> 7923007.37 | J49: =J39-J48 -> 0 | K49: =K39-K48 -> 0 | L49: 0 | M49: 0 | N49: 0 | O49: 0 | P49: 0 | Q49: 0 | R49: 0 | S49: 0 | T49: 0 | U49: 0 | V49: 0 | W49: 0 | X49: 0 | Y49: 0 | Z49: 0 | AA49: 0 | AB49: 0 | AC49: 0 | AD49: 0 | AE49: 0 | AF49: 0 | AG49: 0 | AH49: 0 | AI49: 0 | AJ49: 0 | AK49: 0 | AL49: 0 | AM49: 0 | AN49: 0 | AO49: 0 | AP49: 0 | AQ49: 0 | AR49: 0 | AS49: 0 | AT49: 0 | AU49: 0 | AV49: 0 | AW49: 0 | AX49: 0 | AY49: 0 | AZ49: 0 | BA49: 0 | BB49: 0 | BC49: 0 | BD49: 0 | BE49: 0 | BF49: 0 | BG49: 0 | BH49: 0 | BI49: 0 | BJ49: 0 | BK49: 0 | BL49: 0 | BM49: 0 | BN49: 0 | BO49: 0 | BP49: 0 | BQ49: 0 | BR49: 0 | BS49: 0 | BT49: 0 | BU49: 0 | BV49: 0 | BW49: =BW39-BW48 -> 0 | BX49: 94772.60274 | BY49: 93227.39726 | BZ49: 94772.60274 | CA49: 93227.39726 | CB49: 94772.60274 | CC49: 93227.39726 | CD49: 94772.60274 | CE49: 93742.46575 | CF49: 94772.60274 | CG49: 93227.39726 | CH49: 94772.60274 | CI49: 93227.39726 | CJ49: 94772.60274 | CK49: 93227.39726 | CL49: 94772.60274 | CM49: 93742.46575 | CN49: 94772.60274 | CO49: 93227.39726 | CP49: 94772.60274 | CQ49: 93227.39726 | CR49: 94772.60274 | CS49: 93227.39726 | CT49: 94772.60274 | CU49: 93742.46575 | CV49: 94772.60274 | CW49: 93227.39726 | CX49: 94772.60274 | CY49: 93227.39726 | CZ49: 94772.60274 | DA49: 93227.39726 | DB49: 94772.60274 | DC49: 93742.46575 | DD49: 94772.60274 | DE49: 93227.39726 | DF49: 94772.60274 | DG49: 93227.39726 | DH49: 94772.60274 | DI49: 93227.39726 | DJ49: 94772.60274 | DK49: 93742.46575 | DL49: 94772.60274 | DM49: 93227.39726 | DN49: 94772.60274 | DO49: 93227.39726 | DP49: 94772.60274 | DQ49: 93227.39726 | DR49: 94772.60274 | DS49: 93742.46575 | DT49: 94772.60274 | DU49: 93227.39726 | DV49: 94772.60274 | DW49: 93227.39726 | DX49: 94772.60274 | DY49: 93227.39726 | DZ49: 94772.60274 | EA49: 93742.46575 | EB49: 94772.60274 | EC49: 93227.39726 | ED49: 94772.60274 | EE49: 93227.39726 | EF49: 94772.60274 | EG49: 93227.39726 | EH49: 94772.60274 | EI49: =EI39-EI48 -> 93742.46575 | EJ49: 94772.60274 | EK49: 93227.39726 | EL49: 94772.60274 | EM49: 93227.39726 | EN49: 94772.60274 | EO49: 93227.39726 | EP49: 94772.60274 | EQ49: 93742.46575 | ER49: 94772.60274 | ES49: 93227.39726 | ET49: 94772.60274 | EU49: 93227.39726 | EV49: 94772.60274 | EW49: 93227.39726 | EX49: 94772.60274 | EY49: 93742.46575 | EZ49: 94772.60274 | FA49: 93227.39726 | FB49: 94772.60274 | FC49: 93227.39726 | FD49: 21856.6848 | FE49: 1.600710675e-10 | FF49: -1.746229827e-10 | FG49: 0 | FH49: 0 | FI49: 1.600710675e-10 | FJ49: 0 | FK49: 1.600710675e-10 | FL49: 0 | FM49: 1.600710675e-10 | FN49: 0 | FO49: 0 | FP49: 1.746229827e-10 | FQ49: 1.600710675e-10 | FR49: 0 | FS49: 1.600710675e-10 | FT49: 0 | FU49: 1.600710675e-10 | FV49: 0 | FW49: 0 | FX49: 0 | FY49: 0 | FZ49: 0 | GA49: 0 | GB49: 0 | GC49: 0 | GD49: 0 | GE49: 0 | GF49: 0 | GG49: 0 | GH49: 0 | GI49: 0 | GJ49: 0 | GK49: 0 | GL49: 0 | GM49: 0 | GN49: 0 | GO49: 0 | GP49: 0 | GQ49: 0 | GR49: 0 | GS49: 0 | GT49: 0 | GU49: =GU39-GU48 -> 0 | GV49: 0 | GW49: 0 | GX49: 0 | GY49: 0 | GZ49: 0 | HA49: 0 | HB49: 0 | HC49: 0 | HD49: 0 | HE49: 0 | HF49: 0 | HG49: 0 | HH49: 0 | HI49: 0 | HJ49: 0 | HK49: 0 | HL49: 0 | HM49: 0 | HN49: 0 | HO49: 0 | HP49: 0 | HQ49: 0 | HR49: 0 | HS49: 0 | HT49: 0 | HU49: 0 | HV49: 0 | HW49: 0 | HX49: 0 | HY49: 0 | HZ49: 0 | IA49: 0 | IB49: 0 | IC49: 0 | ID49: 0 | IE49: 0 | IF49: 0 | IG49: 0 | IH49: 0 | II49: 0 | IJ49: 0 | IK49: 0 | IL49: 0 | IM49: 0 | IN49: 0 | IO49: 0 | IP49: 0 | IQ49: 0 | IR49: 0 | IS49: 0 | IT49: 0 | IU49: 0 | IV49: 0 | IW49: 0 | IX49: 0 | IY49: 0 | IZ49: 0 | JA49: 0 | JB49: 0 | JC49: 0 | JD49: 0 | JE49: 0 | JF49: 0 | JG49: =JG39-JG48 -> 0 | JH49: 0 | JI49: 0 | JJ49: 0 | JK49: 0 | JL49: 0 | JM49: 0 | JN49: 0 | JO49: 0 | JP49: 0 | JQ49: 0 | JR49: 0 | JS49: 0 | JT49: 0 | JU49: 0 | JV49: 0 | JW49: 0 | JX49: 0 | JY49: 0 | JZ49: 0 | KA49: 0 | KB49: 0 | KC49: 0 | KD49: 0 | KE49: 0 | KF49: 0 | KG49: 0 | KH49: 0 | KI49: 0 | KJ49: 0 | KK49: 0 | KL49: 0 | KM49: 0 | KN49: 0 | KO49: 0 | KP49: 0 | KQ49: 0 | KR49: 0 | KS49: 0 | KT49: 0 | KU49: 0 | KV49: 0 | KW49: 0
C51: Storage
D52: Surplus to Store | E52: Tons | H52: =SUM(J52:XFD52) -> 2612203.589 | J52: =MAX(J17-J34,0) -> 0 | K52: =MAX(K17-K34,0) -> 0 | L52: =MAX(L17-L34,0) -> 0 | M52: =MAX(M17-M34,0) -> 0 | N52: =MAX(N17-N34,0) -> 0 | O52: =MAX(O17-O34,0) -> 0 | P52: =MAX(P17-P34,0) -> 0 | Q52: =MAX(Q17-Q34,0) -> 0 | R52: =MAX(R17-R34,0) -> 0 | S52: =MAX(S17-S34,0) -> 0 | T52: =MAX(T17-T34,0) -> 0 | U52: =MAX(U17-U34,0) -> 0 | V52: =MAX(V17-V34,0) -> 0 | W52: =MAX(W17-W34,0) -> 0 | X52: =MAX(X17-X34,0) -> 0 | Y52: =MAX(Y17-Y34,0) -> 0 | Z52: =MAX(Z17-Z34,0) -> 0 | AA52: =MAX(AA17-AA34,0) -> 0 | AB52: =MAX(AB17-AB34,0) -> 0 | AC52: =MAX(AC17-AC34,0) -> 0 | AD52: =MAX(AD17-AD34,0) -> 0 | AE52: =MAX(AE17-AE34,0) -> 0 | AF52: =MAX(AF17-AF34,0) -> 0 | AG52: =MAX(AG17-AG34,0) -> 0 | AH52: =MAX(AH17-AH34,0) -> 0 | AI52: =MAX(AI17-AI34,0) -> 0 | AJ52: =MAX(AJ17-AJ34,0) -> 0 | AK52: =MAX(AK17-AK34,0) -> 0 | AL52: =MAX(AL17-AL34,0) -> 0 | AM52: =MAX(AM17-AM34,0) -> 0 | AN52: =MAX(AN17-AN34,0) -> 0 | AO52: =MAX(AO17-AO34,0) -> 0 | AP52: =MAX(AP17-AP34,0) -> 0 | AQ52: =MAX(AQ17-AQ34,0) -> 0 | AR52: =MAX(AR17-AR34,0) -> 0 | AS52: =MAX(AS17-AS34,0) -> 0 | AT52: =MAX(AT17-AT34,0) -> 0 | AU52: =MAX(AU17-AU34,0) -> 0 | AV52: =MAX(AV17-AV34,0) -> 0 | AW52: =MAX(AW17-AW34,0) -> 0 | AX52: =MAX(AX17-AX34,0) -> 0 | AY52: =MAX(AY17-AY34,0) -> 0 | AZ52: =MAX(AZ17-AZ34,0) -> 0 | BA52: =MAX(BA17-BA34,0) -> 0 | BB52: =MAX(BB17-BB34,0) -> 0 | BC52: =MAX(BC17-BC34,0) -> 0 | BD52: =MAX(BD17-BD34,0) -> 0 | BE52: =MAX(BE17-BE34,0) -> 0 | BF52: =MAX(BF17-BF34,0) -> 0 | BG52: =MAX(BG17-BG34,0) -> 0 | BH52: =MAX(BH17-BH34,0) -> 0 | BI52: =MAX(BI17-BI34,0) -> 0 | BJ52: =MAX(BJ17-BJ34,0) -> 0 | BK52: =MAX(BK17-BK34,0) -> 0 | BL52: =MAX(BL17-BL34,0) -> 0 | BM52: =MAX(BM17-BM34,0) -> 0 | BN52: =MAX(BN17-BN34,0) -> 0 | BO52: =MAX(BO17-BO34,0) -> 0 | BP52: =MAX(BP17-BP34,0) -> 0 | BQ52: =MAX(BQ17-BQ34,0) -> 0 | BR52: =MAX(BR17-BR34,0) -> 0 | BS52: =MAX(BS17-BS34,0) -> 0 | BT52: =MAX(BT17-BT34,0) -> 0 | BU52: =MAX(BU17-BU34,0) -> 0 | BV52: =MAX(BV17-BV34,0) -> 0 | BW52: =MAX(BW17-BW34,0) -> 0 | BX52: =MAX(BX17-BX34,0) -> 19829.90476 | BY52: =MAX(BY17-BY34,0) -> 24466.65844 | BZ52: =MAX(BZ17-BZ34,0) -> 19829.90476 | CA52: =MAX(CA17-CA34,0) -> 19586.16436 | CB52: =MAX(CB17-CB34,0) -> 24710.39884 | CC52: =MAX(CC17-CC34,0) -> 19586.16436 | CD52: =MAX(CD17-CD34,0) -> 19829.90476 | CE52: =MAX(CE17-CE34,0) -> 24547.90524 | CF52: =MAX(CF17-CF34,0) -> 19829.90476 | CG52: =MAX(CG17-CG34,0) -> 19586.16436 | CH52: =MAX(CH17-CH34,0) -> 24710.39884 | CI52: =MAX(CI17-CI34,0) -> 19586.16436 | CJ52: =MAX(CJ17-CJ34,0) -> 19829.90476 | CK52: =MAX(CK17-CK34,0) -> 24466.65844 | CL52: =MAX(CL17-CL34,0) -> 19504.53848 | CM52: =MAX(CM17-CM34,0) -> 19992.77743 | CN52: =MAX(CN17-CN34,0) -> 24710.39884 | CO52: =MAX(CO17-CO34,0) -> 18718.52097 | CP52: =MAX(CP17-CP34,0) -> 20697.54815 | CQ52: =MAX(CQ17-CQ34,0) -> 24466.65844 | CR52: =MAX(CR17-CR34,0) -> 18636.89509 | CS52: =MAX(CS17-CS34,0) -> 20779.17403 | CT52: =MAX(CT17-CT34,0) -> 24710.39884 | CU52: =MAX(CU17-CU34,0) -> 17932.12438 | CV52: =MAX(CV17-CV34,0) -> 21565.19154 | CW52: =MAX(CW17-CW34,0) -> 24466.65844 | CX52: =MAX(CX17-CX34,0) -> 17769.2517 | CY52: =MAX(CY17-CY34,0) -> 21646.81742 | CZ52: =MAX(CZ17-CZ34,0) -> 24710.39884 | DA52: =MAX(DA17-DA34,0) -> 16874.77876 | DB52: =MAX(DB17-DB34,0) -> 22541.29036 | DC52: =MAX(DC17-DC34,0) -> 24547.90524 | DD52: =MAX(DD17-DD34,0) -> 16901.60831 | DE52: =MAX(DE17-DE34,0) -> 22514.46081 | DF52: =MAX(DF17-DF34,0) -> 24385.03256 | DG52: =MAX(DG17-DG34,0) -> 16332.50164 | DH52: =MAX(DH17-DH34,0) -> 23408.93375 | DI52: =MAX(DI17-DI34,0) -> 23490.55963 | DJ52: =MAX(DJ17-DJ34,0) -> 16901.60831 | DK52: =MAX(DK17-DK34,0) -> 23571.80643 | DL52: =MAX(DL17-DL34,0) -> 23517.38917 | DM52: =MAX(DM17-DM34,0) -> 16332.50164 | DN52: =MAX(DN17-DN34,0) -> 24276.57714 | DO52: =MAX(DO17-DO34,0) -> 22622.91624 | DP52: =MAX(DP17-DP34,0) -> 16901.60831 | DQ52: =MAX(DQ17-DQ34,0) -> 24358.20302 | DR52: =MAX(DR17-DR34,0) -> 22541.29036 | DS52: =MAX(DS17-DS34,0) -> 16956.02556 | DT52: =MAX(DT17-DT34,0) -> 24710.39884 | DU52: =MAX(DU17-DU34,0) -> 21755.27284 | DV52: =MAX(DV17-DV34,0) -> 17660.79628 | DW52: =MAX(DW17-DW34,0) -> 24466.65844 | DX52: =MAX(DX17-DX34,0) -> 21673.64696 | DY52: =MAX(DY17-DY34,0) -> 17742.42216 | DZ52: =MAX(DZ17-DZ34,0) -> 24710.39884 | EA52: =MAX(EA17-EA34,0) -> 20968.87625 | EB52: =MAX(EB17-EB34,0) -> 18528.43967 | EC52: =MAX(EC17-EC34,0) -> 24466.65844 | ED52: =MAX(ED17-ED34,0) -> 20806.00357 | EE52: =MAX(EE17-EE34,0) -> 18610.06555 | EF52: =MAX(EF17-EF34,0) -> 24710.39884 | EG52: =MAX(EG17-EG34,0) -> 19911.53064 | EH52: =MAX(EH17-EH34,0) -> 19504.53848 | EI52: =MAX(EI17-EI34,0) -> 24547.90524 | EJ52: =MAX(EJ17-EJ34,0) -> 19938.36018 | EK52: =MAX(EK17-EK34,0) -> 19477.70894 | EL52: =MAX(EL17-EL34,0) -> 24710.39884 | EM52: =MAX(EM17-EM34,0) -> 19586.16436 | EN52: =MAX(EN17-EN34,0) -> 19829.90476 | EO52: =MAX(EO17-EO34,0) -> 24466.65844 | EP52: =MAX(EP17-EP34,0) -> 19829.90476 | EQ52: =MAX(EQ17-EQ34,0) -> 19667.41116 | ER52: =MAX(ER17-ER34,0) -> 24710.39884 | ES52: =MAX(ES17-ES34,0) -> 19586.16436 | ET52: =MAX(ET17-ET34,0) -> 19829.90476 | EU52: =MAX(EU17-EU34,0) -> 24466.65844 | EV52: =MAX(EV17-EV34,0) -> 19829.90476 | EW52: =MAX(EW17-EW34,0) -> 19586.16436 | EX52: =MAX(EX17-EX34,0) -> 24710.39884 | EY52: =MAX(EY17-EY34,0) -> 19667.41116 | EZ52: =MAX(EZ17-EZ34,0) -> 19829.90476 | FA52: =MAX(FA17-FA34,0) -> 24466.65844 | FB52: =MAX(FB17-FB34,0) -> 19829.90476 | FC52: =MAX(FC17-FC34,0) -> 19586.16436 | FD52: =MAX(FD17-FD34,0) -> 24710.39884 | FE52: =MAX(FE17-FE34,0) -> 19586.16436 | FF52: =MAX(FF17-FF34,0) -> 19829.90476 | FG52: =MAX(FG17-FG34,0) -> 24547.90524 | FH52: =MAX(FH17-FH34,0) -> 19829.90476 | FI52: =MAX(FI17-FI34,0) -> 19586.16436 | FJ52: =MAX(FJ17-FJ34,0) -> 24710.39884 | FK52: =MAX(FK17-FK34,0) -> 19260.79809 | FL52: =MAX(FL17-FL34,0) -> 20155.27103 | FM52: =MAX(FM17-FM34,0) -> 24032.83675 | FN52: =MAX(FN17-FN34,0) -> 19612.99391 | FO52: =MAX(FO17-FO34,0) -> 20318.14371 | FP52: =MAX(FP17-FP34,0) -> 24059.66629 | FQ52: =MAX(FQ17-FQ34,0) -> 19043.88724 | FR52: =MAX(FR17-FR34,0) -> 21022.91442 | FS52: =MAX(FS17-FS34,0) -> 23165.19336 | FT52: =MAX(FT17-FT34,0) -> 19612.99391 | FU52: =MAX(FU17-FU34,0) -> 21104.5403 | FV52: =MAX(FV17-FV34,0) -> 22950.76492 | FW52: =MAX(FW17-FW34,0) -> 18830.75503 | FX52: =MAX(FX17-FX34,0) -> 21295.15967 | FY52: =MAX(FY17-FY34,0) -> 26686.67457 | FZ52: =MAX(FZ17-FZ34,0) -> 39161.53074 | GA52: =MAX(GA17-GA34,0) -> 48696.48552 | GB52: =MAX(GB17-GB34,0) -> 56839.76485 | GC52: =MAX(GC17-GC34,0) -> 56596.02446 | GD52: =MAX(GD17-GD34,0) -> 74409.54354 | GE52: =MAX(GE17-GE34,0) -> 74486.09455 | GF52: =MAX(GF17-GF34,0) -> 0 | GG52: =MAX(GG17-GG34,0) -> 0 | GH52: =MAX(GH17-GH34,0) -> 0 | GI52: =MAX(GI17-GI34,0) -> 0 | GJ52: =MAX(GJ17-GJ34,0) -> 0 | GK52: =MAX(GK17-GK34,0) -> 0 | GL52: =MAX(GL17-GL34,0) -> 0 | GM52: =MAX(GM17-GM34,0) -> 0 | GN52: =MAX(GN17-GN34,0) -> 0 | GO52: =MAX(GO17-GO34,0) -> 0 | GP52: =MAX(GP17-GP34,0) -> 0 | GQ52: =MAX(GQ17-GQ34,0) -> 0 | GR52: =MAX(GR17-GR34,0) -> 0 | GS52: =MAX(GS17-GS34,0) -> 0 | GT52: =MAX(GT17-GT34,0) -> 0 | GU52: =MAX(GU17-GU34,0) -> 0 | GV52: =MAX(GV17-GV34,0) -> 0 | GW52: =MAX(GW17-GW34,0) -> 0 | GX52: =MAX(GX17-GX34,0) -> 0 | GY52: =MAX(GY17-GY34,0) -> 0 | GZ52: =MAX(GZ17-GZ34,0) -> 0 | HA52: =MAX(HA17-HA34,0) -> 0 | HB52: =MAX(HB17-HB34,0) -> 0 | HC52: =MAX(HC17-HC34,0) -> 0 | HD52: =MAX(HD17-HD34,0) -> 0 | HE52: =MAX(HE17-HE34,0) -> 0 | HF52: =MAX(HF17-HF34,0) -> 0 | HG52: =MAX(HG17-HG34,0) -> 0 | HH52: =MAX(HH17-HH34,0) -> 0 | HI52: =MAX(HI17-HI34,0) -> 0 | HJ52: =MAX(HJ17-HJ34,0) -> 0 | HK52: =MAX(HK17-HK34,0) -> 0 | HL52: =MAX(HL17-HL34,0) -> 0 | HM52: =MAX(HM17-HM34,0) -> 0 | HN52: =MAX(HN17-HN34,0) -> 0 | HO52: =MAX(HO17-HO34,0) -> 0 | HP52: =MAX(HP17-HP34,0) -> 0 | HQ52: =MAX(HQ17-HQ34,0) -> 0 | HR52: =MAX(HR17-HR34,0) -> 0 | HS52: =MAX(HS17-HS34,0) -> 0 | HT52: =MAX(HT17-HT34,0) -> 0 | HU52: =MAX(HU17-HU34,0) -> 0 | HV52: =MAX(HV17-HV34,0) -> 0 | HW52: =MAX(HW17-HW34,0) -> 0 | HX52: =MAX(HX17-HX34,0) -> 0 | HY52: =MAX(HY17-HY34,0) -> 0 | HZ52: =MAX(HZ17-HZ34,0) -> 0 | IA52: =MAX(IA17-IA34,0) -> 0 | IB52: =MAX(IB17-IB34,0) -> 0 | IC52: =MAX(IC17-IC34,0) -> 0 | ID52: =MAX(ID17-ID34,0) -> 0 | IE52: =MAX(IE17-IE34,0) -> 0 | IF52: =MAX(IF17-IF34,0) -> 0 | IG52: =MAX(IG17-IG34,0) -> 0 | IH52: =MAX(IH17-IH34,0) -> 0 | II52: =MAX(II17-II34,0) -> 0 | IJ52: =MAX(IJ17-IJ34,0) -> 0 | IK52: =MAX(IK17-IK34,0) -> 0 | IL52: =MAX(IL17-IL34,0) -> 0 | IM52: =MAX(IM17-IM34,0) -> 0 | IN52: =MAX(IN17-IN34,0) -> 0 | IO52: =MAX(IO17-IO34,0) -> 0 | IP52: =MAX(IP17-IP34,0) -> 0 | IQ52: =MAX(IQ17-IQ34,0) -> 0 | IR52: =MAX(IR17-IR34,0) -> 0 | IS52: =MAX(IS17-IS34,0) -> 0 | IT52: =MAX(IT17-IT34,0) -> 0 | IU52: =MAX(IU17-IU34,0) -> 0 | IV52: =MAX(IV17-IV34,0) -> 0 | IW52: =MAX(IW17-IW34,0) -> 0 | IX52: =MAX(IX17-IX34,0) -> 0 | IY52: =MAX(IY17-IY34,0) -> 0 | IZ52: =MAX(IZ17-IZ34,0) -> 0 | JA52: =MAX(JA17-JA34,0) -> 0 | JB52: =MAX(JB17-JB34,0) -> 0 | JC52: =MAX(JC17-JC34,0) -> 0 | JD52: =MAX(JD17-JD34,0) -> 0 | JE52: =MAX(JE17-JE34,0) -> 0 | JF52: =MAX(JF17-JF34,0) -> 0 | JG52: =MAX(JG17-JG34,0) -> 0 | JH52: =MAX(JH17-JH34,0) -> 0 | JI52: =MAX(JI17-JI34,0) -> 0 | JJ52: =MAX(JJ17-JJ34,0) -> 0 | JK52: =MAX(JK17-JK34,0) -> 0 | JL52: =MAX(JL17-JL34,0) -> 0 | JM52: =MAX(JM17-JM34,0) -> 0 | JN52: =MAX(JN17-JN34,0) -> 0 | JO52: =MAX(JO17-JO34,0) -> 0 | JP52: =MAX(JP17-JP34,0) -> 0 | JQ52: =MAX(JQ17-JQ34,0) -> 0 | JR52: =MAX(JR17-JR34,0) -> 0 | JS52: =MAX(JS17-JS34,0) -> 0 | JT52: =MAX(JT17-JT34,0) -> 0 | JU52: =MAX(JU17-JU34,0) -> 0 | JV52: =MAX(JV17-JV34,0) -> 0 | JW52: =MAX(JW17-JW34,0) -> 0 | JX52: =MAX(JX17-JX34,0) -> 0 | JY52: =MAX(JY17-JY34,0) -> 0 | JZ52: =MAX(JZ17-JZ34,0) -> 0 | KA52: =MAX(KA17-KA34,0) -> 0 | KB52: =MAX(KB17-KB34,0) -> 0 | KC52: =MAX(KC17-KC34,0) -> 0 | KD52: =MAX(KD17-KD34,0) -> 0 | KE52: =MAX(KE17-KE34,0) -> 0 | KF52: =MAX(KF17-KF34,0) -> 0 | KG52: =MAX(KG17-KG34,0) -> 0 | KH52: =MAX(KH17-KH34,0) -> 0 | KI52: =MAX(KI17-KI34,0) -> 0 | KJ52: =MAX(KJ17-KJ34,0) -> 0 | KK52: =MAX(KK17-KK34,0) -> 0 | KL52: =MAX(KL17-KL34,0) -> 0 | KM52: =MAX(KM17-KM34,0) -> 0 | KN52: =MAX(KN17-KN34,0) -> 0 | KO52: =MAX(KO17-KO34,0) -> 0 | KP52: =MAX(KP17-KP34,0) -> 0 | KQ52: =MAX(KQ17-KQ34,0) -> 0 | KR52: =MAX(KR17-KR34,0) -> 0 | KS52: =MAX(KS17-KS34,0) -> 0 | KT52: =MAX(KT17-KT34,0) -> 0 | KU52: =MAX(KU17-KU34,0) -> 0 | KV52: =MAX(KV17-KV34,0) -> 0 | KW52: =MAX(KW17-KW34,0) -> 0
D53: Deficit to Remove from Storage | E53: Tons | H53: =SUM(J53:XFD53) -> 718547.0646 | J53: =MAX(J34-J17,0) -> 6518.39232 | K53: =MAX(K34-K17,0) -> 5887.58016 | L53: =MAX(L34-L17,0) -> 6518.39232 | M53: =MAX(M34-M17,0) -> 4310.54976 | N53: =MAX(N34-N17,0) -> 3259.19616 | O53: =MAX(O34-O17,0) -> 6132.314309 | P53: =MAX(P34-P17,0) -> 9852.414568 | Q53: =MAX(Q34-Q17,0) -> 9852.414568 | R53: =MAX(R34-R17,0) -> 9534.594743 | S53: =MAX(S34-S17,0) -> 8906.196328 | T53: =MAX(T34-T17,0) -> 6380.533943 | U53: =MAX(U34-U17,0) -> 9273.136061 | V53: =MAX(V34-V17,0) -> 9916.316298 | W53: =MAX(W34-W17,0) -> 9276.553956 | X53: =MAX(X34-X17,0) -> 9916.316298 | Y53: =MAX(Y34-Y17,0) -> 9596.435127 | Z53: =MAX(Z34-Z17,0) -> 9916.316298 | AA53: =MAX(AA34-AA17,0) -> 10455.22502 | AB53: =MAX(AB34-AB17,0) -> 12712.69554 | AC53: =MAX(AC34-AC17,0) -> 9949.251333 | AD53: =MAX(AD34-AD17,0) -> 9953.20571 | AE53: =MAX(AE34-AE17,0) -> 9978.719522 | AF53: =MAX(AF34-AF17,0) -> 11696.45133 | AG53: =MAX(AG34-AG17,0) -> 13306.53034 | AH53: =MAX(AH34-AH17,0) -> 13306.53034 | AI53: =MAX(AI34-AI17,0) -> 12018.8016 | AJ53: =MAX(AJ34-AJ17,0) -> 13306.53034 | AK53: =MAX(AK34-AK17,0) -> 11162.14013 | AL53: =MAX(AL34-AL17,0) -> 10198.12992 | AM53: =MAX(AM34-AM17,0) -> 12881.84832 | AN53: =MAX(AN34-AN17,0) -> 12881.84832 | AO53: =MAX(AO34-AO17,0) -> 9983.432448 | AP53: =MAX(AP34-AP17,0) -> 10198.28136 | AQ53: =MAX(AQ34-AQ17,0) -> 13312.1822 | AR53: =MAX(AR34-AR17,0) -> 12882.75697 | AS53: =MAX(AS34-AS17,0) -> 13312.1822 | AT53: =MAX(AT34-AT17,0) -> 11272.55622 | AU53: =MAX(AU34-AU17,0) -> 9233.675533 | AV53: =MAX(AV34-AV17,0) -> 12251.65539 | AW53: =MAX(AW34-AW17,0) -> 9674.837353 | AX53: =MAX(AX34-AX17,0) -> 12803.6588 | AY53: =MAX(AY34-AY17,0) -> 12912.90682 | AZ53: =MAX(AZ34-AZ17,0) -> 13343.33704 | BA53: =MAX(BA34-BA17,0) -> 13343.33704 | BB53: =MAX(BB34-BB17,0) -> 12912.90682 | BC53: =MAX(BC34-BC17,0) -> 12377.19842 | BD53: =MAX(BD34-BD17,0) -> 9692.444738 | BE53: =MAX(BE34-BE17,0) -> 12725.07096 | BF53: =MAX(BF34-BF17,0) -> 11442.53926 | BG53: =MAX(BG34-BG17,0) -> 9182.814596 | BH53: =MAX(BH34-BH17,0) -> 13408.73008 | BI53: =MAX(BI34-BI17,0) -> 12976.1904 | BJ53: =MAX(BJ34-BJ17,0) -> 13408.73008 | BK53: =MAX(BK34-BK17,0) -> 12976.1904 | BL53: =MAX(BL34-BL17,0) -> 10714.55963 | BM53: =MAX(BM34-BM17,0) -> 11260.96839 | BN53: =MAX(BN34-BN17,0) -> 12780.97728 | BO53: =MAX(BO34-BO17,0) -> 10084.07175 | BP53: =MAX(BP34-BP17,0) -> 11710.97675 | BQ53: =MAX(BQ34-BQ17,0) -> 13446.1899 | BR53: =MAX(BR34-BR17,0) -> 13446.1899 | BS53: =MAX(BS34-BS17,0) -> 12578.69377 | BT53: =MAX(BT34-BT17,0) -> 13446.1899 | BU53: =MAX(BU34-BU17,0) -> 13012.44184 | BV53: =MAX(BV34-BV17,0) -> 10086.35443 | BW53: =MAX(BW34-BW17,0) -> 11496.27494 | BX53: =MAX(BX34-BX17,0) -> 0 | BY53: =MAX(BY34-BY17,0) -> 0 | BZ53: =MAX(BZ34-BZ17,0) -> 0 | CA53: =MAX(CA34-CA17,0) -> 0 | CB53: =MAX(CB34-CB17,0) -> 0 | CC53: =MAX(CC34-CC17,0) -> 0 | CD53: =MAX(CD34-CD17,0) -> 0 | CE53: =MAX(CE34-CE17,0) -> 0 | CF53: =MAX(CF34-CF17,0) -> 0 | CG53: =MAX(CG34-CG17,0) -> 0 | CH53: =MAX(CH34-CH17,0) -> 0 | CI53: =MAX(CI34-CI17,0) -> 0 | CJ53: =MAX(CJ34-CJ17,0) -> 0 | CK53: =MAX(CK34-CK17,0) -> 0 | CL53: =MAX(CL34-CL17,0) -> 0 | CM53: =MAX(CM34-CM17,0) -> 0 | CN53: =MAX(CN34-CN17,0) -> 0 | CO53: =MAX(CO34-CO17,0) -> 0 | CP53: =MAX(CP34-CP17,0) -> 0 | CQ53: =MAX(CQ34-CQ17,0) -> 0 | CR53: =MAX(CR34-CR17,0) -> 0 | CS53: =MAX(CS34-CS17,0) -> 0 | CT53: =MAX(CT34-CT17,0) -> 0 | CU53: =MAX(CU34-CU17,0) -> 0 | CV53: =MAX(CV34-CV17,0) -> 0 | CW53: =MAX(CW34-CW17,0) -> 0 | CX53: =MAX(CX34-CX17,0) -> 0 | CY53: =MAX(CY34-CY17,0) -> 0 | CZ53: =MAX(CZ34-CZ17,0) -> 0 | DA53: =MAX(DA34-DA17,0) -> 0 | DB53: =MAX(DB34-DB17,0) -> 0 | DC53: =MAX(DC34-DC17,0) -> 0 | DD53: =MAX(DD34-DD17,0) -> 0 | DE53: =MAX(DE34-DE17,0) -> 0 | DF53: =MAX(DF34-DF17,0) -> 0 | DG53: =MAX(DG34-DG17,0) -> 0 | DH53: =MAX(DH34-DH17,0) -> 0 | DI53: =MAX(DI34-DI17,0) -> 0 | DJ53: =MAX(DJ34-DJ17,0) -> 0 | DK53: =MAX(DK34-DK17,0) -> 0 | DL53: =MAX(DL34-DL17,0) -> 0 | DM53: =MAX(DM34-DM17,0) -> 0 | DN53: =MAX(DN34-DN17,0) -> 0 | DO53: =MAX(DO34-DO17,0) -> 0 | DP53: =MAX(DP34-DP17,0) -> 0 | DQ53: =MAX(DQ34-DQ17,0) -> 0 | DR53: =MAX(DR34-DR17,0) -> 0 | DS53: =MAX(DS34-DS17,0) -> 0 | DT53: =MAX(DT34-DT17,0) -> 0 | DU53: =MAX(DU34-DU17,0) -> 0 | DV53: =MAX(DV34-DV17,0) -> 0 | DW53: =MAX(DW34-DW17,0) -> 0 | DX53: =MAX(DX34-DX17,0) -> 0 | DY53: =MAX(DY34-DY17,0) -> 0 | DZ53: =MAX(DZ34-DZ17,0) -> 0 | EA53: =MAX(EA34-EA17,0) -> 0 | EB53: =MAX(EB34-EB17,0) -> 0 | EC53: =MAX(EC34-EC17,0) -> 0 | ED53: =MAX(ED34-ED17,0) -> 0 | EE53: =MAX(EE34-EE17,0) -> 0 | EF53: =MAX(EF34-EF17,0) -> 0 | EG53: =MAX(EG34-EG17,0) -> 0 | EH53: =MAX(EH34-EH17,0) -> 0 | EI53: =MAX(EI34-EI17,0) -> 0 | EJ53: =MAX(EJ34-EJ17,0) -> 0 | EK53: =MAX(EK34-EK17,0) -> 0 | EL53: =MAX(EL34-EL17,0) -> 0 | EM53: =MAX(EM34-EM17,0) -> 0 | EN53: =MAX(EN34-EN17,0) -> 0 | EO53: =MAX(EO34-EO17,0) -> 0 | EP53: =MAX(EP34-EP17,0) -> 0 | EQ53: =MAX(EQ34-EQ17,0) -> 0 | ER53: =MAX(ER34-ER17,0) -> 0 | ES53: =MAX(ES34-ES17,0) -> 0 | ET53: =MAX(ET34-ET17,0) -> 0 | EU53: =MAX(EU34-EU17,0) -> 0 | EV53: =MAX(EV34-EV17,0) -> 0 | EW53: =MAX(EW34-EW17,0) -> 0 | EX53: =MAX(EX34-EX17,0) -> 0 | EY53: =MAX(EY34-EY17,0) -> 0 | EZ53: =MAX(EZ34-EZ17,0) -> 0 | FA53: =MAX(FA34-FA17,0) -> 0 | FB53: =MAX(FB34-FB17,0) -> 0 | FC53: =MAX(FC34-FC17,0) -> 0 | FD53: =MAX(FD34-FD17,0) -> 0 | FE53: =MAX(FE34-FE17,0) -> 0 | FF53: =MAX(FF34-FF17,0) -> 0 | FG53: =MAX(FG34-FG17,0) -> 0 | FH53: =MAX(FH34-FH17,0) -> 0 | FI53: =MAX(FI34-FI17,0) -> 0 | FJ53: =MAX(FJ34-FJ17,0) -> 0 | FK53: =MAX(FK34-FK17,0) -> 0 | FL53: =MAX(FL34-FL17,0) -> 0 | FM53: =MAX(FM34-FM17,0) -> 0 | FN53: =MAX(FN34-FN17,0) -> 0 | FO53: =MAX(FO34-FO17,0) -> 0 | FP53: =MAX(FP34-FP17,0) -> 0 | FQ53: =MAX(FQ34-FQ17,0) -> 0 | FR53: =MAX(FR34-FR17,0) -> 0 | FS53: =MAX(FS34-FS17,0) -> 0 | FT53: =MAX(FT34-FT17,0) -> 0 | FU53: =MAX(FU34-FU17,0) -> 0 | FV53: =MAX(FV34-FV17,0) -> 0 | FW53: =MAX(FW34-FW17,0) -> 0 | FX53: =MAX(FX34-FX17,0) -> 0 | FY53: =MAX(FY34-FY17,0) -> 0 | FZ53: =MAX(FZ34-FZ17,0) -> 0 | GA53: =MAX(GA34-GA17,0) -> 0 | GB53: =MAX(GB34-GB17,0) -> 0 | GC53: =MAX(GC34-GC17,0) -> 0 | GD53: =MAX(GD34-GD17,0) -> 0 | GE53: =MAX(GE34-GE17,0) -> 0 | GF53: =MAX(GF34-GF17,0) -> 0 | GG53: =MAX(GG34-GG17,0) -> 0 | GH53: =MAX(GH34-GH17,0) -> 0 | GI53: =MAX(GI34-GI17,0) -> 0 | GJ53: =MAX(GJ34-GJ17,0) -> 0 | GK53: =MAX(GK34-GK17,0) -> 0 | GL53: =MAX(GL34-GL17,0) -> 0 | GM53: =MAX(GM34-GM17,0) -> 0 | GN53: =MAX(GN34-GN17,0) -> 0 | GO53: =MAX(GO34-GO17,0) -> 0 | GP53: =MAX(GP34-GP17,0) -> 0 | GQ53: =MAX(GQ34-GQ17,0) -> 0 | GR53: =MAX(GR34-GR17,0) -> 0 | GS53: =MAX(GS34-GS17,0) -> 0 | GT53: =MAX(GT34-GT17,0) -> 0 | GU53: =MAX(GU34-GU17,0) -> 0 | GV53: =MAX(GV34-GV17,0) -> 0 | GW53: =MAX(GW34-GW17,0) -> 0 | GX53: =MAX(GX34-GX17,0) -> 0 | GY53: =MAX(GY34-GY17,0) -> 0 | GZ53: =MAX(GZ34-GZ17,0) -> 0 | HA53: =MAX(HA34-HA17,0) -> 0 | HB53: =MAX(HB34-HB17,0) -> 0 | HC53: =MAX(HC34-HC17,0) -> 0 | HD53: =MAX(HD34-HD17,0) -> 0 | HE53: =MAX(HE34-HE17,0) -> 0 | HF53: =MAX(HF34-HF17,0) -> 0 | HG53: =MAX(HG34-HG17,0) -> 0 | HH53: =MAX(HH34-HH17,0) -> 0 | HI53: =MAX(HI34-HI17,0) -> 0 | HJ53: =MAX(HJ34-HJ17,0) -> 0 | HK53: =MAX(HK34-HK17,0) -> 0 | HL53: =MAX(HL34-HL17,0) -> 0 | HM53: =MAX(HM34-HM17,0) -> 0 | HN53: =MAX(HN34-HN17,0) -> 0 | HO53: =MAX(HO34-HO17,0) -> 0 | HP53: =MAX(HP34-HP17,0) -> 0 | HQ53: =MAX(HQ34-HQ17,0) -> 0 | HR53: =MAX(HR34-HR17,0) -> 0 | HS53: =MAX(HS34-HS17,0) -> 0 | HT53: =MAX(HT34-HT17,0) -> 0 | HU53: =MAX(HU34-HU17,0) -> 0 | HV53: =MAX(HV34-HV17,0) -> 0 | HW53: =MAX(HW34-HW17,0) -> 0 | HX53: =MAX(HX34-HX17,0) -> 0 | HY53: =MAX(HY34-HY17,0) -> 0 | HZ53: =MAX(HZ34-HZ17,0) -> 0 | IA53: =MAX(IA34-IA17,0) -> 0 | IB53: =MAX(IB34-IB17,0) -> 0 | IC53: =MAX(IC34-IC17,0) -> 0 | ID53: =MAX(ID34-ID17,0) -> 0 | IE53: =MAX(IE34-IE17,0) -> 0 | IF53: =MAX(IF34-IF17,0) -> 0 | IG53: =MAX(IG34-IG17,0) -> 0 | IH53: =MAX(IH34-IH17,0) -> 0 | II53: =MAX(II34-II17,0) -> 0 | IJ53: =MAX(IJ34-IJ17,0) -> 0 | IK53: =MAX(IK34-IK17,0) -> 0 | IL53: =MAX(IL34-IL17,0) -> 0 | IM53: =MAX(IM34-IM17,0) -> 0 | IN53: =MAX(IN34-IN17,0) -> 0 | IO53: =MAX(IO34-IO17,0) -> 0 | IP53: =MAX(IP34-IP17,0) -> 0 | IQ53: =MAX(IQ34-IQ17,0) -> 0 | IR53: =MAX(IR34-IR17,0) -> 0 | IS53: =MAX(IS34-IS17,0) -> 0 | IT53: =MAX(IT34-IT17,0) -> 0 | IU53: =MAX(IU34-IU17,0) -> 0 | IV53: =MAX(IV34-IV17,0) -> 0 | IW53: =MAX(IW34-IW17,0) -> 0 | IX53: =MAX(IX34-IX17,0) -> 0 | IY53: =MAX(IY34-IY17,0) -> 0 | IZ53: =MAX(IZ34-IZ17,0) -> 0 | JA53: =MAX(JA34-JA17,0) -> 0 | JB53: =MAX(JB34-JB17,0) -> 0 | JC53: =MAX(JC34-JC17,0) -> 0 | JD53: =MAX(JD34-JD17,0) -> 0 | JE53: =MAX(JE34-JE17,0) -> 0 | JF53: =MAX(JF34-JF17,0) -> 0 | JG53: =MAX(JG34-JG17,0) -> 0 | JH53: =MAX(JH34-JH17,0) -> 0 | JI53: =MAX(JI34-JI17,0) -> 0 | JJ53: =MAX(JJ34-JJ17,0) -> 0 | JK53: =MAX(JK34-JK17,0) -> 0 | JL53: =MAX(JL34-JL17,0) -> 0 | JM53: =MAX(JM34-JM17,0) -> 0 | JN53: =MAX(JN34-JN17,0) -> 0 | JO53: =MAX(JO34-JO17,0) -> 0 | JP53: =MAX(JP34-JP17,0) -> 0 | JQ53: =MAX(JQ34-JQ17,0) -> 0 | JR53: =MAX(JR34-JR17,0) -> 0 | JS53: =MAX(JS34-JS17,0) -> 0 | JT53: =MAX(JT34-JT17,0) -> 0 | JU53: =MAX(JU34-JU17,0) -> 0 | JV53: =MAX(JV34-JV17,0) -> 0 | JW53: =MAX(JW34-JW17,0) -> 0 | JX53: =MAX(JX34-JX17,0) -> 0 | JY53: =MAX(JY34-JY17,0) -> 0 | JZ53: =MAX(JZ34-JZ17,0) -> 0 | KA53: =MAX(KA34-KA17,0) -> 0 | KB53: =MAX(KB34-KB17,0) -> 0 | KC53: =MAX(KC34-KC17,0) -> 0 | KD53: =MAX(KD34-KD17,0) -> 0 | KE53: =MAX(KE34-KE17,0) -> 0 | KF53: =MAX(KF34-KF17,0) -> 0 | KG53: =MAX(KG34-KG17,0) -> 0 | KH53: =MAX(KH34-KH17,0) -> 0 | KI53: =MAX(KI34-KI17,0) -> 0 | KJ53: =MAX(KJ34-KJ17,0) -> 0 | KK53: =MAX(KK34-KK17,0) -> 0 | KL53: =MAX(KL34-KL17,0) -> 0 | KM53: =MAX(KM34-KM17,0) -> 0 | KN53: =MAX(KN34-KN17,0) -> 0 | KO53: =MAX(KO34-KO17,0) -> 0 | KP53: =MAX(KP34-KP17,0) -> 0 | KQ53: =MAX(KQ34-KQ17,0) -> 0 | KR53: =MAX(KR34-KR17,0) -> 0 | KS53: =MAX(KS34-KS17,0) -> 0 | KT53: =MAX(KT34-KT17,0) -> 0 | KU53: =MAX(KU34-KU17,0) -> 0 | KV53: =MAX(KV34-KV17,0) -> 0 | KW53: =MAX(KW34-KW17,0) -> 0
D55: Maximum Storage | E55: Tons | F55: 500000 | J55: =$F$55 -> 500000 | K55: =$F$55 -> 500000 | L55: 500000 | M55: 500000 | N55: 500000 | O55: 500000 | P55: 500000 | Q55: 500000 | R55: 500000 | S55: 500000 | T55: 500000 | U55: 500000 | V55: 500000 | W55: 500000 | X55: 500000 | Y55: 500000 | Z55: 500000 | AA55: 500000 | AB55: 500000 | AC55: 500000 | AD55: 500000 | AE55: 500000 | AF55: 500000 | AG55: 500000 | AH55: 500000 | AI55: 500000 | AJ55: 500000 | AK55: 500000 | AL55: 500000 | AM55: 500000 | AN55: 500000 | AO55: 500000 | AP55: 500000 | AQ55: 500000 | AR55: 500000 | AS55: 500000 | AT55: 500000 | AU55: 500000 | AV55: 500000 | AW55: 500000 | AX55: 500000 | AY55: 500000 | AZ55: 500000 | BA55: 500000 | BB55: 500000 | BC55: 500000 | BD55: 500000 | BE55: 500000 | BF55: 500000 | BG55: 500000 | BH55: 500000 | BI55: 500000 | BJ55: 500000 | BK55: 500000 | BL55: 500000 | BM55: 500000 | BN55: 500000 | BO55: 500000 | BP55: 500000 | BQ55: 500000 | BR55: 500000 | BS55: 500000 | BT55: 500000 | BU55: 500000 | BV55: 500000 | BW55: =$F$55 -> 500000 | BX55: 500000 | BY55: 500000 | BZ55: 500000 | CA55: 500000 | CB55: 500000 | CC55: 500000 | CD55: 500000 | CE55: 500000 | CF55: 500000 | CG55: 500000 | CH55: 500000 | CI55: 500000 | CJ55: 500000 | CK55: 500000 | CL55: 500000 | CM55: 500000 | CN55: 500000 | CO55: 500000 | CP55: 500000 | CQ55: 500000 | CR55: 500000 | CS55: 500000 | CT55: 500000 | CU55: 500000 | CV55: 500000 | CW55: 500000 | CX55: 500000 | CY55: 500000 | CZ55: 500000 | DA55: 500000 | DB55: 500000 | DC55: 500000 | DD55: 500000 | DE55: 500000 | DF55: 500000 | DG55: 500000 | DH55: 500000 | DI55: 500000 | DJ55: 500000 | DK55: 500000 | DL55: 500000 | DM55: 500000 | DN55: 500000 | DO55: 500000 | DP55: 500000 | DQ55: 500000 | DR55: 500000 | DS55: 500000 | DT55: 500000 | DU55: 500000 | DV55: 500000 | DW55: 500000 | DX55: 500000 | DY55: 500000 | DZ55: 500000 | EA55: 500000 | EB55: 500000 | EC55: 500000 | ED55: 500000 | EE55: 500000 | EF55: 500000 | EG55: 500000 | EH55: 500000 | EI55: =$F$55 -> 500000 | EJ55: 500000 | EK55: 500000 | EL55: 500000 | EM55: 500000 | EN55: 500000 | EO55: 500000 | EP55: 500000 | EQ55: 500000 | ER55: 500000 | ES55: 500000 | ET55: 500000 | EU55: 500000 | EV55: 500000 | EW55: 500000 | EX55: 500000 | EY55: 500000 | EZ55: 500000 | FA55: 500000 | FB55: 500000 | FC55: 500000 | FD55: 500000 | FE55: 500000 | FF55: 500000 | FG55: 500000 | FH55: 500000 | FI55: 500000 | FJ55: 500000 | FK55: 500000 | FL55: 500000 | FM55: 500000 | FN55: 500000 | FO55: 500000 | FP55: 500000 | FQ55: 500000 | FR55: 500000 | FS55: 500000 | FT55: 500000 | FU55: 500000 | FV55: 500000 | FW55: 500000 | FX55: 500000 | FY55: 500000 | FZ55: 500000 | GA55: 500000 | GB55: 500000 | GC55: 500000 | GD55: 500000 | GE55: 500000 | GF55: 500000 | GG55: 500000 | GH55: 500000 | GI55: 500000 | GJ55: 500000 | GK55: 500000 | GL55: 500000 | GM55: 500000 | GN55: 500000 | GO55: 500000 | GP55: 500000 | GQ55: 500000 | GR55: 500000 | GS55: 500000 | GT55: 500000 | GU55: =$F$55 -> 500000 | GV55: 500000 | GW55: 500000 | GX55: 500000 | GY55: 500000 | GZ55: 500000 | HA55: 500000 | HB55: 500000 | HC55: 500000 | HD55: 500000 | HE55: 500000 | HF55: 500000 | HG55: 500000 | HH55: 500000 | HI55: 500000 | HJ55: 500000 | HK55: 500000 | HL55: 500000 | HM55: 500000 | HN55: 500000 | HO55: 500000 | HP55: 500000 | HQ55: 500000 | HR55: 500000 | HS55: 500000 | HT55: 500000 | HU55: 500000 | HV55: 500000 | HW55: 500000 | HX55: 500000 | HY55: 500000 | HZ55: 500000 | IA55: 500000 | IB55: 500000 | IC55: 500000 | ID55: 500000 | IE55: 500000 | IF55: 500000 | IG55: 500000 | IH55: 500000 | II55: 500000 | IJ55: 500000 | IK55: 500000 | IL55: 500000 | IM55: 500000 | IN55: 500000 | IO55: 500000 | IP55: 500000 | IQ55: 500000 | IR55: 500000 | IS55: 500000 | IT55: 500000 | IU55: 500000 | IV55: 500000 | IW55: 500000 | IX55: 500000 | IY55: 500000 | IZ55: 500000 | JA55: 500000 | JB55: 500000 | JC55: 500000 | JD55: 500000 | JE55: 500000 | JF55: 500000 | JG55: =$F$55 -> 500000 | JH55: 500000 | JI55: 500000 | JJ55: 500000 | JK55: 500000 | JL55: 500000 | JM55: 500000 | JN55: 500000 | JO55: 500000 | JP55: 500000 | JQ55: 500000 | JR55: 500000 | JS55: 500000 | JT55: 500000 | JU55: 500000 | JV55: 500000 | JW55: 500000 | JX55: 500000 | JY55: 500000 | JZ55: 500000 | KA55: 500000 | KB55: 500000 | KC55: 500000 | KD55: 500000 | KE55: 500000 | KF55: 500000 | KG55: 500000 | KH55: 500000 | KI55: 500000 | KJ55: 500000 | KK55: 500000 | KL55: 500000 | KM55: 500000 | KN55: 500000 | KO55: 500000 | KP55: 500000 | KQ55: 500000 | KR55: 500000 | KS55: 500000 | KT55: 500000 | KU55: 500000 | KV55: 500000 | KW55: 500000
D56: Less: Amount Stored | E56: Tons | H56: =SUM(J56:XFD56) -> 97900981.91 | J56: =J60 -> 0 | K56: =K60 -> 0 | L56: 0 | M56: 0 | N56: 0 | O56: 0 | P56: 0 | Q56: 0 | R56: 0 | S56: 0 | T56: 0 | U56: 0 | V56: 0 | W56: 0 | X56: 0 | Y56: 0 | Z56: 0 | AA56: 0 | AB56: 0 | AC56: 0 | AD56: 0 | AE56: 0 | AF56: 0 | AG56: 0 | AH56: 0 | AI56: 0 | AJ56: 0 | AK56: 0 | AL56: 0 | AM56: 0 | AN56: 0 | AO56: 0 | AP56: 0 | AQ56: 0 | AR56: 0 | AS56: 0 | AT56: 0 | AU56: 0 | AV56: 0 | AW56: 0 | AX56: 0 | AY56: 0 | AZ56: 0 | BA56: 0 | BB56: 0 | BC56: 0 | BD56: 0 | BE56: 0 | BF56: 0 | BG56: 0 | BH56: 0 | BI56: 0 | BJ56: 0 | BK56: 0 | BL56: 0 | BM56: 0 | BN56: 0 | BO56: 0 | BP56: 0 | BQ56: 0 | BR56: 0 | BS56: 0 | BT56: 0 | BU56: 0 | BV56: 0 | BW56: =BW60 -> 0 | BX56: 0 | BY56: 19829.90476 | BZ56: 44296.5632 | CA56: 64126.46796 | CB56: 83712.63232 | CC56: 108423.0312 | CD56: 128009.1955 | CE56: 147839.1003 | CF56: 172387.0055 | CG56: 192216.9103 | CH56: 211803.0746 | CI56: 236513.4735 | CJ56: 256099.6378 | CK56: 275929.5426 | CL56: 300396.201 | CM56: 319900.7395 | CN56: 339893.517 | CO56: 364603.9158 | CP56: 383322.4368 | CQ56: 404019.9849 | CR56: 428486.6434 | CS56: 447123.5384 | CT56: 467902.7125 | CU56: 492613.1113 | CV56: 510545.2357 | CW56: 532110.4272 | CX56: 556577.0857 | CY56: 574346.3374 | CZ56: 595993.1548 | DA56: 620703.5536 | DB56: 637578.3324 | DC56: 660119.6227 | DD56: 684667.528 | DE56: 701569.1363 | DF56: 724083.5971 | DG56: 748468.6297 | DH56: 764801.1313 | DI56: 788210.0651 | DJ56: 811700.6247 | DK56: 828602.233 | DL56: 852174.0394 | DM56: 875691.4286 | DN56: 892023.9302 | DO56: 916300.5074 | DP56: 938923.4236 | DQ56: 955825.0319 | DR56: 980183.2349 | DS56: 1002724.525 | DT56: 1019680.551 | DU56: 1044390.95 | DV56: 1066146.223 | DW56: 1083807.019 | DX56: 1108273.677 | DY56: 1129947.324 | DZ56: 1147689.746 | EA56: 1172400.145 | EB56: 1193369.021 | EC56: 1211897.461 | ED56: 1236364.12 | EE56: 1257170.123 | EF56: 1275780.189 | EG56: 1300490.588 | EH56: 1320402.118 | EI56: =EI60 -> 1339906.657 | EJ56: 1364454.562 | EK56: 1384392.922 | EL56: 1403870.631 | EM56: 1428581.03 | EN56: 1448167.194 | EO56: 1467997.099 | EP56: 1492463.757 | EQ56: 1512293.662 | ER56: 1531961.073 | ES56: 1556671.472 | ET56: 1576257.637 | EU56: 1596087.541 | EV56: 1620554.2 | EW56: 1640384.104 | EX56: 1659970.269 | EY56: 1684680.668 | EZ56: 1704348.079 | FA56: 1724177.984 | FB56: 1748644.642 | FC56: 1768474.547 | FD56: 1788060.711 | FE56: 1739855.192 | FF56: 1666213.959 | FG56: 1591271.261 | FH56: 1522076.701 | FI56: 1447134.003 | FJ56: 1373492.77 | FK56: 1303430.566 | FL56: 1229463.967 | FM56: 1154846.635 | FN56: 1085652.074 | FO56: 1010492.466 | FP56: 937068.1436 | FQ56: 866355.2072 | FR56: 792171.6972 | FS56: 718422.0088 | FT56: 648359.8049 | FU56: 573200.1961 | FV56: 501077.3391 | FW56: 429255.5013 | FX56: 354343.7906 | FY56: 280866.3475 | FZ56: 214325.6248 | GA56: 158714.5528 | GB56: 114183.6411 | GC56: 76250.8032 | GD56: 39619.4304 | GE56: 19256.3712 | GF56: 0 | GG56: 0 | GH56: 0 | GI56: 0 | GJ56: 0 | GK56: 0 | GL56: 0 | GM56: 0 | GN56: 0 | GO56: 0 | GP56: 0 | GQ56: 0 | GR56: 0 | GS56: 0 | GT56: 0 | GU56: =GU60 -> 0 | GV56: 0 | GW56: 0 | GX56: 0 | GY56: 0 | GZ56: 0 | HA56: 0 | HB56: 0 | HC56: 0 | HD56: 0 | HE56: 0 | HF56: 0 | HG56: 0 | HH56: 0 | HI56: 0 | HJ56: 0 | HK56: 0 | HL56: 0 | HM56: 0 | HN56: 0 | HO56: 0 | HP56: 0 | HQ56: 0 | HR56: 0 | HS56: 0 | HT56: 0 | HU56: 0 | HV56: 0 | HW56: 0 | HX56: 0 | HY56: 0 | HZ56: 0 | IA56: 0 | IB56: 0 | IC56: 0 | ID56: 0 | IE56: 0 | IF56: 0 | IG56: 0 | IH56: 0 | II56: 0 | IJ56: 0 | IK56: 0 | IL56: 0 | IM56: 0 | IN56: 0 | IO56: 0 | IP56: 0 | IQ56: 0 | IR56: 0 | IS56: 0 | IT56: 0 | IU56: 0 | IV56: 0 | IW56: 0 | IX56: 0 | IY56: 0 | IZ56: 0 | JA56: 0 | JB56: 0 | JC56: 0 | JD56: 0 | JE56: 0 | JF56: 0 | JG56: =JG60 -> 0 | JH56: 0 | JI56: 0 | JJ56: 0 | JK56: 0 | JL56: 0 | JM56: 0 | JN56: 0 | JO56: 0 | JP56: 0 | JQ56: 0 | JR56: 0 | JS56: 0 | JT56: 0 | JU56: 0 | JV56: 0 | JW56: 0 | JX56: 0 | JY56: 0 | JZ56: 0 | KA56: 0 | KB56: 0 | KC56: 0 | KD56: 0 | KE56: 0 | KF56: 0 | KG56: 0 | KH56: 0 | KI56: 0 | KJ56: 0 | KK56: 0 | KL56: 0 | KM56: 0 | KN56: 0 | KO56: 0 | KP56: 0 | KQ56: 0 | KR56: 0 | KS56: 0 | KT56: 0 | KU56: 0 | KV56: 0 | KW56: 0
D57: Remaining Storage Available | E57: Tons | J57: =J55-J56 -> 500000 | K57: =K55-K56 -> 500000 | L57: 500000 | M57: 500000 | N57: 500000 | O57: 500000 | P57: 500000 | Q57: 500000 | R57: 500000 | S57: 500000 | T57: 500000 | U57: 500000 | V57: 500000 | W57: 500000 | X57: 500000 | Y57: 500000 | Z57: 500000 | AA57: 500000 | AB57: 500000 | AC57: 500000 | AD57: 500000 | AE57: 500000 | AF57: 500000 | AG57: 500000 | AH57: 500000 | AI57: 500000 | AJ57: 500000 | AK57: 500000 | AL57: 500000 | AM57: 500000 | AN57: 500000 | AO57: 500000 | AP57: 500000 | AQ57: 500000 | AR57: 500000 | AS57: 500000 | AT57: 500000 | AU57: 500000 | AV57: 500000 | AW57: 500000 | AX57: 500000 | AY57: 500000 | AZ57: 500000 | BA57: 500000 | BB57: 500000 | BC57: 500000 | BD57: 500000 | BE57: 500000 | BF57: 500000 | BG57: 500000 | BH57: 500000 | BI57: 500000 | BJ57: 500000 | BK57: 500000 | BL57: 500000 | BM57: 500000 | BN57: 500000 | BO57: 500000 | BP57: 500000 | BQ57: 500000 | BR57: 500000 | BS57: 500000 | BT57: 500000 | BU57: 500000 | BV57: 500000 | BW57: =BW55-BW56 -> 500000 | BX57: 500000 | BY57: 480170.0952 | BZ57: 455703.4368 | CA57: 435873.532 | CB57: 416287.3677 | CC57: 391576.9688 | CD57: 371990.8045 | CE57: 352160.8997 | CF57: 327612.9945 | CG57: 307783.0897 | CH57: 288196.9254 | CI57: 263486.5265 | CJ57: 243900.3622 | CK57: 224070.4574 | CL57: 199603.799 | CM57: 180099.2605 | CN57: 160106.483 | CO57: 135396.0842 | CP57: 116677.5632 | CQ57: 95980.01509 | CR57: 71513.35665 | CS57: 52876.46155 | CT57: 32097.28753 | CU57: 7386.88869 | CV57: -10545.23569 | CW57: -32110.42723 | CX57: -56577.08567 | CY57: -74346.33737 | CZ57: -95993.15479 | DA57: -120703.5536 | DB57: -137578.3324 | DC57: -160119.6227 | DD57: -184667.528 | DE57: -201569.1363 | DF57: -224083.5971 | DG57: -248468.6297 | DH57: -264801.1313 | DI57: -288210.0651 | DJ57: -311700.6247 | DK57: -328602.233 | DL57: -352174.0394 | DM57: -375691.4286 | DN57: -392023.9302 | DO57: -416300.5074 | DP57: -438923.4236 | DQ57: -455825.0319 | DR57: -480183.2349 | DS57: -502724.5253 | DT57: -519680.5509 | DU57: -544390.9497 | DV57: -566146.2225 | DW57: -583807.0188 | DX57: -608273.6773 | DY57: -629947.3242 | DZ57: -647689.7464 | EA57: -672400.1452 | EB57: -693369.0215 | EC57: -711897.4611 | ED57: -736364.1196 | EE57: -757170.1232 | EF57: -775780.1887 | EG57: -800490.5875 | EH57: -820402.1182 | EI57: =EI55-EI56 -> -839906.6567 | EJ57: -864454.5619 | EK57: -884392.9221 | EL57: -903870.631 | EM57: -928581.0299 | EN57: -948167.1942 | EO57: -967997.099 | EP57: -992463.7574 | EQ57: -1012293.662 | ER57: -1031961.073 | ES57: -1056671.472 | ET57: -1076257.637 | EU57: -1096087.541 | EV57: -1120554.2 | EW57: -1140384.104 | EX57: -1159970.269 | EY57: -1184680.668 | EZ57: -1204348.079 | FA57: -1224177.984 | FB57: -1248644.642 | FC57: -1268474.547 | FD57: -1288060.711 | FE57: -1239855.192 | FF57: -1166213.959 | FG57: -1091271.261 | FH57: -1022076.701 | FI57: -947134.0027 | FJ57: -873492.7698 | FK57: -803430.5659 | FL57: -729463.9667 | FM57: -654846.635 | FN57: -585652.0745 | FO57: -510492.4657 | FP57: -437068.1436 | FQ57: -366355.2072 | FR57: -292171.6972 | FS57: -218422.0088 | FT57: -148359.8049 | FU57: -73200.1961 | FV57: -1077.339136 | FW57: 70744.49869 | FX57: 145656.2094 | FY57: 219133.6525 | FZ57: 285674.3752 | GA57: 341285.4472 | GB57: 385816.3589 | GC57: 423749.1968 | GD57: 460380.5696 | GE57: 480743.6288 | GF57: 500000 | GG57: 500000 | GH57: 500000 | GI57: 500000 | GJ57: 500000 | GK57: 500000 | GL57: 500000 | GM57: 500000 | GN57: 500000 | GO57: 500000 | GP57: 500000 | GQ57: 500000 | GR57: 500000 | GS57: 500000 | GT57: 500000 | GU57: =GU55-GU56 -> 500000 | GV57: 500000 | GW57: 500000 | GX57: 500000 | GY57: 500000 | GZ57: 500000 | HA57: 500000 | HB57: 500000 | HC57: 500000 | HD57: 500000 | HE57: 500000 | HF57: 500000 | HG57: 500000 | HH57: 500000 | HI57: 500000 | HJ57: 500000 | HK57: 500000 | HL57: 500000 | HM57: 500000 | HN57: 500000 | HO57: 500000 | HP57: 500000 | HQ57: 500000 | HR57: 500000 | HS57: 500000 | HT57: 500000 | HU57: 500000 | HV57: 500000 | HW57: 500000 | HX57: 500000 | HY57: 500000 | HZ57: 500000 | IA57: 500000 | IB57: 500000 | IC57: 500000 | ID57: 500000 | IE57: 500000 | IF57: 500000 | IG57: 500000 | IH57: 500000 | II57: 500000 | IJ57: 500000 | IK57: 500000 | IL57: 500000 | IM57: 500000 | IN57: 500000 | IO57: 500000 | IP57: 500000 | IQ57: 500000 | IR57: 500000 | IS57: 500000 | IT57: 500000 | IU57: 500000 | IV57: 500000 | IW57: 500000 | IX57: 500000 | IY57: 500000 | IZ57: 500000 | JA57: 500000 | JB57: 500000 | JC57: 500000 | JD57: 500000 | JE57: 500000 | JF57: 500000 | JG57: =JG55-JG56 -> 500000 | JH57: 500000 | JI57: 500000 | JJ57: 500000 | JK57: 500000 | JL57: 500000 | JM57: 500000 | JN57: 500000 | JO57: 500000 | JP57: 500000 | JQ57: 500000 | JR57: 500000 | JS57: 500000 | JT57: 500000 | JU57: 500000 | JV57: 500000 | JW57: 500000 | JX57: 500000 | JY57: 500000 | JZ57: 500000 | KA57: 500000 | KB57: 500000 | KC57: 500000 | KD57: 500000 | KE57: 500000 | KF57: 500000 | KG57: 500000 | KH57: 500000 | KI57: 500000 | KJ57: 500000 | KK57: 500000 | KL57: 500000 | KM57: 500000 | KN57: 500000 | KO57: 500000 | KP57: 500000 | KQ57: 500000 | KR57: 500000 | KS57: 500000 | KT57: 500000 | KU57: 500000 | KV57: 500000 | KW57: 500000
D59: Storage
D60: Opening Balance | E60: Tons | J60: =I63 -> 0 | K60: =J63 -> 0 | L60: 0 | M60: 0 | N60: 0 | O60: 0 | P60: 0 | Q60: 0 | R60: 0 | S60: 0 | T60: 0 | U60: 0 | V60: 0 | W60: 0 | X60: 0 | Y60: 0 | Z60: 0 | AA60: 0 | AB60: 0 | AC60: 0 | AD60: 0 | AE60: 0 | AF60: 0 | AG60: 0 | AH60: 0 | AI60: 0 | AJ60: 0 | AK60: 0 | AL60: 0 | AM60: 0 | AN60: 0 | AO60: 0 | AP60: 0 | AQ60: 0 | AR60: 0 | AS60: 0 | AT60: 0 | AU60: 0 | AV60: 0 | AW60: 0 | AX60: 0 | AY60: 0 | AZ60: 0 | BA60: 0 | BB60: 0 | BC60: 0 | BD60: 0 | BE60: 0 | BF60: 0 | BG60: 0 | BH60: 0 | BI60: 0 | BJ60: 0 | BK60: 0 | BL60: 0 | BM60: 0 | BN60: 0 | BO60: 0 | BP60: 0 | BQ60: 0 | BR60: 0 | BS60: 0 | BT60: 0 | BU60: 0 | BV60: 0 | BW60: =BV63 -> 0 | BX60: 0 | BY60: 19829.90476 | BZ60: 44296.5632 | CA60: 64126.46796 | CB60: 83712.63232 | CC60: 108423.0312 | CD60: 128009.1955 | CE60: 147839.1003 | CF60: 172387.0055 | CG60: 192216.9103 | CH60: 211803.0746 | CI60: 236513.4735 | CJ60: 256099.6378 | CK60: 275929.5426 | CL60: 300396.201 | CM60: 319900.7395 | CN60: 339893.517 | CO60: 364603.9158 | CP60: 383322.4368 | CQ60: 404019.9849 | CR60: 428486.6434 | CS60: 447123.5384 | CT60: 467902.7125 | CU60: 492613.1113 | CV60: 510545.2357 | CW60: 532110.4272 | CX60: 556577.0857 | CY60: 574346.3374 | CZ60: 595993.1548 | DA60: 620703.5536 | DB60: 637578.3324 | DC60: 660119.6227 | DD60: 684667.528 | DE60: 701569.1363 | DF60: 724083.5971 | DG60: 748468.6297 | DH60: 764801.1313 | DI60: 788210.0651 | DJ60: 811700.6247 | DK60: 828602.233 | DL60: 852174.0394 | DM60: 875691.4286 | DN60: 892023.9302 | DO60: 916300.5074 | DP60: 938923.4236 | DQ60: 955825.0319 | DR60: 980183.2349 | DS60: 1002724.525 | DT60: 1019680.551 | DU60: 1044390.95 | DV60: 1066146.223 | DW60: 1083807.019 | DX60: 1108273.677 | DY60: 1129947.324 | DZ60: 1147689.746 | EA60: 1172400.145 | EB60: 1193369.021 | EC60: 1211897.461 | ED60: 1236364.12 | EE60: 1257170.123 | EF60: 1275780.189 | EG60: 1300490.588 | EH60: 1320402.118 | EI60: =EH63 -> 1339906.657 | EJ60: 1364454.562 | EK60: 1384392.922 | EL60: 1403870.631 | EM60: 1428581.03 | EN60: 1448167.194 | EO60: 1467997.099 | EP60: 1492463.757 | EQ60: 1512293.662 | ER60: 1531961.073 | ES60: 1556671.472 | ET60: 1576257.637 | EU60: 1596087.541 | EV60: 1620554.2 | EW60: 1640384.104 | EX60: 1659970.269 | EY60: 1684680.668 | EZ60: 1704348.079 | FA60: 1724177.984 | FB60: 1748644.642 | FC60: 1768474.547 | FD60: 1788060.711 | FE60: 1739855.192 | FF60: 1666213.959 | FG60: 1591271.261 | FH60: 1522076.701 | FI60: 1447134.003 | FJ60: 1373492.77 | FK60: 1303430.566 | FL60: 1229463.967 | FM60: 1154846.635 | FN60: 1085652.074 | FO60: 1010492.466 | FP60: 937068.1436 | FQ60: 866355.2072 | FR60: 792171.6972 | FS60: 718422.0088 | FT60: 648359.8049 | FU60: 573200.1961 | FV60: 501077.3391 | FW60: 429255.5013 | FX60: 354343.7906 | FY60: 280866.3475 | FZ60: 214325.6248 | GA60: 158714.5528 | GB60: 114183.6411 | GC60: 76250.8032 | GD60: 39619.4304 | GE60: 19256.3712 | GF60: 0 | GG60: 0 | GH60: 0 | GI60: 0 | GJ60: 0 | GK60: 0 | GL60: 0 | GM60: 0 | GN60: 0 | GO60: 0 | GP60: 0 | GQ60: 0 | GR60: 0 | GS60: 0 | GT60: 0 | GU60: =GT63 -> 0 | GV60: 0 | GW60: 0 | GX60: 0 | GY60: 0 | GZ60: 0 | HA60: 0 | HB60: 0 | HC60: 0 | HD60: 0 | HE60: 0 | HF60: 0 | HG60: 0 | HH60: 0 | HI60: 0 | HJ60: 0 | HK60: 0 | HL60: 0 | HM60: 0 | HN60: 0 | HO60: 0 | HP60: 0 | HQ60: 0 | HR60: 0 | HS60: 0 | HT60: 0 | HU60: 0 | HV60: 0 | HW60: 0 | HX60: 0 | HY60: 0 | HZ60: 0 | IA60: 0 | IB60: 0 | IC60: 0 | ID60: 0 | IE60: 0 | IF60: 0 | IG60: 0 | IH60: 0 | II60: 0 | IJ60: 0 | IK60: 0 | IL60: 0 | IM60: 0 | IN60: 0 | IO60: 0 | IP60: 0 | IQ60: 0 | IR60: 0 | IS60: 0 | IT60: 0 | IU60: 0 | IV60: 0 | IW60: 0 | IX60: 0 | IY60: 0 | IZ60: 0 | JA60: 0 | JB60: 0 | JC60: 0 | JD60: 0 | JE60: 0 | JF60: 0 | JG60: =JF63 -> 0 | JH60: 0 | JI60: 0 | JJ60: 0 | JK60: 0 | JL60: 0 | JM60: 0 | JN60: 0 | JO60: 0 | JP60: 0 | JQ60: 0 | JR60: 0 | JS60: 0 | JT60: 0 | JU60: 0 | JV60: 0 | JW60: 0 | JX60: 0 | JY60: 0 | JZ60: 0 | KA60: 0 | KB60: 0 | KC60: 0 | KD60: 0 | KE60: 0 | KF60: 0 | KG60: 0 | KH60: 0 | KI60: 0 | KJ60: 0 | KK60: 0 | KL60: 0 | KM60: 0 | KN60: 0 | KO60: 0 | KP60: 0 | KQ60: 0 | KR60: 0 | KS60: 0 | KT60: 0 | KU60: 0 | KV60: 0 | KW60: 0
D61: Add: Amount Stored | E61: Tons | H61: =SUM(J61:XFD61) -> 97900981.91 | J61: =J46-J48 -> 0 | K61: =K46-K48 -> 0 | L61: 0 | M61: 0 | N61: 0 | O61: 0 | P61: 0 | Q61: 0 | R61: 0 | S61: 0 | T61: 0 | U61: 0 | V61: 0 | W61: 0 | X61: 0 | Y61: 0 | Z61: 0 | AA61: 0 | AB61: 0 | AC61: 0 | AD61: 0 | AE61: 0 | AF61: 0 | AG61: 0 | AH61: 0 | AI61: 0 | AJ61: 0 | AK61: 0 | AL61: 0 | AM61: 0 | AN61: 0 | AO61: 0 | AP61: 0 | AQ61: 0 | AR61: 0 | AS61: 0 | AT61: 0 | AU61: 0 | AV61: 0 | AW61: 0 | AX61: 0 | AY61: 0 | AZ61: 0 | BA61: 0 | BB61: 0 | BC61: 0 | BD61: 0 | BE61: 0 | BF61: 0 | BG61: 0 | BH61: 0 | BI61: 0 | BJ61: 0 | BK61: 0 | BL61: 0 | BM61: 0 | BN61: 0 | BO61: 0 | BP61: 0 | BQ61: 0 | BR61: 0 | BS61: 0 | BT61: 0 | BU61: 0 | BV61: 0 | BW61: =BW46-BW48 -> 0 | BX61: 19829.90476 | BY61: 44296.5632 | BZ61: 64126.46796 | CA61: 83712.63232 | CB61: 108423.0312 | CC61: 128009.1955 | CD61: 147839.1003 | CE61: 172387.0055 | CF61: 192216.9103 | CG61: 211803.0746 | CH61: 236513.4735 | CI61: 256099.6378 | CJ61: 275929.5426 | CK61: 300396.201 | CL61: 319900.7395 | CM61: 339893.517 | CN61: 364603.9158 | CO61: 383322.4368 | CP61: 404019.9849 | CQ61: 428486.6434 | CR61: 447123.5384 | CS61: 467902.7125 | CT61: 492613.1113 | CU61: 510545.2357 | CV61: 532110.4272 | CW61: 556577.0857 | CX61: 574346.3374 | CY61: 595993.1548 | CZ61: 620703.5536 | DA61: 637578.3324 | DB61: 660119.6227 | DC61: 684667.528 | DD61: 701569.1363 | DE61: 724083.5971 | DF61: 748468.6297 | DG61: 764801.1313 | DH61: 788210.0651 | DI61: 811700.6247 | DJ61: 828602.233 | DK61: 852174.0394 | DL61: 875691.4286 | DM61: 892023.9302 | DN61: 916300.5074 | DO61: 938923.4236 | DP61: 955825.0319 | DQ61: 980183.2349 | DR61: 1002724.525 | DS61: 1019680.551 | DT61: 1044390.95 | DU61: 1066146.223 | DV61: 1083807.019 | DW61: 1108273.677 | DX61: 1129947.324 | DY61: 1147689.746 | DZ61: 1172400.145 | EA61: 1193369.021 | EB61: 1211897.461 | EC61: 1236364.12 | ED61: 1257170.123 | EE61: 1275780.189 | EF61: 1300490.588 | EG61: 1320402.118 | EH61: 1339906.657 | EI61: =EI46-EI48 -> 1364454.562 | EJ61: 1384392.922 | EK61: 1403870.631 | EL61: 1428581.03 | EM61: 1448167.194 | EN61: 1467997.099 | EO61: 1492463.757 | EP61: 1512293.662 | EQ61: 1531961.073 | ER61: 1556671.472 | ES61: 1576257.637 | ET61: 1596087.541 | EU61: 1620554.2 | EV61: 1640384.104 | EW61: 1659970.269 | EX61: 1684680.668 | EY61: 1704348.079 | EZ61: 1724177.984 | FA61: 1748644.642 | FB61: 1768474.547 | FC61: 1788060.711 | FD61: 1739855.192 | FE61: 1666213.959 | FF61: 1591271.261 | FG61: 1522076.701 | FH61: 1447134.003 | FI61: 1373492.77 | FJ61: 1303430.566 | FK61: 1229463.967 | FL61: 1154846.635 | FM61: 1085652.074 | FN61: 1010492.466 | FO61: 937068.1436 | FP61: 866355.2072 | FQ61: 792171.6972 | FR61: 718422.0088 | FS61: 648359.8049 | FT61: 573200.1961 | FU61: 501077.3391 | FV61: 429255.5013 | FW61: 354343.7906 | FX61: 280866.3475 | FY61: 214325.6248 | FZ61: 158714.5528 | GA61: 114183.6411 | GB61: 76250.8032 | GC61: 39619.4304 | GD61: 19256.3712 | GE61: 0 | GF61: 0 | GG61: 0 | GH61: 0 | GI61: 0 | GJ61: 0 | GK61: 0 | GL61: 0 | GM61: 0 | GN61: 0 | GO61: 0 | GP61: 0 | GQ61: 0 | GR61: 0 | GS61: 0 | GT61: 0 | GU61: =GU46-GU48 -> 0 | GV61: 0 | GW61: 0 | GX61: 0 | GY61: 0 | GZ61: 0 | HA61: 0 | HB61: 0 | HC61: 0 | HD61: 0 | HE61: 0 | HF61: 0 | HG61: 0 | HH61: 0 | HI61: 0 | HJ61: 0 | HK61: 0 | HL61: 0 | HM61: 0 | HN61: 0 | HO61: 0 | HP61: 0 | HQ61: 0 | HR61: 0 | HS61: 0 | HT61: 0 | HU61: 0 | HV61: 0 | HW61: 0 | HX61: 0 | HY61: 0 | HZ61: 0 | IA61: 0 | IB61: 0 | IC61: 0 | ID61: 0 | IE61: 0 | IF61: 0 | IG61: 0 | IH61: 0 | II61: 0 | IJ61: 0 | IK61: 0 | IL61: 0 | IM61: 0 | IN61: 0 | IO61: 0 | IP61: 0 | IQ61: 0 | IR61: 0 | IS61: 0 | IT61: 0 | IU61: 0 | IV61: 0 | IW61: 0 | IX61: 0 | IY61: 0 | IZ61: 0 | JA61: 0 | JB61: 0 | JC61: 0 | JD61: 0 | JE61: 0 | JF61: 0 | JG61: =JG46-JG48 -> 0 | JH61: 0 | JI61: 0 | JJ61: 0 | JK61: 0 | JL61: 0 | JM61: 0 | JN61: 0 | JO61: 0 | JP61: 0 | JQ61: 0 | JR61: 0 | JS61: 0 | JT61: 0 | JU61: 0 | JV61: 0 | JW61: 0 | JX61: 0 | JY61: 0 | JZ61: 0 | KA61: 0 | KB61: 0 | KC61: 0 | KD61: 0 | KE61: 0 | KF61: 0 | KG61: 0 | KH61: 0 | KI61: 0 | KJ61: 0 | KK61: 0 | KL61: 0 | KM61: 0 | KN61: 0 | KO61: 0 | KP61: 0 | KQ61: 0 | KR61: 0 | KS61: 0 | KT61: 0 | KU61: 0 | KV61: 0 | KW61: 0
D62: Less: Amount Removed from Storage | E62: Tons | H62: =SUM(J62:XFD62) -> 97900981.91 | J62: =J40 -> 0 | K62: =K40 -> 0 | L62: 0 | M62: 0 | N62: 0 | O62: 0 | P62: 0 | Q62: 0 | R62: 0 | S62: 0 | T62: 0 | U62: 0 | V62: 0 | W62: 0 | X62: 0 | Y62: 0 | Z62: 0 | AA62: 0 | AB62: 0 | AC62: 0 | AD62: 0 | AE62: 0 | AF62: 0 | AG62: 0 | AH62: 0 | AI62: 0 | AJ62: 0 | AK62: 0 | AL62: 0 | AM62: 0 | AN62: 0 | AO62: 0 | AP62: 0 | AQ62: 0 | AR62: 0 | AS62: 0 | AT62: 0 | AU62: 0 | AV62: 0 | AW62: 0 | AX62: 0 | AY62: 0 | AZ62: 0 | BA62: 0 | BB62: 0 | BC62: 0 | BD62: 0 | BE62: 0 | BF62: 0 | BG62: 0 | BH62: 0 | BI62: 0 | BJ62: 0 | BK62: 0 | BL62: 0 | BM62: 0 | BN62: 0 | BO62: 0 | BP62: 0 | BQ62: 0 | BR62: 0 | BS62: 0 | BT62: 0 | BU62: 0 | BV62: 0 | BW62: =BW40 -> 0 | BX62: 0 | BY62: 19829.90476 | BZ62: 44296.5632 | CA62: 64126.46796 | CB62: 83712.63232 | CC62: 108423.0312 | CD62: 128009.1955 | CE62: 147839.1003 | CF62: 172387.0055 | CG62: 192216.9103 | CH62: 211803.0746 | CI62: 236513.4735 | CJ62: 256099.6378 | CK62: 275929.5426 | CL62: 300396.201 | CM62: 319900.7395 | CN62: 339893.517 | CO62: 364603.9158 | CP62: 383322.4368 | CQ62: 404019.9849 | CR62: 428486.6434 | CS62: 447123.5384 | CT62: 467902.7125 | CU62: 492613.1113 | CV62: 510545.2357 | CW62: 532110.4272 | CX62: 556577.0857 | CY62: 574346.3374 | CZ62: 595993.1548 | DA62: 620703.5536 | DB62: 637578.3324 | DC62: 660119.6227 | DD62: 684667.528 | DE62: 701569.1363 | DF62: 724083.5971 | DG62: 748468.6297 | DH62: 764801.1313 | DI62: 788210.0651 | DJ62: 811700.6247 | DK62: 828602.233 | DL62: 852174.0394 | DM62: 875691.4286 | DN62: 892023.9302 | DO62: 916300.5074 | DP62: 938923.4236 | DQ62: 955825.0319 | DR62: 980183.2349 | DS62: 1002724.525 | DT62: 1019680.551 | DU62: 1044390.95 | DV62: 1066146.223 | DW62: 1083807.019 | DX62: 1108273.677 | DY62: 1129947.324 | DZ62: 1147689.746 | EA62: 1172400.145 | EB62: 1193369.021 | EC62: 1211897.461 | ED62: 1236364.12 | EE62: 1257170.123 | EF62: 1275780.189 | EG62: 1300490.588 | EH62: 1320402.118 | EI62: =EI40 -> 1339906.657 | EJ62: 1364454.562 | EK62: 1384392.922 | EL62: 1403870.631 | EM62: 1428581.03 | EN62: 1448167.194 | EO62: 1467997.099 | EP62: 1492463.757 | EQ62: 1512293.662 | ER62: 1531961.073 | ES62: 1556671.472 | ET62: 1576257.637 | EU62: 1596087.541 | EV62: 1620554.2 | EW62: 1640384.104 | EX62: 1659970.269 | EY62: 1684680.668 | EZ62: 1704348.079 | FA62: 1724177.984 | FB62: 1748644.642 | FC62: 1768474.547 | FD62: 1788060.711 | FE62: 1739855.192 | FF62: 1666213.959 | FG62: 1591271.261 | FH62: 1522076.701 | FI62: 1447134.003 | FJ62: 1373492.77 | FK62: 1303430.566 | FL62: 1229463.967 | FM62: 1154846.635 | FN62: 1085652.074 | FO62: 1010492.466 | FP62: 937068.1436 | FQ62: 866355.2072 | FR62: 792171.6972 | FS62: 718422.0088 | FT62: 648359.8049 | FU62: 573200.1961 | FV62: 501077.3391 | FW62: 429255.5013 | FX62: 354343.7906 | FY62: 280866.3475 | FZ62: 214325.6248 | GA62: 158714.5528 | GB62: 114183.6411 | GC62: 76250.8032 | GD62: 39619.4304 | GE62: 19256.3712 | GF62: 0 | GG62: 0 | GH62: 0 | GI62: 0 | GJ62: 0 | GK62: 0 | GL62: 0 | GM62: 0 | GN62: 0 | GO62: 0 | GP62: 0 | GQ62: 0 | GR62: 0 | GS62: 0 | GT62: 0 | GU62: =GU40 -> 0 | GV62: 0 | GW62: 0 | GX62: 0 | GY62: 0 | GZ62: 0 | HA62: 0 | HB62: 0 | HC62: 0 | HD62: 0 | HE62: 0 | HF62: 0 | HG62: 0 | HH62: 0 | HI62: 0 | HJ62: 0 | HK62: 0 | HL62: 0 | HM62: 0 | HN62: 0 | HO62: 0 | HP62: 0 | HQ62: 0 | HR62: 0 | HS62: 0 | HT62: 0 | HU62: 0 | HV62: 0 | HW62: 0 | HX62: 0 | HY62: 0 | HZ62: 0 | IA62: 0 | IB62: 0 | IC62: 0 | ID62: 0 | IE62: 0 | IF62: 0 | IG62: 0 | IH62: 0 | II62: 0 | IJ62: 0 | IK62: 0 | IL62: 0 | IM62: 0 | IN62: 0 | IO62: 0 | IP62: 0 | IQ62: 0 | IR62: 0 | IS62: 0 | IT62: 0 | IU62: 0 | IV62: 0 | IW62: 0 | IX62: 0 | IY62: 0 | IZ62: 0 | JA62: 0 | JB62: 0 | JC62: 0 | JD62: 0 | JE62: 0 | JF62: 0 | JG62: =JG40 -> 0 | JH62: 0 | JI62: 0 | JJ62: 0 | JK62: 0 | JL62: 0 | JM62: 0 | JN62: 0 | JO62: 0 | JP62: 0 | JQ62: 0 | JR62: 0 | JS62: 0 | JT62: 0 | JU62: 0 | JV62: 0 | JW62: 0 | JX62: 0 | JY62: 0 | JZ62: 0 | KA62: 0 | KB62: 0 | KC62: 0 | KD62: 0 | KE62: 0 | KF62: 0 | KG62: 0 | KH62: 0 | KI62: 0 | KJ62: 0 | KK62: 0 | KL62: 0 | KM62: 0 | KN62: 0 | KO62: 0 | KP62: 0 | KQ62: 0 | KR62: 0 | KS62: 0 | KT62: 0 | KU62: 0 | KV62: 0 | KW62: 0
D63: Closing Balance | E63: Tons | J63: =J60+J61-J62 -> 0 | K63: =K60+K61-K62 -> 0 | L63: 0 | M63: 0 | N63: 0 | O63: 0 | P63: 0 | Q63: 0 | R63: 0 | S63: 0 | T63: 0 | U63: 0 | V63: 0 | W63: 0 | X63: 0 | Y63: 0 | Z63: 0 | AA63: 0 | AB63: 0 | AC63: 0 | AD63: 0 | AE63: 0 | AF63: 0 | AG63: 0 | AH63: 0 | AI63: 0 | AJ63: 0 | AK63: 0 | AL63: 0 | AM63: 0 | AN63: 0 | AO63: 0 | AP63: 0 | AQ63: 0 | AR63: 0 | AS63: 0 | AT63: 0 | AU63: 0 | AV63: 0 | AW63: 0 | AX63: 0 | AY63: 0 | AZ63: 0 | BA63: 0 | BB63: 0 | BC63: 0 | BD63: 0 | BE63: 0 | BF63: 0 | BG63: 0 | BH63: 0 | BI63: 0 | BJ63: 0 | BK63: 0 | BL63: 0 | BM63: 0 | BN63: 0 | BO63: 0 | BP63: 0 | BQ63: 0 | BR63: 0 | BS63: 0 | BT63: 0 | BU63: 0 | BV63: 0 | BW63: =BW60+BW61-BW62 -> 0 | BX63: 19829.90476 | BY63: 44296.5632 | BZ63: 64126.46796 | CA63: 83712.63232 | CB63: 108423.0312 | CC63: 128009.1955 | CD63: 147839.1003 | CE63: 172387.0055 | CF63: 192216.9103 | CG63: 211803.0746 | CH63: 236513.4735 | CI63: 256099.6378 | CJ63: 275929.5426 | CK63: 300396.201 | CL63: 319900.7395 | CM63: 339893.517 | CN63: 364603.9158 | CO63: 383322.4368 | CP63: 404019.9849 | CQ63: 428486.6434 | CR63: 447123.5384 | CS63: 467902.7125 | CT63: 492613.1113 | CU63: 510545.2357 | CV63: 532110.4272 | CW63: 556577.0857 | CX63: 574346.3374 | CY63: 595993.1548 | CZ63: 620703.5536 | DA63: 637578.3324 | DB63: 660119.6227 | DC63: 684667.528 | DD63: 701569.1363 | DE63: 724083.5971 | DF63: 748468.6297 | DG63: 764801.1313 | DH63: 788210.0651 | DI63: 811700.6247 | DJ63: 828602.233 | DK63: 852174.0394 | DL63: 875691.4286 | DM63: 892023.9302 | DN63: 916300.5074 | DO63: 938923.4236 | DP63: 955825.0319 | DQ63: 980183.2349 | DR63: 1002724.525 | DS63: 1019680.551 | DT63: 1044390.95 | DU63: 1066146.223 | DV63: 1083807.019 | DW63: 1108273.677 | DX63: 1129947.324 | DY63: 1147689.746 | DZ63: 1172400.145 | EA63: 1193369.021 | EB63: 1211897.461 | EC63: 1236364.12 | ED63: 1257170.123 | EE63: 1275780.189 | EF63: 1300490.588 | EG63: 1320402.118 | EH63: 1339906.657 | EI63: =EI60+EI61-EI62 -> 1364454.562 | EJ63: 1384392.922 | EK63: 1403870.631 | EL63: 1428581.03 | EM63: 1448167.194 | EN63: 1467997.099 | EO63: 1492463.757 | EP63: 1512293.662 | EQ63: 1531961.073 | ER63: 1556671.472 | ES63: 1576257.637 | ET63: 1596087.541 | EU63: 1620554.2 | EV63: 1640384.104 | EW63: 1659970.269 | EX63: 1684680.668 | EY63: 1704348.079 | EZ63: 1724177.984 | FA63: 1748644.642 | FB63: 1768474.547 | FC63: 1788060.711 | FD63: 1739855.192 | FE63: 1666213.959 | FF63: 1591271.261 | FG63: 1522076.701 | FH63: 1447134.003 | FI63: 1373492.77 | FJ63: 1303430.566 | FK63: 1229463.967 | FL63: 1154846.635 | FM63: 1085652.074 | FN63: 1010492.466 | FO63: 937068.1436 | FP63: 866355.2072 | FQ63: 792171.6972 | FR63: 718422.0088 | FS63: 648359.8049 | FT63: 573200.1961 | FU63: 501077.3391 | FV63: 429255.5013 | FW63: 354343.7906 | FX63: 280866.3475 | FY63: 214325.6248 | FZ63: 158714.5528 | GA63: 114183.6411 | GB63: 76250.8032 | GC63: 39619.4304 | GD63: 19256.3712 | GE63: 0 | GF63: 0 | GG63: 0 | GH63: 0 | GI63: 0 | GJ63: 0 | GK63: 0 | GL63: 0 | GM63: 0 | GN63: 0 | GO63: 0 | GP63: 0 | GQ63: 0 | GR63: 0 | GS63: 0 | GT63: 0 | GU63: =GU60+GU61-GU62 -> 0 | GV63: 0 | GW63: 0 | GX63: 0 | GY63: 0 | GZ63: 0 | HA63: 0 | HB63: 0 | HC63: 0 | HD63: 0 | HE63: 0 | HF63: 0 | HG63: 0 | HH63: 0 | HI63: 0 | HJ63: 0 | HK63: 0 | HL63: 0 | HM63: 0 | HN63: 0 | HO63: 0 | HP63: 0 | HQ63: 0 | HR63: 0 | HS63: 0 | HT63: 0 | HU63: 0 | HV63: 0 | HW63: 0 | HX63: 0 | HY63: 0 | HZ63: 0 | IA63: 0 | IB63: 0 | IC63: 0 | ID63: 0 | IE63: 0 | IF63: 0 | IG63: 0 | IH63: 0 | II63: 0 | IJ63: 0 | IK63: 0 | IL63: 0 | IM63: 0 | IN63: 0 | IO63: 0 | IP63: 0 | IQ63: 0 | IR63: 0 | IS63: 0 | IT63: 0 | IU63: 0 | IV63: 0 | IW63: 0 | IX63: 0 | IY63: 0 | IZ63: 0 | JA63: 0 | JB63: 0 | JC63: 0 | JD63: 0 | JE63: 0 | JF63: 0 | JG63: =JG60+JG61-JG62 -> 0 | JH63: 0 | JI63: 0 | JJ63: 0 | JK63: 0 | JL63: 0 | JM63: 0 | JN63: 0 | JO63: 0 | JP63: 0 | JQ63: 0 | JR63: 0 | JS63: 0 | JT63: 0 | JU63: 0 | JV63: 0 | JW63: 0 | JX63: 0 | JY63: 0 | JZ63: 0 | KA63: 0 | KB63: 0 | KC63: 0 | KD63: 0 | KE63: 0 | KF63: 0 | KG63: 0 | KH63: 0 | KI63: 0 | KJ63: 0 | KK63: 0 | KL63: 0 | KM63: 0 | KN63: 0 | KO63: 0 | KP63: 0 | KQ63: 0 | KR63: 0 | KS63: 0 | KT63: 0 | KU63: 0 | KV63: 0 | KW63: 0
D65: Total Demand Met from Production and Storage | E65: Tons | J65: =J39 -> 0 | K65: 0 | L65: 0 | M65: 0 | N65: 0 | O65: 0 | P65: 0 | Q65: 0 | R65: 0 | S65: 0 | T65: 0 | U65: 0 | V65: 0 | W65: 0 | X65: 0 | Y65: 0 | Z65: 0 | AA65: 0 | AB65: 0 | AC65: 0 | AD65: 0 | AE65: 0 | AF65: 0 | AG65: 0 | AH65: 0 | AI65: 0 | AJ65: 0 | AK65: 0 | AL65: 0 | AM65: 0 | AN65: 0 | AO65: 0 | AP65: 0 | AQ65: 0 | AR65: 0 | AS65: 0 | AT65: 0 | AU65: 0 | AV65: 0 | AW65: 0 | AX65: 0 | AY65: 0 | AZ65: 0 | BA65: 0 | BB65: 0 | BC65: 0 | BD65: 0 | BE65: 0 | BF65: 0 | BG65: 0 | BH65: 0 | BI65: 0 | BJ65: 0 | BK65: 0 | BL65: 0 | BM65: 0 | BN65: 0 | BO65: 0 | BP65: 0 | BQ65: 0 | BR65: 0 | BS65: 0 | BT65: 0 | BU65: 0 | BV65: =BV39 -> 0 | BW65: 0 | BX65: 94772.60274 | BY65: 93227.39726 | BZ65: 94772.60274 | CA65: 93227.39726 | CB65: 94772.60274 | CC65: 93227.39726 | CD65: 94772.60274 | CE65: 93742.46575 | CF65: 94772.60274 | CG65: 93227.39726 | CH65: 94772.60274 | CI65: 93227.39726 | CJ65: 94772.60274 | CK65: 93227.39726 | CL65: 94772.60274 | CM65: 93742.46575 | CN65: 94772.60274 | CO65: 93227.39726 | CP65: 94772.60274 | CQ65: 93227.39726 | CR65: 94772.60274 | CS65: 93227.39726 | CT65: 94772.60274 | CU65: 93742.46575 | CV65: 94772.60274 | CW65: 93227.39726 | CX65: 94772.60274 | CY65: 93227.39726 | CZ65: 94772.60274 | DA65: 93227.39726 | DB65: 94772.60274 | DC65: 93742.46575 | DD65: 94772.60274 | DE65: 93227.39726 | DF65: 94772.60274 | DG65: 93227.39726 | DH65: 94772.60274 | DI65: 93227.39726 | DJ65: 94772.60274 | DK65: 93742.46575 | DL65: 94772.60274 | DM65: 93227.39726 | DN65: 94772.60274 | DO65: 93227.39726 | DP65: 94772.60274 | DQ65: 93227.39726 | DR65: 94772.60274 | DS65: 93742.46575 | DT65: 94772.60274 | DU65: 93227.39726 | DV65: 94772.60274 | DW65: 93227.39726 | DX65: 94772.60274 | DY65: 93227.39726 | DZ65: 94772.60274 | EA65: 93742.46575 | EB65: 94772.60274 | EC65: 93227.39726 | ED65: 94772.60274 | EE65: 93227.39726 | EF65: 94772.60274 | EG65: 93227.39726 | EH65: =EH39 -> 94772.60274 | EI65: 93742.46575 | EJ65: 94772.60274 | EK65: 93227.39726 | EL65: 94772.60274 | EM65: 93227.39726 | EN65: 94772.60274 | EO65: 93227.39726 | EP65: 94772.60274 | EQ65: 93742.46575 | ER65: 94772.60274 | ES65: 93227.39726 | ET65: 94772.60274 | EU65: 93227.39726 | EV65: 94772.60274 | EW65: 93227.39726 | EX65: 94772.60274 | EY65: 93742.46575 | EZ65: 94772.60274 | FA65: 93227.39726 | FB65: 94772.60274 | FC65: 93227.39726 | FD65: 94772.60274 | FE65: 93227.39726 | FF65: 94772.60274 | FG65: 93742.46575 | FH65: 94772.60274 | FI65: 93227.39726 | FJ65: 94772.60274 | FK65: 93227.39726 | FL65: 94772.60274 | FM65: 93227.39726 | FN65: 94772.60274 | FO65: 93742.46575 | FP65: 94772.60274 | FQ65: 93227.39726 | FR65: 94772.60274 | FS65: 93227.39726 | FT65: 94772.60274 | FU65: 93227.39726 | FV65: 94772.60274 | FW65: 93742.46575 | FX65: 94772.60274 | FY65: 93227.39726 | FZ65: 94772.60274 | GA65: 93227.39726 | GB65: 94772.60274 | GC65: 93227.39726 | GD65: 94772.60274 | GE65: 93742.46575 | GF65: 0 | GG65: 0 | GH65: 0 | GI65: 0 | GJ65: 0 | GK65: 0 | GL65: 0 | GM65: 0 | GN65: 0 | GO65: 0 | GP65: 0 | GQ65: 0 | GR65: 0 | GS65: 0 | GT65: =GT39 -> 0 | GU65: 0 | GV65: 0 | GW65: 0 | GX65: 0 | GY65: 0 | GZ65: 0 | HA65: 0 | HB65: 0 | HC65: 0 | HD65: 0 | HE65: 0 | HF65: 0 | HG65: 0 | HH65: 0 | HI65: 0 | HJ65: 0 | HK65: 0 | HL65: 0 | HM65: 0 | HN65: 0 | HO65: 0 | HP65: 0 | HQ65: 0 | HR65: 0 | HS65: 0 | HT65: 0 | HU65: 0 | HV65: 0 | HW65: 0 | HX65: 0 | HY65: 0 | HZ65: 0 | IA65: 0 | IB65: 0 | IC65: 0 | ID65: 0 | IE65: 0 | IF65: 0 | IG65: 0 | IH65: 0 | II65: 0 | IJ65: 0 | IK65: 0 | IL65: 0 | IM65: 0 | IN65: 0 | IO65: 0 | IP65: 0 | IQ65: 0 | IR65: 0 | IS65: 0 | IT65: 0 | IU65: 0 | IV65: 0 | IW65: 0 | IX65: 0 | IY65: 0 | IZ65: 0 | JA65: 0 | JB65: 0 | JC65: 0 | JD65: 0 | JE65: 0 | JF65: =JF39 -> 0 | JG65: 0 | JH65: 0 | JI65: 0 | JJ65: 0 | JK65: 0 | JL65: 0 | JM65: 0 | JN65: 0 | JO65: 0 | JP65: 0 | JQ65: 0 | JR65: 0 | JS65: 0 | JT65: 0 | JU65: 0 | JV65: 0 | JW65: 0 | JX65: 0 | JY65: 0 | JZ65: 0 | KA65: 0 | KB65: 0 | KC65: 0 | KD65: 0 | KE65: 0 | KF65: 0 | KG65: 0 | KH65: 0 | KI65: 0 | KJ65: 0 | KK65: 0 | KL65: 0 | KM65: 0 | KN65: 0 | KO65: 0 | KP65: 0 | KQ65: 0 | KR65: 0 | KS65: 0 | KT65: 0 | KU65: 0 | KV65: 0 | KW65: 0
D67: Total Purchased from Market | E67: Tons | H67: =SUM(J67:XFD67) -> 718547.0646 | J67: =J45 -> 6518.39232 | K67: =K45 -> 5887.58016 | L67: 6518.39232 | M67: 4310.54976 | N67: 3259.19616 | O67: 6132.314309 | P67: 9852.414568 | Q67: 9852.414568 | R67: 9534.594743 | S67: 8906.196328 | T67: 6380.533943 | U67: 9273.136061 | V67: 9916.316298 | W67: 9276.553956 | X67: 9916.316298 | Y67: 9596.435127 | Z67: 9916.316298 | AA67: 10455.22502 | AB67: 12712.69554 | AC67: 9949.251333 | AD67: 9953.20571 | AE67: 9978.719522 | AF67: 11696.45133 | AG67: 13306.53034 | AH67: 13306.53034 | AI67: 12018.8016 | AJ67: 13306.53034 | AK67: 11162.14013 | AL67: 10198.12992 | AM67: 12881.84832 | AN67: 12881.84832 | AO67: 9983.432448 | AP67: 10198.28136 | AQ67: 13312.1822 | AR67: 12882.75697 | AS67: 13312.1822 | AT67: 11272.55622 | AU67: 9233.675533 | AV67: 12251.65539 | AW67: 9674.837353 | AX67: 12803.6588 | AY67: 12912.90682 | AZ67: 13343.33704 | BA67: 13343.33704 | BB67: 12912.90682 | BC67: 12377.19842 | BD67: 9692.444738 | BE67: 12725.07096 | BF67: 11442.53926 | BG67: 9182.814596 | BH67: 13408.73008 | BI67: 12976.1904 | BJ67: 13408.73008 | BK67: 12976.1904 | BL67: 10714.55963 | BM67: 11260.96839 | BN67: 12780.97728 | BO67: 10084.07175 | BP67: 11710.97675 | BQ67: 13446.1899 | BR67: 13446.1899 | BS67: 12578.69377 | BT67: 13446.1899 | BU67: 13012.44184 | BV67: 10086.35443 | BW67: =BW45 -> 11496.27494 | BX67: 0 | BY67: 0 | BZ67: 0 | CA67: 0 | CB67: 0 | CC67: 0 | CD67: 0 | CE67: 0 | CF67: 0 | CG67: 0 | CH67: 0 | CI67: 0 | CJ67: 0 | CK67: 0 | CL67: 0 | CM67: 0 | CN67: 0 | CO67: 0 | CP67: 0 | CQ67: 0 | CR67: 0 | CS67: 0 | CT67: 0 | CU67: 0 | CV67: 0 | CW67: 0 | CX67: 0 | CY67: 0 | CZ67: 0 | DA67: 0 | DB67: 0 | DC67: 0 | DD67: 0 | DE67: 0 | DF67: 0 | DG67: 0 | DH67: 0 | DI67: 0 | DJ67: 0 | DK67: 0 | DL67: 0 | DM67: 0 | DN67: 0 | DO67: 0 | DP67: 0 | DQ67: 0 | DR67: 0 | DS67: 0 | DT67: 0 | DU67: 0 | DV67: 0 | DW67: 0 | DX67: 0 | DY67: 0 | DZ67: 0 | EA67: 0 | EB67: 0 | EC67: 0 | ED67: 0 | EE67: 0 | EF67: 0 | EG67: 0 | EH67: 0 | EI67: =EI45 -> 0 | EJ67: 0 | EK67: 0 | EL67: 0 | EM67: 0 | EN67: 0 | EO67: 0 | EP67: 0 | EQ67: 0 | ER67: 0 | ES67: 0 | ET67: 0 | EU67: 0 | EV67: 0 | EW67: 0 | EX67: 0 | EY67: 0 | EZ67: 0 | FA67: 0 | FB67: 0 | FC67: 0 | FD67: 0 | FE67: 0 | FF67: 0 | FG67: 0 | FH67: 0 | FI67: 0 | FJ67: 0 | FK67: 0 | FL67: 0 | FM67: 0 | FN67: 0 | FO67: 0 | FP67: 0 | FQ67: 0 | FR67: 0 | FS67: 0 | FT67: 0 | FU67: 0 | FV67: 0 | FW67: 0 | FX67: 0 | FY67: 0 | FZ67: 0 | GA67: 0 | GB67: 0 | GC67: 0 | GD67: 0 | GE67: 0 | GF67: 0 | GG67: 0 | GH67: 0 | GI67: 0 | GJ67: 0 | GK67: 0 | GL67: 0 | GM67: 0 | GN67: 0 | GO67: 0 | GP67: 0 | GQ67: 0 | GR67: 0 | GS67: 0 | GT67: 0 | GU67: =GU45 -> 0 | GV67: 0 | GW67: 0 | GX67: 0 | GY67: 0 | GZ67: 0 | HA67: 0 | HB67: 0 | HC67: 0 | HD67: 0 | HE67: 0 | HF67: 0 | HG67: 0 | HH67: 0 | HI67: 0 | HJ67: 0 | HK67: 0 | HL67: 0 | HM67: 0 | HN67: 0 | HO67: 0 | HP67: 0 | HQ67: 0 | HR67: 0 | HS67: 0 | HT67: 0 | HU67: 0 | HV67: 0 | HW67: 0 | HX67: 0 | HY67: 0 | HZ67: 0 | IA67: 0 | IB67: 0 | IC67: 0 | ID67: 0 | IE67: 0 | IF67: 0 | IG67: 0 | IH67: 0 | II67: 0 | IJ67: 0 | IK67: 0 | IL67: 0 | IM67: 0 | IN67: 0 | IO67: 0 | IP67: 0 | IQ67: 0 | IR67: 0 | IS67: 0 | IT67: 0 | IU67: 0 | IV67: 0 | IW67: 0 | IX67: 0 | IY67: 0 | IZ67: 0 | JA67: 0 | JB67: 0 | JC67: 0 | JD67: 0 | JE67: 0 | JF67: 0 | JG67: =JG45 -> 0 | JH67: 0 | JI67: 0 | JJ67: 0 | JK67: 0 | JL67: 0 | JM67: 0 | JN67: 0 | JO67: 0 | JP67: 0 | JQ67: 0 | JR67: 0 | JS67: 0 | JT67: 0 | JU67: 0 | JV67: 0 | JW67: 0 | JX67: 0 | JY67: 0 | JZ67: 0 | KA67: 0 | KB67: 0 | KC67: 0 | KD67: 0 | KE67: 0 | KF67: 0 | KG67: 0 | KH67: 0 | KI67: 0 | KJ67: 0 | KK67: 0 | KL67: 0 | KM67: 0 | KN67: 0 | KO67: 0 | KP67: 0 | KQ67: 0 | KR67: 0 | KS67: 0 | KT67: 0 | KU67: 0 | KV67: 0 | KW67: 0
D69: Target Losses in Contract | E69: Percent | J69: 0.05 | K69: 0.05 | L69: 0.05 | M69: 0.05 | N69: 0.05 | O69: 0.05 | P69: 0.05 | Q69: 0.05 | R69: 0.05 | S69: 0.05 | T69: 0.05 | U69: 0.05 | V69: 0.05 | W69: 0.05 | X69: 0.05 | Y69: 0.05 | Z69: 0.05 | AA69: 0.05 | AB69: 0.05 | AC69: 0.05 | AD69: 0.05 | AE69: 0.05 | AF69: 0.05 | AG69: 0.05 | AH69: 0.05 | AI69: 0.05 | AJ69: 0.05 | AK69: 0.05 | AL69: 0.05 | AM69: 0.05 | AN69: 0.05 | AO69: 0.05 | AP69: 0.05 | AQ69: 0.05 | AR69: 0.05 | AS69: 0.05 | AT69: 0.05 | AU69: 0.05 | AV69: 0.05 | AW69: 0.05 | AX69: 0.05 | AY69: 0.05 | AZ69: 0.05 | BA69: 0.05 | BB69: 0.05 | BC69: 0.05 | BD69: 0.05 | BE69: 0.05 | BF69: 0.05 | BG69: 0.05 | BH69: 0.05 | BI69: 0.05 | BJ69: 0.05 | BK69: 0.05 | BL69: 0.05 | BM69: 0.05 | BN69: 0.05 | BO69: 0.05 | BP69: 0.05 | BQ69: 0.05 | BR69: 0.05 | BS69: 0.05 | BT69: 0.05 | BU69: 0.05 | BV69: 0.05 | BW69: 0.05 | BX69: 0.05 | BY69: 0.05 | BZ69: 0.05 | CA69: 0.05 | CB69: 0.05 | CC69: 0.05 | CD69: 0.05 | CE69: 0.05 | CF69: 0.05 | CG69: 0.05 | CH69: 0.05 | CI69: 0.05 | CJ69: 0.05 | CK69: 0.05 | CL69: 0.05 | CM69: 0.05 | CN69: 0.05 | CO69: 0.05 | CP69: 0.05 | CQ69: 0.05 | CR69: 0.05 | CS69: 0.05 | CT69: 0.05 | CU69: 0.05 | CV69: 0.05 | CW69: 0.05 | CX69: 0.05 | CY69: 0.05 | CZ69: 0.05 | DA69: 0.05 | DB69: 0.05 | DC69: 0.05 | DD69: 0.05 | DE69: 0.05 | DF69: 0.05 | DG69: 0.05 | DH69: 0.05 | DI69: 0.05 | DJ69: 0.05 | DK69: 0.05 | DL69: 0.05 | DM69: 0.05 | DN69: 0.05 | DO69: 0.05 | DP69: 0.05 | DQ69: 0.05 | DR69: 0.05 | DS69: 0.05 | DT69: 0.05 | DU69: 0.05 | DV69: 0.05 | DW69: 0.05 | DX69: 0.05 | DY69: 0.05 | DZ69: 0.05 | EA69: 0.05 | EB69: 0.05 | EC69: 0.05 | ED69: 0.05 | EE69: 0.05 | EF69: 0.05 | EG69: 0.05 | EH69: 0.05 | EI69: 0.05 | EJ69: 0.05 | EK69: 0.05 | EL69: 0.05 | EM69: 0.05 | EN69: 0.05 | EO69: 0.05 | EP69: 0.05 | EQ69: 0.05 | ER69: 0.05 | ES69: 0.05 | ET69: 0.05 | EU69: 0.05 | EV69: 0.05 | EW69: 0.05 | EX69: 0.05 | EY69: 0.05 | EZ69: 0.05 | FA69: 0.05 | FB69: 0.05 | FC69: 0.05 | FD69: 0.05 | FE69: 0.05 | FF69: 0.05 | FG69: 0.05 | FH69: 0.05 | FI69: 0.05 | FJ69: 0.05 | FK69: 0.05 | FL69: 0.05 | FM69: 0.05 | FN69: 0.05 | FO69: 0.05 | FP69: 0.05 | FQ69: 0.05 | FR69: 0.05 | FS69: 0.05 | FT69: 0.05 | FU69: 0.05 | FV69: 0.05 | FW69: 0.05 | FX69: 0.05 | FY69: 0.05 | FZ69: 0.05 | GA69: 0.05 | GB69: 0.05 | GC69: 0.05 | GD69: 0.05 | GE69: 0.05 | GF69: 0.05 | GG69: 0.05 | GH69: 0.05 | GI69: 0.05 | GJ69: 0.05 | GK69: 0.05 | GL69: 0.05 | GM69: 0.05 | GN69: 0.05 | GO69: 0.05 | GP69: 0.05 | GQ69: 0.05 | GR69: 0.05 | GS69: 0.05 | GT69: 0.05 | GU69: 0.05 | GV69: 0.05 | GW69: 0.05 | GX69: 0.05 | GY69: 0.05 | GZ69: 0.05 | HA69: 0.05 | HB69: 0.05 | HC69: 0.05 | HD69: 0.05 | HE69: 0.05 | HF69: 0.05 | HG69: 0.05 | HH69: 0.05 | HI69: 0.05 | HJ69: 0.05 | HK69: 0.05 | HL69: 0.05 | HM69: 0.05 | HN69: 0.05 | HO69: 0.05 | HP69: 0.05 | HQ69: 0.05 | HR69: 0.05 | HS69: 0.05 | HT69: 0.05 | HU69: 0.05 | HV69: 0.05 | HW69: 0.05 | HX69: 0.05 | HY69: 0.05 | HZ69: 0.05 | IA69: 0.05 | IB69: 0.05 | IC69: 0.05 | ID69: 0.05 | IE69: 0.05 | IF69: 0.05 | IG69: 0.05 | IH69: 0.05 | II69: 0.05 | IJ69: 0.05 | IK69: 0.05 | IL69: 0.05 | IM69: 0.05 | IN69: 0.05 | IO69: 0.05 | IP69: 0.05 | IQ69: 0.05 | IR69: 0.05 | IS69: 0.05 | IT69: 0.05 | IU69: 0.05 | IV69: 0.05 | IW69: 0.05 | IX69: 0.05 | IY69: 0.05 | IZ69: 0.05 | JA69: 0.05 | JB69: 0.05 | JC69: 0.05 | JD69: 0.05 | JE69: 0.05 | JF69: 0.05 | JG69: 0.05 | JH69: 0.05 | JI69: 0.05 | JJ69: 0.05 | JK69: 0.05 | JL69: 0.05 | JM69: 0.05 | JN69: 0.05 | JO69: 0.05 | JP69: 0.05 | JQ69: 0.05 | JR69: 0.05 | JS69: 0.05 | JT69: 0.05 | JU69: 0.05 | JV69: 0.05 | JW69: 0.05 | JX69: 0.05 | JY69: 0.05 | JZ69: 0.05 | KA69: 0.05 | KB69: 0.05 | KC69: 0.05 | KD69: 0.05 | KE69: 0.05 | KF69: 0.05 | KG69: 0.05 | KH69: 0.05 | KI69: 0.05 | KJ69: 0.05 | KK69: 0.05 | KL69: 0.05 | KM69: 0.05 | KN69: 0.05 | KO69: 0.05 | KP69: 0.05 | KQ69: 0.05 | KR69: 0.05 | KS69: 0.05 | KT69: 0.05 | KU69: 0.05 | KV69: 0.05 | KW69: 0.05
D70: Quantity Purchased in Contract | E70: Tons | H70: =SUM(J70:KW70) -> 8340007.758 | J70: =J49/(1-J69) -> 0 | K70: =K49/(1-K69) -> 0 | L70: =L49/(1-L69) -> 0 | M70: =M49/(1-M69) -> 0 | N70: =N49/(1-N69) -> 0 | O70: =O49/(1-O69) -> 0 | P70: =P49/(1-P69) -> 0 | Q70: =Q49/(1-Q69) -> 0 | R70: =R49/(1-R69) -> 0 | S70: =S49/(1-S69) -> 0 | T70: =T49/(1-T69) -> 0 | U70: =U49/(1-U69) -> 0 | V70: =V49/(1-V69) -> 0 | W70: =W49/(1-W69) -> 0 | X70: =X49/(1-X69) -> 0 | Y70: =Y49/(1-Y69) -> 0 | Z70: =Z49/(1-Z69) -> 0 | AA70: =AA49/(1-AA69) -> 0 | AB70: =AB49/(1-AB69) -> 0 | AC70: =AC49/(1-AC69) -> 0 | AD70: =AD49/(1-AD69) -> 0 | AE70: =AE49/(1-AE69) -> 0 | AF70: =AF49/(1-AF69) -> 0 | AG70: =AG49/(1-AG69) -> 0 | AH70: =AH49/(1-AH69) -> 0 | AI70: =AI49/(1-AI69) -> 0 | AJ70: =AJ49/(1-AJ69) -> 0 | AK70: =AK49/(1-AK69) -> 0 | AL70: =AL49/(1-AL69) -> 0 | AM70: =AM49/(1-AM69) -> 0 | AN70: =AN49/(1-AN69) -> 0 | AO70: =AO49/(1-AO69) -> 0 | AP70: =AP49/(1-AP69) -> 0 | AQ70: =AQ49/(1-AQ69) -> 0 | AR70: =AR49/(1-AR69) -> 0 | AS70: =AS49/(1-AS69) -> 0 | AT70: =AT49/(1-AT69) -> 0 | AU70: =AU49/(1-AU69) -> 0 | AV70: =AV49/(1-AV69) -> 0 | AW70: =AW49/(1-AW69) -> 0 | AX70: =AX49/(1-AX69) -> 0 | AY70: =AY49/(1-AY69) -> 0 | AZ70: =AZ49/(1-AZ69) -> 0 | BA70: =BA49/(1-BA69) -> 0 | BB70: =BB49/(1-BB69) -> 0 | BC70: =BC49/(1-BC69) -> 0 | BD70: =BD49/(1-BD69) -> 0 | BE70: =BE49/(1-BE69) -> 0 | BF70: =BF49/(1-BF69) -> 0 | BG70: =BG49/(1-BG69) -> 0 | BH70: =BH49/(1-BH69) -> 0 | BI70: =BI49/(1-BI69) -> 0 | BJ70: =BJ49/(1-BJ69) -> 0 | BK70: =BK49/(1-BK69) -> 0 | BL70: =BL49/(1-BL69) -> 0 | BM70: =BM49/(1-BM69) -> 0 | BN70: =BN49/(1-BN69) -> 0 | BO70: =BO49/(1-BO69) -> 0 | BP70: =BP49/(1-BP69) -> 0 | BQ70: =BQ49/(1-BQ69) -> 0 | BR70: =BR49/(1-BR69) -> 0 | BS70: =BS49/(1-BS69) -> 0 | BT70: =BT49/(1-BT69) -> 0 | BU70: =BU49/(1-BU69) -> 0 | BV70: =BV49/(1-BV69) -> 0 | BW70: =BW49/(1-BW69) -> 0 | BX70: =BX49/(1-BX69) -> 99760.63446 | BY70: =BY49/(1-BY69) -> 98134.10238 | BZ70: =BZ49/(1-BZ69) -> 99760.63446 | CA70: =CA49/(1-CA69) -> 98134.10238 | CB70: =CB49/(1-CB69) -> 99760.63446 | CC70: =CC49/(1-CC69) -> 98134.10238 | CD70: =CD49/(1-CD69) -> 99760.63446 | CE70: =CE49/(1-CE69) -> 98676.27974 | CF70: =CF49/(1-CF69) -> 99760.63446 | CG70: =CG49/(1-CG69) -> 98134.10238 | CH70: =CH49/(1-CH69) -> 99760.63446 | CI70: =CI49/(1-CI69) -> 98134.10238 | CJ70: =CJ49/(1-CJ69) -> 99760.63446 | CK70: =CK49/(1-CK69) -> 98134.10238 | CL70: =CL49/(1-CL69) -> 99760.63446 | CM70: =CM49/(1-CM69) -> 98676.27974 | CN70: =CN49/(1-CN69) -> 99760.63446 | CO70: =CO49/(1-CO69) -> 98134.10238 | CP70: =CP49/(1-CP69) -> 99760.63446 | CQ70: =CQ49/(1-CQ69) -> 98134.10238 | CR70: =CR49/(1-CR69) -> 99760.63446 | CS70: =CS49/(1-CS69) -> 98134.10238 | CT70: =CT49/(1-CT69) -> 99760.63446 | CU70: =CU49/(1-CU69) -> 98676.27974 | CV70: =CV49/(1-CV69) -> 99760.63446 | CW70: =CW49/(1-CW69) -> 98134.10238 | CX70: =CX49/(1-CX69) -> 99760.63446 | CY70: =CY49/(1-CY69) -> 98134.10238 | CZ70: =CZ49/(1-CZ69) -> 99760.63446 | DA70: =DA49/(1-DA69) -> 98134.10238 | DB70: =DB49/(1-DB69) -> 99760.63446 | DC70: =DC49/(1-DC69) -> 98676.27974 | DD70: =DD49/(1-DD69) -> 99760.63446 | DE70: =DE49/(1-DE69) -> 98134.10238 | DF70: =DF49/(1-DF69) -> 99760.63446 | DG70: =DG49/(1-DG69) -> 98134.10238 | DH70: =DH49/(1-DH69) -> 99760.63446 | DI70: =DI49/(1-DI69) -> 98134.10238 | DJ70: =DJ49/(1-DJ69) -> 99760.63446 | DK70: =DK49/(1-DK69) -> 98676.27974 | DL70: =DL49/(1-DL69) -> 99760.63446 | DM70: =DM49/(1-DM69) -> 98134.10238 | DN70: =DN49/(1-DN69) -> 99760.63446 | DO70: =DO49/(1-DO69) -> 98134.10238 | DP70: =DP49/(1-DP69) -> 99760.63446 | DQ70: =DQ49/(1-DQ69) -> 98134.10238 | DR70: =DR49/(1-DR69) -> 99760.63446 | DS70: =DS49/(1-DS69) -> 98676.27974 | DT70: =DT49/(1-DT69) -> 99760.63446 | DU70: =DU49/(1-DU69) -> 98134.10238 | DV70: =DV49/(1-DV69) -> 99760.63446 | DW70: =DW49/(1-DW69) -> 98134.10238 | DX70: =DX49/(1-DX69) -> 99760.63446 | DY70: =DY49/(1-DY69) -> 98134.10238 | DZ70: =DZ49/(1-DZ69) -> 99760.63446 | EA70: =EA49/(1-EA69) -> 98676.27974 | EB70: =EB49/(1-EB69) -> 99760.63446 | EC70: =EC49/(1-EC69) -> 98134.10238 | ED70: =ED49/(1-ED69) -> 99760.63446 | EE70: =EE49/(1-EE69) -> 98134.10238 | EF70: =EF49/(1-EF69) -> 99760.63446 | EG70: =EG49/(1-EG69) -> 98134.10238 | EH70: =EH49/(1-EH69) -> 99760.63446 | EI70: =EI49/(1-EI69) -> 98676.27974 | EJ70: =EJ49/(1-EJ69) -> 99760.63446 | EK70: =EK49/(1-EK69) -> 98134.10238 | EL70: =EL49/(1-EL69) -> 99760.63446 | EM70: =EM49/(1-EM69) -> 98134.10238 | EN70: =EN49/(1-EN69) -> 99760.63446 | EO70: =EO49/(1-EO69) -> 98134.10238 | EP70: =EP49/(1-EP69) -> 99760.63446 | EQ70: =EQ49/(1-EQ69) -> 98676.27974 | ER70: =ER49/(1-ER69) -> 99760.63446 | ES70: =ES49/(1-ES69) -> 98134.10238 | ET70: =ET49/(1-ET69) -> 99760.63446 | EU70: =EU49/(1-EU69) -> 98134.10238 | EV70: =EV49/(1-EV69) -> 99760.63446 | EW70: =EW49/(1-EW69) -> 98134.10238 | EX70: =EX49/(1-EX69) -> 99760.63446 | EY70: =EY49/(1-EY69) -> 98676.27974 | EZ70: =EZ49/(1-EZ69) -> 99760.63446 | FA70: =FA49/(1-FA69) -> 98134.10238 | FB70: =FB49/(1-FB69) -> 99760.63446 | FC70: =FC49/(1-FC69) -> 98134.10238 | FD70: =FD49/(1-FD69) -> 23007.03663 | FE70: =FE49/(1-FE69) -> 1.684958605e-10 | FF70: =FF49/(1-FF69) -> -1.83813666e-10 | FG70: =FG49/(1-FG69) -> 0 | FH70: =FH49/(1-FH69) -> 0 | FI70: =FI49/(1-FI69) -> 1.684958605e-10 | FJ70: =FJ49/(1-FJ69) -> 0 | FK70: =FK49/(1-FK69) -> 1.684958605e-10 | FL70: =FL49/(1-FL69) -> 0 | FM70: =FM49/(1-FM69) -> 1.684958605e-10 | FN70: =FN49/(1-FN69) -> 0 | FO70: =FO49/(1-FO69) -> 0 | FP70: =FP49/(1-FP69) -> 1.83813666e-10 | FQ70: =FQ49/(1-FQ69) -> 1.684958605e-10 | FR70: =FR49/(1-FR69) -> 0 | FS70: =FS49/(1-FS69) -> 1.684958605e-10 | FT70: =FT49/(1-FT69) -> 0 | FU70: =FU49/(1-FU69) -> 1.684958605e-10 | FV70: =FV49/(1-FV69) -> 0 | FW70: =FW49/(1-FW69) -> 0 | FX70: =FX49/(1-FX69) -> 0 | FY70: =FY49/(1-FY69) -> 0 | FZ70: =FZ49/(1-FZ69) -> 0 | GA70: =GA49/(1-GA69) -> 0 | GB70: =GB49/(1-GB69) -> 0 | GC70: =GC49/(1-GC69) -> 0 | GD70: =GD49/(1-GD69) -> 0 | GE70: =GE49/(1-GE69) -> 0 | GF70: =GF49/(1-GF69) -> 0 | GG70: =GG49/(1-GG69) -> 0 | GH70: =GH49/(1-GH69) -> 0 | GI70: =GI49/(1-GI69) -> 0 | GJ70: =GJ49/(1-GJ69) -> 0 | GK70: =GK49/(1-GK69) -> 0 | GL70: =GL49/(1-GL69) -> 0 | GM70: =GM49/(1-GM69) -> 0 | GN70: =GN49/(1-GN69) -> 0 | GO70: =GO49/(1-GO69) -> 0 | GP70: =GP49/(1-GP69) -> 0 | GQ70: =GQ49/(1-GQ69) -> 0 | GR70: =GR49/(1-GR69) -> 0 | GS70: =GS49/(1-GS69) -> 0 | GT70: =GT49/(1-GT69) -> 0 | GU70: =GU49/(1-GU69) -> 0 | GV70: =GV49/(1-GV69) -> 0 | GW70: =GW49/(1-GW69) -> 0 | GX70: =GX49/(1-GX69) -> 0 | GY70: =GY49/(1-GY69) -> 0 | GZ70: =GZ49/(1-GZ69) -> 0 | HA70: =HA49/(1-HA69) -> 0 | HB70: =HB49/(1-HB69) -> 0 | HC70: =HC49/(1-HC69) -> 0 | HD70: =HD49/(1-HD69) -> 0 | HE70: =HE49/(1-HE69) -> 0 | HF70: =HF49/(1-HF69) -> 0 | HG70: =HG49/(1-HG69) -> 0 | HH70: =HH49/(1-HH69) -> 0 | HI70: =HI49/(1-HI69) -> 0 | HJ70: =HJ49/(1-HJ69) -> 0 | HK70: =HK49/(1-HK69) -> 0 | HL70: =HL49/(1-HL69) -> 0 | HM70: =HM49/(1-HM69) -> 0 | HN70: =HN49/(1-HN69) -> 0 | HO70: =HO49/(1-HO69) -> 0 | HP70: =HP49/(1-HP69) -> 0 | HQ70: =HQ49/(1-HQ69) -> 0 | HR70: =HR49/(1-HR69) -> 0 | HS70: =HS49/(1-HS69) -> 0 | HT70: =HT49/(1-HT69) -> 0 | HU70: =HU49/(1-HU69) -> 0 | HV70: =HV49/(1-HV69) -> 0 | HW70: =HW49/(1-HW69) -> 0 | HX70: =HX49/(1-HX69) -> 0 | HY70: =HY49/(1-HY69) -> 0 | HZ70: =HZ49/(1-HZ69) -> 0 | IA70: =IA49/(1-IA69) -> 0 | IB70: =IB49/(1-IB69) -> 0 | IC70: =IC49/(1-IC69) -> 0 | ID70: =ID49/(1-ID69) -> 0 | IE70: =IE49/(1-IE69) -> 0 | IF70: =IF49/(1-IF69) -> 0 | IG70: =IG49/(1-IG69) -> 0 | IH70: =IH49/(1-IH69) -> 0 | II70: =II49/(1-II69) -> 0 | IJ70: =IJ49/(1-IJ69) -> 0 | IK70: =IK49/(1-IK69) -> 0 | IL70: =IL49/(1-IL69) -> 0 | IM70: =IM49/(1-IM69) -> 0 | IN70: =IN49/(1-IN69) -> 0 | IO70: =IO49/(1-IO69) -> 0 | IP70: =IP49/(1-IP69) -> 0 | IQ70: =IQ49/(1-IQ69) -> 0 | IR70: =IR49/(1-IR69) -> 0 | IS70: =IS49/(1-IS69) -> 0 | IT70: =IT49/(1-IT69) -> 0 | IU70: =IU49/(1-IU69) -> 0 | IV70: =IV49/(1-IV69) -> 0 | IW70: =IW49/(1-IW69) -> 0 | IX70: =IX49/(1-IX69) -> 0 | IY70: =IY49/(1-IY69) -> 0 | IZ70: =IZ49/(1-IZ69) -> 0 | JA70: =JA49/(1-JA69) -> 0 | JB70: =JB49/(1-JB69) -> 0 | JC70: =JC49/(1-JC69) -> 0 | JD70: =JD49/(1-JD69) -> 0 | JE70: =JE49/(1-JE69) -> 0 | JF70: =JF49/(1-JF69) -> 0 | JG70: =JG49/(1-JG69) -> 0 | JH70: =JH49/(1-JH69) -> 0 | JI70: =JI49/(1-JI69) -> 0 | JJ70: =JJ49/(1-JJ69) -> 0 | JK70: =JK49/(1-JK69) -> 0 | JL70: =JL49/(1-JL69) -> 0 | JM70: =JM49/(1-JM69) -> 0 | JN70: =JN49/(1-JN69) -> 0 | JO70: =JO49/(1-JO69) -> 0 | JP70: =JP49/(1-JP69) -> 0 | JQ70: =JQ49/(1-JQ69) -> 0 | JR70: =JR49/(1-JR69) -> 0 | JS70: =JS49/(1-JS69) -> 0 | JT70: =JT49/(1-JT69) -> 0 | JU70: =JU49/(1-JU69) -> 0 | JV70: =JV49/(1-JV69) -> 0 | JW70: =JW49/(1-JW69) -> 0 | JX70: =JX49/(1-JX69) -> 0 | JY70: =JY49/(1-JY69) -> 0 | JZ70: =JZ49/(1-JZ69) -> 0 | KA70: =KA49/(1-KA69) -> 0 | KB70: =KB49/(1-KB69) -> 0 | KC70: =KC49/(1-KC69) -> 0 | KD70: =KD49/(1-KD69) -> 0 | KE70: =KE49/(1-KE69) -> 0 | KF70: =KF49/(1-KF69) -> 0 | KG70: =KG49/(1-KG69) -> 0 | KH70: =KH49/(1-KH69) -> 0 | KI70: =KI49/(1-KI69) -> 0 | KJ70: =KJ49/(1-KJ69) -> 0 | KK70: =KK49/(1-KK69) -> 0 | KL70: =KL49/(1-KL69) -> 0 | KM70: =KM49/(1-KM69) -> 0 | KN70: =KN49/(1-KN69) -> 0 | KO70: =KO49/(1-KO69) -> 0 | KP70: =KP49/(1-KP69) -> 0 | KQ70: =KQ49/(1-KQ69) -> 0 | KR70: =KR49/(1-KR69) -> 0 | KS70: =KS49/(1-KS69) -> 0 | KT70: =KT49/(1-KT69) -> 0 | KU70: =KU49/(1-KU69) -> 0 | KV70: =KV49/(1-KV69) -> 0 | KW70: =KW49/(1-KW69) -> 0
B72: Operating Expense
D73: Annual Inflation Rate | E73: % p.a. | F73: =Sensitivity!J23 -> 0.01 | J73: =$F$73 -> 0.01 | K73: =$F$73 -> 0.01 | L73: 0.01 | M73: 0.01 | N73: 0.01 | O73: 0.01 | P73: 0.01 | Q73: 0.01 | R73: 0.01 | S73: 0.01 | T73: 0.01 | U73: 0.01 | V73: 0.01 | W73: 0.01 | X73: 0.01 | Y73: 0.01 | Z73: 0.01 | AA73: 0.01 | AB73: 0.01 | AC73: 0.01 | AD73: 0.01 | AE73: 0.01 | AF73: 0.01 | AG73: 0.01 | AH73: 0.01 | AI73: 0.01 | AJ73: 0.01 | AK73: 0.01 | AL73: 0.01 | AM73: 0.01 | AN73: 0.01 | AO73: 0.01 | AP73: 0.01 | AQ73: 0.01 | AR73: 0.01 | AS73: 0.01 | AT73: 0.01 | AU73: 0.01 | AV73: 0.01 | AW73: 0.01 | AX73: 0.01 | AY73: 0.01 | AZ73: 0.01 | BA73: 0.01 | BB73: 0.01 | BC73: 0.01 | BD73: 0.01 | BE73: 0.01 | BF73: 0.01 | BG73: 0.01 | BH73: 0.01 | BI73: 0.01 | BJ73: 0.01 | BK73: 0.01 | BL73: 0.01 | BM73: 0.01 | BN73: 0.01 | BO73: 0.01 | BP73: 0.01 | BQ73: 0.01 | BR73: 0.01 | BS73: 0.01 | BT73: 0.01 | BU73: 0.01 | BV73: 0.01 | BW73: =$F$73 -> 0.01 | BX73: 0.01 | BY73: 0.01 | BZ73: 0.01 | CA73: 0.01 | CB73: 0.01 | CC73: 0.01 | CD73: 0.01 | CE73: 0.01 | CF73: 0.01 | CG73: 0.01 | CH73: 0.01 | CI73: 0.01 | CJ73: 0.01 | CK73: 0.01 | CL73: 0.01 | CM73: 0.01 | CN73: 0.01 | CO73: 0.01 | CP73: 0.01 | CQ73: 0.01 | CR73: 0.01 | CS73: 0.01 | CT73: 0.01 | CU73: 0.01 | CV73: 0.01 | CW73: 0.01 | CX73: 0.01 | CY73: 0.01 | CZ73: 0.01 | DA73: 0.01 | DB73: 0.01 | DC73: 0.01 | DD73: 0.01 | DE73: 0.01 | DF73: 0.01 | DG73: 0.01 | DH73: 0.01 | DI73: 0.01 | DJ73: 0.01 | DK73: 0.01 | DL73: 0.01 | DM73: 0.01 | DN73: 0.01 | DO73: 0.01 | DP73: 0.01 | DQ73: 0.01 | DR73: 0.01 | DS73: 0.01 | DT73: 0.01 | DU73: 0.01 | DV73: 0.01 | DW73: 0.01 | DX73: 0.01 | DY73: 0.01 | DZ73: 0.01 | EA73: 0.01 | EB73: 0.01 | EC73: 0.01 | ED73: 0.01 | EE73: 0.01 | EF73: 0.01 | EG73: 0.01 | EH73: 0.01 | EI73: =$F$73 -> 0.01 | EJ73: 0.01 | EK73: 0.01 | EL73: 0.01 | EM73: 0.01 | EN73: 0.01 | EO73: 0.01 | EP73: 0.01 | EQ73: 0.01 | ER73: 0.01 | ES73: 0.01 | ET73: 0.01 | EU73: 0.01 | EV73: 0.01 | EW73: 0.01 | EX73: 0.01 | EY73: 0.01 | EZ73: 0.01 | FA73: 0.01 | FB73: 0.01 | FC73: 0.01 | FD73: 0.01 | FE73: 0.01 | FF73: 0.01 | FG73: 0.01 | FH73: 0.01 | FI73: 0.01 | FJ73: 0.01 | FK73: 0.01 | FL73: 0.01 | FM73: 0.01 | FN73: 0.01 | FO73: 0.01 | FP73: 0.01 | FQ73: 0.01 | FR73: 0.01 | FS73: 0.01 | FT73: 0.01 | FU73: 0.01 | FV73: 0.01 | FW73: 0.01 | FX73: 0.01 | FY73: 0.01 | FZ73: 0.01 | GA73: 0.01 | GB73: 0.01 | GC73: 0.01 | GD73: 0.01 | GE73: 0.01 | GF73: 0.01 | GG73: 0.01 | GH73: 0.01 | GI73: 0.01 | GJ73: 0.01 | GK73: 0.01 | GL73: 0.01 | GM73: 0.01 | GN73: 0.01 | GO73: 0.01 | GP73: 0.01 | GQ73: 0.01 | GR73: 0.01 | GS73: 0.01 | GT73: 0.01 | GU73: =$F$73 -> 0.01 | GV73: 0.01 | GW73: 0.01 | GX73: 0.01 | GY73: 0.01 | GZ73: 0.01 | HA73: 0.01 | HB73: 0.01 | HC73: 0.01 | HD73: 0.01 | HE73: 0.01 | HF73: 0.01 | HG73: 0.01 | HH73: 0.01 | HI73: 0.01 | HJ73: 0.01 | HK73: 0.01 | HL73: 0.01 | HM73: 0.01 | HN73: 0.01 | HO73: 0.01 | HP73: 0.01 | HQ73: 0.01 | HR73: 0.01 | HS73: 0.01 | HT73: 0.01 | HU73: 0.01 | HV73: 0.01 | HW73: 0.01 | HX73: 0.01 | HY73: 0.01 | HZ73: 0.01 | IA73: 0.01 | IB73: 0.01 | IC73: 0.01 | ID73: 0.01 | IE73: 0.01 | IF73: 0.01 | IG73: 0.01 | IH73: 0.01 | II73: 0.01 | IJ73: 0.01 | IK73: 0.01 | IL73: 0.01 | IM73: 0.01 | IN73: 0.01 | IO73: 0.01 | IP73: 0.01 | IQ73: 0.01 | IR73: 0.01 | IS73: 0.01 | IT73: 0.01 | IU73: 0.01 | IV73: 0.01 | IW73: 0.01 | IX73: 0.01 | IY73: 0.01 | IZ73: 0.01 | JA73: 0.01 | JB73: 0.01 | JC73: 0.01 | JD73: 0.01 | JE73: 0.01 | JF73: 0.01 | JG73: =$F$73 -> 0.01 | JH73: 0.01 | JI73: 0.01 | JJ73: 0.01 | JK73: 0.01 | JL73: 0.01 | JM73: 0.01 | JN73: 0.01 | JO73: 0.01 | JP73: 0.01 | JQ73: 0.01 | JR73: 0.01 | JS73: 0.01 | JT73: 0.01 | JU73: 0.01 | JV73: 0.01 | JW73: 0.01 | JX73: 0.01 | JY73: 0.01 | JZ73: 0.01 | KA73: 0.01 | KB73: 0.01 | KC73: 0.01 | KD73: 0.01 | KE73: 0.01 | KF73: 0.01 | KG73: 0.01 | KH73: 0.01 | KI73: 0.01 | KJ73: 0.01 | KK73: 0.01 | KL73: 0.01 | KM73: 0.01 | KN73: 0.01 | KO73: 0.01 | KP73: 0.01 | KQ73: 0.01 | KR73: 0.01 | KS73: 0.01 | KT73: 0.01 | KU73: 0.01 | KV73: 0.01 | KW73: 0.01
D74: Periodic Inflation Rate | E74: % p.p. | J74: =(1+J73)^(1/12*J5)-1 -> 0.0008295381143 | K74: =(1+K73)^(1/12*K5)-1 -> 0.0008295381143 | L74: =(1+L73)^(1/12*L5)-1 -> 0.0008295381143 | M74: =(1+M73)^(1/12*M5)-1 -> 0.0008295381143 | N74: =(1+N73)^(1/12*N5)-1 -> 0.0008295381143 | O74: =(1+O73)^(1/12*O5)-1 -> 0.0008295381143 | P74: =(1+P73)^(1/12*P5)-1 -> 0.0008295381143 | Q74: =(1+Q73)^(1/12*Q5)-1 -> 0.0008295381143 | R74: =(1+R73)^(1/12*R5)-1 -> 0.0008295381143 | S74: =(1+S73)^(1/12*S5)-1 -> 0.0008295381143 | T74: =(1+T73)^(1/12*T5)-1 -> 0.0008295381143 | U74: =(1+U73)^(1/12*U5)-1 -> 0.0008295381143 | V74: =(1+V73)^(1/12*V5)-1 -> 0.0008295381143 | W74: =(1+W73)^(1/12*W5)-1 -> 0.0008295381143 | X74: =(1+X73)^(1/12*X5)-1 -> 0.0008295381143 | Y74: =(1+Y73)^(1/12*Y5)-1 -> 0.0008295381143 | Z74: =(1+Z73)^(1/12*Z5)-1 -> 0.0008295381143 | AA74: =(1+AA73)^(1/12*AA5)-1 -> 0.0008295381143 | AB74: =(1+AB73)^(1/12*AB5)-1 -> 0.0008295381143 | AC74: =(1+AC73)^(1/12*AC5)-1 -> 0.0008295381143 | AD74: =(1+AD73)^(1/12*AD5)-1 -> 0.0008295381143 | AE74: =(1+AE73)^(1/12*AE5)-1 -> 0.0008295381143 | AF74: =(1+AF73)^(1/12*AF5)-1 -> 0.0008295381143 | AG74: =(1+AG73)^(1/12*AG5)-1 -> 0.0008295381143 | AH74: =(1+AH73)^(1/12*AH5)-1 -> 0.0008295381143 | AI74: =(1+AI73)^(1/12*AI5)-1 -> 0.0008295381143 | AJ74: =(1+AJ73)^(1/12*AJ5)-1 -> 0.0008295381143 | AK74: =(1+AK73)^(1/12*AK5)-1 -> 0.0008295381143 | AL74: =(1+AL73)^(1/12*AL5)-1 -> 0.0008295381143 | AM74: =(1+AM73)^(1/12*AM5)-1 -> 0.0008295381143 | AN74: =(1+AN73)^(1/12*AN5)-1 -> 0.0008295381143 | AO74: =(1+AO73)^(1/12*AO5)-1 -> 0.0008295381143 | AP74: =(1+AP73)^(1/12*AP5)-1 -> 0.0008295381143 | AQ74: =(1+AQ73)^(1/12*AQ5)-1 -> 0.0008295381143 | AR74: =(1+AR73)^(1/12*AR5)-1 -> 0.0008295381143 | AS74: =(1+AS73)^(1/12*AS5)-1 -> 0.0008295381143 | AT74: =(1+AT73)^(1/12*AT5)-1 -> 0.0008295381143 | AU74: =(1+AU73)^(1/12*AU5)-1 -> 0.0008295381143 | AV74: =(1+AV73)^(1/12*AV5)-1 -> 0.0008295381143 | AW74: =(1+AW73)^(1/12*AW5)-1 -> 0.0008295381143 | AX74: =(1+AX73)^(1/12*AX5)-1 -> 0.0008295381143 | AY74: =(1+AY73)^(1/12*AY5)-1 -> 0.0008295381143 | AZ74: =(1+AZ73)^(1/12*AZ5)-1 -> 0.0008295381143 | BA74: =(1+BA73)^(1/12*BA5)-1 -> 0.0008295381143 | BB74: =(1+BB73)^(1/12*BB5)-1 -> 0.0008295381143 | BC74: =(1+BC73)^(1/12*BC5)-1 -> 0.0008295381143 | BD74: =(1+BD73)^(1/12*BD5)-1 -> 0.0008295381143 | BE74: =(1+BE73)^(1/12*BE5)-1 -> 0.0008295381143 | BF74: =(1+BF73)^(1/12*BF5)-1 -> 0.0008295381143 | BG74: =(1+BG73)^(1/12*BG5)-1 -> 0.0008295381143 | BH74: =(1+BH73)^(1/12*BH5)-1 -> 0.0008295381143 | BI74: =(1+BI73)^(1/12*BI5)-1 -> 0.0008295381143 | BJ74: =(1+BJ73)^(1/12*BJ5)-1 -> 0.0008295381143 | BK74: =(1+BK73)^(1/12*BK5)-1 -> 0.0008295381143 | BL74: =(1+BL73)^(1/12*BL5)-1 -> 0.0008295381143 | BM74: =(1+BM73)^(1/12*BM5)-1 -> 0.0008295381143 | BN74: =(1+BN73)^(1/12*BN5)-1 -> 0.0008295381143 | BO74: =(1+BO73)^(1/12*BO5)-1 -> 0.0008295381143 | BP74: =(1+BP73)^(1/12*BP5)-1 -> 0.0008295381143 | BQ74: =(1+BQ73)^(1/12*BQ5)-1 -> 0.0008295381143 | BR74: =(1+BR73)^(1/12*BR5)-1 -> 0.0008295381143 | BS74: =(1+BS73)^(1/12*BS5)-1 -> 0.0008295381143 | BT74: =(1+BT73)^(1/12*BT5)-1 -> 0.0008295381143 | BU74: =(1+BU73)^(1/12*BU5)-1 -> 0.0008295381143 | BV74: =(1+BV73)^(1/12*BV5)-1 -> 0.0008295381143 | BW74: =(1+BW73)^(1/12*BW5)-1 -> 0.0008295381143 | BX74: =(1+BX73)^(1/12*BX5)-1 -> 0.004987562112 | BY74: =(1+BY73)^(1/12*BY5)-1 -> 0.004987562112 | BZ74: =(1+BZ73)^(1/12*BZ5)-1 -> 0.004987562112 | CA74: =(1+CA73)^(1/12*CA5)-1 -> 0.004987562112 | CB74: =(1+CB73)^(1/12*CB5)-1 -> 0.004987562112 | CC74: =(1+CC73)^(1/12*CC5)-1 -> 0.004987562112 | CD74: =(1+CD73)^(1/12*CD5)-1 -> 0.004987562112 | CE74: =(1+CE73)^(1/12*CE5)-1 -> 0.004987562112 | CF74: =(1+CF73)^(1/12*CF5)-1 -> 0.004987562112 | CG74: =(1+CG73)^(1/12*CG5)-1 -> 0.004987562112 | CH74: =(1+CH73)^(1/12*CH5)-1 -> 0.004987562112 | CI74: =(1+CI73)^(1/12*CI5)-1 -> 0.004987562112 | CJ74: =(1+CJ73)^(1/12*CJ5)-1 -> 0.004987562112 | CK74: =(1+CK73)^(1/12*CK5)-1 -> 0.004987562112 | CL74: =(1+CL73)^(1/12*CL5)-1 -> 0.004987562112 | CM74: =(1+CM73)^(1/12*CM5)-1 -> 0.004987562112 | CN74: =(1+CN73)^(1/12*CN5)-1 -> 0.004987562112 | CO74: =(1+CO73)^(1/12*CO5)-1 -> 0.004987562112 | CP74: =(1+CP73)^(1/12*CP5)-1 -> 0.004987562112 | CQ74: =(1+CQ73)^(1/12*CQ5)-1 -> 0.004987562112 | CR74: =(1+CR73)^(1/12*CR5)-1 -> 0.004987562112 | CS74: =(1+CS73)^(1/12*CS5)-1 -> 0.004987562112 | CT74: =(1+CT73)^(1/12*CT5)-1 -> 0.004987562112 | CU74: =(1+CU73)^(1/12*CU5)-1 -> 0.004987562112 | CV74: =(1+CV73)^(1/12*CV5)-1 -> 0.004987562112 | CW74: =(1+CW73)^(1/12*CW5)-1 -> 0.004987562112 | CX74: =(1+CX73)^(1/12*CX5)-1 -> 0.004987562112 | CY74: =(1+CY73)^(1/12*CY5)-1 -> 0.004987562112 | CZ74: =(1+CZ73)^(1/12*CZ5)-1 -> 0.004987562112 | DA74: =(1+DA73)^(1/12*DA5)-1 -> 0.004987562112 | DB74: =(1+DB73)^(1/12*DB5)-1 -> 0.004987562112 | DC74: =(1+DC73)^(1/12*DC5)-1 -> 0.004987562112 | DD74: =(1+DD73)^(1/12*DD5)-1 -> 0.004987562112 | DE74: =(1+DE73)^(1/12*DE5)-1 -> 0.004987562112 | DF74: =(1+DF73)^(1/12*DF5)-1 -> 0.004987562112 | DG74: =(1+DG73)^(1/12*DG5)-1 -> 0.004987562112 | DH74: =(1+DH73)^(1/12*DH5)-1 -> 0.004987562112 | DI74: =(1+DI73)^(1/12*DI5)-1 -> 0.004987562112 | DJ74: =(1+DJ73)^(1/12*DJ5)-1 -> 0.004987562112 | DK74: =(1+DK73)^(1/12*DK5)-1 -> 0.004987562112 | DL74: =(1+DL73)^(1/12*DL5)-1 -> 0.004987562112 | DM74: =(1+DM73)^(1/12*DM5)-1 -> 0.004987562112 | DN74: =(1+DN73)^(1/12*DN5)-1 -> 0.004987562112 | DO74: =(1+DO73)^(1/12*DO5)-1 -> 0.004987562112 | DP74: =(1+DP73)^(1/12*DP5)-1 -> 0.004987562112 | DQ74: =(1+DQ73)^(1/12*DQ5)-1 -> 0.004987562112 | DR74: =(1+DR73)^(1/12*DR5)-1 -> 0.004987562112 | DS74: =(1+DS73)^(1/12*DS5)-1 -> 0.004987562112 | DT74: =(1+DT73)^(1/12*DT5)-1 -> 0.004987562112 | DU74: =(1+DU73)^(1/12*DU5)-1 -> 0.004987562112 | DV74: =(1+DV73)^(1/12*DV5)-1 -> 0.004987562112 | DW74: =(1+DW73)^(1/12*DW5)-1 -> 0.004987562112 | DX74: =(1+DX73)^(1/12*DX5)-1 -> 0.004987562112 | DY74: =(1+DY73)^(1/12*DY5)-1 -> 0.004987562112 | DZ74: =(1+DZ73)^(1/12*DZ5)-1 -> 0.004987562112 | EA74: =(1+EA73)^(1/12*EA5)-1 -> 0.004987562112 | EB74: =(1+EB73)^(1/12*EB5)-1 -> 0.004987562112 | EC74: =(1+EC73)^(1/12*EC5)-1 -> 0.004987562112 | ED74: =(1+ED73)^(1/12*ED5)-1 -> 0.004987562112 | EE74: =(1+EE73)^(1/12*EE5)-1 -> 0.004987562112 | EF74: =(1+EF73)^(1/12*EF5)-1 -> 0.004987562112 | EG74: =(1+EG73)^(1/12*EG5)-1 -> 0.004987562112 | EH74: =(1+EH73)^(1/12*EH5)-1 -> 0.004987562112 | EI74: =(1+EI73)^(1/12*EI5)-1 -> 0.004987562112 | EJ74: =(1+EJ73)^(1/12*EJ5)-1 -> 0.004987562112 | EK74: =(1+EK73)^(1/12*EK5)-1 -> 0.004987562112 | EL74: =(1+EL73)^(1/12*EL5)-1 -> 0.004987562112 | EM74: =(1+EM73)^(1/12*EM5)-1 -> 0.004987562112 | EN74: =(1+EN73)^(1/12*EN5)-1 -> 0.004987562112 | EO74: =(1+EO73)^(1/12*EO5)-1 -> 0.004987562112 | EP74: =(1+EP73)^(1/12*EP5)-1 -> 0.004987562112 | EQ74: =(1+EQ73)^(1/12*EQ5)-1 -> 0.004987562112 | ER74: =(1+ER73)^(1/12*ER5)-1 -> 0.004987562112 | ES74: =(1+ES73)^(1/12*ES5)-1 -> 0.004987562112 | ET74: =(1+ET73)^(1/12*ET5)-1 -> 0.004987562112 | EU74: =(1+EU73)^(1/12*EU5)-1 -> 0.004987562112 | EV74: =(1+EV73)^(1/12*EV5)-1 -> 0.004987562112 | EW74: =(1+EW73)^(1/12*EW5)-1 -> 0.004987562112 | EX74: =(1+EX73)^(1/12*EX5)-1 -> 0.004987562112 | EY74: =(1+EY73)^(1/12*EY5)-1 -> 0.004987562112 | EZ74: =(1+EZ73)^(1/12*EZ5)-1 -> 0.004987562112 | FA74: =(1+FA73)^(1/12*FA5)-1 -> 0.004987562112 | FB74: =(1+FB73)^(1/12*FB5)-1 -> 0.004987562112 | FC74: =(1+FC73)^(1/12*FC5)-1 -> 0.004987562112 | FD74: =(1+FD73)^(1/12*FD5)-1 -> 0.004987562112 | FE74: =(1+FE73)^(1/12*FE5)-1 -> 0.004987562112 | FF74: =(1+FF73)^(1/12*FF5)-1 -> 0.004987562112 | FG74: =(1+FG73)^(1/12*FG5)-1 -> 0.004987562112 | FH74: =(1+FH73)^(1/12*FH5)-1 -> 0.004987562112 | FI74: =(1+FI73)^(1/12*FI5)-1 -> 0.004987562112 | FJ74: =(1+FJ73)^(1/12*FJ5)-1 -> 0.004987562112 | FK74: =(1+FK73)^(1/12*FK5)-1 -> 0.004987562112 | FL74: =(1+FL73)^(1/12*FL5)-1 -> 0.004987562112 | FM74: =(1+FM73)^(1/12*FM5)-1 -> 0.004987562112 | FN74: =(1+FN73)^(1/12*FN5)-1 -> 0.004987562112 | FO74: =(1+FO73)^(1/12*FO5)-1 -> 0.004987562112 | FP74: =(1+FP73)^(1/12*FP5)-1 -> 0.004987562112 | FQ74: =(1+FQ73)^(1/12*FQ5)-1 -> 0.004987562112 | FR74: =(1+FR73)^(1/12*FR5)-1 -> 0.004987562112 | FS74: =(1+FS73)^(1/12*FS5)-1 -> 0.004987562112 | FT74: =(1+FT73)^(1/12*FT5)-1 -> 0.004987562112 | FU74: =(1+FU73)^(1/12*FU5)-1 -> 0.004987562112 | FV74: =(1+FV73)^(1/12*FV5)-1 -> 0.004987562112 | FW74: =(1+FW73)^(1/12*FW5)-1 -> 0.004987562112 | FX74: =(1+FX73)^(1/12*FX5)-1 -> 0.004987562112 | FY74: =(1+FY73)^(1/12*FY5)-1 -> 0.004987562112 | FZ74: =(1+FZ73)^(1/12*FZ5)-1 -> 0.004987562112 | GA74: =(1+GA73)^(1/12*GA5)-1 -> 0.004987562112 | GB74: =(1+GB73)^(1/12*GB5)-1 -> 0.004987562112 | GC74: =(1+GC73)^(1/12*GC5)-1 -> 0.004987562112 | GD74: =(1+GD73)^(1/12*GD5)-1 -> 0.004987562112 | GE74: =(1+GE73)^(1/12*GE5)-1 -> 0.004987562112 | GF74: =(1+GF73)^(1/12*GF5)-1 -> 0.004987562112 | GG74: =(1+GG73)^(1/12*GG5)-1 -> 0.004987562112 | GH74: =(1+GH73)^(1/12*GH5)-1 -> 0.004987562112 | GI74: =(1+GI73)^(1/12*GI5)-1 -> 0.004987562112 | GJ74: =(1+GJ73)^(1/12*GJ5)-1 -> 0.004987562112 | GK74: =(1+GK73)^(1/12*GK5)-1 -> 0.004987562112 | GL74: =(1+GL73)^(1/12*GL5)-1 -> 0.004987562112 | GM74: =(1+GM73)^(1/12*GM5)-1 -> 0.004987562112 | GN74: =(1+GN73)^(1/12*GN5)-1 -> 0.004987562112 | GO74: =(1+GO73)^(1/12*GO5)-1 -> 0.004987562112 | GP74: =(1+GP73)^(1/12*GP5)-1 -> 0.004987562112 | GQ74: =(1+GQ73)^(1/12*GQ5)-1 -> 0.004987562112 | GR74: =(1+GR73)^(1/12*GR5)-1 -> 0.004987562112 | GS74: =(1+GS73)^(1/12*GS5)-1 -> 0.004987562112 | GT74: =(1+GT73)^(1/12*GT5)-1 -> 0.004987562112 | GU74: =(1+GU73)^(1/12*GU5)-1 -> 0.004987562112 | GV74: =(1+GV73)^(1/12*GV5)-1 -> 0.004987562112 | GW74: =(1+GW73)^(1/12*GW5)-1 -> 0.004987562112 | GX74: =(1+GX73)^(1/12*GX5)-1 -> 0.004987562112 | GY74: =(1+GY73)^(1/12*GY5)-1 -> 0.004987562112 | GZ74: =(1+GZ73)^(1/12*GZ5)-1 -> 0.004987562112 | HA74: =(1+HA73)^(1/12*HA5)-1 -> 0.004987562112 | HB74: =(1+HB73)^(1/12*HB5)-1 -> 0.004987562112 | HC74: =(1+HC73)^(1/12*HC5)-1 -> 0.004987562112 | HD74: =(1+HD73)^(1/12*HD5)-1 -> 0.004987562112 | HE74: =(1+HE73)^(1/12*HE5)-1 -> 0.004987562112 | HF74: =(1+HF73)^(1/12*HF5)-1 -> 0.004987562112 | HG74: =(1+HG73)^(1/12*HG5)-1 -> 0.004987562112 | HH74: =(1+HH73)^(1/12*HH5)-1 -> 0.004987562112 | HI74: =(1+HI73)^(1/12*HI5)-1 -> 0.004987562112 | HJ74: =(1+HJ73)^(1/12*HJ5)-1 -> 0.004987562112 | HK74: =(1+HK73)^(1/12*HK5)-1 -> 0.004987562112 | HL74: =(1+HL73)^(1/12*HL5)-1 -> 0.004987562112 | HM74: =(1+HM73)^(1/12*HM5)-1 -> 0.004987562112 | HN74: =(1+HN73)^(1/12*HN5)-1 -> 0.004987562112 | HO74: =(1+HO73)^(1/12*HO5)-1 -> 0.004987562112 | HP74: =(1+HP73)^(1/12*HP5)-1 -> 0.004987562112 | HQ74: =(1+HQ73)^(1/12*HQ5)-1 -> 0.004987562112 | HR74: =(1+HR73)^(1/12*HR5)-1 -> 0.004987562112 | HS74: =(1+HS73)^(1/12*HS5)-1 -> 0.004987562112 | HT74: =(1+HT73)^(1/12*HT5)-1 -> 0.004987562112 | HU74: =(1+HU73)^(1/12*HU5)-1 -> 0.004987562112 | HV74: =(1+HV73)^(1/12*HV5)-1 -> 0.004987562112 | HW74: =(1+HW73)^(1/12*HW5)-1 -> 0.004987562112 | HX74: =(1+HX73)^(1/12*HX5)-1 -> 0.004987562112 | HY74: =(1+HY73)^(1/12*HY5)-1 -> 0.004987562112 | HZ74: =(1+HZ73)^(1/12*HZ5)-1 -> 0.004987562112 | IA74: =(1+IA73)^(1/12*IA5)-1 -> 0.004987562112 | IB74: =(1+IB73)^(1/12*IB5)-1 -> 0.004987562112 | IC74: =(1+IC73)^(1/12*IC5)-1 -> 0.004987562112 | ID74: =(1+ID73)^(1/12*ID5)-1 -> 0.004987562112 | IE74: =(1+IE73)^(1/12*IE5)-1 -> 0.004987562112 | IF74: =(1+IF73)^(1/12*IF5)-1 -> 0.004987562112 | IG74: =(1+IG73)^(1/12*IG5)-1 -> 0.004987562112 | IH74: =(1+IH73)^(1/12*IH5)-1 -> 0.004987562112 | II74: =(1+II73)^(1/12*II5)-1 -> 0.004987562112 | IJ74: =(1+IJ73)^(1/12*IJ5)-1 -> 0.004987562112 | IK74: =(1+IK73)^(1/12*IK5)-1 -> 0.004987562112 | IL74: =(1+IL73)^(1/12*IL5)-1 -> 0.004987562112 | IM74: =(1+IM73)^(1/12*IM5)-1 -> 0.004987562112 | IN74: =(1+IN73)^(1/12*IN5)-1 -> 0.004987562112 | IO74: =(1+IO73)^(1/12*IO5)-1 -> 0.004987562112 | IP74: =(1+IP73)^(1/12*IP5)-1 -> 0.004987562112 | IQ74: =(1+IQ73)^(1/12*IQ5)-1 -> 0.004987562112 | IR74: =(1+IR73)^(1/12*IR5)-1 -> 0.004987562112 | IS74: =(1+IS73)^(1/12*IS5)-1 -> 0.004987562112 | IT74: =(1+IT73)^(1/12*IT5)-1 -> 0.004987562112 | IU74: =(1+IU73)^(1/12*IU5)-1 -> 0.004987562112 | IV74: =(1+IV73)^(1/12*IV5)-1 -> 0.004987562112 | IW74: =(1+IW73)^(1/12*IW5)-1 -> 0.004987562112 | IX74: =(1+IX73)^(1/12*IX5)-1 -> 0.004987562112 | IY74: =(1+IY73)^(1/12*IY5)-1 -> 0.004987562112 | IZ74: =(1+IZ73)^(1/12*IZ5)-1 -> 0.004987562112 | JA74: =(1+JA73)^(1/12*JA5)-1 -> 0.004987562112 | JB74: =(1+JB73)^(1/12*JB5)-1 -> 0.004987562112 | JC74: =(1+JC73)^(1/12*JC5)-1 -> 0.004987562112 | JD74: =(1+JD73)^(1/12*JD5)-1 -> 0.004987562112 | JE74: =(1+JE73)^(1/12*JE5)-1 -> 0.004987562112 | JF74: =(1+JF73)^(1/12*JF5)-1 -> 0.004987562112 | JG74: =(1+JG73)^(1/12*JG5)-1 -> 0.004987562112 | JH74: =(1+JH73)^(1/12*JH5)-1 -> 0.004987562112 | JI74: =(1+JI73)^(1/12*JI5)-1 -> 0.004987562112 | JJ74: =(1+JJ73)^(1/12*JJ5)-1 -> 0.004987562112 | JK74: =(1+JK73)^(1/12*JK5)-1 -> 0.004987562112 | JL74: =(1+JL73)^(1/12*JL5)-1 -> 0.004987562112 | JM74: =(1+JM73)^(1/12*JM5)-1 -> 0.004987562112 | JN74: =(1+JN73)^(1/12*JN5)-1 -> 0.004987562112 | JO74: =(1+JO73)^(1/12*JO5)-1 -> 0.004987562112 | JP74: =(1+JP73)^(1/12*JP5)-1 -> 0.004987562112 | JQ74: =(1+JQ73)^(1/12*JQ5)-1 -> 0.004987562112 | JR74: =(1+JR73)^(1/12*JR5)-1 -> 0.004987562112 | JS74: =(1+JS73)^(1/12*JS5)-1 -> 0.004987562112 | JT74: =(1+JT73)^(1/12*JT5)-1 -> 0.004987562112 | JU74: =(1+JU73)^(1/12*JU5)-1 -> 0.004987562112 | JV74: =(1+JV73)^(1/12*JV5)-1 -> 0.004987562112 | JW74: =(1+JW73)^(1/12*JW5)-1 -> 0.004987562112 | JX74: =(1+JX73)^(1/12*JX5)-1 -> 0.004987562112 | JY74: =(1+JY73)^(1/12*JY5)-1 -> 0.004987562112 | JZ74: =(1+JZ73)^(1/12*JZ5)-1 -> 0.004987562112 | KA74: =(1+KA73)^(1/12*KA5)-1 -> 0.004987562112 | KB74: =(1+KB73)^(1/12*KB5)-1 -> 0.004987562112 | KC74: =(1+KC73)^(1/12*KC5)-1 -> 0.004987562112 | KD74: =(1+KD73)^(1/12*KD5)-1 -> 0.004987562112 | KE74: =(1+KE73)^(1/12*KE5)-1 -> 0.004987562112 | KF74: =(1+KF73)^(1/12*KF5)-1 -> 0.004987562112 | KG74: =(1+KG73)^(1/12*KG5)-1 -> 0.004987562112 | KH74: =(1+KH73)^(1/12*KH5)-1 -> 0.004987562112 | KI74: =(1+KI73)^(1/12*KI5)-1 -> 0.004987562112 | KJ74: =(1+KJ73)^(1/12*KJ5)-1 -> 0.004987562112 | KK74: =(1+KK73)^(1/12*KK5)-1 -> 0.004987562112 | KL74: =(1+KL73)^(1/12*KL5)-1 -> 0.004987562112 | KM74: =(1+KM73)^(1/12*KM5)-1 -> 0.004987562112 | KN74: =(1+KN73)^(1/12*KN5)-1 -> 0.004987562112 | KO74: =(1+KO73)^(1/12*KO5)-1 -> 0.004987562112 | KP74: =(1+KP73)^(1/12*KP5)-1 -> 0.004987562112 | KQ74: =(1+KQ73)^(1/12*KQ5)-1 -> 0.004987562112 | KR74: =(1+KR73)^(1/12*KR5)-1 -> 0.004987562112 | KS74: =(1+KS73)^(1/12*KS5)-1 -> 0.004987562112 | KT74: =(1+KT73)^(1/12*KT5)-1 -> 0.004987562112 | KU74: =(1+KU73)^(1/12*KU5)-1 -> 0.004987562112 | KV74: =(1+KV73)^(1/12*KV5)-1 -> 0.004987562112 | KW74: =(1+KW73)^(1/12*KW5)-1 -> 0.004987562112
D75: Inflation Period | E75: Flag | F75: 2024-01-01 | J75: =J6>=$F$75 -> FALSE | K75: =K6>=$F$75 -> FALSE | L75: =L6>=$F$75 -> FALSE | M75: =M6>=$F$75 -> FALSE | N75: =N6>=$F$75 -> FALSE | O75: =O6>=$F$75 -> FALSE | P75: =P6>=$F$75 -> FALSE | Q75: =Q6>=$F$75 -> FALSE | R75: =R6>=$F$75 -> FALSE | S75: =S6>=$F$75 -> FALSE | T75: =T6>=$F$75 -> FALSE | U75: =U6>=$F$75 -> FALSE | V75: =V6>=$F$75 -> TRUE | W75: =W6>=$F$75 -> TRUE | X75: =X6>=$F$75 -> TRUE | Y75: =Y6>=$F$75 -> TRUE | Z75: =Z6>=$F$75 -> TRUE | AA75: =AA6>=$F$75 -> TRUE | AB75: =AB6>=$F$75 -> TRUE | AC75: =AC6>=$F$75 -> TRUE | AD75: =AD6>=$F$75 -> TRUE | AE75: =AE6>=$F$75 -> TRUE | AF75: =AF6>=$F$75 -> TRUE | AG75: =AG6>=$F$75 -> TRUE | AH75: =AH6>=$F$75 -> TRUE | AI75: =AI6>=$F$75 -> TRUE | AJ75: =AJ6>=$F$75 -> TRUE | AK75: =AK6>=$F$75 -> TRUE | AL75: =AL6>=$F$75 -> TRUE | AM75: =AM6>=$F$75 -> TRUE | AN75: =AN6>=$F$75 -> TRUE | AO75: =AO6>=$F$75 -> TRUE | AP75: =AP6>=$F$75 -> TRUE | AQ75: =AQ6>=$F$75 -> TRUE | AR75: =AR6>=$F$75 -> TRUE | AS75: =AS6>=$F$75 -> TRUE | AT75: =AT6>=$F$75 -> TRUE | AU75: =AU6>=$F$75 -> TRUE | AV75: =AV6>=$F$75 -> TRUE | AW75: =AW6>=$F$75 -> TRUE | AX75: =AX6>=$F$75 -> TRUE | AY75: =AY6>=$F$75 -> TRUE | AZ75: =AZ6>=$F$75 -> TRUE | BA75: =BA6>=$F$75 -> TRUE | BB75: =BB6>=$F$75 -> TRUE | BC75: =BC6>=$F$75 -> TRUE | BD75: =BD6>=$F$75 -> TRUE | BE75: =BE6>=$F$75 -> TRUE | BF75: =BF6>=$F$75 -> TRUE | BG75: =BG6>=$F$75 -> TRUE | BH75: =BH6>=$F$75 -> TRUE | BI75: =BI6>=$F$75 -> TRUE | BJ75: =BJ6>=$F$75 -> TRUE | BK75: =BK6>=$F$75 -> TRUE | BL75: =BL6>=$F$75 -> TRUE | BM75: =BM6>=$F$75 -> TRUE | BN75: =BN6>=$F$75 -> TRUE | BO75: =BO6>=$F$75 -> TRUE | BP75: =BP6>=$F$75 -> TRUE | BQ75: =BQ6>=$F$75 -> TRUE | BR75: =BR6>=$F$75 -> TRUE | BS75: =BS6>=$F$75 -> TRUE | BT75: =BT6>=$F$75 -> TRUE | BU75: =BU6>=$F$75 -> TRUE | BV75: =BV6>=$F$75 -> TRUE | BW75: =BW6>=$F$75 -> TRUE | BX75: =BX6>=$F$75 -> TRUE | BY75: =BY6>=$F$75 -> TRUE | BZ75: =BZ6>=$F$75 -> TRUE | CA75: =CA6>=$F$75 -> TRUE | CB75: =CB6>=$F$75 -> TRUE | CC75: =CC6>=$F$75 -> TRUE | CD75: =CD6>=$F$75 -> TRUE | CE75: =CE6>=$F$75 -> TRUE | CF75: =CF6>=$F$75 -> TRUE | CG75: =CG6>=$F$75 -> TRUE | CH75: =CH6>=$F$75 -> TRUE | CI75: =CI6>=$F$75 -> TRUE | CJ75: =CJ6>=$F$75 -> TRUE | CK75: =CK6>=$F$75 -> TRUE | CL75: =CL6>=$F$75 -> TRUE | CM75: =CM6>=$F$75 -> TRUE | CN75: =CN6>=$F$75 -> TRUE | CO75: =CO6>=$F$75 -> TRUE | CP75: =CP6>=$F$75 -> TRUE | CQ75: =CQ6>=$F$75 -> TRUE | CR75: =CR6>=$F$75 -> TRUE | CS75: =CS6>=$F$75 -> TRUE | CT75: =CT6>=$F$75 -> TRUE | CU75: =CU6>=$F$75 -> TRUE | CV75: =CV6>=$F$75 -> TRUE | CW75: =CW6>=$F$75 -> TRUE | CX75: =CX6>=$F$75 -> TRUE | CY75: =CY6>=$F$75 -> TRUE | CZ75: =CZ6>=$F$75 -> TRUE | DA75: =DA6>=$F$75 -> TRUE | DB75: =DB6>=$F$75 -> TRUE | DC75: =DC6>=$F$75 -> TRUE | DD75: =DD6>=$F$75 -> TRUE | DE75: =DE6>=$F$75 -> TRUE | DF75: =DF6>=$F$75 -> TRUE | DG75: =DG6>=$F$75 -> TRUE | DH75: =DH6>=$F$75 -> TRUE | DI75: =DI6>=$F$75 -> TRUE | DJ75: =DJ6>=$F$75 -> TRUE | DK75: =DK6>=$F$75 -> TRUE | DL75: =DL6>=$F$75 -> TRUE | DM75: =DM6>=$F$75 -> TRUE | DN75: =DN6>=$F$75 -> TRUE | DO75: =DO6>=$F$75 -> TRUE | DP75: =DP6>=$F$75 -> TRUE | DQ75: =DQ6>=$F$75 -> TRUE | DR75: =DR6>=$F$75 -> TRUE | DS75: =DS6>=$F$75 -> TRUE | DT75: =DT6>=$F$75 -> TRUE | DU75: =DU6>=$F$75 -> TRUE | DV75: =DV6>=$F$75 -> TRUE | DW75: =DW6>=$F$75 -> TRUE | DX75: =DX6>=$F$75 -> TRUE | DY75: =DY6>=$F$75 -> TRUE | DZ75: =DZ6>=$F$75 -> TRUE | EA75: =EA6>=$F$75 -> TRUE | EB75: =EB6>=$F$75 -> TRUE | EC75: =EC6>=$F$75 -> TRUE | ED75: =ED6>=$F$75 -> TRUE | EE75: =EE6>=$F$75 -> TRUE | EF75: =EF6>=$F$75 -> TRUE | EG75: =EG6>=$F$75 -> TRUE | EH75: =EH6>=$F$75 -> TRUE | EI75: =EI6>=$F$75 -> TRUE | EJ75: =EJ6>=$F$75 -> TRUE | EK75: =EK6>=$F$75 -> TRUE | EL75: =EL6>=$F$75 -> TRUE | EM75: =EM6>=$F$75 -> TRUE | EN75: =EN6>=$F$75 -> TRUE | EO75: =EO6>=$F$75 -> TRUE | EP75: =EP6>=$F$75 -> TRUE | EQ75: =EQ6>=$F$75 -> TRUE | ER75: =ER6>=$F$75 -> TRUE | ES75: =ES6>=$F$75 -> TRUE | ET75: =ET6>=$F$75 -> TRUE | EU75: =EU6>=$F$75 -> TRUE | EV75: =EV6>=$F$75 -> TRUE | EW75: =EW6>=$F$75 -> TRUE | EX75: =EX6>=$F$75 -> TRUE | EY75: =EY6>=$F$75 -> TRUE | EZ75: =EZ6>=$F$75 -> TRUE | FA75: =FA6>=$F$75 -> TRUE | FB75: =FB6>=$F$75 -> TRUE | FC75: =FC6>=$F$75 -> TRUE | FD75: =FD6>=$F$75 -> TRUE | FE75: =FE6>=$F$75 -> TRUE | FF75: =FF6>=$F$75 -> TRUE | FG75: =FG6>=$F$75 -> TRUE | FH75: =FH6>=$F$75 -> TRUE | FI75: =FI6>=$F$75 -> TRUE | FJ75: =FJ6>=$F$75 -> TRUE | FK75: =FK6>=$F$75 -> TRUE | FL75: =FL6>=$F$75 -> TRUE | FM75: =FM6>=$F$75 -> TRUE | FN75: =FN6>=$F$75 -> TRUE | FO75: =FO6>=$F$75 -> TRUE | FP75: =FP6>=$F$75 -> TRUE | FQ75: =FQ6>=$F$75 -> TRUE | FR75: =FR6>=$F$75 -> TRUE | FS75: =FS6>=$F$75 -> TRUE | FT75: =FT6>=$F$75 -> TRUE | FU75: =FU6>=$F$75 -> TRUE | FV75: =FV6>=$F$75 -> TRUE | FW75: =FW6>=$F$75 -> TRUE | FX75: =FX6>=$F$75 -> TRUE | FY75: =FY6>=$F$75 -> TRUE | FZ75: =FZ6>=$F$75 -> TRUE | GA75: =GA6>=$F$75 -> TRUE | GB75: =GB6>=$F$75 -> TRUE | GC75: =GC6>=$F$75 -> TRUE | GD75: =GD6>=$F$75 -> TRUE | GE75: =GE6>=$F$75 -> TRUE | GF75: =GF6>=$F$75 -> TRUE | GG75: =GG6>=$F$75 -> TRUE | GH75: =GH6>=$F$75 -> TRUE | GI75: =GI6>=$F$75 -> TRUE | GJ75: =GJ6>=$F$75 -> TRUE | GK75: =GK6>=$F$75 -> TRUE | GL75: =GL6>=$F$75 -> TRUE | GM75: =GM6>=$F$75 -> TRUE | GN75: =GN6>=$F$75 -> TRUE | GO75: =GO6>=$F$75 -> TRUE | GP75: =GP6>=$F$75 -> TRUE | GQ75: =GQ6>=$F$75 -> TRUE | GR75: =GR6>=$F$75 -> TRUE | GS75: =GS6>=$F$75 -> TRUE | GT75: =GT6>=$F$75 -> TRUE | GU75: =GU6>=$F$75 -> TRUE | GV75: =GV6>=$F$75 -> TRUE | GW75: =GW6>=$F$75 -> TRUE | GX75: =GX6>=$F$75 -> TRUE | GY75: =GY6>=$F$75 -> TRUE | GZ75: =GZ6>=$F$75 -> TRUE | HA75: =HA6>=$F$75 -> TRUE | HB75: =HB6>=$F$75 -> TRUE | HC75: =HC6>=$F$75 -> TRUE | HD75: =HD6>=$F$75 -> TRUE | HE75: =HE6>=$F$75 -> TRUE | HF75: =HF6>=$F$75 -> TRUE | HG75: =HG6>=$F$75 -> TRUE | HH75: =HH6>=$F$75 -> TRUE | HI75: =HI6>=$F$75 -> TRUE | HJ75: =HJ6>=$F$75 -> TRUE | HK75: =HK6>=$F$75 -> TRUE | HL75: =HL6>=$F$75 -> TRUE | HM75: =HM6>=$F$75 -> TRUE | HN75: =HN6>=$F$75 -> TRUE | HO75: =HO6>=$F$75 -> TRUE | HP75: =HP6>=$F$75 -> TRUE | HQ75: =HQ6>=$F$75 -> TRUE | HR75: =HR6>=$F$75 -> TRUE | HS75: =HS6>=$F$75 -> TRUE | HT75: =HT6>=$F$75 -> TRUE | HU75: =HU6>=$F$75 -> TRUE | HV75: =HV6>=$F$75 -> TRUE | HW75: =HW6>=$F$75 -> TRUE | HX75: =HX6>=$F$75 -> TRUE | HY75: =HY6>=$F$75 -> TRUE | HZ75: =HZ6>=$F$75 -> TRUE | IA75: =IA6>=$F$75 -> TRUE | IB75: =IB6>=$F$75 -> TRUE | IC75: =IC6>=$F$75 -> TRUE | ID75: =ID6>=$F$75 -> TRUE | IE75: =IE6>=$F$75 -> TRUE | IF75: =IF6>=$F$75 -> TRUE | IG75: =IG6>=$F$75 -> TRUE | IH75: =IH6>=$F$75 -> TRUE | II75: =II6>=$F$75 -> TRUE | IJ75: =IJ6>=$F$75 -> TRUE | IK75: =IK6>=$F$75 -> TRUE | IL75: =IL6>=$F$75 -> TRUE | IM75: =IM6>=$F$75 -> TRUE | IN75: =IN6>=$F$75 -> TRUE | IO75: =IO6>=$F$75 -> TRUE | IP75: =IP6>=$F$75 -> TRUE | IQ75: =IQ6>=$F$75 -> TRUE | IR75: =IR6>=$F$75 -> TRUE | IS75: =IS6>=$F$75 -> TRUE | IT75: =IT6>=$F$75 -> TRUE | IU75: =IU6>=$F$75 -> TRUE | IV75: =IV6>=$F$75 -> TRUE | IW75: =IW6>=$F$75 -> TRUE | IX75: =IX6>=$F$75 -> TRUE | IY75: =IY6>=$F$75 -> TRUE | IZ75: =IZ6>=$F$75 -> TRUE | JA75: =JA6>=$F$75 -> TRUE | JB75: =JB6>=$F$75 -> TRUE | JC75: =JC6>=$F$75 -> TRUE | JD75: =JD6>=$F$75 -> TRUE | JE75: =JE6>=$F$75 -> TRUE | JF75: =JF6>=$F$75 -> TRUE | JG75: =JG6>=$F$75 -> TRUE | JH75: =JH6>=$F$75 -> TRUE | JI75: =JI6>=$F$75 -> TRUE | JJ75: =JJ6>=$F$75 -> TRUE | JK75: =JK6>=$F$75 -> TRUE | JL75: =JL6>=$F$75 -> TRUE | JM75: =JM6>=$F$75 -> TRUE | JN75: =JN6>=$F$75 -> TRUE | JO75: =JO6>=$F$75 -> TRUE | JP75: =JP6>=$F$75 -> TRUE | JQ75: =JQ6>=$F$75 -> TRUE | JR75: =JR6>=$F$75 -> TRUE | JS75: =JS6>=$F$75 -> TRUE | JT75: =JT6>=$F$75 -> TRUE | JU75: =JU6>=$F$75 -> TRUE | JV75: =JV6>=$F$75 -> TRUE | JW75: =JW6>=$F$75 -> TRUE | JX75: =JX6>=$F$75 -> TRUE | JY75: =JY6>=$F$75 -> TRUE | JZ75: =JZ6>=$F$75 -> TRUE | KA75: =KA6>=$F$75 -> TRUE | KB75: =KB6>=$F$75 -> TRUE | KC75: =KC6>=$F$75 -> TRUE | KD75: =KD6>=$F$75 -> TRUE | KE75: =KE6>=$F$75 -> TRUE | KF75: =KF6>=$F$75 -> TRUE | KG75: =KG6>=$F$75 -> TRUE | KH75: =KH6>=$F$75 -> TRUE | KI75: =KI6>=$F$75 -> TRUE | KJ75: =KJ6>=$F$75 -> TRUE | KK75: =KK6>=$F$75 -> TRUE | KL75: =KL6>=$F$75 -> TRUE | KM75: =KM6>=$F$75 -> TRUE | KN75: =KN6>=$F$75 -> TRUE | KO75: =KO6>=$F$75 -> TRUE | KP75: =KP6>=$F$75 -> TRUE | KQ75: =KQ6>=$F$75 -> TRUE | KR75: =KR6>=$F$75 -> TRUE | KS75: =KS6>=$F$75 -> TRUE | KT75: =KT6>=$F$75 -> TRUE | KU75: =KU6>=$F$75 -> TRUE | KV75: =KV6>=$F$75 -> TRUE | KW75: =KW6>=$F$75 -> TRUE
D76: Inflation Index | E76: Index | I76: 1 | J76: =I76*(1+J74*J75) -> 1 | K76: =J76*(1+K74*K75) -> 1 | L76: 1 | M76: 1 | N76: 1 | O76: 1 | P76: 1 | Q76: 1 | R76: 1 | S76: 1 | T76: 1 | U76: 1 | V76: 1.000829538 | W76: 1.001659764 | X76: 1.002490679 | Y76: 1.003322284 | Z76: 1.004154578 | AA76: 1.004987562 | AB76: 1.005821238 | AC76: 1.006655605 | AD76: 1.007490664 | AE76: 1.008326416 | AF76: 1.009162861 | AG76: 1.01 | AH76: 1.010837833 | AI76: 1.011676362 | AJ76: 1.012515586 | AK76: 1.013355506 | AL76: 1.014196123 | AM76: 1.015037438 | AN76: 1.01587945 | AO76: 1.016722161 | AP76: 1.01756557 | AQ76: 1.01840968 | AR76: 1.01925449 | AS76: 1.0201 | AT76: 1.020946212 | AU76: 1.021793126 | AV76: 1.022640742 | AW76: 1.023489061 | AX76: 1.024338085 | AY76: 1.025187812 | AZ76: 1.026038244 | BA76: 1.026889382 | BB76: 1.027741226 | BC76: 1.028593777 | BD76: 1.029447034 | BE76: 1.030301 | BF76: 1.031155674 | BG76: 1.032011057 | BH76: 1.032867149 | BI76: 1.033723952 | BJ76: 1.034581465 | BK76: 1.03543969 | BL76: 1.036298627 | BM76: 1.037158276 | BN76: 1.038018638 | BO76: 1.038879714 | BP76: 1.039741505 | BQ76: 1.04060401 | BR76: 1.041467231 | BS76: 1.042331167 | BT76: 1.043195821 | BU76: 1.044061192 | BV76: 1.04492728 | BW76: =BV76*(1+BW74*BW75) -> 1.045794087 | BX76: 1.05101005 | BY76: 1.056252028 | BZ76: 1.061520151 | CA76: 1.066814548 | CB76: 1.072135352 | CC76: 1.077482694 | CD76: 1.082856706 | CE76: 1.088257521 | CF76: 1.093685273 | CG76: 1.099140096 | CH76: 1.104622125 | CI76: 1.110131497 | CJ76: 1.115668347 | CK76: 1.121232812 | CL76: 1.12682503 | CM76: 1.13244514 | CN76: 1.13809328 | CO76: 1.143769591 | CP76: 1.149474213 | CQ76: 1.155207287 | CR76: 1.160968955 | CS76: 1.16675936 | CT76: 1.172578645 | CU76: 1.178426954 | CV76: 1.184304431 | CW76: 1.190211223 | CX76: 1.196147476 | CY76: 1.202113336 | CZ76: 1.20810895 | DA76: 1.214134469 | DB76: 1.22019004 | DC76: 1.226275814 | DD76: 1.23239194 | DE76: 1.238538572 | DF76: 1.24471586 | DG76: 1.250923957 | DH76: 1.257163018 | DI76: 1.263433197 | DJ76: 1.269734649 | DK76: 1.276067529 | DL76: 1.282431995 | DM76: 1.288828204 | DN76: 1.295256315 | DO76: 1.301716486 | DP76: 1.308208878 | DQ76: 1.314733651 | DR76: 1.321290967 | DS76: 1.327880988 | DT76: 1.334503877 | DU76: 1.341159798 | DV76: 1.347848915 | DW76: 1.354571396 | DX76: 1.361327404 | DY76: 1.368117109 | DZ76: 1.374940679 | EA76: 1.381798281 | EB76: 1.388690085 | EC76: 1.395616263 | ED76: 1.402576986 | EE76: 1.409572426 | EF76: 1.416602756 | EG76: 1.42366815 | EH76: 1.430768784 | EI76: =EH76*(1+EI74*EI75) -> 1.437904832 | EJ76: 1.445076471 | EK76: 1.45228388 | EL76: 1.459527236 | EM76: 1.466806719 | EN76: 1.474122509 | EO76: 1.481474786 | EP76: 1.488863734 | EQ76: 1.496289534 | ER76: 1.503752371 | ES76: 1.511252429 | ET76: 1.518789895 | EU76: 1.526364954 | EV76: 1.533977794 | EW76: 1.541628603 | EX76: 1.549317572 | EY76: 1.557044889 | EZ76: 1.564810747 | FA76: 1.572615338 | FB76: 1.580458855 | FC76: 1.588341491 | FD76: 1.596263443 | FE76: 1.604224906 | FF76: 1.612226078 | FG76: 1.620267155 | FH76: 1.628348338 | FI76: 1.636469827 | FJ76: 1.644631822 | FK76: 1.652834525 | FL76: 1.66107814 | FM76: 1.66936287 | FN76: 1.677688921 | FO76: 1.686056499 | FP76: 1.694465811 | FQ76: 1.702917064 | FR76: 1.711410469 | FS76: 1.719946235 | FT76: 1.728524573 | FU76: 1.737145697 | FV76: 1.745809819 | FW76: 1.754517154 | FX76: 1.763267917 | FY76: 1.772062326 | FZ76: 1.780900597 | GA76: 1.789782949 | GB76: 1.798709603 | GC76: 1.807680778 | GD76: 1.816696699 | GE76: 1.825757586 | GF76: 1.834863666 | GG76: 1.844015162 | GH76: 1.853212302 | GI76: 1.862455314 | GJ76: 1.871744425 | GK76: 1.881079867 | GL76: 1.890461869 | GM76: 1.899890665 | GN76: 1.909366488 | GO76: 1.918889572 | GP76: 1.928460153 | GQ76: 1.938078468 | GR76: 1.947744755 | GS76: 1.957459253 | GT76: 1.967222202 | GU76: =GT76*(1+GU74*GU75) -> 1.977033845 | GV76: 1.986894424 | GW76: 1.996804184 | GX76: 2.006763368 | GY76: 2.016772225 | GZ76: 2.026831002 | HA76: 2.036939948 | HB76: 2.047099312 | HC76: 2.057309347 | HD76: 2.067570305 | HE76: 2.077882441 | HF76: 2.088246008 | HG76: 2.098661265 | HH76: 2.109128468 | HI76: 2.119647878 | HJ76: 2.130219753 | HK76: 2.140844356 | HL76: 2.151521951 | HM76: 2.1622528 | HN76: 2.17303717 | HO76: 2.183875328 | HP76: 2.194767542 | HQ76: 2.205714081 | HR76: 2.216715217 | HS76: 2.227771222 | HT76: 2.238882369 | HU76: 2.250048934 | HV76: 2.261271193 | HW76: 2.272549424 | HX76: 2.283883905 | HY76: 2.295274918 | HZ76: 2.306722744 | IA76: 2.318227667 | IB76: 2.329789971 | IC76: 2.341409944 | ID76: 2.353087871 | IE76: 2.364824043 | IF76: 2.37661875 | IG76: 2.388472284 | IH76: 2.400384937 | II76: 2.412357006 | IJ76: 2.424388787 | IK76: 2.436480576 | IL76: 2.448632675 | IM76: 2.460845382 | IN76: 2.473119001 | IO76: 2.485453836 | IP76: 2.497850191 | IQ76: 2.510308374 | IR76: 2.522828693 | IS76: 2.535411458 | IT76: 2.54805698 | IU76: 2.560765573 | IV76: 2.57353755 | IW76: 2.586373228 | IX76: 2.599272926 | IY76: 2.612236961 | IZ76: 2.625265655 | JA76: 2.63835933 | JB76: 2.651518311 | JC76: 2.664742924 | JD76: 2.678033494 | JE76: 2.691390353 | JF76: 2.704813829 | JG76: =JF76*(1+JG74*JG75) -> 2.718304256 | JH76: 2.731861968 | JI76: 2.745487299 | JJ76: 2.759180587 | JK76: 2.772942172 | JL76: 2.786772393 | JM76: 2.800671594 | JN76: 2.814640117 | JO76: 2.82867831 | JP76: 2.842786518 | JQ76: 2.856965093 | JR76: 2.871214384 | JS76: 2.885534744 | JT76: 2.899926527 | JU76: 2.914390091 | JV76: 2.928925793 | JW76: 2.943533992 | JX76: 2.958215051 | JY76: 2.972969332 | JZ76: 2.987797201 | KA76: 3.002699025 | KB76: 3.017675173 | KC76: 3.032726015 | KD76: 3.047851925 | KE76: 3.063053276 | KF76: 3.078330444 | KG76: 3.093683808 | KH76: 3.109113749 | KI76: 3.124620646 | KJ76: 3.140204886 | KK76: 3.155866853 | KL76: 3.171606935 | KM76: 3.187425521 | KN76: 3.203323004 | KO76: 3.219299777 | KP76: 3.235356234 | KQ76: 3.251492774 | KR76: 3.267709797 | KS76: 3.284007702 | KT76: 3.300386895 | KU76: 3.316847779 | KV76: 3.333390764 | KW76: 3.350016257
D78: Cost of Supply Provided by Supplier - Real | E78: USD/Ton | F78: 173.0415698 | J78: =$F$78 -> 173.0415698 | K78: =$F$78 -> 173.0415698 | L78: 173.0415698 | M78: 173.0415698 | N78: 173.0415698 | O78: 173.0415698 | P78: 173.0415698 | Q78: 173.0415698 | R78: 173.0415698 | S78: 173.0415698 | T78: 173.0415698 | U78: 173.0415698 | V78: 173.0415698 | W78: 173.0415698 | X78: 173.0415698 | Y78: 173.0415698 | Z78: 173.0415698 | AA78: 173.0415698 | AB78: 173.0415698 | AC78: 173.0415698 | AD78: 173.0415698 | AE78: 173.0415698 | AF78: 173.0415698 | AG78: 173.0415698 | AH78: 173.0415698 | AI78: 173.0415698 | AJ78: 173.0415698 | AK78: 173.0415698 | AL78: 173.0415698 | AM78: 173.0415698 | AN78: 173.0415698 | AO78: 173.0415698 | AP78: 173.0415698 | AQ78: 173.0415698 | AR78: 173.0415698 | AS78: 173.0415698 | AT78: 173.0415698 | AU78: 173.0415698 | AV78: 173.0415698 | AW78: 173.0415698 | AX78: 173.0415698 | AY78: 173.0415698 | AZ78: 173.0415698 | BA78: 173.0415698 | BB78: 173.0415698 | BC78: 173.0415698 | BD78: 173.0415698 | BE78: 173.0415698 | BF78: 173.0415698 | BG78: 173.0415698 | BH78: 173.0415698 | BI78: 173.0415698 | BJ78: 173.0415698 | BK78: 173.0415698 | BL78: 173.0415698 | BM78: 173.0415698 | BN78: 173.0415698 | BO78: 173.0415698 | BP78: 173.0415698 | BQ78: 173.0415698 | BR78: 173.0415698 | BS78: 173.0415698 | BT78: 173.0415698 | BU78: 173.0415698 | BV78: 173.0415698 | BW78: =$F$78 -> 173.0415698 | BX78: 173.0415698 | BY78: 173.0415698 | BZ78: 173.0415698 | CA78: 173.0415698 | CB78: 173.0415698 | CC78: 173.0415698 | CD78: 173.0415698 | CE78: 173.0415698 | CF78: 173.0415698 | CG78: 173.0415698 | CH78: 173.0415698 | CI78: 173.0415698 | CJ78: 173.0415698 | CK78: 173.0415698 | CL78: 173.0415698 | CM78: 173.0415698 | CN78: 173.0415698 | CO78: 173.0415698 | CP78: 173.0415698 | CQ78: 173.0415698 | CR78: 173.0415698 | CS78: 173.0415698 | CT78: 173.0415698 | CU78: 173.0415698 | CV78: 173.0415698 | CW78: 173.0415698 | CX78: 173.0415698 | CY78: 173.0415698 | CZ78: 173.0415698 | DA78: 173.0415698 | DB78: 173.0415698 | DC78: 173.0415698 | DD78: 173.0415698 | DE78: 173.0415698 | DF78: 173.0415698 | DG78: 173.0415698 | DH78: 173.0415698 | DI78: 173.0415698 | DJ78: 173.0415698 | DK78: 173.0415698 | DL78: 173.0415698 | DM78: 173.0415698 | DN78: 173.0415698 | DO78: 173.0415698 | DP78: 173.0415698 | DQ78: 173.0415698 | DR78: 173.0415698 | DS78: 173.0415698 | DT78: 173.0415698 | DU78: 173.0415698 | DV78: 173.0415698 | DW78: 173.0415698 | DX78: 173.0415698 | DY78: 173.0415698 | DZ78: 173.0415698 | EA78: 173.0415698 | EB78: 173.0415698 | EC78: 173.0415698 | ED78: 173.0415698 | EE78: 173.0415698 | EF78: 173.0415698 | EG78: 173.0415698 | EH78: 173.0415698 | EI78: =$F$78 -> 173.0415698 | EJ78: 173.0415698 | EK78: 173.0415698 | EL78: 173.0415698 | EM78: 173.0415698 | EN78: 173.0415698 | EO78: 173.0415698 | EP78: 173.0415698 | EQ78: 173.0415698 | ER78: 173.0415698 | ES78: 173.0415698 | ET78: 173.0415698 | EU78: 173.0415698 | EV78: 173.0415698 | EW78: 173.0415698 | EX78: 173.0415698 | EY78: 173.0415698 | EZ78: 173.0415698 | FA78: 173.0415698 | FB78: 173.0415698 | FC78: 173.0415698 | FD78: 173.0415698 | FE78: 173.0415698 | FF78: 173.0415698 | FG78: 173.0415698 | FH78: 173.0415698 | FI78: 173.0415698 | FJ78: 173.0415698 | FK78: 173.0415698 | FL78: 173.0415698 | FM78: 173.0415698 | FN78: 173.0415698 | FO78: 173.0415698 | FP78: 173.0415698 | FQ78: 173.0415698 | FR78: 173.0415698 | FS78: 173.0415698 | FT78: 173.0415698 | FU78: 173.0415698 | FV78: 173.0415698 | FW78: 173.0415698 | FX78: 173.0415698 | FY78: 173.0415698 | FZ78: 173.0415698 | GA78: 173.0415698 | GB78: 173.0415698 | GC78: 173.0415698 | GD78: 173.0415698 | GE78: 173.0415698 | GF78: 173.0415698 | GG78: 173.0415698 | GH78: 173.0415698 | GI78: 173.0415698 | GJ78: 173.0415698 | GK78: 173.0415698 | GL78: 173.0415698 | GM78: 173.0415698 | GN78: 173.0415698 | GO78: 173.0415698 | GP78: 173.0415698 | GQ78: 173.0415698 | GR78: 173.0415698 | GS78: 173.0415698 | GT78: 173.0415698 | GU78: =$F$78 -> 173.0415698 | GV78: 173.0415698 | GW78: 173.0415698 | GX78: 173.0415698 | GY78: 173.0415698 | GZ78: 173.0415698 | HA78: 173.0415698 | HB78: 173.0415698 | HC78: 173.0415698 | HD78: 173.0415698 | HE78: 173.0415698 | HF78: 173.0415698 | HG78: 173.0415698 | HH78: 173.0415698 | HI78: 173.0415698 | HJ78: 173.0415698 | HK78: 173.0415698 | HL78: 173.0415698 | HM78: 173.0415698 | HN78: 173.0415698 | HO78: 173.0415698 | HP78: 173.0415698 | HQ78: 173.0415698 | HR78: 173.0415698 | HS78: 173.0415698 | HT78: 173.0415698 | HU78: 173.0415698 | HV78: 173.0415698 | HW78: 173.0415698 | HX78: 173.0415698 | HY78: 173.0415698 | HZ78: 173.0415698 | IA78: 173.0415698 | IB78: 173.0415698 | IC78: 173.0415698 | ID78: 173.0415698 | IE78: 173.0415698 | IF78: 173.0415698 | IG78: 173.0415698 | IH78: 173.0415698 | II78: 173.0415698 | IJ78: 173.0415698 | IK78: 173.0415698 | IL78: 173.0415698 | IM78: 173.0415698 | IN78: 173.0415698 | IO78: 173.0415698 | IP78: 173.0415698 | IQ78: 173.0415698 | IR78: 173.0415698 | IS78: 173.0415698 | IT78: 173.0415698 | IU78: 173.0415698 | IV78: 173.0415698 | IW78: 173.0415698 | IX78: 173.0415698 | IY78: 173.0415698 | IZ78: 173.0415698 | JA78: 173.0415698 | JB78: 173.0415698 | JC78: 173.0415698 | JD78: 173.0415698 | JE78: 173.0415698 | JF78: 173.0415698 | JG78: =$F$78 -> 173.0415698 | JH78: 173.0415698 | JI78: 173.0415698 | JJ78: 173.0415698 | JK78: 173.0415698 | JL78: 173.0415698 | JM78: 173.0415698 | JN78: 173.0415698 | JO78: 173.0415698 | JP78: 173.0415698 | JQ78: 173.0415698 | JR78: 173.0415698 | JS78: 173.0415698 | JT78: 173.0415698 | JU78: 173.0415698 | JV78: 173.0415698 | JW78: 173.0415698 | JX78: 173.0415698 | JY78: 173.0415698 | JZ78: 173.0415698 | KA78: 173.0415698 | KB78: 173.0415698 | KC78: 173.0415698 | KD78: 173.0415698 | KE78: 173.0415698 | KF78: 173.0415698 | KG78: 173.0415698 | KH78: 173.0415698 | KI78: 173.0415698 | KJ78: 173.0415698 | KK78: 173.0415698 | KL78: 173.0415698 | KM78: 173.0415698 | KN78: 173.0415698 | KO78: 173.0415698 | KP78: 173.0415698 | KQ78: 173.0415698 | KR78: 173.0415698 | KS78: 173.0415698 | KT78: 173.0415698 | KU78: 173.0415698 | KV78: 173.0415698 | KW78: 173.0415698
D79: Cost of Supply Provided by Supplier - Nominal | E79: USD/Ton | J79: =J78*J76 -> 173.0415698 | K79: =K78*K76 -> 173.0415698 | L79: 173.0415698 | M79: 173.0415698 | N79: 173.0415698 | O79: 173.0415698 | P79: 173.0415698 | Q79: 173.0415698 | R79: 173.0415698 | S79: 173.0415698 | T79: 173.0415698 | U79: 173.0415698 | V79: 173.1851143 | W79: 173.328778 | X79: 173.4725608 | Y79: 173.6164629 | Z79: 173.7604844 | AA79: 173.9046253 | AB79: 174.0488859 | AC79: 174.193266 | AD79: 174.337766 | AE79: 174.4823858 | AF79: 174.6271256 | AG79: 174.7719855 | AH79: 174.9169655 | AI79: 175.0620658 | AJ79: 175.2072864 | AK79: 175.3526276 | AL79: 175.4980892 | AM79: 175.6436716 | AN79: 175.7893747 | AO79: 175.9351987 | AP79: 176.0811437 | AQ79: 176.2272097 | AR79: 176.3733969 | AS79: 176.5197053 | AT79: 176.6661351 | AU79: 176.8126864 | AV79: 176.9593593 | AW79: 177.1061538 | AX79: 177.2530701 | AY79: 177.4001083 | AZ79: 177.5472685 | BA79: 177.6945507 | BB79: 177.8419551 | BC79: 177.9894818 | BD79: 178.1371308 | BE79: 178.2849024 | BF79: 178.4327965 | BG79: 178.5808133 | BH79: 178.7289529 | BI79: 178.8772154 | BJ79: 179.0256008 | BK79: 179.1741094 | BL79: 179.3227412 | BM79: 179.4714962 | BN79: 179.6203746 | BO79: 179.7693766 | BP79: 179.9185021 | BQ79: 180.0677514 | BR79: 180.2171245 | BS79: 180.3666214 | BT79: 180.5162424 | BU79: 180.6659875 | BV79: 180.8158568 | BW79: =BW78*BW76 -> 180.9658505 | BX79: 181.8684289 | BY79: 182.775509 | BZ79: 183.6871132 | CA79: 184.6032641 | CB79: 185.5239843 | CC79: 186.4492967 | CD79: 187.3792242 | CE79: 188.3137897 | CF79: 189.2530164 | CG79: 190.1969276 | CH79: 191.1455466 | CI79: 192.0988969 | CJ79: 193.057002 | CK79: 194.0198858 | CL79: 194.9875721 | CM79: 195.9600847 | CN79: 196.9374478 | CO79: 197.9196855 | CP79: 198.9068223 | CQ79: 199.8988824 | CR79: 200.8958905 | CS79: 201.8978712 | CT79: 202.9048494 | CU79: 203.9168499 | CV79: 204.9338979 | CW79: 205.9560184 | CX79: 206.9832369 | CY79: 208.0155786 | CZ79: 209.0530692 | DA79: 210.0957344 | DB79: 211.1435999 | DC79: 212.1966917 | DD79: 213.2550359 | DE79: 214.3186587 | DF79: 215.3875863 | DG79: 216.4618453 | DH79: 217.5414621 | DI79: 218.6264637 | DJ79: 219.7168768 | DK79: 220.8127283 | DL79: 221.9140455 | DM79: 223.0208556 | DN79: 224.133186 | DO79: 225.2510642 | DP79: 226.3745179 | DQ79: 227.5035748 | DR79: 228.638263 | DS79: 229.7786106 | DT79: 230.9246457 | DU79: 232.0763967 | DV79: 233.2338921 | DW79: 234.3971606 | DX79: 235.566231 | DY79: 236.7411322 | DZ79: 237.9218934 | EA79: 239.1085436 | EB79: 240.3011123 | EC79: 241.499629 | ED79: 242.7041234 | EE79: 243.9146253 | EF79: 245.1311646 | EG79: 246.3537715 | EH79: 247.5824763 | EI79: =EI78*EI76 -> 248.8173093 | EJ79: 250.058301 | EK79: 251.3054824 | EL79: 252.5588841 | EM79: 253.8185372 | EN79: 255.0844729 | EO79: 256.3567226 | EP79: 257.6353176 | EQ79: 258.9202898 | ER79: 260.2116708 | ES79: 261.5094927 | ET79: 262.8137875 | EU79: 264.1245876 | EV79: 265.4419254 | EW79: 266.7658335 | EX79: 268.0963446 | EY79: 269.4334918 | EZ79: 270.7773081 | FA79: 272.1278267 | FB79: 273.4850812 | FC79: 274.849105 | FD79: 276.219932 | FE79: 277.597596 | FF79: 278.9821313 | FG79: 280.373572 | FH79: 281.7719526 | FI79: 283.1773077 | FJ79: 284.5896721 | FK79: 286.0090808 | FL79: 287.4355689 | FM79: 288.8691716 | FN79: 290.3099246 | FO79: 291.7578633 | FP79: 293.2130238 | FQ79: 294.675442 | FR79: 296.145154 | FS79: 297.6221964 | FT79: 299.1066056 | FU79: 300.5984183 | FV79: 302.0976716 | FW79: 303.6044025 | FX79: 305.1186483 | FY79: 306.6404466 | FZ79: 308.1698348 | GA79: 309.706851 | GB79: 311.2515332 | GC79: 312.8039195 | GD79: 314.3640485 | GE79: 315.9319587 | GF79: 317.507689 | GG79: 319.0912783 | GH79: 320.6827659 | GI79: 322.2821911 | GJ79: 323.8895935 | GK79: 325.505013 | GL79: 327.1284895 | GM79: 328.7600631 | GN79: 330.3997744 | GO79: 332.0476638 | GP79: 333.7037721 | GQ79: 335.3681404 | GR79: 337.0408098 | GS79: 338.7218218 | GT79: 340.4112179 | GU79: =GU78*GU76 -> 342.10904 | GV79: 343.8153301 | GW79: 345.5301304 | GX79: 347.2534834 | GY79: 348.9854317 | GZ79: 350.7260183 | HA79: 352.4752861 | HB79: 354.2332784 | HC79: 356.0000389 | HD79: 357.7756112 | HE79: 359.5600393 | HF79: 361.3533673 | HG79: 363.1556397 | HH79: 364.966901 | HI79: 366.7871961 | HJ79: 368.61657 | HK79: 370.4550681 | HL79: 372.3027357 | HM79: 374.1596187 | HN79: 376.0257631 | HO79: 377.9012149 | HP79: 379.7860207 | HQ79: 381.6802271 | HR79: 383.5838809 | HS79: 385.4970293 | HT79: 387.4197197 | HU79: 389.3519996 | HV79: 391.2939169 | HW79: 393.2455196 | HX79: 395.2068561 | HY79: 397.1779748 | HZ79: 399.1589246 | IA79: 401.1497546 | IB79: 403.1505139 | IC79: 405.1612521 | ID79: 407.182019 | IE79: 409.2128646 | IF79: 411.2538392 | IG79: 413.3049933 | IH79: 415.3663776 | II79: 417.4380432 | IJ79: 419.5200414 | IK79: 421.6124237 | IL79: 423.7152418 | IM79: 425.8285479 | IN79: 427.9523942 | IO79: 430.0868334 | IP79: 432.2319182 | IQ79: 434.3877017 | IR79: 436.5542373 | IS79: 438.7315787 | IT79: 440.9197797 | IU79: 443.1188945 | IV79: 445.3289775 | IW79: 447.5500835 | IX79: 449.7822673 | IY79: 452.0255843 | IZ79: 454.28009 | JA79: 456.5458401 | JB79: 458.8228909 | JC79: 461.1112985 | JD79: 463.4111198 | JE79: 465.7224115 | JF79: 468.045231 | JG79: =JG78*JG76 -> 470.3796356 | JH79: 472.7256833 | JI79: 475.083432 | JJ79: 477.4529401 | JK79: 479.8342663 | JL79: 482.2274695 | JM79: 484.632609 | JN79: 487.0497442 | JO79: 489.4789351 | JP79: 491.9202417 | JQ79: 494.3737244 | JR79: 496.8394441 | JS79: 499.3174617 | JT79: 501.8078385 | JU79: 504.3106363 | JV79: 506.8259169 | JW79: 509.3537426 | JX79: 511.8941761 | JY79: 514.4472801 | JZ79: 517.0131178 | KA79: 519.5917529 | KB79: 522.183249 | KC79: 524.7876704 | KD79: 527.4050815 | KE79: 530.0355471 | KF79: 532.6791323 | KG79: 535.3359026 | KH79: 538.0059236 | KI79: 540.6892616 | KJ79: 543.3859829 | KK79: 546.0961542 | KL79: 548.8198427 | KM79: 551.5571157 | KN79: 554.3080411 | KO79: 557.0726869 | KP79: 559.8511215 | KQ79: 562.6434138 | KR79: 565.4496327 | KS79: 568.2698479 | KT79: 571.1041291 | KU79: 573.9525464 | KV79: 576.8151704 | KW79: 579.6920719
D80: Tons of Supply Provided | E80: Tons | H80: =SUM(J80:KW80) -> 8340007.758 | J80: =J70 -> 0 | K80: 0 | L80: 0 | M80: 0 | N80: 0 | O80: 0 | P80: 0 | Q80: 0 | R80: 0 | S80: 0 | T80: 0 | U80: 0 | V80: 0 | W80: 0 | X80: 0 | Y80: 0 | Z80: 0 | AA80: 0 | AB80: 0 | AC80: 0 | AD80: 0 | AE80: 0 | AF80: 0 | AG80: 0 | AH80: 0 | AI80: 0 | AJ80: 0 | AK80: 0 | AL80: 0 | AM80: 0 | AN80: 0 | AO80: 0 | AP80: 0 | AQ80: 0 | AR80: 0 | AS80: 0 | AT80: 0 | AU80: 0 | AV80: 0 | AW80: 0 | AX80: 0 | AY80: 0 | AZ80: 0 | BA80: 0 | BB80: 0 | BC80: 0 | BD80: 0 | BE80: 0 | BF80: 0 | BG80: 0 | BH80: 0 | BI80: 0 | BJ80: 0 | BK80: 0 | BL80: 0 | BM80: 0 | BN80: 0 | BO80: 0 | BP80: 0 | BQ80: 0 | BR80: 0 | BS80: 0 | BT80: 0 | BU80: 0 | BV80: =BV70 -> 0 | BW80: 0 | BX80: 99760.63446 | BY80: 98134.10238 | BZ80: 99760.63446 | CA80: 98134.10238 | CB80: 99760.63446 | CC80: 98134.10238 | CD80: 99760.63446 | CE80: 98676.27974 | CF80: 99760.63446 | CG80: 98134.10238 | CH80: 99760.63446 | CI80: 98134.10238 | CJ80: 99760.63446 | CK80: 98134.10238 | CL80: 99760.63446 | CM80: 98676.27974 | CN80: 99760.63446 | CO80: 98134.10238 | CP80: 99760.63446 | CQ80: 98134.10238 | CR80: 99760.63446 | CS80: 98134.10238 | CT80: 99760.63446 | CU80: 98676.27974 | CV80: 99760.63446 | CW80: 98134.10238 | CX80: 99760.63446 | CY80: 98134.10238 | CZ80: 99760.63446 | DA80: 98134.10238 | DB80: 99760.63446 | DC80: 98676.27974 | DD80: 99760.63446 | DE80: 98134.10238 | DF80: 99760.63446 | DG80: 98134.10238 | DH80: 99760.63446 | DI80: 98134.10238 | DJ80: 99760.63446 | DK80: 98676.27974 | DL80: 99760.63446 | DM80: 98134.10238 | DN80: 99760.63446 | DO80: 98134.10238 | DP80: 99760.63446 | DQ80: 98134.10238 | DR80: 99760.63446 | DS80: 98676.27974 | DT80: 99760.63446 | DU80: 98134.10238 | DV80: 99760.63446 | DW80: 98134.10238 | DX80: 99760.63446 | DY80: 98134.10238 | DZ80: 99760.63446 | EA80: 98676.27974 | EB80: 99760.63446 | EC80: 98134.10238 | ED80: 99760.63446 | EE80: 98134.10238 | EF80: 99760.63446 | EG80: 98134.10238 | EH80: =EH70 -> 99760.63446 | EI80: 98676.27974 | EJ80: 99760.63446 | EK80: 98134.10238 | EL80: 99760.63446 | EM80: 98134.10238 | EN80: 99760.63446 | EO80: 98134.10238 | EP80: 99760.63446 | EQ80: 98676.27974 | ER80: 99760.63446 | ES80: 98134.10238 | ET80: 99760.63446 | EU80: 98134.10238 | EV80: 99760.63446 | EW80: 98134.10238 | EX80: 99760.63446 | EY80: 98676.27974 | EZ80: 99760.63446 | FA80: 98134.10238 | FB80: 99760.63446 | FC80: 98134.10238 | FD80: 23007.03663 | FE80: 1.684958605e-10 | FF80: -1.83813666e-10 | FG80: 0 | FH80: 0 | FI80: 1.684958605e-10 | FJ80: 0 | FK80: 1.684958605e-10 | FL80: 0 | FM80: 1.684958605e-10 | FN80: 0 | FO80: 0 | FP80: 1.83813666e-10 | FQ80: 1.684958605e-10 | FR80: 0 | FS80: 1.684958605e-10 | FT80: 0 | FU80: 1.684958605e-10 | FV80: 0 | FW80: 0 | FX80: 0 | FY80: 0 | FZ80: 0 | GA80: 0 | GB80: 0 | GC80: 0 | GD80: 0 | GE80: 0 | GF80: 0 | GG80: 0 | GH80: 0 | GI80: 0 | GJ80: 0 | GK80: 0 | GL80: 0 | GM80: 0 | GN80: 0 | GO80: 0 | GP80: 0 | GQ80: 0 | GR80: 0 | GS80: 0 | GT80: =GT70 -> 0 | GU80: 0 | GV80: 0 | GW80: 0 | GX80: 0 | GY80: 0 | GZ80: 0 | HA80: 0 | HB80: 0 | HC80: 0 | HD80: 0 | HE80: 0 | HF80: 0 | HG80: 0 | HH80: 0 | HI80: 0 | HJ80: 0 | HK80: 0 | HL80: 0 | HM80: 0 | HN80: 0 | HO80: 0 | HP80: 0 | HQ80: 0 | HR80: 0 | HS80: 0 | HT80: 0 | HU80: 0 | HV80: 0 | HW80: 0 | HX80: 0 | HY80: 0 | HZ80: 0 | IA80: 0 | IB80: 0 | IC80: 0 | ID80: 0 | IE80: 0 | IF80: 0 | IG80: 0 | IH80: 0 | II80: 0 | IJ80: 0 | IK80: 0 | IL80: 0 | IM80: 0 | IN80: 0 | IO80: 0 | IP80: 0 | IQ80: 0 | IR80: 0 | IS80: 0 | IT80: 0 | IU80: 0 | IV80: 0 | IW80: 0 | IX80: 0 | IY80: 0 | IZ80: 0 | JA80: 0 | JB80: 0 | JC80: 0 | JD80: 0 | JE80: 0 | JF80: =JF70 -> 0 | JG80: 0 | JH80: 0 | JI80: 0 | JJ80: 0 | JK80: 0 | JL80: 0 | JM80: 0 | JN80: 0 | JO80: 0 | JP80: 0 | JQ80: 0 | JR80: 0 | JS80: 0 | JT80: 0 | JU80: 0 | JV80: 0 | JW80: 0 | JX80: 0 | JY80: 0 | JZ80: 0 | KA80: 0 | KB80: 0 | KC80: 0 | KD80: 0 | KE80: 0 | KF80: 0 | KG80: 0 | KH80: 0 | KI80: 0 | KJ80: 0 | KK80: 0 | KL80: 0 | KM80: 0 | KN80: 0 | KO80: 0 | KP80: 0 | KQ80: 0 | KR80: 0 | KS80: 0 | KT80: 0 | KU80: 0 | KV80: 0 | KW80: 0
D81: Total Cost of Supply Provided by Supplier | E81: USD | H81: =SUM(J81:KW81) -> 1879368879 | J81: =J79*J80 -> 0 | K81: =K79*K80 -> 0 | L81: 0 | M81: 0 | N81: 0 | O81: 0 | P81: 0 | Q81: 0 | R81: 0 | S81: 0 | T81: 0 | U81: 0 | V81: 0 | W81: 0 | X81: 0 | Y81: 0 | Z81: 0 | AA81: 0 | AB81: 0 | AC81: 0 | AD81: 0 | AE81: 0 | AF81: 0 | AG81: 0 | AH81: 0 | AI81: 0 | AJ81: 0 | AK81: 0 | AL81: 0 | AM81: 0 | AN81: 0 | AO81: 0 | AP81: 0 | AQ81: 0 | AR81: 0 | AS81: 0 | AT81: 0 | AU81: 0 | AV81: 0 | AW81: 0 | AX81: 0 | AY81: 0 | AZ81: 0 | BA81: 0 | BB81: 0 | BC81: 0 | BD81: 0 | BE81: 0 | BF81: 0 | BG81: 0 | BH81: 0 | BI81: 0 | BJ81: 0 | BK81: 0 | BL81: 0 | BM81: 0 | BN81: 0 | BO81: 0 | BP81: 0 | BQ81: 0 | BR81: 0 | BS81: 0 | BT81: 0 | BU81: 0 | BV81: 0 | BW81: =BW79*BW80 -> 0 | BX81: 18143309.86 | BY81: 17936510.51 | BZ81: 18324742.96 | CA81: 18115875.62 | CB81: 18507990.39 | CC81: 18297034.37 | CD81: 18693070.29 | CE81: 18582104.19 | CF81: 18880000.99 | CG81: 18664804.76 | CH81: 19068801 | CI81: 18851452.81 | CJ81: 19259489.01 | CK81: 19039967.34 | CL81: 19452083.9 | CM81: 19336612.14 | CN81: 19646604.74 | CO81: 19422670.68 | CP81: 19843070.79 | CQ81: 19616897.39 | CR81: 20041501.5 | CS81: 19813066.36 | CT81: 20241916.51 | CU81: 20121756.13 | CV81: 20444335.68 | CW81: 20211309 | CX81: 20648779.03 | CY81: 20413422.09 | CZ81: 20855266.82 | DA81: 20617556.31 | DB81: 21063819.49 | DC81: 20938780.11 | DD81: 21274457.69 | DE81: 21031969.19 | DF81: 21487202.26 | DG81: 21242288.88 | DH81: 21702074.29 | DI81: 21454711.77 | DJ81: 21919095.03 | DK81: 21788978.55 | DL81: 22138285.98 | DM81: 21885951.48 | DN81: 22359668.84 | DO81: 22104810.99 | DP81: 22583265.53 | DQ81: 22325859.1 | DR81: 22809098.18 | DS81: 22673698.45 | DT81: 23037189.16 | DU81: 22774608.87 | DV81: 23267561.06 | DW81: 23002354.96 | DX81: 23500236.67 | DY81: 23232378.51 | DZ81: 23735239.03 | EA81: 23594341.53 | EB81: 23972591.42 | EC81: 23699349.32 | ED81: 24212317.34 | EE81: 23936342.81 | EF81: 24454440.51 | EG81: 24175706.24 | EH81: 24698984.92 | EI81: =EI79*EI80 -> 24552366.41 | EJ81: 24945974.77 | EK81: 24661637.93 | EL81: 25195434.51 | EM81: 24908254.31 | EN81: 25447388.86 | EO81: 25157336.86 | EP81: 25701862.75 | EQ81: 25549290.94 | ER81: 25958881.37 | ES81: 25662999.33 | ET81: 26218470.19 | EU81: 25919629.32 | EV81: 26480654.89 | EW81: 26178825.61 | EX81: 26745461.44 | EY81: 26586694.61 | EZ81: 27012916.05 | FA81: 26705020.01 | FB81: 27283045.21 | FC81: 26972070.21 | FD81: 6355002.092 | FE81: 4.677404583e-08 | FF81: -5.128072832e-08 | FG81: 0 | FH81: 0 | FI81: 4.771420415e-08 | FJ81: 0 | FK81: 4.819134619e-08 | FL81: 0 | FM81: 4.867325965e-08 | FN81: 0 | FO81: 0 | FP81: 5.389656084e-08 | FQ81: 4.965159217e-08 | FR81: 0 | FS81: 5.01481081e-08 | FT81: 0 | FU81: 5.064958918e-08 | FV81: 0 | FW81: 0 | FX81: 0 | FY81: 0 | FZ81: 0 | GA81: 0 | GB81: 0 | GC81: 0 | GD81: 0 | GE81: 0 | GF81: 0 | GG81: 0 | GH81: 0 | GI81: 0 | GJ81: 0 | GK81: 0 | GL81: 0 | GM81: 0 | GN81: 0 | GO81: 0 | GP81: 0 | GQ81: 0 | GR81: 0 | GS81: 0 | GT81: 0 | GU81: =GU79*GU80 -> 0 | GV81: 0 | GW81: 0 | GX81: 0 | GY81: 0 | GZ81: 0 | HA81: 0 | HB81: 0 | HC81: 0 | HD81: 0 | HE81: 0 | HF81: 0 | HG81: 0 | HH81: 0 | HI81: 0 | HJ81: 0 | HK81: 0 | HL81: 0 | HM81: 0 | HN81: 0 | HO81: 0 | HP81: 0 | HQ81: 0 | HR81: 0 | HS81: 0 | HT81: 0 | HU81: 0 | HV81: 0 | HW81: 0 | HX81: 0 | HY81: 0 | HZ81: 0 | IA81: 0 | IB81: 0 | IC81: 0 | ID81: 0 | IE81: 0 | IF81: 0 | IG81: 0 | IH81: 0 | II81: 0 | IJ81: 0 | IK81: 0 | IL81: 0 | IM81: 0 | IN81: 0 | IO81: 0 | IP81: 0 | IQ81: 0 | IR81: 0 | IS81: 0 | IT81: 0 | IU81: 0 | IV81: 0 | IW81: 0 | IX81: 0 | IY81: 0 | IZ81: 0 | JA81: 0 | JB81: 0 | JC81: 0 | JD81: 0 | JE81: 0 | JF81: 0 | JG81: =JG79*JG80 -> 0 | JH81: 0 | JI81: 0 | JJ81: 0 | JK81: 0 | JL81: 0 | JM81: 0 | JN81: 0 | JO81: 0 | JP81: 0 | JQ81: 0 | JR81: 0 | JS81: 0 | JT81: 0 | JU81: 0 | JV81: 0 | JW81: 0 | JX81: 0 | JY81: 0 | JZ81: 0 | KA81: 0 | KB81: 0 | KC81: 0 | KD81: 0 | KE81: 0 | KF81: 0 | KG81: 0 | KH81: 0 | KI81: 0 | KJ81: 0 | KK81: 0 | KL81: 0 | KM81: 0 | KN81: 0 | KO81: 0 | KP81: 0 | KQ81: 0 | KR81: 0 | KS81: 0 | KT81: 0 | KU81: 0 | KV81: 0 | KW81: 0
